Workbook

Sheet WPS Quote
N1: Quote Date: | O1: =TODAY() -> 2021-10-26
N2: Valid Through: | O2: 2022-12-31
B13: 2022 Individual Off-Exchange ACA Plan Quote
C18: Applicant Name: | H18: Effective Date:
C20: Spouse: | H20: County:
C22: # of Dependents:
C26: Date of Birth | E26: Tobacco Status | G26: =IF('WPS Quote'!D22>0,"Date of Birth","") ->  | I26: =IF('WPS Quote'!D22>2,"Date of Birth","") ->  | L26: =IF('WPS Quote'!D22>4,"Date of Birth","") ->  | N26: =IF('WPS Quote'!D22>6,"Date of Birth","") -> 
B28: Applicant: | F28: =IF('WPS Quote'!D22>0,"Dependent 1: ","") ->  | H28: =IF('WPS Quote'!D22>2,"Dependent 3: ","") ->  | K28: =IF('WPS Quote'!D22>4,"Dependent 5: ","") ->  | M28: =IF('WPS Quote'!D22>6,"Dependent 7: ","") ->  | S28: =IF('WPS Quote'!D22>8,"Dependent 9: ","") -> 
B30: =IF('WPS Tables'!G5=3,"Spouse: ","") ->  | F30: =IF('WPS Quote'!D22>1,"Dependent 2: ","") ->  | H30: =IF('WPS Quote'!D22>3,"Dependent 4: ","") ->  | K30: =IF('WPS Quote'!D22>5,"Dependent 6: ","") ->  | M30: =IF('WPS Quote'!D22>7,"Dependent 8: ","") ->  | S30: =IF('WPS Quote'!D22>9,"Dependent 10: ","") -> 
B32: Medical Plan Name | F32: Individual | H32: Individual Out-of-Pocket Limit (In/Out)1 | I32: In Network Plan Copays | M32: Prescription Drug Copays | O32: Monthly Rate
B33: Statewide Network | E33: Metal | F33: Deductible | G33: Coins. | I33: Telehealth/ | J33: PCP | K33: Spec. | L33: Emerg. | M33: Preventive/Pref Gen/Non-Pref Gen/
B34: (select plan name for SBC) | F34: (In/Out)1 | G34: (In/Out) | I34: Retail | L34: Room | M34: Pref Brand/Non-Pref Brand/Specialty
B36: =HYPERLINK('WPS Tables'!O4,'WPS Tables'!N4) -> WPS PPO Bronze $6,500 with 3 Free PCP Visits | E36: ='WPS Rating Factors'!AO8 -> Bronze | F36: ="$"&'WPS Rating Factors'!AP8&"/$"&'WPS Rating Factors'!AQ8 -> $6500/$13000 | G36: =100*'WPS Rating Factors'!AR8&"% / "&100*'WPS Rating Factors'!AS8&"%" -> 20% / 50% | H36: ="$"&'WPS Rating Factors'!AT8&"/$"&'WPS Rating Factors'!AU8 -> $8700/$23000 | I36: ='WPS Rating Factors'!AV8 -> D/C | J36: ='WPS Rating Factors'!AW8 -> 3 Free | K36: ='WPS Rating Factors'!AX8 -> D/C | L36: ='WPS Rating Factors'!AY8 -> D/C | M36: ='WPS Rating Factors'!BA8 -> $0 preventive, D/C all others | O36: ='WPS Rating Factors'!BC8 -> 
B38: =HYPERLINK('WPS Tables'!O5,'WPS Tables'!N5) -> WPS PPO Bronze $8,700 | E38: ='WPS Rating Factors'!AO9 -> Bronze | F38: ="$"&'WPS Rating Factors'!AP9&"/$"&'WPS Rating Factors'!AQ9 -> $8700/$17400 | G38: =100*'WPS Rating Factors'!AR9&"% / "&100*'WPS Rating Factors'!AS9&"%" -> 0% / 30% | H38: ="$"&'WPS Rating Factors'!AT9&"/$"&'WPS Rating Factors'!AU9 -> $8700/$23400 | I38: ='WPS Rating Factors'!AV9 -> D/C | J38: ='WPS Rating Factors'!AW9 -> D/C | K38: ='WPS Rating Factors'!AX9 -> D/C | L38: ='WPS Rating Factors'!AY9 -> D/C | M38: ='WPS Rating Factors'!BA9 -> $0 preventive, D/C all others | O38: ='WPS Rating Factors'!BC9 -> 
B40: =HYPERLINK('WPS Tables'!O6,'WPS Tables'!N6) -> WPS PPO Catastrophic $8,700 with 3 Free PCP Visits | E40: Catastrophic2 | F40: ="$"&'WPS Rating Factors'!AP13&"/$"&'WPS Rating Factors'!AQ13 -> $8700/$17400 | G40: =130*'WPS Rating Factors'!AR13&"% / "&100*'WPS Rating Factors'!AS13&"%" -> 0% / 30% | H40: ="$"&'WPS Rating Factors'!AT13&"/$"&'WPS Rating Factors'!AU13 -> $8700/$23400 | I40: ='WPS Rating Factors'!AV13 -> D/C | J40: ='WPS Rating Factors'!AW13 -> 3 Free | K40: ='WPS Rating Factors'!AX13 -> D/C | L40: ='WPS Rating Factors'!AY13 -> D/C | M40: ='WPS Rating Factors'!BA13 -> $0 preventive, D/C all others | O40: ='WPS Rating Factors'!BC13 -> 
B42: =HYPERLINK('WPS Tables'!O7,'WPS Tables'!N7) -> WPS PPO HDHP Bronze $6,000 | E42: ='WPS Rating Factors'!AO14 -> Bronze | F42: ="$"&'WPS Rating Factors'!AP14&"/$"&'WPS Rating Factors'!AQ14 -> $6000/$12000 | G42: =100*'WPS Rating Factors'!AR14&"% / "&100*'WPS Rating Factors'!AS14&"%" -> 30% / 50% | H42: ="$"&'WPS Rating Factors'!AT14&"/$"&'WPS Rating Factors'!AU14 -> $7050/$22000 | I42: ='WPS Rating Factors'!AV14 -> D/C | J42: ='WPS Rating Factors'!AW14 -> D/C | K42: ='WPS Rating Factors'!AX14 -> D/C | L42: ='WPS Rating Factors'!AY14 -> D/C | M42: ='WPS Rating Factors'!BA14 -> $0 preventive, D/C all others | O42: ='WPS Rating Factors'!BC14 -> 
B44: =HYPERLINK('WPS Tables'!O8,'WPS Tables'!N8) -> WPS PPO HDHP Bronze $7,050 | E44: ='WPS Rating Factors'!AO15 -> Bronze | F44: ="$"&'WPS Rating Factors'!AP15&"/$"&'WPS Rating Factors'!AQ15 -> $7050/$14100 | G44: =100*'WPS Rating Factors'!AR15&"% / "&100*'WPS Rating Factors'!AS15&"%" -> 0% / 30% | H44: ="$"&'WPS Rating Factors'!AT15&"/$"&'WPS Rating Factors'!AU15 -> $7050/$20100 | I44: ='WPS Rating Factors'!AV15 -> D/C | J44: ='WPS Rating Factors'!AW15 -> D/C | K44: ='WPS Rating Factors'!AX15 -> D/C | L44: ='WPS Rating Factors'!AY15 -> D/C | M44: ='WPS Rating Factors'!BA15 -> $0 preventive, D/C all others | O44: ='WPS Rating Factors'!BC15 -> 
B51: Optional Dental Plan | E51: Annual Maximum Benefit | G51: Annual Deductible | I51: Diagnostic & Preventive Care | M51: Restorative Services | O51: Monthly Rate
B52: (select plan for Brochure)
B55: =HYPERLINK('WPS Tables'!O9,'WPS Tables'!N9) -> Delta Dental PPO Individual Plan | E55: $1,200 per person | G55: $50 per person | I55: 20% Coinsurance after Deductible | M55: 50% after Deductible | O55: =SUM('WPS Rating Factors'!CS16:CU16) -> 0
B58: D/C = Deductible & Coinsurance, PCP = Primary Care Practitioner
B60: Premium estimates are based on the information you have provided. Actual rates will be based on the information provided in your signed application.
B62: 1Family deductibles and out-of-pocket limits are 2x the individual amounts.
B65: 2The catastrophic plan is only available to people under age 30 or those who qualify for a hardship exemption from the Federally Facilitated Marketplace (FFM).

Sheet WPS Tables (hidden)
N3: NOTE: These plan names are supposed to have "| Statewide Network" at the end, but do to size constraints, im leaving that off and putting it in the title of the categorey
B4: WPS County Selection | F4: Spouse Selection | I4: App. Tobacco | N4: WPS PPO Bronze $6,500 with 3 Free PCP Visits | O4: https://www.wpshealth.com/resources/sbc/files/2022/81974WI1880048-00.pdf
F5: Indicator | G5: =IF('WPS Quote'!D20=G6,1,IF('WPS Quote'!D20=G7,2,3)) -> 1 | I5: Indicator | J5: =IF('WPS Quote'!E28=J6,1,IF('WPS Quote'!E28=J7,2,3)) -> 1 | N5: WPS PPO Bronze $8,700 | O5: https://www.wpshealth.com/resources/sbc/files/2022/81974WI1880030-00.pdf
B6: Ashland | C6: 2 | F6: 1 | I6: 1 | N6: WPS PPO Catastrophic $8,700 with 3 Free PCP Visits | O6: https://www.wpshealth.com/resources/sbc/files/2022/81974WI1880044-00.pdf
B7: Barron | C7: 3 | F7: 2 | G7: No | I7: 2 | J7: No | N7: WPS PPO HDHP Bronze $6,000 | O7: https://www.wpshealth.com/resources/sbc/files/2022/81974WI1880042-00.pdf
B8: Bayfield | C8: 4 | F8: 3 | G8: Yes | I8: 3 | J8: Yes | N8: WPS PPO HDHP Bronze $7,050 | O8: https://www.wpshealth.com/resources/sbc/files/2022/81974WI1880049-00.pdf
B9: Brown | C9: 5 | N9: Delta Dental PPO Individual Plan | O9: https://secure.wpsic.com/sales-materials/files/33873_wps-optional-dental-coverage.pdf
B10: Buffalo | C10: 6 | F10: Dependent Sel. | I10: Spouse Tabacco
B11: Burnett | C11: 7 | F11: 1 | I11: Indicator | J11: =IF('WPS Quote'!E30=J12,1,IF('WPS Quote'!E30=J13,2,3)) -> 1
B12: Chippewa | C12: 8 | F12: 2 | G12: 0 | I12: 1
B13: Door | C13: 9 | F13: 3 | G13: 1 | I13: 2 | J13: No
B14: Douglas | C14: 10 | F14: 4 | G14: 2 | I14: 3 | J14: Yes
B15: Dunn | C15: 11 | F15: 5 | G15: 3
B16: Eau Claire | C16: 12 | F16: 6 | G16: 4 | I16: Under Age 26?
B17: Jackson | C17: 13 | F17: 7 | G17: 5 | I17: Eff Date | J17: =DATE(YEAR('WPS Quote'!I18),MONTH('WPS Quote'!I18),DAY('WPS Quote'!I18)) -> 00:00:00
B18: La Crosse | C18: 14 | F18: 8 | G18: 6 | I18: Age 26 | J18: =EDATE(DATE(YEAR('WPS Quote'!I18),MONTH('WPS Quote'!I18),DAY('WPS Quote'!I18)),-312) -> 
B19: Monroe | C19: 15 | F19: 9 | G19: 7
B20: Oconto | C20: 16 | F20: 10 | G20: 8
B21: Pepin | C21: 17 | F21: 11 | G21: 9 | I21: Count of Dependents
B22: Pierce | C22: 18 | F22: 12 | G22: 10 | I22: =COUNT('WPS Quote'!G28,'WPS Quote'!G30,'WPS Quote'!I28,'WPS Quote'!I30,'WPS Quote'!L28,'WPS Quote'!L30,'WPS Quote'!N30,'WPS Quote'!N28) -> 0 | J22: ='WPS Quote'!D22 -> 0
B23: Polk | C23: 19
B24: Rusk | C24: 20
B25: Saint Croix | C25: 21 | I25: Under Age 18?
B26: Sawyer | C26: 22 | I26: Eff Date | J26: =DATE(YEAR('WPS Quote'!I18),MONTH('WPS Quote'!I18),DAY('WPS Quote'!I18)) -> 00:00:00
B27: Trempealeau | C27: 23 | I27: Age 18 | J27: =EDATE(DATE(YEAR('WPS Quote'!I18),MONTH('WPS Quote'!I18),DAY('WPS Quote'!I18)),-216) -> 
B28: Washburn | C28: 24

Sheet WPS Rating Factors (hidden)
CR1: Eff. Date | CS1: ='WPS Quote'!I18 -> 00:00:00
CO2: the formula starting in | CR2: Rate Calc Date
CO3: row 2 column CS used to
I4: On/Off | CO4: be for plan changes, no | CR4: Member | CS4: Applicant | CT4: Spouse | CU4: Dep. 1 | CV4: Dep. 2 | CW4: Dep. 3 | CX4: Dep. 4 | CY4: Dep. 5 | CZ4: Dep. 6 | DA4: Dep. 7 | DB4: Dep. 8 | DC4: Dep. 9 | DD4: Dep. 10 | DJ4: TOTAL
H5: PPO | I5: =VLOOKUP('WPS Quote'!I20,'WPS Tables'!$B$6:$C$28,2,FALSE) ->  | T5: Original | CO5: longer needed since | CR5: DOB | CS5: =IF('WPS Quote'!C28="","",'WPS Quote'!C28) ->  | CT5: =IF('WPS Quote'!C30="","",'WPS Quote'!C30) ->  | CU5: =IF('WPS Quote'!G28="","",'WPS Quote'!G28) ->  | CV5: =IF('WPS Quote'!G30="","",'WPS Quote'!G30) ->  | CW5: =IF('WPS Quote'!I28="","",'WPS Quote'!I28) ->  | CX5: =IF('WPS Quote'!I30="","",'WPS Quote'!I30) ->  | CY5: =IF('WPS Quote'!L28="","",'WPS Quote'!L28) ->  | CZ5: =IF('WPS Quote'!L30="","",'WPS Quote'!L30) ->  | DA5: =IF('WPS Quote'!N28="","",'WPS Quote'!N28) ->  | DB5: =IF('WPS Quote'!N30="","",'WPS Quote'!N30) ->  | DC5: =IF('WPS Quote'!T28="","",'WPS Quote'!T28) ->  | DD5: =IF('WPS Quote'!T30="","",'WPS Quote'!T30) ->  | DM5: Value of the
D6: Age | E6: Tobacco | H6: HDHP | I6: 2 | P6: PPO | Q6: 1 | T6: Plan Order | X6: Aspirus Arise | Y6: ThedaCare | Z6: ThedaCare | AA6: ThedaCare | AB6: Aurora | AC6: Aurora | AD6: Aurora | AE6: Aurora | AF6: Aurora | AG6: Aurora | AH6: Aurora | AI6: Aurora | AJ6: Aurora | AK6: Aurora | AL6: Aurora | AM6: Aurora | AV6: Retail | AW6: PCP | AX6: SPC | AY6: ER | BB6: POS | BE6: Poverty Level 101-150 | BP6: Poverty Level 151%-200% | CA6: Poverty Level 201%-250% | CO6: facets rates | CR6: Age | CS6: =IF(MONTH(IF(CS2="",$CS$1,CS2))<MONTH(CS5),YEAR(IF(CS2="",$CS$1,CS2))-YEAR(CS5)-1,IF(MONTH(IF(CS2="",$CS$1,CS2))>MONTH(CS5),YEAR(IF(CS2="",$CS$1,CS2))-YEAR(CS5),IF(DAY(IF(CS2="",$CS$1,CS2))<DAY(CS5),YEAR(IF(CS2="",$CS$1,CS2))-YEAR(CS5)-1,YEAR(IF(CS2="",$CS$1,CS2))-YEAR(CS5)))) ->  | DL6: For Subsidy Calculator | DM6: Smoker Surcharge
A7: Index Rate | C7: Age | D7: Factor | E7: Factor | H7: County | I7: OCI Region | J7: Factor | K7: Network 1 | L7: Network 2 | M7: Network 3 | P7: Network | Q7: HMO Factor | R7: POS Factor | T7: Plan Number | U7: AV Value | V7: Plan Name | W7: HIOS # | X7: Pricing Value | Y7: Plan Name | Z7: HIOS # | AA7: Pricing Value | AB7: Plan Name | AC7: HIOS # | AD7: Pricing Value | AE7: Plan Name | AF7: HIOS # | AG7: Pricing Value | AH7: Plan Name | AI7: HIOS # | AJ7: Pricing Value | AK7: Plan Name | AL7: HIOS # | AM7: Pricing Value | AN7: Plan Type | AO7: Metal | AP7: Deductible (IN) | AQ7: Deductible (OUT) | AR7: Coins. (IN) | AS7: Coins. (OUT) | AT7: OOP Max (IN) | AU7: OOP Max (OUT) | AV7: Copay | AW7: Copay | AX7: Copay | AY7: Copay | AZ7: Free PCP Visits | BA7: Prev/Gen-Prf/Gen-Oth/Brand-Prf/Brand-Oth/Spcl | BB7: Factor | BC7: Rate | BD7: Metal | BE7: Deductible (IN) | BF7: Deductible (OUT) | BG7: Coins. (IN) | BH7: Coins. (OUT) | BI7: OOP Max (IN) | BJ7: OOP Max (OUT) | BK7: Retail | BL7: PCP | BM7: SPC | BN7: ER | BO7: Prescription Plan Preventive/Generic/Preferred/ Non-Preferred/Specialty | BP7: Deductible (IN) | BQ7: Deductible (OUT) | BR7: Coins. (IN) | BS7: Coins. (OUT) | BT7: OOP Max (IN) | BU7: OOP Max (OUT) | BV7: Retail | BW7: PCP | BX7: SPC | BY7: ER | BZ7: Prescription Plan Preventive/Generic/Preferred/ Non-Preferred/Specialty | CA7: Deductible (IN) | CB7: Deductible (OUT) | CC7: Coins. (IN) | CD7: Coins. (OUT) | CE7: OOP Max (IN) | CF7: OOP Max (OUT) | CG7: Retail | CH7: PCP | CI7: SPC | CJ7: ER | CK7: Prescription Plan Preventive/Generic/Preferred/ Non-Preferred/Specialty | CR7: Tobacco | CS7: =IF('WPS Quote'!E28="Yes",3,1) -> 1 | CT7: =IF('WPS Quote'!E30="Yes",3,1) -> 1 | CU7: 1 | CV7: 1 | CW7: 1 | CX7: 1 | CY7: 1 | CZ7: 1 | DA7: 1 | DB7: 1 | DC7: 1 | DD7: 1 | DL7: Always Assume No Smoker | DM7: and children under 19
A8: 759.76 | C8: 0 | D8: 0.765 | E8: 1 | G8: 1 | J8: 0 | L8: ="" ->  | M8: ="" ->  | O8: 2 | P8: Select | Q8: 0 | T8: 15 | V8: WPS PPO Bronze $6,500 with 3 Free PCP Visits | Statewide Network | W8: 81974WI1880048 | Y8: ThedaCare HMO 6000 | Z8: 84670WI1250101 | AA8: 0.4921 | AB8: Aurora HMO 6000 | AC8: 84670WI1250107 | AD8: 0.4921 | AE8: Aurora and ThedaCare HMO 6000 | AF8: 84670WI1250117 | AG8: 5681.25 | AH8: Aurora and Bellin HMO 6000 | AI8: 84670WI1250127 | AK8: ProHealth and Aurora HMO 6000 | AL8: 84670WI1250137 | AN8: PPO | AO8: Bronze | AP8: 6500 | AQ8: 13000 | AR8: 0.2 | AS8: 0.5 | AT8: 8700 | AU8: 23000 | AV8: D/C | AW8: 3 Free | AX8: D/C | AY8: D/C | AZ8: 3 | BA8: $0 preventive, D/C all others | BB8: 0.5272 | BC8: =ROUND(ROUND(ROUND(ROUND(BB8*1,4)*$A$8,2)*VLOOKUP($I$5,$G$9:$J$31,4,FALSE),2)*$CS$8,2)+ROUND(ROUND(ROUND(ROUND(BB8*1,4)*$A$8,2)*VLOOKUP($I$5,$G$9:$J$31,4,FALSE),2)*$CT$8,2)+ROUND(ROUND(ROUND(ROUND(BB8*1,4)*$A$8,2)*VLOOKUP($I$5,$G$9:$J$31,4,FALSE),2)*$CU$8,2)+ROUND(ROUND(ROUND(ROUND(BB8*1,4)*$A$8,2)*VLOOKUP($I$5,$G$9:$J$31,4,FALSE),2)*$CV$8,2)+ROUND(ROUND(ROUND(ROUND(BB8*1,4)*$A$8,2)*VLOOKUP($I$5,$G$9:$J$31,4,FALSE),2)*$CW$8,2)+ROUND(ROUND(ROUND(ROUND(BB8*1,4)*$A$8,2)*VLOOKUP($I$5,$G$9:$J$31,4,FALSE),2)*$CX$8,2)+ROUND(ROUND(ROUND(ROUND(BB8*1,4)*$A$8,2)*VLOOKUP($I$5,$G$9:$J$31,4,FALSE),2)*$CY$8,2)+ROUND(ROUND(ROUND(ROUND(BB8*1,4)*$A$8,2)*VLOOKUP($I$5,$G$9:$J$31,4,FALSE),2)*$CZ$8,2)+ROUND(ROUND(ROUND(ROUND(BB8*1,4)*$A$8,2)*VLOOKUP($I$5,$G$9:$J$31,4,FALSE),2)*$DA$8,2)+ROUND(ROUND(ROUND(ROUND(BB8*1,4)*$A$8,2)*VLOOKUP($I$5,$G$9:$J$31,4,FALSE),2)*$DB$8,2)+ROUND(ROUND(ROUND(ROUND(BB8*1,4)*$A$8,2)*VLOOKUP($I$5,$G$9:$J$31,4,FALSE),2)*$DC$8,2)+ROUND(ROUND(ROUND(ROUND(BB8*1,4)*$A$8,2)*VLOOKUP($I$5,$G$9:$J$31,4,FALSE),2)*$DD$8,2)+ROUND(ROUND(ROUND(ROUND(BB8*1,4)*$A$8,2)*VLOOKUP($I$5,$G$9:$J$31,4,FALSE),2)*$CU$10,2)+ROUND(ROUND(ROUND(ROUND(BB8*1,4)*$A$8,2)*VLOOKUP($I$5,$G$9:$J$31,4,FALSE),2)*$CV$10,2)+ROUND(ROUND(ROUND(ROUND(BB8*1,4)*$A$8,2)*VLOOKUP($I$5,$G$9:$J$31,4,FALSE),2)*$CW$10,2)+ROUND(ROUND(ROUND(ROUND(BB8*1,4)*$A$8,2)*VLOOKUP($I$5,$G$9:$J$31,4,FALSE),2)*$CX$10,2)+ROUND(ROUND(ROUND(ROUND(BB8*1,4)*$A$8,2)*VLOOKUP($I$5,$G$9:$J$31,4,FALSE),2)*$CY$10,2)+ROUND(ROUND(ROUND(ROUND(BB8*1,4)*$A$8,2)*VLOOKUP($I$5,$G$9:$J$31,4,FALSE),2)*$CZ$10,2)+ROUND(ROUND(ROUND(ROUND(BB8*1,4)*$A$8,2)*VLOOKUP($I$5,$G$9:$J$31,4,FALSE),2)*$DA$10,2)+ROUND(ROUND(ROUND(ROUND(BB8*1,4)*$A$8,2)*VLOOKUP($I$5,$G$9:$J$31,4,FALSE),2)*$DB$10,2)+ROUND(ROUND(ROUND(ROUND(BB8*1,4)*$A$8,2)*VLOOKUP($I$5,$G$9:$J$31,4,FALSE),2)*$DC$10,2)+ROUND(ROUND(ROUND(ROUND(BB8*1,4)*$A$8,2)*VLOOKUP($I$5,$G$9:$J$31,4,FALSE),2)*$DD$10,2) ->  | BD8: Bronze | BE8: 7150 | BF8: - | BG8: 0 | BH8: - | BI8: 7150 | BJ8: - | BK8: D/C | BL8: D/C | BM8: D/C | BN8: D/C | BO8: $0 preventive, D/C all others | BP8: 7150 | BQ8: - | BR8: 0 | BS8: - | BT8: 7150 | BU8: - | BV8: D/C | BW8: D/C | BX8: D/C | BY8: D/C | BZ8: $0 preventive, D/C all others | CA8: 7150 | CB8: - | CC8: 0 | CD8: - | CE8: 7150 | CF8: - | CG8: D/C | CH8: D/C | CI8: D/C | CJ8: D/C | CK8: $0 preventive, D/C all others | CR8: Over 21 Value | CS8: =IF(CS5="",0,VLOOKUP(CS6,$C$8:$E$58,2)*IF(CS7=3,VLOOKUP(CS6,$C$8:$E$58,3),1)) -> 0 | CT8: =IF(CT5="",0,VLOOKUP(CT6,$C$8:$E$58,2)*IF(CT7=3,VLOOKUP(CT6,$C$8:$E$58,3),1)) -> 0 | CU8: =IF(CU5="",0,VLOOKUP(CU6,$C$8:$E$58,2)*IF(CU7=3,VLOOKUP(CU6,$C$8:$E$58,3),1)*IF(CU6<21,0,1)) -> 0 | CV8: 0 | CW8: 0 | CX8: 0 | CY8: 0 | CZ8: 0 | DA8: 0 | DB8: 0 | DC8: 0 | DD8: 0 | DJ8: =SUM(CS8:DD8) -> 0 | DL8: =ROUND(ROUND(ROUND(ROUND(BB8*$Q$9,4)*$A$8,2)*VLOOKUP($I$5,$G$10:$J$26,4,FALSE),2)*$CS$12,2)+ROUND(ROUND(ROUND(ROUND(BB8*$Q$9,4)*$A$8,2)*VLOOKUP($I$5,$G$10:$J$26,4,FALSE),2)*$CT$12,2)+ROUND(ROUND(ROUND(ROUND(BB8*$Q$9,4)*$A$8,2)*VLOOKUP($I$5,$G$10:$J$26,4,FALSE),2)*$CU$12,2)+ROUND(ROUND(ROUND(ROUND(BB8*$Q$9,4)*$A$8,2)*VLOOKUP($I$5,$G$10:$J$26,4,FALSE),2)*$CV$12,2)+ROUND(ROUND(ROUND(ROUND(BB8*$Q$9,4)*$A$8,2)*VLOOKUP($I$5,$G$10:$J$26,4,FALSE),2)*$CW$12,2)+ROUND(ROUND(ROUND(ROUND(BB8*$Q$9,4)*$A$8,2)*VLOOKUP($I$5,$G$10:$J$26,4,FALSE),2)*$CX$12,2)+ROUND(ROUND(ROUND(ROUND(BB8*$Q$9,4)*$A$8,2)*VLOOKUP($I$5,$G$10:$J$26,4,FALSE),2)*$CY$12,2)+ROUND(ROUND(ROUND(ROUND(BB8*$Q$9,4)*$A$8,2)*VLOOKUP($I$5,$G$10:$J$26,4,FALSE),2)*$CZ$12,2)+ROUND(ROUND(ROUND(ROUND(BB8*$Q$9,4)*$A$8,2)*VLOOKUP($I$5,$G$10:$J$26,4,FALSE),2)*$DA$12,2)+ROUND(ROUND(ROUND(ROUND(BB8*$Q$9,4)*$A$8,2)*VLOOKUP($I$5,$G$10:$J$26,4,FALSE),2)*$DB$12,2)+ROUND(ROUND(ROUND(ROUND(BB8*$Q$9,4)*$A$8,2)*VLOOKUP($I$5,$G$10:$J$26,4,FALSE),2)*$DC$12,2)+ROUND(ROUND(ROUND(ROUND(BB8*$Q$9,4)*$A$8,2)*VLOOKUP($I$5,$G$10:$J$26,4,FALSE),2)*$DD$12,2)+ROUND(ROUND(ROUND(ROUND(BB8*$Q$9,4)*$A$8,2)*VLOOKUP($I$5,$G$10:$J$26,4,FALSE),2)*$D$8,2)*$DJ$13 ->  | DM8: =BC8-DL8 -> 
C9: 15 | D9: 0.833 | E9: 1 | G9: 2 | H9: Ashland | I9: 5 | J9: 0.746 | L9: ="" ->  | M9: ="" ->  | O9: 1 | P9: =VLOOKUP(I5,$G$8:$M$80,5,FALSE) ->  | Q9: 0.935 | R9: 1 | T9: 14 | V9: WPS PPO Bronze $8,700 | Statewide Network | W9: 81974WI1880030 | Y9: ThedaCare HMO 6850 | Z9: 84670WI1250102 | AA9: 0.4656 | AB9: Aurora HMO 6850 | AC9: 84670WI1250108 | AD9: 0.4656 | AE9: Aurora and ThedaCare HMO 6850 | AF9: 84670WI1250118 | AG9: 6499.35 | AH9: Aurora and Bellin HMO 6850 | AI9: 84670WI1250128 | AK9: ProHealth and Aurora HMO 6850 | AL9: 84670WI1250138 | AN9: PPO | AO9: Bronze | AP9: 8700 | AQ9: 17400 | AR9: 0 | AS9: 0.3 | AT9: 8700 | AU9: 23400 | AV9: D/C | AW9: D/C | AX9: D/C | AY9: D/C | AZ9: 0 | BA9: $0 preventive, D/C all others | BB9: 0.5018 | BC9: =ROUND(ROUND(ROUND(ROUND(BB9*1,4)*$A$8,2)*VLOOKUP($I$5,$G$9:$J$31,4,FALSE),2)*$CS$8,2)+ROUND(ROUND(ROUND(ROUND(BB9*1,4)*$A$8,2)*VLOOKUP($I$5,$G$9:$J$31,4,FALSE),2)*$CT$8,2)+ROUND(ROUND(ROUND(ROUND(BB9*1,4)*$A$8,2)*VLOOKUP($I$5,$G$9:$J$31,4,FALSE),2)*$CU$8,2)+ROUND(ROUND(ROUND(ROUND(BB9*1,4)*$A$8,2)*VLOOKUP($I$5,$G$9:$J$31,4,FALSE),2)*$CV$8,2)+ROUND(ROUND(ROUND(ROUND(BB9*1,4)*$A$8,2)*VLOOKUP($I$5,$G$9:$J$31,4,FALSE),2)*$CW$8,2)+ROUND(ROUND(ROUND(ROUND(BB9*1,4)*$A$8,2)*VLOOKUP($I$5,$G$9:$J$31,4,FALSE),2)*$CX$8,2)+ROUND(ROUND(ROUND(ROUND(BB9*1,4)*$A$8,2)*VLOOKUP($I$5,$G$9:$J$31,4,FALSE),2)*$CY$8,2)+ROUND(ROUND(ROUND(ROUND(BB9*1,4)*$A$8,2)*VLOOKUP($I$5,$G$9:$J$31,4,FALSE),2)*$CZ$8,2)+ROUND(ROUND(ROUND(ROUND(BB9*1,4)*$A$8,2)*VLOOKUP($I$5,$G$9:$J$31,4,FALSE),2)*$DA$8,2)+ROUND(ROUND(ROUND(ROUND(BB9*1,4)*$A$8,2)*VLOOKUP($I$5,$G$9:$J$31,4,FALSE),2)*$DB$8,2)+ROUND(ROUND(ROUND(ROUND(BB9*1,4)*$A$8,2)*VLOOKUP($I$5,$G$9:$J$31,4,FALSE),2)*$DC$8,2)+ROUND(ROUND(ROUND(ROUND(BB9*1,4)*$A$8,2)*VLOOKUP($I$5,$G$9:$J$31,4,FALSE),2)*$DD$8,2)+ROUND(ROUND(ROUND(ROUND(BB9*1,4)*$A$8,2)*VLOOKUP($I$5,$G$9:$J$31,4,FALSE),2)*$CU$10,2)+ROUND(ROUND(ROUND(ROUND(BB9*1,4)*$A$8,2)*VLOOKUP($I$5,$G$9:$J$31,4,FALSE),2)*$CV$10,2)+ROUND(ROUND(ROUND(ROUND(BB9*1,4)*$A$8,2)*VLOOKUP($I$5,$G$9:$J$31,4,FALSE),2)*$CW$10,2)+ROUND(ROUND(ROUND(ROUND(BB9*1,4)*$A$8,2)*VLOOKUP($I$5,$G$9:$J$31,4,FALSE),2)*$CX$10,2)+ROUND(ROUND(ROUND(ROUND(BB9*1,4)*$A$8,2)*VLOOKUP($I$5,$G$9:$J$31,4,FALSE),2)*$CY$10,2)+ROUND(ROUND(ROUND(ROUND(BB9*1,4)*$A$8,2)*VLOOKUP($I$5,$G$9:$J$31,4,FALSE),2)*$CZ$10,2)+ROUND(ROUND(ROUND(ROUND(BB9*1,4)*$A$8,2)*VLOOKUP($I$5,$G$9:$J$31,4,FALSE),2)*$DA$10,2)+ROUND(ROUND(ROUND(ROUND(BB9*1,4)*$A$8,2)*VLOOKUP($I$5,$G$9:$J$31,4,FALSE),2)*$DB$10,2)+ROUND(ROUND(ROUND(ROUND(BB9*1,4)*$A$8,2)*VLOOKUP($I$5,$G$9:$J$31,4,FALSE),2)*$DC$10,2)+ROUND(ROUND(ROUND(ROUND(BB9*1,4)*$A$8,2)*VLOOKUP($I$5,$G$9:$J$31,4,FALSE),2)*$DD$10,2) ->  | BD9: Bronze | BE9: 6250 | BF9: - | BG9: 0.2 | BH9: - | BI9: 7150 | BJ9: - | BK9: D/C | BL9: D/C | BM9: D/C | BN9: D/C | BO9: $0 preventive, D/C all others | BP9: 6250 | BQ9: - | BR9: 0.2 | BS9: - | BT9: 7150 | BU9: - | BV9: D/C | BW9: D/C | BX9: D/C | BY9: D/C | BZ9: $0 preventive, D/C all others | CA9: 6250 | CB9: - | CC9: 0.2 | CD9: - | CE9: 7150 | CF9: - | CG9: D/C | CH9: D/C | CI9: D/C | CJ9: D/C | CK9: $0 preventive, D/C all others | CR9: 21 and Under Value | CS9: =IF(CS5="",0,IF(CS6<21,1,0)) -> 0 | CT9: =IF(CT5="",0,IF(CT6<21,1,0)) -> 0 | CU9: =IF(CU5="",0,IF(CU6<21,VLOOKUP(CU6,$C$8:$D$58,2),0)) -> 0 | CV9: 0 | CW9: 0 | CX9: 0 | CY9: 0 | CZ9: 0 | DA9: 0 | DB9: 0 | DC9: 0 | DD9: 0 | DJ9: =IF(SUM(CS9:DD9)>3,3,SUM(CS9:DD9)) -> 0 | DM9: =BC9-DL9 -> 
C10: 16 | D10: 0.859 | E10: 1 | G10: 3 | H10: Barron | I10: 8 | J10: 0.893 | L10: ="" ->  | M10: ="" ->  | O10: 3 | P10: =VLOOKUP(I5,$G$8:$M$80,6,FALSE) ->  | Q10: =IF(#REF!="Arise",0.959,IF(#REF!="Aspirus Arise",0.909,IF(#REF!="Arise Metro",0.909,IF(#REF!="Southern",0.93,IF(#REF!="Healthy U",0.93,0))))) ->  | T10: 13 | V10: HMO Silver 7000 | W10: 86584WI0010001 | Y10: ThedaCare HMO 5000 | Z10: 84670WI1250100 | AA10: =ROUND(BB10*0.909,4) -> 0.5715 | AB10: Aurora HMO 5000 | AC10: 84670WI1250106 | AD10: =ROUND(BB10*0.909,4) -> 0.5715 | AE10: Aurora and ThedaCare HMO 5000 | AF10: 84670WI1250116 | AG10: =ROUND(BE10*0.909,4) -> 0 | AH10: Aurora and Bellin HMO 5000 | AI10: 84670WI1250126 | AJ10: =ROUND(BH10*0.909,4) ->  | AK10: ProHealth and Aurora HMO 5000 | AL10: 84670WI1250136 | AM10: =ROUND(BK10*0.909,4) ->  | AN10: HMO | AO10: Silver | AP10: 7000 | AQ10: - | AR10: 0 | AS10: - | AT10: 7000 | AU10: - | AV10: $0/$10 | AW10: 30 | AX10: 60 | AY10: 250 | AZ10: 0 | BA10: $0 / $0 / $20 / $50 / $75 / 50% to $1000 | BB10: 0.6287 | BC10: =ROUND(ROUND(ROUND(ROUND(BB10*$R$9,4)*$A$8,2)*VLOOKUP($I$5,$G$10:$J$28,4,FALSE),2)*$CS$8,2)+ROUND(ROUND(ROUND(ROUND(BB10*$R$9,4)*$A$8,2)*VLOOKUP($I$5,$G$10:$J$28,4,FALSE),2)*$CT$8,2)+ROUND(ROUND(ROUND(ROUND(BB10*$R$9,4)*$A$8,2)*VLOOKUP($I$5,$G$10:$J$28,4,FALSE),2)*$CU$8,2)+ROUND(ROUND(ROUND(ROUND(BB10*$R$9,4)*$A$8,2)*VLOOKUP($I$5,$G$10:$J$28,4,FALSE),2)*$CV$8,2)+ROUND(ROUND(ROUND(ROUND(BB10*$R$9,4)*$A$8,2)*VLOOKUP($I$5,$G$10:$J$28,4,FALSE),2)*$CW$8,2)+ROUND(ROUND(ROUND(ROUND(BB10*$R$9,4)*$A$8,2)*VLOOKUP($I$5,$G$10:$J$28,4,FALSE),2)*$CX$8,2)+ROUND(ROUND(ROUND(ROUND(BB10*$R$9,4)*$A$8,2)*VLOOKUP($I$5,$G$10:$J$28,4,FALSE),2)*$CY$8,2)+ROUND(ROUND(ROUND(ROUND(BB10*$R$9,4)*$A$8,2)*VLOOKUP($I$5,$G$10:$J$28,4,FALSE),2)*$CZ$8,2)+ROUND(ROUND(ROUND(ROUND(BB10*$R$9,4)*$A$8,2)*VLOOKUP($I$5,$G$10:$J$28,4,FALSE),2)*$DA$8,2)+ROUND(ROUND(ROUND(ROUND(BB10*$R$9,4)*$A$8,2)*VLOOKUP($I$5,$G$10:$J$28,4,FALSE),2)*$DB$8,2)+ROUND(ROUND(ROUND(ROUND(BB10*$R$9,4)*$A$8,2)*VLOOKUP($I$5,$G$10:$J$28,4,FALSE),2)*$DC$8,2)+ROUND(ROUND(ROUND(ROUND(BB10*$R$9,4)*$A$8,2)*VLOOKUP($I$5,$G$10:$J$28,4,FALSE),2)*$DD$8,2)+ROUND(ROUND(ROUND(ROUND(BB10*$R$9,4)*$A$8,2)*VLOOKUP($I$5,$G$10:$J$28,4,FALSE),2)*$D$8,2)*$DJ$9 ->  | BD10: Silver | BE10: 0 | BF10: - | BG10: 0 | BH10: - | BI10: 400 | BJ10: - | BK10: $0/$10 | BL10: 30 | BM10: 60 | BN10: 250 | BO10: $0 / $0 / $20 / $50 / $75 / 50% to $400 | BP10: 400 | BQ10: - | BR10: 0 | BS10: - | BT10: 1400 | BU10: - | BV10: $0/$10 | BW10: 30 | BX10: 60 | BY10: 250 | BZ10: $0 / $0 / $20 / $50 / $75 / 50% to $1000 | CA10: 3000 | CB10: - | CC10: 0 | CD10: - | CE10: 5000 | CF10: - | CG10: $0/$10 | CH10: 30 | CI10: 60 | CJ10: 250 | CK10: $0 / $0 / $20 / $50 / $75 / 50% to $1000 | CU10: =LARGE(CU9:DD9,1) -> 0 | CV10: =LARGE(CU9:DD9,2) -> 0 | CW10: =LARGE(CU9:DD9,3) -> 0 | DJ10: =SUM(DJ8:DJ9) -> 0
C11: 17 | D11: 0.885 | E11: 1 | G11: 4 | H11: Bayfield | I11: 5 | J11: 0.746 | L11: ="" ->  | M11: ="" ->  | O11: 4 | P11: =VLOOKUP(I5,$G$8:$M$80,7,FALSE) ->  | Q11: =IF(#REF!="Arise",0.959,IF(#REF!="Aspirus Arise",0.909,IF(#REF!="Arise Metro",0.909,IF(#REF!="Southern",0.93,IF(#REF!="Healthy U",0.93,0))))) ->  | T11: 9 | V11: HMO Silver 4500 | W11: 86584WI0010002 | Y11: ThedaCare HMO 4000 | Z11: 84670WI1250015 | AA11: 0.5936 | AB11: Aurora HMO 4000 | AC11: 84670WI1250054 | AD11: 0.5936 | AE11: Aurora and ThedaCare HMO 4000 | AF11: 84670WI1250109 | AG11: 0 | AH11: Aurora and Bellin HMO 4000 | AI11: 84670WI1250119 | AK11: ProHealth and Aurora HMO 4000 | AL11: 84670WI1250129 | AN11: HMO | AO11: Silver | AP11: 4500 | AQ11: - | AR11: 0.3 | AS11: - | AT11: 7150 | AU11: - | AV11: $0/$10 | AW11: 30 | AX11: 60 | AY11: 250 | AZ11: 0 | BA11: $0 / $0 / $20 / $50 / $75 / 50% to $1000 | BB11: 0.653 | BC11: =ROUND(ROUND(ROUND(ROUND(BB11*$R$9,4)*$A$8,2)*VLOOKUP($I$5,$G$10:$J$28,4,FALSE),2)*$CS$8,2)+ROUND(ROUND(ROUND(ROUND(BB11*$R$9,4)*$A$8,2)*VLOOKUP($I$5,$G$10:$J$28,4,FALSE),2)*$CT$8,2)+ROUND(ROUND(ROUND(ROUND(BB11*$R$9,4)*$A$8,2)*VLOOKUP($I$5,$G$10:$J$28,4,FALSE),2)*$CU$8,2)+ROUND(ROUND(ROUND(ROUND(BB11*$R$9,4)*$A$8,2)*VLOOKUP($I$5,$G$10:$J$28,4,FALSE),2)*$CV$8,2)+ROUND(ROUND(ROUND(ROUND(BB11*$R$9,4)*$A$8,2)*VLOOKUP($I$5,$G$10:$J$28,4,FALSE),2)*$CW$8,2)+ROUND(ROUND(ROUND(ROUND(BB11*$R$9,4)*$A$8,2)*VLOOKUP($I$5,$G$10:$J$28,4,FALSE),2)*$CX$8,2)+ROUND(ROUND(ROUND(ROUND(BB11*$R$9,4)*$A$8,2)*VLOOKUP($I$5,$G$10:$J$28,4,FALSE),2)*$CY$8,2)+ROUND(ROUND(ROUND(ROUND(BB11*$R$9,4)*$A$8,2)*VLOOKUP($I$5,$G$10:$J$28,4,FALSE),2)*$CZ$8,2)+ROUND(ROUND(ROUND(ROUND(BB11*$R$9,4)*$A$8,2)*VLOOKUP($I$5,$G$10:$J$28,4,FALSE),2)*$DA$8,2)+ROUND(ROUND(ROUND(ROUND(BB11*$R$9,4)*$A$8,2)*VLOOKUP($I$5,$G$10:$J$28,4,FALSE),2)*$DB$8,2)+ROUND(ROUND(ROUND(ROUND(BB11*$R$9,4)*$A$8,2)*VLOOKUP($I$5,$G$10:$J$28,4,FALSE),2)*$DC$8,2)+ROUND(ROUND(ROUND(ROUND(BB11*$R$9,4)*$A$8,2)*VLOOKUP($I$5,$G$10:$J$28,4,FALSE),2)*$DD$8,2)+ROUND(ROUND(ROUND(ROUND(BB11*$R$9,4)*$A$8,2)*VLOOKUP($I$5,$G$10:$J$28,4,FALSE),2)*$D$8,2)*$DJ$9 ->  | BD11: Silver | BE11: 0 | BF11: - | BG11: 0 | BH11: - | BI11: 400 | BJ11: - | BK11: $0/$10 | BL11: 30 | BM11: 60 | BN11: 250 | BO11: $0 / $0 / $20 / $50 / $75 / 50% to $400 | BP11: 400 | BQ11: - | BR11: 0 | BS11: - | BT11: 1400 | BU11: - | BV11: $0/$10 | BW11: 30 | BX11: 60 | BY11: 250 | BZ11: $0 / $0 / $20 / $50 / $75 / 50% to $1000 | CA11: 3000 | CB11: - | CC11: 0 | CD11: - | CE11: 5000 | CF11: - | CG11: $0/$10 | CH11: 30 | CI11: 60 | CJ11: 250 | CK11: $0 / $0 / $20 / $50 / $75 / 50% to $1000
C12: 18 | D12: 0.913 | E12: 1 | G12: 5 | H12: Brown | I12: 16 | J12: 0.963 | L12: ="" ->  | M12: ="" ->  | T12: 12 | V12: HMO Gold 2000 | W12: 86584WI0010007 | Y12: ThedaCare HMO 1500 | Z12: 84670WI1250007 | AA12: 0.8905 | AB12: Aurora HMO 1500 | AC12: 84670WI1250051 | AD12: 0.8905 | AE12: Aurora and ThedaCare HMO 1500 | AF12: 84670WI1250110 | AG12: 1818 | AH12: Aurora and Bellin HMO 1500 | AI12: 84670WI1250120 | AK12: ProHealth and Aurora HMO 1500 | AL12: 84670WI1250130 | AN12: HMO | AO12: Gold | AP12: 2000 | AQ12: - | AR12: 0.2 | AS12: - | AT12: 3850 | AU12: - | AV12: $0/$10 | AW12: 30 | AX12: 60 | AY12: 250 | AZ12: 0 | BA12: $0 / $0 / $20 / $50 / $75 / 50% to $1000 | BB12: 0.9797 | BC12: =ROUND(ROUND(ROUND(ROUND(BB12*$R$9,4)*$A$8,2)*VLOOKUP($I$5,$G$10:$J$28,4,FALSE),2)*$CS$8,2)+ROUND(ROUND(ROUND(ROUND(BB12*$R$9,4)*$A$8,2)*VLOOKUP($I$5,$G$10:$J$28,4,FALSE),2)*$CT$8,2)+ROUND(ROUND(ROUND(ROUND(BB12*$R$9,4)*$A$8,2)*VLOOKUP($I$5,$G$10:$J$28,4,FALSE),2)*$CU$8,2)+ROUND(ROUND(ROUND(ROUND(BB12*$R$9,4)*$A$8,2)*VLOOKUP($I$5,$G$10:$J$28,4,FALSE),2)*$CV$8,2)+ROUND(ROUND(ROUND(ROUND(BB12*$R$9,4)*$A$8,2)*VLOOKUP($I$5,$G$10:$J$28,4,FALSE),2)*$CW$8,2)+ROUND(ROUND(ROUND(ROUND(BB12*$R$9,4)*$A$8,2)*VLOOKUP($I$5,$G$10:$J$28,4,FALSE),2)*$CX$8,2)+ROUND(ROUND(ROUND(ROUND(BB12*$R$9,4)*$A$8,2)*VLOOKUP($I$5,$G$10:$J$28,4,FALSE),2)*$CY$8,2)+ROUND(ROUND(ROUND(ROUND(BB12*$R$9,4)*$A$8,2)*VLOOKUP($I$5,$G$10:$J$28,4,FALSE),2)*$CZ$8,2)+ROUND(ROUND(ROUND(ROUND(BB12*$R$9,4)*$A$8,2)*VLOOKUP($I$5,$G$10:$J$28,4,FALSE),2)*$DA$8,2)+ROUND(ROUND(ROUND(ROUND(BB12*$R$9,4)*$A$8,2)*VLOOKUP($I$5,$G$10:$J$28,4,FALSE),2)*$DB$8,2)+ROUND(ROUND(ROUND(ROUND(BB12*$R$9,4)*$A$8,2)*VLOOKUP($I$5,$G$10:$J$28,4,FALSE),2)*$DC$8,2)+ROUND(ROUND(ROUND(ROUND(BB12*$R$9,4)*$A$8,2)*VLOOKUP($I$5,$G$10:$J$28,4,FALSE),2)*$DD$8,2)+ROUND(ROUND(ROUND(ROUND(BB12*$R$9,4)*$A$8,2)*VLOOKUP($I$5,$G$10:$J$28,4,FALSE),2)*$D$8,2)*$DJ$9 ->  | BD12: Gold | BE12: 2000 | BF12: - | BG12: 0.2 | BH12: - | BI12: 3850 | BJ12: - | BK12: $0/$10 | BL12: 30 | BM12: 60 | BN12: 250 | BO12: $0 / $0 / $20 / $50 / $75 / 50% to $1000 | BP12: 2000 | BQ12: - | BR12: 0.2 | BS12: - | BT12: 3850 | BU12: - | BV12: $0/$10 | BW12: 30 | BX12: 60 | BY12: 250 | BZ12: $0 / $0 / $20 / $50 / $75 / 50% to $1000 | CA12: 2000 | CB12: - | CC12: 0.2 | CD12: - | CE12: 3850 | CF12: - | CG12: $0/$10 | CH12: 30 | CI12: 60 | CJ12: 250 | CK12: $0 / $0 / $20 / $50 / $75 / 50% to $1000 | CR12: Over 21 Value | CS12: =IF(CS5="",0,VLOOKUP(CS6,$C$8:$E$53,2)*IF(CS6<21,0,1)) -> 0 | CT12: =IF(CT5="",0,VLOOKUP(CT6,$C$8:$E$53,2)*IF(CT6<21,0,1)) -> 0 | CU12: =IF(CU5="",0,VLOOKUP(CU6,$C$8:$E$53,2)*IF(CU6<21,0,1)) -> 0 | CV12: 0 | CW12: 0 | CX12: 0 | CY12: =IF(CY5="",0,VLOOKUP(CY6,$C$8:$E$53,2)*IF(CY6<21,0,1)) -> 0 | CZ12: =IF(CZ5="",0,VLOOKUP(CZ6,$C$8:$E$53,2)*IF(CZ6<21,0,1)) -> 0 | DA12: =IF(DA5="",0,VLOOKUP(DA6,$C$8:$E$53,2)*IF(DA6<21,0,1)) -> 0 | DB12: 0 | DC12: 0 | DD12: 0 | DJ12: =SUM(CS12:DD12) -> 0
C13: 19 | D13: 0.941 | E13: 1 | G13: 6 | H13: Buffalo | I13: 6 | J13: 1.029 | L13: ="" ->  | M13: ="" ->  | T13: 8 | V13: WPS PPO Catastrophic $8,700 with 3 Free PCP Visits | Statewide Network | W13: 81974WI1880044 | Y13: ThedaCare HMO 6850 Catastrophic | Z13: 84670WI1250039 | AA13: 0.4011 | AB13: Aurora HMO 6850 Catastrophic | AC13: 84670WI1250094 | AD13: 0.4011 | AE13: Aurora and ThedaCare HMO 6850 Catastrophic | AF13: 84670WI1250111 | AG13: 6499.35 | AH13: Aurora and Bellin HMO 6850 Catastrophic | AI13: 84670WI1250121 | AK13: ProHealth and Aurora HMO 6850 Catastrophic | AL13: 84670WI1250131 | AN13: PPO | AO13: Catastrophic | AP13: 8700 | AQ13: 17400 | AR13: 0 | AS13: 0.3 | AT13: 8700 | AU13: 23400 | AV13: D/C | AW13: 3 Free | AX13: D/C | AY13: D/C | AZ13: 3 | BA13: $0 preventive, D/C all others | BB13: 0.4328 | BC13: =ROUND(ROUND(ROUND(ROUND(BB13*1,4)*$A$8,2)*VLOOKUP($I$5,$G$9:$J$31,4,FALSE),2)*$CS$8,2)+ROUND(ROUND(ROUND(ROUND(BB13*1,4)*$A$8,2)*VLOOKUP($I$5,$G$9:$J$31,4,FALSE),2)*$CT$8,2)+ROUND(ROUND(ROUND(ROUND(BB13*1,4)*$A$8,2)*VLOOKUP($I$5,$G$9:$J$31,4,FALSE),2)*$CU$8,2)+ROUND(ROUND(ROUND(ROUND(BB13*1,4)*$A$8,2)*VLOOKUP($I$5,$G$9:$J$31,4,FALSE),2)*$CV$8,2)+ROUND(ROUND(ROUND(ROUND(BB13*1,4)*$A$8,2)*VLOOKUP($I$5,$G$9:$J$31,4,FALSE),2)*$CW$8,2)+ROUND(ROUND(ROUND(ROUND(BB13*1,4)*$A$8,2)*VLOOKUP($I$5,$G$9:$J$31,4,FALSE),2)*$CX$8,2)+ROUND(ROUND(ROUND(ROUND(BB13*1,4)*$A$8,2)*VLOOKUP($I$5,$G$9:$J$31,4,FALSE),2)*$CY$8,2)+ROUND(ROUND(ROUND(ROUND(BB13*1,4)*$A$8,2)*VLOOKUP($I$5,$G$9:$J$31,4,FALSE),2)*$CZ$8,2)+ROUND(ROUND(ROUND(ROUND(BB13*1,4)*$A$8,2)*VLOOKUP($I$5,$G$9:$J$31,4,FALSE),2)*$DA$8,2)+ROUND(ROUND(ROUND(ROUND(BB13*1,4)*$A$8,2)*VLOOKUP($I$5,$G$9:$J$31,4,FALSE),2)*$DB$8,2)+ROUND(ROUND(ROUND(ROUND(BB13*1,4)*$A$8,2)*VLOOKUP($I$5,$G$9:$J$31,4,FALSE),2)*$DC$8,2)+ROUND(ROUND(ROUND(ROUND(BB13*1,4)*$A$8,2)*VLOOKUP($I$5,$G$9:$J$31,4,FALSE),2)*$DD$8,2)+ROUND(ROUND(ROUND(ROUND(BB13*1,4)*$A$8,2)*VLOOKUP($I$5,$G$9:$J$31,4,FALSE),2)*$CU$10,2)+ROUND(ROUND(ROUND(ROUND(BB13*1,4)*$A$8,2)*VLOOKUP($I$5,$G$9:$J$31,4,FALSE),2)*$CV$10,2)+ROUND(ROUND(ROUND(ROUND(BB13*1,4)*$A$8,2)*VLOOKUP($I$5,$G$9:$J$31,4,FALSE),2)*$CW$10,2)+ROUND(ROUND(ROUND(ROUND(BB13*1,4)*$A$8,2)*VLOOKUP($I$5,$G$9:$J$31,4,FALSE),2)*$CX$10,2)+ROUND(ROUND(ROUND(ROUND(BB13*1,4)*$A$8,2)*VLOOKUP($I$5,$G$9:$J$31,4,FALSE),2)*$CY$10,2)+ROUND(ROUND(ROUND(ROUND(BB13*1,4)*$A$8,2)*VLOOKUP($I$5,$G$9:$J$31,4,FALSE),2)*$CZ$10,2)+ROUND(ROUND(ROUND(ROUND(BB13*1,4)*$A$8,2)*VLOOKUP($I$5,$G$9:$J$31,4,FALSE),2)*$DA$10,2)+ROUND(ROUND(ROUND(ROUND(BB13*1,4)*$A$8,2)*VLOOKUP($I$5,$G$9:$J$31,4,FALSE),2)*$DB$10,2)+ROUND(ROUND(ROUND(ROUND(BB13*1,4)*$A$8,2)*VLOOKUP($I$5,$G$9:$J$31,4,FALSE),2)*$DC$10,2)+ROUND(ROUND(ROUND(ROUND(BB13*1,4)*$A$8,2)*VLOOKUP($I$5,$G$9:$J$31,4,FALSE),2)*$DD$10,2) ->  | BD13: Catastrophic | BE13: 7150 | BF13: - | BG13: 0 | BH13: - | BI13: 7150 | BJ13: - | BK13: D/C | BL13: D/C | BM13: D/C | BN13: D/C | BO13: $0 preventive, D/C all others | BP13: 7150 | BQ13: - | BR13: 0 | BS13: - | BT13: 7150 | BU13: - | BV13: D/C | BW13: D/C | BX13: D/C | BY13: D/C | BZ13: $0 preventive, D/C all others | CA13: 7150 | CB13: - | CC13: 0 | CD13: - | CE13: 7150 | CF13: - | CG13: D/C | CH13: D/C | CI13: D/C | CJ13: D/C | CK13: $0 preventive, D/C all others | CR13: 21 and Under Value | CS13: =IF(CS5="",0,IF(AND(CS6<19,#REF!<3.0633),0,IF(CS6<21,1,0))) -> 0 | CT13: =IF(CT5="",0,IF(AND(CT6<19,#REF!<3.0633),0,IF(CT6<21,1,0))) -> 0 | CU13: =IF(CU5="",0,IF(AND(CU6<19,#REF!<3.0633),0,IF(CU6<21,1,0))) -> 0 | CV13: =IF(CV5="",0,IF(AND(CV6<19,#REF!<3.0633),0,IF(CV6<21,1,0))) -> 0 | CW13: =IF(CW5="",0,IF(AND(CW6<19,#REF!<3.0633),0,IF(CW6<21,1,0))) -> 0 | CX13: =IF(CX5="",0,IF(AND(CX6<19,#REF!<3.0633),0,IF(CX6<21,1,0))) -> 0 | CY13: =IF(CY5="",0,IF(AND(CY6<19,#REF!<3.0633),0,IF(CY6<21,1,0))) -> 0 | CZ13: =IF(CZ5="",0,IF(AND(CZ6<19,#REF!<3.0633),0,IF(CZ6<21,1,0))) -> 0 | DA13: =IF(DA5="",0,IF(AND(DA6<19,#REF!<3.0633),0,IF(DA6<21,1,0))) -> 0 | DB13: =IF(DB5="",0,IF(AND(DB6<19,#REF!<3.0633),0,IF(DB6<21,1,0))) -> 0 | DC13: =IF(DC5="",0,IF(AND(DC6<19,#REF!<3.0633),0,IF(DC6<21,1,0))) -> 0 | DD13: =IF(DD5="",0,IF(AND(DD6<19,#REF!<3.0633),0,IF(DD6<21,1,0))) -> 0 | DJ13: =IF(SUM(CS13:DD13)>3,3,SUM(CS13:DD13)) -> 0
C14: 20 | D14: 0.97 | E14: 1 | G14: 7 | H14: Burnett | I14: 5 | J14: 0.746 | L14: ="" ->  | M14: ="" ->  | T14: 10 | V14: WPS PPO HDHP Bronze $6,000 | Statewide Network | W14: 81974WI1880042 | Y14: ThedaCare HMO 5500 HDHP | Z14: 84670WI1250036 | AA14: 0.4772 | AB14: Aurora HMO 5500 HDHP | AC14: 84670WI1250091 | AD14: 0.4772 | AE14: Aurora and ThedaCare HMO 5500 HDHP | AF14: 84670WI1250112 | AG14: 4999.5 | AH14: Aurora and Bellin HMO 5500 HDHP | AI14: 84670WI1250122 | AK14: ProHealth and Aurora HMO 5500 HDHP | AL14: 84670WI1250132 | AN14: PPO HDHP | AO14: Bronze | AP14: 6000 | AQ14: 12000 | AR14: 0.3 | AS14: 0.5 | AT14: 7050 | AU14: 22000 | AV14: D/C | AW14: D/C | AX14: D/C | AY14: D/C | AZ14: 0 | BA14: $0 preventive, D/C all others | BB14: 0.5198 | BC14: =ROUND(ROUND(ROUND(ROUND(BB14*1,4)*$A$8,2)*VLOOKUP($I$5,$G$9:$J$31,4,FALSE),2)*$CS$8,2)+ROUND(ROUND(ROUND(ROUND(BB14*1,4)*$A$8,2)*VLOOKUP($I$5,$G$9:$J$31,4,FALSE),2)*$CT$8,2)+ROUND(ROUND(ROUND(ROUND(BB14*1,4)*$A$8,2)*VLOOKUP($I$5,$G$9:$J$31,4,FALSE),2)*$CU$8,2)+ROUND(ROUND(ROUND(ROUND(BB14*1,4)*$A$8,2)*VLOOKUP($I$5,$G$9:$J$31,4,FALSE),2)*$CV$8,2)+ROUND(ROUND(ROUND(ROUND(BB14*1,4)*$A$8,2)*VLOOKUP($I$5,$G$9:$J$31,4,FALSE),2)*$CW$8,2)+ROUND(ROUND(ROUND(ROUND(BB14*1,4)*$A$8,2)*VLOOKUP($I$5,$G$9:$J$31,4,FALSE),2)*$CX$8,2)+ROUND(ROUND(ROUND(ROUND(BB14*1,4)*$A$8,2)*VLOOKUP($I$5,$G$9:$J$31,4,FALSE),2)*$CY$8,2)+ROUND(ROUND(ROUND(ROUND(BB14*1,4)*$A$8,2)*VLOOKUP($I$5,$G$9:$J$31,4,FALSE),2)*$CZ$8,2)+ROUND(ROUND(ROUND(ROUND(BB14*1,4)*$A$8,2)*VLOOKUP($I$5,$G$9:$J$31,4,FALSE),2)*$DA$8,2)+ROUND(ROUND(ROUND(ROUND(BB14*1,4)*$A$8,2)*VLOOKUP($I$5,$G$9:$J$31,4,FALSE),2)*$DB$8,2)+ROUND(ROUND(ROUND(ROUND(BB14*1,4)*$A$8,2)*VLOOKUP($I$5,$G$9:$J$31,4,FALSE),2)*$DC$8,2)+ROUND(ROUND(ROUND(ROUND(BB14*1,4)*$A$8,2)*VLOOKUP($I$5,$G$9:$J$31,4,FALSE),2)*$DD$8,2)+ROUND(ROUND(ROUND(ROUND(BB14*1,4)*$A$8,2)*VLOOKUP($I$5,$G$9:$J$31,4,FALSE),2)*$CU$10,2)+ROUND(ROUND(ROUND(ROUND(BB14*1,4)*$A$8,2)*VLOOKUP($I$5,$G$9:$J$31,4,FALSE),2)*$CV$10,2)+ROUND(ROUND(ROUND(ROUND(BB14*1,4)*$A$8,2)*VLOOKUP($I$5,$G$9:$J$31,4,FALSE),2)*$CW$10,2)+ROUND(ROUND(ROUND(ROUND(BB14*1,4)*$A$8,2)*VLOOKUP($I$5,$G$9:$J$31,4,FALSE),2)*$CX$10,2)+ROUND(ROUND(ROUND(ROUND(BB14*1,4)*$A$8,2)*VLOOKUP($I$5,$G$9:$J$31,4,FALSE),2)*$CY$10,2)+ROUND(ROUND(ROUND(ROUND(BB14*1,4)*$A$8,2)*VLOOKUP($I$5,$G$9:$J$31,4,FALSE),2)*$CZ$10,2)+ROUND(ROUND(ROUND(ROUND(BB14*1,4)*$A$8,2)*VLOOKUP($I$5,$G$9:$J$31,4,FALSE),2)*$DA$10,2)+ROUND(ROUND(ROUND(ROUND(BB14*1,4)*$A$8,2)*VLOOKUP($I$5,$G$9:$J$31,4,FALSE),2)*$DB$10,2)+ROUND(ROUND(ROUND(ROUND(BB14*1,4)*$A$8,2)*VLOOKUP($I$5,$G$9:$J$31,4,FALSE),2)*$DC$10,2)+ROUND(ROUND(ROUND(ROUND(BB14*1,4)*$A$8,2)*VLOOKUP($I$5,$G$9:$J$31,4,FALSE),2)*$DD$10,2) ->  | BD14: Bronze | BE14: 6550 | BF14: - | BG14: 0 | BH14: - | BI14: 6550 | BJ14: - | BK14: D/C | BL14: D/C | BM14: D/C | BN14: D/C | BO14: $0 preventive, D/C all others | BP14: 6550 | BQ14: - | BR14: 0 | BS14: - | BT14: 6550 | BU14: - | BV14: D/C | BW14: D/C | BX14: D/C | BY14: D/C | BZ14: $0 preventive, D/C all others | CA14: 6550 | CB14: - | CC14: 0 | CD14: - | CE14: 6550 | CF14: - | CG14: D/C | CH14: D/C | CI14: D/C | CJ14: D/C | CK14: $0 preventive, D/C all others | CQ14: =SUM(CS14:DD14) -> 0 | CR14: Under 19? | CS14: =IF(CS5="",0,IF(CS6<19,1,0)) -> 0 | CT14: =IF(CT5="",0,IF(CT6<19,1,0)) -> 0 | CU14: 0 | CV14: 0 | CW14: 0 | CX14: 0 | CY14: 0 | CZ14: 0 | DA14: 0 | DB14: 0 | DC14: 0 | DD14: 0 | DJ14: =SUM(DJ12:DJ13) -> 0
C15: 21 | D15: 1 | E15: 1 | G15: 8 | H15: Chippewa | I15: 4 | J15: 0.868 | L15: ="" ->  | M15: ="" ->  | T15: 7 | V15: WPS PPO HDHP Bronze $7,050 | Statewide Network | W15: 81974WI1880049 | Y15: ThedaCare HMO 6450 HDHP | Z15: 84670WI1250034 | AA15: 0.4785 | AB15: Aurora HMO 6450 HDHP | AC15: 84670WI1250090 | AD15: 0.4785 | AE15: Aurora and ThedaCare HMO 6450 HDHP | AF15: 84670WI1250113 | AG15: 5953.95 | AH15: Aurora and Bellin HMO 6450 HDHP | AI15: 84670WI1250123 | AK15: ProHealth and Aurora HMO 6450 HDHP | AL15: 84670WI1250133 | AN15: PPO HDHP | AO15: Bronze | AP15: 7050 | AQ15: 14100 | AR15: 0 | AS15: 0.3 | AT15: 7050 | AU15: 20100 | AV15: D/C | AW15: D/C | AX15: D/C | AY15: D/C | AZ15: 0 | BA15: $0 preventive, D/C all others | BB15: 0.5186 | BC15: =ROUND(ROUND(ROUND(ROUND(BB15*1,4)*$A$8,2)*VLOOKUP($I$5,$G$9:$J$31,4,FALSE),2)*$CS$8,2)+ROUND(ROUND(ROUND(ROUND(BB15*1,4)*$A$8,2)*VLOOKUP($I$5,$G$9:$J$31,4,FALSE),2)*$CT$8,2)+ROUND(ROUND(ROUND(ROUND(BB15*1,4)*$A$8,2)*VLOOKUP($I$5,$G$9:$J$31,4,FALSE),2)*$CU$8,2)+ROUND(ROUND(ROUND(ROUND(BB15*1,4)*$A$8,2)*VLOOKUP($I$5,$G$9:$J$31,4,FALSE),2)*$CV$8,2)+ROUND(ROUND(ROUND(ROUND(BB15*1,4)*$A$8,2)*VLOOKUP($I$5,$G$9:$J$31,4,FALSE),2)*$CW$8,2)+ROUND(ROUND(ROUND(ROUND(BB15*1,4)*$A$8,2)*VLOOKUP($I$5,$G$9:$J$31,4,FALSE),2)*$CX$8,2)+ROUND(ROUND(ROUND(ROUND(BB15*1,4)*$A$8,2)*VLOOKUP($I$5,$G$9:$J$31,4,FALSE),2)*$CY$8,2)+ROUND(ROUND(ROUND(ROUND(BB15*1,4)*$A$8,2)*VLOOKUP($I$5,$G$9:$J$31,4,FALSE),2)*$CZ$8,2)+ROUND(ROUND(ROUND(ROUND(BB15*1,4)*$A$8,2)*VLOOKUP($I$5,$G$9:$J$31,4,FALSE),2)*$DA$8,2)+ROUND(ROUND(ROUND(ROUND(BB15*1,4)*$A$8,2)*VLOOKUP($I$5,$G$9:$J$31,4,FALSE),2)*$DB$8,2)+ROUND(ROUND(ROUND(ROUND(BB15*1,4)*$A$8,2)*VLOOKUP($I$5,$G$9:$J$31,4,FALSE),2)*$DC$8,2)+ROUND(ROUND(ROUND(ROUND(BB15*1,4)*$A$8,2)*VLOOKUP($I$5,$G$9:$J$31,4,FALSE),2)*$DD$8,2)+ROUND(ROUND(ROUND(ROUND(BB15*1,4)*$A$8,2)*VLOOKUP($I$5,$G$9:$J$31,4,FALSE),2)*$CU$10,2)+ROUND(ROUND(ROUND(ROUND(BB15*1,4)*$A$8,2)*VLOOKUP($I$5,$G$9:$J$31,4,FALSE),2)*$CV$10,2)+ROUND(ROUND(ROUND(ROUND(BB15*1,4)*$A$8,2)*VLOOKUP($I$5,$G$9:$J$31,4,FALSE),2)*$CW$10,2)+ROUND(ROUND(ROUND(ROUND(BB15*1,4)*$A$8,2)*VLOOKUP($I$5,$G$9:$J$31,4,FALSE),2)*$CX$10,2)+ROUND(ROUND(ROUND(ROUND(BB15*1,4)*$A$8,2)*VLOOKUP($I$5,$G$9:$J$31,4,FALSE),2)*$CY$10,2)+ROUND(ROUND(ROUND(ROUND(BB15*1,4)*$A$8,2)*VLOOKUP($I$5,$G$9:$J$31,4,FALSE),2)*$CZ$10,2)+ROUND(ROUND(ROUND(ROUND(BB15*1,4)*$A$8,2)*VLOOKUP($I$5,$G$9:$J$31,4,FALSE),2)*$DA$10,2)+ROUND(ROUND(ROUND(ROUND(BB15*1,4)*$A$8,2)*VLOOKUP($I$5,$G$9:$J$31,4,FALSE),2)*$DB$10,2)+ROUND(ROUND(ROUND(ROUND(BB15*1,4)*$A$8,2)*VLOOKUP($I$5,$G$9:$J$31,4,FALSE),2)*$DC$10,2)+ROUND(ROUND(ROUND(ROUND(BB15*1,4)*$A$8,2)*VLOOKUP($I$5,$G$9:$J$31,4,FALSE),2)*$DD$10,2) ->  | BD15: Bronze | BE15: 5500 | BF15: - | BG15: 0.2 | BH15: - | BI15: 6550 | BJ15: - | BK15: D/C | BL15: D/C | BM15: D/C | BN15: D/C | BO15: $0 preventive, D/C all others | BP15: 5500 | BQ15: - | BR15: 0.2 | BS15: - | BT15: 6550 | BU15: - | BV15: D/C | BW15: D/C | BX15: D/C | BY15: D/C | BZ15: $0 preventive, D/C all others | CA15: 5500 | CB15: - | CC15: 0.2 | CD15: - | CE15: 6550 | CF15: - | CG15: D/C | CH15: D/C | CI15: D/C | CJ15: D/C | CK15: $0 preventive, D/C all others
C16: 22 | D16: 1 | E16: 1 | G16: 9 | H16: Door | I16: 16 | J16: 0.963 | L16: ="" ->  | M16: ="" ->  | T16: 11 | V16: HMO HDHP Silver 2700 | W16: 86584WI0010004 | Y16: ThedaCare HMO 3500 HDHP | Z16: 84670WI1250029 | AA16: 0.5847 | AB16: Aurora HMO 3500 HDHP | AC16: 84670WI1250084 | AD16: 0.5847 | AE16: Aurora and ThedaCare HMO 3500 HDHP | AF16: 84670WI1250114 | AG16: 409.05 | AH16: Aurora and Bellin HMO 3500 HDHP | AI16: 84670WI1250124 | AK16: ProHealth and Aurora HMO 3500 HDHP | AL16: 84670WI1250134 | AN16: HMO HDHP | AO16: Silver | AP16: 2700 | AQ16: - | AR16: 0.2 | AS16: - | AT16: 6550 | AU16: - | AV16: D/C | AW16: D/C | AX16: D/C | AY16: D/C | AZ16: 0 | BA16: $0 preventive, D/C all others | BB16: 0.6432 | BC16: =ROUND(ROUND(ROUND(ROUND(BB16*$R$9,4)*$A$8,2)*VLOOKUP($I$5,$G$10:$J$28,4,FALSE),2)*$CS$8,2)+ROUND(ROUND(ROUND(ROUND(BB16*$R$9,4)*$A$8,2)*VLOOKUP($I$5,$G$10:$J$28,4,FALSE),2)*$CT$8,2)+ROUND(ROUND(ROUND(ROUND(BB16*$R$9,4)*$A$8,2)*VLOOKUP($I$5,$G$10:$J$28,4,FALSE),2)*$CU$8,2)+ROUND(ROUND(ROUND(ROUND(BB16*$R$9,4)*$A$8,2)*VLOOKUP($I$5,$G$10:$J$28,4,FALSE),2)*$CV$8,2)+ROUND(ROUND(ROUND(ROUND(BB16*$R$9,4)*$A$8,2)*VLOOKUP($I$5,$G$10:$J$28,4,FALSE),2)*$CW$8,2)+ROUND(ROUND(ROUND(ROUND(BB16*$R$9,4)*$A$8,2)*VLOOKUP($I$5,$G$10:$J$28,4,FALSE),2)*$CX$8,2)+ROUND(ROUND(ROUND(ROUND(BB16*$R$9,4)*$A$8,2)*VLOOKUP($I$5,$G$10:$J$28,4,FALSE),2)*$CY$8,2)+ROUND(ROUND(ROUND(ROUND(BB16*$R$9,4)*$A$8,2)*VLOOKUP($I$5,$G$10:$J$28,4,FALSE),2)*$CZ$8,2)+ROUND(ROUND(ROUND(ROUND(BB16*$R$9,4)*$A$8,2)*VLOOKUP($I$5,$G$10:$J$28,4,FALSE),2)*$DA$8,2)+ROUND(ROUND(ROUND(ROUND(BB16*$R$9,4)*$A$8,2)*VLOOKUP($I$5,$G$10:$J$28,4,FALSE),2)*$DB$8,2)+ROUND(ROUND(ROUND(ROUND(BB16*$R$9,4)*$A$8,2)*VLOOKUP($I$5,$G$10:$J$28,4,FALSE),2)*$DC$8,2)+ROUND(ROUND(ROUND(ROUND(BB16*$R$9,4)*$A$8,2)*VLOOKUP($I$5,$G$10:$J$28,4,FALSE),2)*$DD$8,2)+ROUND(ROUND(ROUND(ROUND(BB16*$R$9,4)*$A$8,2)*VLOOKUP($I$5,$G$10:$J$28,4,FALSE),2)*$D$8,2)*$DJ$9 ->  | BD16: Silver | BE16: 450 | BF16: - | BG16: 0 | BH16: - | BI16: 450 | BJ16: - | BK16: D/C | BL16: D/C | BM16: D/C | BN16: D/C | BO16: $0 preventive, D/C all others | BP16: 1350 | BQ16: - | BR16: 0 | BS16: - | BT16: 1350 | BU16: - | BV16: D/C | BW16: D/C | BX16: D/C | BY16: D/C | BZ16: $0 preventive, D/C all others | CA16: 2000 | CB16: - | CC16: 0.2 | CD16: - | CE16: 4200 | CF16: - | CG16: D/C | CH16: D/C | CI16: D/C | CJ16: D/C | CK16: $0 preventive, D/C all others | CR16: Dental Rate | CS16: =IF(ISERROR(CS6),0,VLOOKUP(CS6,$CQ$34:$CS$42,3)) -> 0 | CT16: =IF(ISERROR(CT6),0,VLOOKUP(CT6,$CQ$34:$CS$42,3)) -> 0 | CU16: =VLOOKUP(IF(ISERROR(CU6),0,1) + IF(ISERROR(CV6),0,1) + IF(ISERROR(CW6),0,1) + IF(ISERROR(CX6),0,1) + IF(ISERROR(CY6),0,1) + IF(ISERROR(CZ6),0,1) + IF(ISERROR(DA6),0,1) + IF(ISERROR(DB6),0,1),$CQ$44:$CS$47,3) -> 0
C17: 23 | D17: 1 | E17: 1 | G17: 10 | H17: Douglas | I17: 5 | J17: 0.746 | L17: ="" ->  | M17: ="" ->  | P17: HDHP | Q17: 1 | T17: 5 | V17: HMO HDHP Silver 4000 | W17: 86584WI0010010 | Y17: ThedaCare HMO 2600 HDHP | Z17: 84670WI1250032 | AA17: 0.5906 | AB17: Aurora HMO 2600 HDHP | AC17: 84670WI1250087 | AD17: 0.5906 | AE17: Aurora and ThedaCare HMO 2600 HDHP | AF17: 84670WI1250115 | AG17: 409.05 | AH17: Aurora and Bellin HMO 2600 HDHP | AI17: 84670WI1250125 | AK17: ProHealth and Aurora HMO 2600 HDHP | AL17: 84670WI1250135 | AN17: HMO HDHP | AO17: Silver | AP17: 4000 | AQ17: - | AR17: 0 | AS17: - | AT17: 4000 | AU17: - | AV17: D/C | AW17: D/C | AX17: D/C | AY17: D/C | AZ17: 0 | BA17: $0 preventive, D/C all others | BB17: 0.6497 | BD17: Silver | BE17: 450 | BF17: - | BG17: 0 | BH17: - | BI17: 450 | BJ17: - | BK17: D/C | BL17: D/C | BM17: D/C | BN17: D/C | BO17: $0 preventive, D/C all others | BP17: 1350 | BQ17: - | BR17: 0 | BS17: - | BT17: 1350 | BU17: - | BV17: D/C | BW17: D/C | BX17: D/C | BY17: D/C | BZ17: $0 preventive, D/C all others | CA17: 3250 | CB17: - | CC17: 0 | CD17: - | CE17: 3250 | CF17: - | CG17: D/C | CH17: D/C | CI17: D/C | CJ17: D/C | CK17: $0 preventive, D/C all others
C18: 24 | D18: 1 | E18: 1 | G18: 11 | H18: Dunn | I18: 4 | J18: 0.868 | L18: ="" ->  | M18: ="" ->  | P18: Network | Q18: Factor | T18: 4 | V18: HMO STANDARD Bronze 6650 | W18: 86584WI0010011 | Y18: ThedaCare 6850 | Z18: 84670WI1270102 | AA18: 0.4809 | AB18: Aurora 6850 | AC18: 84670WI1270108 | AD18: 0.4809 | AE18: Aurora and ThedaCare 6850 | AF18: 84670WI1270118 | AG18: 6044.85 | AH18: Aurora and Bellin 6850 | AI18: 84670WI1270128 | AK18: ProHealth and Aurora 6850 | AL18: 84670WI1270138 | AN18: HMO STANDARD | AO18: Bronze | AP18: 6650 | AQ18: - | AR18: 0.5 | AS18: - | AT18: 7150 | AU18: - | AV18: $45/(D/C) | AW18: 45 | AX18: D/C | AY18: D/C | AZ18: 0 | BA18: 0$/$35/$35/35%/40%/45% | BB18: 0.529 | BD18: Bronze | BE18: 6650 | BF18: - | BG18: 0.5 | BH18: - | BI18: 7150 | BJ18: - | BK18: $45/(D/C) | BL18: 45 | BM18: D/C | BN18: D/C | BO18: 0$/$35/$35/35%/40%/45% | BP18: 6650 | BQ18: - | BR18: 0.5 | BS18: - | BT18: 7150 | BU18: - | BV18: $45/(D/C) | BW18: 45 | BX18: D/C | BY18: D/C | BZ18: 0$/$35/$35/35%/40%/45% | CA18: 6650 | CB18: - | CC18: 0.5 | CD18: - | CE18: 7150 | CF18: - | CG18: $45/(D/C) | CH18: 45 | CI18: D/C | CJ18: D/C | CK18: 0$/$35/$35/35%/40%/45%
C19: 25 | D19: 1.004 | E19: 1 | G19: 12 | H19: Eau Claire | I19: 4 | J19: 0.868 | L19: ="" ->  | M19: ="" ->  | O19: 1 | P19: Arise | Q19: 1 | T19: 6 | V19: HMO STANDARD Silver 3500 | W19: 86584WI0010012 | Y19: ThedaCare 4000 | Z19: 84670WI1270015 | AA19: 0.587 | AB19: Aurora 4000 | AC19: 84670WI1270054 | AD19: 0.587 | AE19: Aurora and ThedaCare 4000 | AF19: 84670WI1270109 | AG19: 227.25 | AH19: Aurora and Bellin 4000 | AI19: 84670WI1270119 | AK19: ProHealth and Aurora 4000 | AL19: 84670WI1270129 | AN19: HMO STANDARD | AO19: Silver | AP19: 3500 | AQ19: - | AR19: 0.2 | AS19: - | AT19: 7150 | AU19: - | AV19: $30/$75 | AW19: 30 | AX19: 65 | AY19: 400 | AZ19: 0 | BA19: $0/$15/$15/$50/$100/40% | BB19: 0.6458 | BD19: Silver | BE19: 250 | BF19: - | BG19: 0.05 | BH19: - | BI19: 1250 | BJ19: - | BK19: $5/$25 | BL19: 5 | BM19: 15 | BN19: 100 | BO19: $0/$3/$3/$5/$10/25% | BP19: 700 | BQ19: - | BR19: 0.2 | BS19: - | BT19: 2000 | BU19: - | BV19: $10/$40 | BW19: 10 | BX19: 25 | BY19: 150 | BZ19: $0/$5/$5/$25/$50/30% | CA19: 3000 | CB19: - | CC19: 0.2 | CD19: - | CE19: 5700 | CF19: - | CG19: $30/$75 | CH19: 30 | CI19: 65 | CJ19: 300 | CK19: $0/$10/$10/$50/$100/40%
C20: 26 | D20: 1.024 | E20: 1 | G20: 13 | H20: Jackson | I20: 6 | J20: 1.029 | L20: ="" ->  | M20: ="" ->  | O20: 2 | P20: =VLOOKUP(I6,$G$8:$M$80,5,FALSE) -> 0 | Q20: =IF(#REF!="Statewide",1,IF(#REF!="Western",0.95,IF(#REF!="Aspirus",0.84,IF(#REF!="Southern",0.93,IF(#REF!="Healthy U",0.93,0))))) ->  | T20: 2 | V20: POS Silver 7150 | W20: 84670WI1270143 | Y20: ThedaCare 5500 HDHP | Z20: 84670WI1270036 | AA20: 0.4643 | AB20: Aurora 5500 HDHP | AC20: 84670WI1270091 | AD20: 0.4643 | AE20: Aurora and ThedaCare 5500 HDHP | AF20: 84670WI1270112 | AG20: 0 | AH20: Aurora and Bellin 5500 HDHP | AI20: 84670WI1270122 | AJ20: 0.2727 | AK20: ProHealth and Aurora 5500 HDHP | AL20: 84670WI1270132 | AN20: POS | AO20: Bronze | AP20: 7150 | AQ20: 14300 | AR20: 0 | AS20: 0.3 | AT20: 7150 | AU20: 20300 | AV20: D/C | AW20: D/C | AX20: D/C | AY20: D/C | AZ20: 0 | BA20: $0 preventive, D/C all others | BB20: 0.5108 | BD20: Silver | BE20: 0 | BF20: 14000 | BG20: 0 | BH20: 0.3 | BI20: 400 | BJ20: 20000 | BK20: $0/$10 | BL20: 30 | BM20: 60 | BN20: 250 | BO20: $0 / $0 / $20 / $50 / $75 / 50% to $400 | BP20: 400 | BQ20: 14000 | BR20: 0 | BS20: 0.3 | BT20: 1400 | BU20: 20000 | BV20: $0/$10 | BW20: 30 | BX20: 60 | BY20: 250 | BZ20: $0 / $0 / $20 / $50 / $75 / 50% to $1000 | CA20: 3000 | CB20: 14000 | CC20: 0 | CD20: 0.3 | CE20: 5000 | CF20: 20000 | CG20: $0/$10 | CH20: 30 | CI20: 60 | CJ20: 250 | CK20: $0 / $0 / $20 / $50 / $75 / 50% to $1000 | CR20: HDHP | DL20: =ROUND(ROUND(ROUND(ROUND(BB20*$R$9,4)*$A$8,2)*VLOOKUP($I$5,$G$10:$J$26,4,FALSE),2)*$CS$12,2)+ROUND(ROUND(ROUND(ROUND(BB20*$R$9,4)*$A$8,2)*VLOOKUP($I$5,$G$10:$J$26,4,FALSE),2)*$CT$12,2)+ROUND(ROUND(ROUND(ROUND(BB20*$R$9,4)*$A$8,2)*VLOOKUP($I$5,$G$10:$J$26,4,FALSE),2)*$CU$12,2)+ROUND(ROUND(ROUND(ROUND(BB20*$R$9,4)*$A$8,2)*VLOOKUP($I$5,$G$10:$J$26,4,FALSE),2)*$CV$12,2)+ROUND(ROUND(ROUND(ROUND(BB20*$R$9,4)*$A$8,2)*VLOOKUP($I$5,$G$10:$J$26,4,FALSE),2)*$CW$12,2)+ROUND(ROUND(ROUND(ROUND(BB20*$R$9,4)*$A$8,2)*VLOOKUP($I$5,$G$10:$J$26,4,FALSE),2)*$CX$12,2)+ROUND(ROUND(ROUND(ROUND(BB20*$R$9,4)*$A$8,2)*VLOOKUP($I$5,$G$10:$J$26,4,FALSE),2)*$CY$12,2)+ROUND(ROUND(ROUND(ROUND(BB20*$R$9,4)*$A$8,2)*VLOOKUP($I$5,$G$10:$J$26,4,FALSE),2)*$CZ$12,2)+ROUND(ROUND(ROUND(ROUND(BB20*$R$9,4)*$A$8,2)*VLOOKUP($I$5,$G$10:$J$26,4,FALSE),2)*$DA$12,2)+ROUND(ROUND(ROUND(ROUND(BB20*$R$9,4)*$A$8,2)*VLOOKUP($I$5,$G$10:$J$26,4,FALSE),2)*$DB$12,2)+ROUND(ROUND(ROUND(ROUND(BB20*$R$9,4)*$A$8,2)*VLOOKUP($I$5,$G$10:$J$26,4,FALSE),2)*$DC$12,2)+ROUND(ROUND(ROUND(ROUND(BB20*$R$9,4)*$A$8,2)*VLOOKUP($I$5,$G$10:$J$26,4,FALSE),2)*$DD$12,2)+ROUND(ROUND(ROUND(ROUND(BB20*$R$9,4)*$A$8,2)*VLOOKUP($I$5,$G$10:$J$26,4,FALSE),2)*$D$8,2)*$DJ$13 -> 
C21: 27 | D21: 1.048 | E21: 1 | G21: 14 | H21: La Crosse | I21: 6 | J21: 1.029 | L21: ="" ->  | M21: ="" ->  | O21: 3 | P21: =VLOOKUP(I6,$G$8:$M$80,6,FALSE) ->  | Q21: =IF(#REF!="Statewide",1,IF(#REF!="Western",0.95,IF(#REF!="Aspirus",0.84,IF(#REF!="Southern",0.93,IF(#REF!="Healthy U",0.93,0))))) ->  | T21: 3 | V21: POS Silver 4500 | W21: 86584WI0020002 | Y21: ThedaCare 2600 HDHP | Z21: 84670WI1270032 | AA21: 0.5936 | AB21: Aurora 2600 HDHP | AC21: 84670WI1270087 | AD21: 0.5936 | AE21: Aurora and ThedaCare 2600 HDHP | AF21: 84670WI1270115 | AG21: 0 | AH21: Aurora and Bellin 2600 HDHP | AI21: 84670WI1270125 | AJ21: 0.4545 | AK21: ProHealth and Aurora 2600 HDHP | AL21: 84670WI1270135 | AN21: POS | AO21: Silver | AP21: 4500 | AQ21: 9000 | AR21: 0.3 | AS21: 0.5 | AT21: 7150 | AU21: 19000 | AV21: $0/$10 | AW21: 30 | AX21: 60 | AY21: 250 | AZ21: 0 | BA21: $0 / $0 / $20 / $50 / $75 / 50% to $1000 | BB21: 0.653 | BD21: Silver | BE21: 0 | BF21: 9000 | BG21: 0 | BH21: 0.5 | BI21: 400 | BJ21: 19000 | BK21: $0/$10 | BL21: 30 | BM21: 60 | BN21: 250 | BO21: $0 / $0 / $20 / $50 / $75 / 50% to $400 | BP21: 400 | BQ21: 9000 | BR21: 0 | BS21: 0.5 | BT21: 1400 | BU21: 19000 | BV21: $0/$10 | BW21: 30 | BX21: 60 | BY21: 250 | BZ21: $0 / $0 / $20 / $50 / $75 / 50% to $1000 | CA21: 3000 | CB21: 9000 | CC21: 0 | CD21: 0.5 | CE21: 5000 | CF21: 19000 | CG21: $0/$10 | CH21: 30 | CI21: 60 | CJ21: 250 | CK21: $0 / $0 / $20 / $50 / $75 / 50% to $1000 | CR21: Eff. Date | CS21: =#REF! ->  | DL21: =ROUND(ROUND(ROUND(ROUND(BB21*$R$9,4)*$A$8,2)*VLOOKUP($I$5,$G$10:$J$26,4,FALSE),2)*$CS$12,2)+ROUND(ROUND(ROUND(ROUND(BB21*$R$9,4)*$A$8,2)*VLOOKUP($I$5,$G$10:$J$26,4,FALSE),2)*$CT$12,2)+ROUND(ROUND(ROUND(ROUND(BB21*$R$9,4)*$A$8,2)*VLOOKUP($I$5,$G$10:$J$26,4,FALSE),2)*$CU$12,2)+ROUND(ROUND(ROUND(ROUND(BB21*$R$9,4)*$A$8,2)*VLOOKUP($I$5,$G$10:$J$26,4,FALSE),2)*$CV$12,2)+ROUND(ROUND(ROUND(ROUND(BB21*$R$9,4)*$A$8,2)*VLOOKUP($I$5,$G$10:$J$26,4,FALSE),2)*$CW$12,2)+ROUND(ROUND(ROUND(ROUND(BB21*$R$9,4)*$A$8,2)*VLOOKUP($I$5,$G$10:$J$26,4,FALSE),2)*$CX$12,2)+ROUND(ROUND(ROUND(ROUND(BB21*$R$9,4)*$A$8,2)*VLOOKUP($I$5,$G$10:$J$26,4,FALSE),2)*$CY$12,2)+ROUND(ROUND(ROUND(ROUND(BB21*$R$9,4)*$A$8,2)*VLOOKUP($I$5,$G$10:$J$26,4,FALSE),2)*$CZ$12,2)+ROUND(ROUND(ROUND(ROUND(BB21*$R$9,4)*$A$8,2)*VLOOKUP($I$5,$G$10:$J$26,4,FALSE),2)*$DA$12,2)+ROUND(ROUND(ROUND(ROUND(BB21*$R$9,4)*$A$8,2)*VLOOKUP($I$5,$G$10:$J$26,4,FALSE),2)*$DB$12,2)+ROUND(ROUND(ROUND(ROUND(BB21*$R$9,4)*$A$8,2)*VLOOKUP($I$5,$G$10:$J$26,4,FALSE),2)*$DC$12,2)+ROUND(ROUND(ROUND(ROUND(BB21*$R$9,4)*$A$8,2)*VLOOKUP($I$5,$G$10:$J$26,4,FALSE),2)*$DD$12,2)+ROUND(ROUND(ROUND(ROUND(BB21*$R$9,4)*$A$8,2)*VLOOKUP($I$5,$G$10:$J$26,4,FALSE),2)*$D$8,2)*$DJ$13 -> 
C22: 28 | D22: 1.087 | E22: 1 | G22: 15 | H22: Monroe | I22: 6 | J22: 1.029 | L22: ="" ->  | M22: ="" ->  | O22: 4 | P22: =VLOOKUP(I6,$G$8:$M$80,7,FALSE) ->  | Q22: =IF(#REF!="Statewide",1,IF(#REF!="Western",0.95,IF(#REF!="Aspirus",0.84,IF(#REF!="Southern",0.93,IF(#REF!="Healthy U",0.93,0))))) ->  | T22: 1 | V22: POS HDHP Bronze 5500 | W22: 84670WI1270145 | Y22: Aspirus Arise Platinum HMO 250 | Z22: 84670WI1250043 | AA22: 0.4826 | AB22: Arise Metro Platinum HMO 250 | AC22: 84670WI1250049 | AD22: 0.4826 | AE22: Arise Metro Platinum HMO 250 | AF22: 84670WI1250049 | AG22: 4999.5 | AH22: Arise Metro Platinum HMO 250 | AI22: 84670WI1250049 | AJ22: 0.4545 | AK22: Arise Metro Platinum HMO 250 | AL22: 84670WI1250049 | AN22: POS HDHP | AO22: Bronze | AP22: 5500 | AQ22: 11000 | AR22: 0.2 | AS22: 0.5 | AT22: 6550 | AU22: 21000 | AV22: D/C | AW22: D/C | AX22: D/C | AY22: D/C | AZ22: 0 | BA22: $0 preventive, D/C all others | BB22: 0.5309 | BD22: Bronze | BE22: 5500 | BF22: 11000 | BG22: 0.2 | BH22: 0.5 | BI22: 6550 | BJ22: 21000 | BK22: D/C | BL22: D/C | BM22: D/C | BN22: D/C | BO22: $0 preventive, D/C all others | BP22: 5500 | BQ22: 11000 | BR22: 0.2 | BS22: 0.5 | BT22: 6550 | BU22: 21000 | BV22: D/C | BW22: D/C | BX22: D/C | BY22: D/C | BZ22: $0 preventive, D/C all others | CA22: 5500 | CB22: 11000 | CC22: 0.2 | CD22: 0.5 | CE22: 6550 | CF22: 21000 | CG22: D/C | CH22: D/C | CI22: D/C | CJ22: D/C | CK22: $0 preventive, D/C all others | DL22: =ROUND(ROUND(ROUND(ROUND(BB22*$R$9,4)*$A$8,2)*VLOOKUP($I$5,$G$10:$J$26,4,FALSE),2)*$CS$12,2)+ROUND(ROUND(ROUND(ROUND(BB22*$R$9,4)*$A$8,2)*VLOOKUP($I$5,$G$10:$J$26,4,FALSE),2)*$CT$12,2)+ROUND(ROUND(ROUND(ROUND(BB22*$R$9,4)*$A$8,2)*VLOOKUP($I$5,$G$10:$J$26,4,FALSE),2)*$CU$12,2)+ROUND(ROUND(ROUND(ROUND(BB22*$R$9,4)*$A$8,2)*VLOOKUP($I$5,$G$10:$J$26,4,FALSE),2)*$CV$12,2)+ROUND(ROUND(ROUND(ROUND(BB22*$R$9,4)*$A$8,2)*VLOOKUP($I$5,$G$10:$J$26,4,FALSE),2)*$CW$12,2)+ROUND(ROUND(ROUND(ROUND(BB22*$R$9,4)*$A$8,2)*VLOOKUP($I$5,$G$10:$J$26,4,FALSE),2)*$CX$12,2)+ROUND(ROUND(ROUND(ROUND(BB22*$R$9,4)*$A$8,2)*VLOOKUP($I$5,$G$10:$J$26,4,FALSE),2)*$CY$12,2)+ROUND(ROUND(ROUND(ROUND(BB22*$R$9,4)*$A$8,2)*VLOOKUP($I$5,$G$10:$J$26,4,FALSE),2)*$CZ$12,2)+ROUND(ROUND(ROUND(ROUND(BB22*$R$9,4)*$A$8,2)*VLOOKUP($I$5,$G$10:$J$26,4,FALSE),2)*$DA$12,2)+ROUND(ROUND(ROUND(ROUND(BB22*$R$9,4)*$A$8,2)*VLOOKUP($I$5,$G$10:$J$26,4,FALSE),2)*$DB$12,2)+ROUND(ROUND(ROUND(ROUND(BB22*$R$9,4)*$A$8,2)*VLOOKUP($I$5,$G$10:$J$26,4,FALSE),2)*$DC$12,2)+ROUND(ROUND(ROUND(ROUND(BB22*$R$9,4)*$A$8,2)*VLOOKUP($I$5,$G$10:$J$26,4,FALSE),2)*$DD$12,2)+ROUND(ROUND(ROUND(ROUND(BB22*$R$9,4)*$A$8,2)*VLOOKUP($I$5,$G$10:$J$26,4,FALSE),2)*$D$8,2)*$DJ$13 -> 
C23: 29 | D23: 1.119 | E23: 1 | G23: 16 | H23: Oconto | I23: 16 | J23: 0.963 | L23: ="" ->  | M23: ="" ->  | T23: 16 | V23: POS HDHP Silver 2700 | W23: 86584WI0020004 | Y23: Aspirus Arise Catastrophic HMO 6600 | Z23: 84670WI1250093 | AA23: 0.5882 | AB23: Arise Metro Catastrophic HMO 6600 | AC23: 84670WI1250094 | AD23: 0.5882 | AE23: Arise Metro Catastrophic HMO 6600 | AF23: 84670WI1250094 | AG23: 409.05 | AH23: Arise Metro Catastrophic HMO 6600 | AI23: 84670WI1250094 | AJ23: 0.4545 | AK23: Arise Metro Catastrophic HMO 6600 | AL23: 84670WI1250094 | AN23: POS HDHP | AO23: Silver | AP23: 2700 | AQ23: 5400 | AR23: 0.2 | AS23: 0.5 | AT23: 6550 | AU23: 15400 | AV23: D/C | AW23: D/C | AX23: D/C | AY23: D/C | AZ23: 0 | BA23: $0 preventive, D/C all others | BB23: 0.6471 | BD23: Silver | BE23: 450 | BF23: 5400 | BG23: 0 | BH23: 0.5 | BI23: 450 | BJ23: 15400 | BK23: D/C | BL23: D/C | BM23: D/C | BN23: D/C | BO23: $0 preventive, D/C all others | BP23: 1350 | BQ23: 5400 | BR23: 0 | BS23: 0.5 | BT23: 1350 | BU23: 15400 | BV23: D/C | BW23: D/C | BX23: D/C | BY23: D/C | BZ23: $0 preventive, D/C all others | CA23: 2000 | CB23: 5400 | CC23: 0.2 | CD23: 0.5 | CE23: 4200 | CF23: 15400 | CG23: D/C | CH23: D/C | CI23: D/C | CJ23: D/C | CK23: $0 preventive, D/C all others | CR23: Member | CS23: Applicant | CT23: Spouse | CU23: Dep.<21 | CV23: Dep. 1 | CW23: Dep. 2 | CX23: Dep. 3 | CY23: Dep. 4 | CZ23: Dep. 5 | DA23: Dep. 6 | DJ23: TOTAL | DL23: =ROUND(ROUND(ROUND(ROUND(BB23*$R$9,4)*$A$8,2)*VLOOKUP($I$5,$G$10:$J$26,4,FALSE),2)*$CS$12,2)+ROUND(ROUND(ROUND(ROUND(BB23*$R$9,4)*$A$8,2)*VLOOKUP($I$5,$G$10:$J$26,4,FALSE),2)*$CT$12,2)+ROUND(ROUND(ROUND(ROUND(BB23*$R$9,4)*$A$8,2)*VLOOKUP($I$5,$G$10:$J$26,4,FALSE),2)*$CU$12,2)+ROUND(ROUND(ROUND(ROUND(BB23*$R$9,4)*$A$8,2)*VLOOKUP($I$5,$G$10:$J$26,4,FALSE),2)*$CV$12,2)+ROUND(ROUND(ROUND(ROUND(BB23*$R$9,4)*$A$8,2)*VLOOKUP($I$5,$G$10:$J$26,4,FALSE),2)*$CW$12,2)+ROUND(ROUND(ROUND(ROUND(BB23*$R$9,4)*$A$8,2)*VLOOKUP($I$5,$G$10:$J$26,4,FALSE),2)*$CX$12,2)+ROUND(ROUND(ROUND(ROUND(BB23*$R$9,4)*$A$8,2)*VLOOKUP($I$5,$G$10:$J$26,4,FALSE),2)*$CY$12,2)+ROUND(ROUND(ROUND(ROUND(BB23*$R$9,4)*$A$8,2)*VLOOKUP($I$5,$G$10:$J$26,4,FALSE),2)*$CZ$12,2)+ROUND(ROUND(ROUND(ROUND(BB23*$R$9,4)*$A$8,2)*VLOOKUP($I$5,$G$10:$J$26,4,FALSE),2)*$DA$12,2)+ROUND(ROUND(ROUND(ROUND(BB23*$R$9,4)*$A$8,2)*VLOOKUP($I$5,$G$10:$J$26,4,FALSE),2)*$DB$12,2)+ROUND(ROUND(ROUND(ROUND(BB23*$R$9,4)*$A$8,2)*VLOOKUP($I$5,$G$10:$J$26,4,FALSE),2)*$DC$12,2)+ROUND(ROUND(ROUND(ROUND(BB23*$R$9,4)*$A$8,2)*VLOOKUP($I$5,$G$10:$J$26,4,FALSE),2)*$DD$12,2)+ROUND(ROUND(ROUND(ROUND(BB23*$R$9,4)*$A$8,2)*VLOOKUP($I$5,$G$10:$J$26,4,FALSE),2)*$D$8,2)*$DJ$13 -> 
C24: 30 | D24: 1.135 | E24: 1 | G24: 17 | H24: Pepin | I24: 4 | J24: 0.868 | L24: ="" ->  | M24: ="" ->  | T24: 25 | V24: HMO SE Bronze 7150 | W24: 84670WI1250143 | Y24: Aspirus Arise Bronze HMO 5500 HSA | Z24: 84670WI1250081 | AA24: 0 | AB24: Arise Metro Bronze HMO 5500 HSA | AC24: 84670WI1250091 | AD24: 0 | AE24: Arise Metro Bronze HMO 5500 HSA | AF24: 84670WI1250091 | AG24: 4999.5 | AH24: Arise Metro Bronze HMO 5500 HSA | AI24: 84670WI1250091 | AK24: Arise Metro Bronze HMO 5500 HSA | AL24: 84670WI1250091 | AN24: HMO | AO24: Bronze | AP24: 5500 | AQ24: - | AR24: 0.8 | AS24: - | AT24: 6450 | AU24: - | AV24: D/C | AW24: D/C | AX24: D/C | AY24: D/C | AZ24: 0 | BA24: D/C | BC24: =ROUND($DJ$10*ROUND($A$8*VLOOKUP($I$5,$G$8:$J$42,4,FALSE)*ROUND(VLOOKUP($Q$6,$O$9:$Q$9,3,FALSE)*BB24,4),2),2) ->  | BD24: Bronze | BE24: 5500 | BF24: - | BG24: 0.8 | BH24: - | BI24: 6450 | BJ24: - | BK24: D/C | BL24: D/C | BM24: D/C | BN24: D/C | BO24: D/C | BP24: 5500 | BQ24: - | BR24: 0.8 | BS24: - | BT24: 6450 | BU24: - | BV24: D/C | BW24: D/C | BX24: D/C | BY24: D/C | BZ24: D/C | CA24: 5500 | CB24: - | CC24: 0.8 | CD24: - | CE24: 6450 | CF24: - | CG24: D/C | CH24: D/C | CI24: D/C | CJ24: D/C | CK24: D/C | CR24: DOB | CS24: =IF(#REF!="","",#REF!) ->  | CT24: =IF(#REF!="","",#REF!) ->  | CU24: =IF(ISERROR(VALUE(#REF!)),0,IF(VALUE(#REF!)>3,3,#REF!)) -> 0 | CV24: =IF(#REF!="","",#REF!) ->  | CW24: =IF(#REF!="","",#REF!) ->  | CX24: =IF(#REF!="","",#REF!) ->  | CY24: =IF(#REF!="","",#REF!) ->  | CZ24: =IF(#REF!="","",#REF!) ->  | DA24: =IF(#REF!="","",#REF!) ->  | DL24: =ROUND($DJ$14*ROUND($A$8*VLOOKUP($I$5,$G$8:$J$42,4,FALSE)*ROUND(VLOOKUP($Q$6,$O$9:$Q$9,3,FALSE)*BB24,4),2),2) -> 
C25: 31 | D25: 1.159 | E25: 1 | G25: 18 | H25: Pierce | I25: 3 | J25: 0.974 | L25: ="" ->  | M25: ="" ->  | T25: 26 | V25: HMO SE Catastrophic 7150 | W25: 84670WI1250144 | Y25: Aspirus Arise Bronze HMO 6000 HSA | Z25: 84670WI1250080 | AA25: 0 | AB25: Arise Metro Bronze HMO 6000 HSA | AC25: 84670WI1250090 | AD25: 0 | AE25: Arise Metro Bronze HMO 6000 HSA | AF25: 84670WI1250090 | AG25: 5454 | AH25: Arise Metro Bronze HMO 6000 HSA | AI25: 84670WI1250090 | AK25: Arise Metro Bronze HMO 6000 HSA | AL25: 84670WI1250090 | AN25: HMO | AO25: Bronze | AP25: 6000 | AQ25: - | AR25: 1 | AS25: - | AT25: 6000 | AU25: - | AV25: D/C | AW25: D/C | AX25: D/C | AY25: D/C | AZ25: 0 | BA25: D/C | BD25: Bronze | BE25: 6000 | BF25: - | BG25: 1 | BH25: - | BI25: 6000 | BJ25: - | BK25: D/C | BL25: D/C | BM25: D/C | BN25: D/C | BO25: D/C | BP25: 6000 | BQ25: - | BR25: 1 | BS25: - | BT25: 6000 | BU25: - | BV25: D/C | BW25: D/C | BX25: D/C | BY25: D/C | BZ25: D/C | CA25: 6000 | CB25: - | CC25: 1 | CD25: - | CE25: 6000 | CF25: - | CG25: D/C | CH25: D/C | CI25: D/C | CJ25: D/C | CK25: D/C | CR25: Age | CS25: =IF(MONTH($CS$21)<MONTH(CS24),YEAR($CS$21)-YEAR(CS24)-1,IF(MONTH($CS$21)>MONTH(CS24),YEAR($CS$21)-YEAR(CS24),IF(DAY($CS$21)<DAY(CS24),YEAR($CS$21)-YEAR(CS24)-1,YEAR($CS$21)-YEAR(CS24)))) ->  | CT25: =IF(MONTH($CS$21)<MONTH(CT24),YEAR($CS$21)-YEAR(CT24)-1,IF(MONTH($CS$21)>MONTH(CT24),YEAR($CS$21)-YEAR(CT24),IF(DAY($CS$21)<DAY(CT24),YEAR($CS$21)-YEAR(CT24)-1,YEAR($CS$21)-YEAR(CT24)))) ->  | CU25: N/A | CV25: =IF(MONTH($CS$21)<MONTH(CV24),YEAR($CS$21)-YEAR(CV24)-1,IF(MONTH($CS$21)>MONTH(CV24),YEAR($CS$21)-YEAR(CV24),IF(DAY($CS$21)<DAY(CV24),YEAR($CS$21)-YEAR(CV24)-1,YEAR($CS$21)-YEAR(CV24)))) -> 
C26: 32 | D26: 1.183 | E26: 1 | G26: 19 | H26: Polk | I26: 3 | J26: 0.974 | L26: ="" ->  | M26: ="" ->  | T26: 24 | V26: HMO SE HDHP Bronze 5500 | W26: 84670WI1250145 | Y26: Aspirus Arise Bronze HMO 3500 HSA | Z26: 84670WI1250082 | AA26: 0 | AB26: Arise Metro Bronze HMO 3500 HSA | AC26: 84670WI1250092 | AD26: 0 | AE26: Arise Metro Bronze HMO 3500 HSA | AF26: 84670WI1250092 | AG26: 3181.5 | AH26: Arise Metro Bronze HMO 3500 HSA | AI26: 84670WI1250092 | AK26: Arise Metro Bronze HMO 3500 HSA | AL26: 84670WI1250092 | AN26: HMO HDHP | AO26: Bronze | AP26: 3500 | AQ26: - | AR26: 0.7 | AS26: - | AT26: 6450 | AU26: - | AV26: D/C | AW26: D/C | AX26: D/C | AY26: D/C | AZ26: 0 | BA26: D/C | BD26: Bronze | BE26: 3500 | BF26: - | BG26: 0.7 | BH26: - | BI26: 6450 | BJ26: - | BK26: D/C | BL26: D/C | BM26: D/C | BN26: D/C | BO26: D/C | BP26: 3500 | BQ26: - | BR26: 0.7 | BS26: - | BT26: 6450 | BU26: - | BV26: D/C | BW26: D/C | BX26: D/C | BY26: D/C | BZ26: D/C | CA26: 3500 | CB26: - | CC26: 0.7 | CD26: - | CE26: 6450 | CF26: - | CG26: D/C | CH26: D/C | CI26: D/C | CJ26: D/C | CK26: D/C | CR26: Tobacco | CS26: 2 | CT26: 1 | CU26: N/A | CV26: 1 | CW26: 1 | CX26: 1 | CY26: 1 | CZ26: 1 | DA26: 1
C27: 33 | D27: 1.198 | E27: 1 | G27: 20 | H27: Rusk | I27: 8 | J27: 0.893 | L27: ="" ->  | M27: ="" ->  | T27: 23 | W27: 84670WI1270143 | Y27: Aspirus Arise Silver HMO 3500 HSA | Z27: 84670WI1250074 | AA27: 0 | AB27: Arise Metro Silver HMO 3500 HSA | AC27: 84670WI1250084 | AD27: 0 | AE27: Arise Metro Silver HMO 3500 HSA | AF27: 84670WI1250084 | AG27: 454.5 | AH27: Arise Metro Silver HMO 3500 HSA | AI27: 84670WI1250084 | AK27: Arise Metro Silver HMO 3500 HSA | AL27: 84670WI1250084 | AN27: POS | AO27: Silver | AP27: 3500 | AQ27: - | AR27: 1 | AS27: - | AT27: 3500 | AU27: - | AV27: D/C | AW27: D/C | AX27: D/C | AY27: D/C | AZ27: 0 | BA27: D/C | BD27: Silver | BE27: 500 | BF27: - | BG27: 1 | BH27: - | BI27: 500 | BJ27: - | BK27: D/C | BL27: D/C | BM27: D/C | BN27: D/C | BO27: D/C | BP27: 1000 | BQ27: - | BR27: 1 | BS27: - | BT27: 1000 | BU27: - | BV27: D/C | BW27: D/C | BX27: D/C | BY27: D/C | BZ27: D/C | CA27: 2800 | CB27: - | CC27: 1 | CD27: - | CE27: 2800 | CF27: - | CG27: D/C | CH27: D/C | CI27: D/C | CJ27: D/C | CK27: D/C | CS27: =IF(CS24="",0,VLOOKUP(CS25,$C$8:$E$53,2)*IF(CS26=3,VLOOKUP(CS25,$C$8:$E$53,3),1)) ->  | CU27: =CU24*D8 -> 0 | DJ27: =SUM(CS27:DA27) -> 
C28: 34 | D28: 1.214 | E28: 1 | G28: 21 | H28: Saint Croix | I28: 3 | J28: 0.974 | T28: 22 | W28: 84670WI1270145 | Y28: Aspirus Arise Silver HMO 3000-90 HSA | Z28: 84670WI1250076 | AA28: 0 | AB28: Arise Metro Silver HMO 3000-90 HSA | AC28: 84670WI1250086 | AD28: 0 | AE28: Arise Metro Silver HMO 3000-90 HSA | AF28: 84670WI1250086 | AG28: 454.5 | AH28: Arise Metro Silver HMO 3000-90 HSA | AI28: 84670WI1250086 | AK28: Arise Metro Silver HMO 3000-90 HSA | AL28: 84670WI1250086 | AN28: POS HDHP | AO28: Silver | AP28: 3000 | AQ28: - | AR28: 0.9 | AS28: - | AT28: 4000 | AU28: - | AV28: D/C | AW28: D/C | AX28: D/C | AY28: D/C | AZ28: 0 | BA28: D/C | BD28: Silver | BE28: 500 | BF28: - | BG28: 1 | BH28: - | BI28: 500 | BJ28: - | BK28: D/C | BL28: D/C | BM28: D/C | BN28: D/C | BO28: D/C | BP28: 1000 | BQ28: - | BR28: 1 | BS28: - | BT28: 1000 | BU28: - | BV28: D/C | BW28: D/C | BX28: D/C | BY28: D/C | BZ28: D/C | CA28: 2800 | CB28: - | CC28: 1 | CD28: - | CE28: 2800 | CF28: - | CG28: D/C | CH28: D/C | CI28: D/C | CJ28: D/C | CK28: D/C
C29: 35 | D29: 1.222 | E29: 1.1 | G29: 22 | H29: Sawyer | I29: 5 | J29: 0.746 | P29: Tobacco | T29: 20 | U29: 0.684 | V29: Arise Silver HMO 2500 HSA | W29: 84670WI1250032 | X29: =ROUND(BB29*0.959,4) -> 0.6437 | Y29: Aspirus Arise Silver HMO 2500 HSA | Z29: 84670WI1250077 | AA29: 0.6101 | AB29: Arise Metro Silver HMO 2500 HSA | AC29: 84670WI1250087 | AD29: 0.6101 | AE29: Arise Metro Silver HMO 2500 HSA | AF29: 84670WI1250087 | AG29: 454.5 | AH29: Arise Metro Silver HMO 2500 HSA | AI29: 84670WI1250087 | AK29: Arise Metro Silver HMO 2500 HSA | AL29: 84670WI1250087 | AN29: HMO | AO29: Silver | AP29: 2500 | AQ29: - | AR29: 0.8 | AS29: - | AT29: 4500 | AU29: - | AV29: D/C | AW29: D/C | AX29: D/C | AY29: D/C | AZ29: 0 | BA29: D/C | BB29: 0.6712 | BD29: Silver | BE29: 500 | BF29: - | BG29: 1 | BH29: - | BI29: 500 | BJ29: - | BK29: D/C | BL29: D/C | BM29: D/C | BN29: D/C | BO29: D/C | BP29: 1000 | BQ29: - | BR29: 1 | BS29: - | BT29: 1000 | BU29: - | BV29: D/C | BW29: D/C | BX29: D/C | BY29: D/C | BZ29: D/C | CA29: 2000 | CB29: - | CC29: 0.8 | CD29: - | CE29: 3000 | CF29: - | CG29: D/C | CH29: D/C | CI29: D/C | CJ29: D/C | CK29: D/C | CS29: =IF(CS24="",0,VLOOKUP(CS25,$C$8:$E$53,2)) ->  | CT29: =IF(CT24="",0,VLOOKUP(CT25,$C$8:$E$53,2)) ->  | CU29: =CU24*D8 -> 0 | CV29: =IF(CV24="",0,VLOOKUP(CV25,$C$8:$E$53,2)) ->  | DJ29: =SUM(CS29:DA29) -> 
C30: 36 | D30: 1.23 | E30: 1.105 | G30: 23 | H30: Trempealeau | I30: 6 | J30: 1.029 | L30: ="" ->  | M30: ="" ->  | O30: 1 | P30: Select | T30: 18 | U30: 0.687 | V30: Arise Silver HMO 1400 HSA | W30: 84670WI1250033 | X30: 0.6588 | Y30: Aspirus Arise Silver HMO 1400 HSA | Z30: 84670WI1250078 | AA30: 0.6245 | AB30: Arise Metro Silver HMO 1400 HSA | AC30: 84670WI1250088 | AD30: 0.6245 | AE30: Arise Metro Silver HMO 1400 HSA | AF30: 84670WI1250088 | AG30: 454.5 | AH30: Arise Metro Silver HMO 1400 HSA | AI30: 84670WI1250088 | AK30: Arise Metro Silver HMO 1400 HSA | AL30: 84670WI1250088 | AN30: HMO | AO30: Silver | AP30: 1400 | AQ30: - | AR30: 0.7 | AS30: - | AT30: 6450 | AU30: - | AV30: D/C | AW30: D/C | AX30: D/C | AY30: D/C | AZ30: 0 | BA30: D/C | BB30: 0.687 | BD30: Silver | BE30: 500 | BF30: - | BG30: 1 | BH30: - | BI30: 500 | BJ30: - | BK30: D/C | BL30: D/C | BM30: D/C | BN30: D/C | BO30: D/C | BP30: 1000 | BQ30: - | BR30: 1 | BS30: - | BT30: 1000 | BU30: - | BV30: D/C | BW30: D/C | BX30: D/C | BY30: D/C | BZ30: D/C | CA30: 1400 | CB30: - | CC30: 0.8 | CD30: - | CE30: 4500 | CF30: - | CG30: D/C | CH30: D/C | CI30: D/C | CJ30: D/C | CK30: D/C
C31: 37 | D31: 1.238 | E31: 1.11 | G31: 24 | H31: Washburn | I31: 5 | J31: 0.746 | L31: ="" ->  | M31: ="" ->  | O31: 2 | P31: No | T31: 21 | U31: 0.717 | V31: Arise Silver HMO 3000-100 HSA | W31: 84670WI1250030 | X31: 0.6796 | Y31: Aspirus Arise Silver HMO 3000-100 HSA | Z31: 84670WI1250075 | AA31: 0.6442 | AB31: Arise Metro Silver HMO 3000-100 HSA | AC31: 84670WI1250085 | AD31: 0.6442 | AE31: Arise Metro Silver HMO 3000-100 HSA | AF31: 84670WI1250085 | AG31: 454.5 | AH31: Arise Metro Silver HMO 3000-100 HSA | AI31: 84670WI1250085 | AK31: Arise Metro Silver HMO 3000-100 HSA | AL31: 84670WI1250085 | AN31: HMO | AO31: Silver | AP31: 3000 | AQ31: - | AR31: 1 | AS31: - | AT31: 3000 | AU31: - | AV31: D/C | AW31: D/C | AX31: D/C | AY31: D/C | AZ31: 0 | BA31: D/C | BB31: 0.7087 | BD31: Silver | BE31: 500 | BF31: - | BG31: 1 | BH31: - | BI31: 500 | BJ31: - | BK31: D/C | BL31: D/C | BM31: D/C | BN31: D/C | BO31: D/C | BP31: 1000 | BQ31: - | BR31: 1 | BS31: - | BT31: 1000 | BU31: - | BV31: D/C | BW31: D/C | BX31: D/C | BY31: D/C | BZ31: D/C | CA31: 2650 | CB31: - | CC31: 1 | CD31: - | CE31: 2650 | CF31: - | CG31: D/C | CH31: D/C | CI31: D/C | CJ31: D/C | CK31: D/C
C32: 38 | D32: 1.246 | E32: 1.115 | G32: 23 | H32: Sheboygan | I32: 11 | J32: 0.907 | K32: About Health | L32: ="" ->  | M32: ="" ->  | O32: 3 | P32: Yes | T32: 19 | U32: 0.714 | V32: Arise Silver HMO 2000 HSA | W32: 84670WI1250042 | X32: 0.6868 | Y32: Aspirus Arise Silver HMO 2000 HSA | Z32: 84670WI1250079 | AA32: 0.651 | AB32: Arise Metro Silver HMO 2000 HSA | AC32: 84670WI1250089 | AD32: 0.651 | AE32: Arise Metro Silver HMO 2000 HSA | AF32: 84670WI1250089 | AG32: 454.5 | AH32: Arise Metro Silver HMO 2000 HSA | AI32: 84670WI1250089 | AK32: Arise Metro Silver HMO 2000 HSA | AL32: 84670WI1250089 | AN32: HMO | AO32: Silver | AP32: 2000 | AQ32: - | AR32: 0.8 | AS32: - | AT32: 4000 | AU32: - | AV32: D/C | AW32: D/C | AX32: D/C | AY32: D/C | AZ32: 0 | BA32: D/C | BB32: 0.7162 | BD32: Silver | BE32: 500 | BF32: - | BG32: 1 | BH32: - | BI32: 500 | BJ32: - | BK32: D/C | BL32: D/C | BM32: D/C | BN32: D/C | BO32: D/C | BP32: 1000 | BQ32: - | BR32: 1 | BS32: - | BT32: 1000 | BU32: - | BV32: D/C | BW32: D/C | BX32: D/C | BY32: D/C | BZ32: D/C | CA32: 2000 | CB32: - | CC32: 0.8 | CD32: - | CE32: 3000 | CF32: - | CG32: D/C | CH32: D/C | CI32: D/C | CJ32: D/C | CK32: D/C
C33: 39 | D33: 1.262 | E33: 1.12 | G33: 24 | H33: Walworth | I33: 14 | J33: 0.958 | K33: About Health | L33: ="" ->  | M33: ="" ->  | T33: 17 | U33: 0.788 | V33: Arise Gold HMO 2000 HSA | W33: 84670WI1250028 | X33: 0.7946 | Y33: Aspirus Arise Gold HMO 2000 HSA | Z33: 84670WI1250073 | AA33: 0.7532 | AB33: Arise Metro Gold HMO 2000 HSA | AC33: 84670WI1250083 | AD33: 0.7532 | AE33: Arise Metro Gold HMO 2000 HSA | AF33: 84670WI1250083 | AG33: 1818 | AH33: Arise Metro Gold HMO 2000 HSA | AI33: 84670WI1250083 | AK33: Arise Metro Gold HMO 2000 HSA | AL33: 84670WI1250083 | AN33: HMO | AO33: Gold | AP33: 2000 | AQ33: - | AR33: 1 | AS33: - | AT33: 2000 | AU33: - | AV33: D/C | AW33: D/C | AX33: D/C | AY33: D/C | AZ33: 0 | BA33: D/C | BB33: 0.8286 | BD33: Gold | BE33: 2000 | BF33: - | BG33: 1 | BH33: - | BI33: 2000 | BJ33: - | BK33: D/C | BL33: D/C | BM33: D/C | BN33: D/C | BO33: D/C | BP33: 2000 | BQ33: - | BR33: 1 | BS33: - | BT33: 2000 | BU33: - | BV33: D/C | BW33: D/C | BX33: D/C | BY33: D/C | BZ33: D/C | CA33: 2000 | CB33: - | CC33: 1 | CD33: - | CE33: 2000 | CF33: - | CG33: D/C | CH33: D/C | CI33: D/C | CJ33: D/C | CK33: D/C
C34: 40 | D34: 1.278 | E34: 1.125 | G34: 25 | H34: Washington | I34: 12 | J34: 0.98 | K34: About Health | L34: ="" ->  | M34: ="" ->  | P34: PPO | Q34: 1 | T34: 32 | U34: 0.613 | V34: Arise Bronze POS 5000 | W34: 84670WI1270026 | X34: =BB34 -> 0.585 | Y34: Aspirus Arise Bronze POS 5000 | Z34: 84670WI1270068 | AA34: =BB34 -> 0.585 | AB34: Arise Metro Bronze POS 5000 | AC34: 84670WI1270071 | AD34: =BB34 -> 0.585 | AE34: Arise Metro Bronze POS 5000 | AF34: 84670WI1270071 | AG34: =BE34 -> 5000 | AH34: Arise Metro Bronze POS 5000 | AI34: 84670WI1270071 | AJ34: =BH34 -> 0.6 | AK34: Arise Metro Bronze POS 5000 | AL34: 84670WI1270071 | AM34: =BK34 -> D/C | AN34: POS | AO34: Bronze | AP34: 5000 | AQ34: 10000 | AR34: 0.8 | AS34: 0.6 | AT34: 6600 | AU34: 18000 | AV34: D/C | AW34: D/C | AX34: D/C | AY34: D/C | AZ34: 3 | BA34: D/C | BB34: 0.585 | BC34: =ROUND($DJ$10*ROUND($A$8*VLOOKUP($I$5,$G$8:$J$42,4,FALSE)*ROUND(VLOOKUP($Q$6,$O$9:$R$9,4,FALSE)*BB34,4),2),2) ->  | BD34: Bronze | BE34: 5000 | BF34: 10000 | BG34: 0.8 | BH34: 0.6 | BI34: 6600 | BJ34: 18000 | BK34: D/C | BL34: D/C | BM34: D/C | BN34: D/C | BO34: D/C | BP34: 5000 | BQ34: 10000 | BR34: 0.8 | BS34: 0.6 | BT34: 6600 | BU34: 18000 | BV34: D/C | BW34: D/C | BX34: D/C | BY34: D/C | BZ34: D/C | CA34: 5000 | CB34: 10000 | CC34: 0.8 | CD34: 0.6 | CE34: 6600 | CF34: 18000 | CG34: D/C | CH34: D/C | CI34: D/C | CJ34: D/C | CK34: D/C | CQ34: -10 | CR34: Under 30 | CS34: 22.67 | DL34: =ROUND($DJ$14*ROUND($A$8*VLOOKUP($I$5,$G$8:$J$42,4,FALSE)*ROUND(VLOOKUP($Q$6,$O$9:$R$9,4,FALSE)*BB34,4),2),2) -> 
C35: 41 | D35: 1.302 | E35: 1.13 | G35: 26 | H35: Waukesha | I35: 12 | J35: 0.98 | K35: About Health | L35: ="" ->  | M35: ="" ->  | P35: HDHP | Q35: 1 | T35: 30 | U35: 0.68 | V35: Arise Silver POS 4000 | W35: 84670WI1270015 | X35: 0.6409 | Y35: Aspirus Arise Silver POS 4000 | Z35: 84670WI1270048 | AA35: 0.6409 | AB35: Arise Metro Silver POS 4000 | AC35: 84670WI1270054 | AD35: 0.6409 | AE35: Arise Metro Silver POS 4000 | AF35: 84670WI1270054 | AG35: 250 | AH35: Arise Metro Silver POS 4000 | AI35: 84670WI1270054 | AJ35: 0.5 | AK35: Arise Metro Silver POS 4000 | AL35: 84670WI1270054 | AM35: 10 | AN35: POS | AO35: Silver | AP35: 4000 | AQ35: 8000 | AR35: 0.7 | AS35: 0.5 | AT35: 6600 | AU35: 18000 | AV35: 10 | AW35: 30 | AX35: 60 | AY35: 200 | AZ35: 0 | BA35: $20/$50/$75/25% to $500 | BB35: 0.6409 | BD35: Silver | BE35: 250 | BF35: 8000 | BG35: 1 | BH35: 0.5 | BI35: 500 | BJ35: 18000 | BK35: 10 | BL35: 20 | BM35: 40 | BN35: 100 | BO35: $10/$35/$60/25% to $500 | BP35: 500 | BQ35: 8000 | BR35: 1 | BS35: 0.5 | BT35: 1500 | BU35: 18000 | BV35: 10 | BW35: 25 | BX35: 50 | BY35: 150 | BZ35: $15/$40/$65/25% to $500 | CA35: 1500 | CB35: 8000 | CC35: 1 | CD35: 0.5 | CE35: 5000 | CF35: 18000 | CG35: 10 | CH35: 30 | CI35: 60 | CJ35: 200 | CK35: $20/$50/$75/25% to $500 | CQ35: 30 | CR35: 30 - 34 | CS35: 26.48
C36: 42 | D36: 1.325 | E36: 1.135 | G36: 27 | H36: Portage | I36: 10 | J36: 0.832 | K36: Aspirus Arise | L36: ="" ->  | M36: ="" ->  | P36: Under 21 | T36: 31 | U36: 0.7 | V36: Arise Silver POS 2500 | W36: 84670WI1270022 | X36: 0.6952 | Y36: Aspirus Arise Silver POS 2500 | Z36: 84670WI1270060 | AA36: 0.6952 | AB36: Arise Metro Silver POS 2500 | AC36: 84670WI1270066 | AD36: 0.6952 | AE36: Arise Metro Silver POS 2500 | AF36: 84670WI1270066 | AG36: 250 | AH36: Arise Metro Silver POS 2500 | AI36: 84670WI1270066 | AJ36: 0.5 | AK36: Arise Metro Silver POS 2500 | AL36: 84670WI1270066 | AM36: D/C | AN36: POS | AO36: Silver | AP36: 2500 | AQ36: 5000 | AR36: 0.7 | AS36: 0.5 | AT36: 5000 | AU36: 15000 | AV36: D/C | AW36: D/C | AX36: D/C | AY36: D/C | AZ36: 3 | BA36: $20/$50/$75/25% to $500 | BB36: 0.6952 | BD36: Silver | BE36: 250 | BF36: 5000 | BG36: 1 | BH36: 0.5 | BI36: 500 | BJ36: 15000 | BK36: D/C | BL36: D/C | BM36: D/C | BN36: D/C | BO36: $10/$35/$60/25% to $500 | BP36: 500 | BQ36: 5000 | BR36: 1 | BS36: 0.5 | BT36: 1500 | BU36: 15000 | BV36: D/C | BW36: D/C | BX36: D/C | BY36: D/C | BZ36: $15/$40/$65/25% to $500 | CA36: 1500 | CB36: 5000 | CC36: 1 | CD36: 0.5 | CE36: 5000 | CF36: 15000 | CG36: D/C | CH36: D/C | CI36: D/C | CJ36: D/C | CK36: $20/$50/$75/25% to $500 | CQ36: 35 | CR36: 35 - 39 | CS36: 28.03
C37: 43 | D37: 1.357 | E37: 1.14 | G37: 28 | H37: Price | I37: 8 | J37: 0.871 | K37: Aspirus Arise | L37: ="" ->  | M37: ="" ->  | O37: 1 | P37: Select | Q37: 0 | T37: 29 | U37: 0.711 | V37: Arise Silver POS 2000 | W37: 84670WI1270014 | X37: 0.7147 | Y37: Aspirus Arise Silver POS 2000 | Z37: 84670WI1270047 | AA37: 0.7147 | AB37: Arise Metro Silver POS 2000 | AC37: 84670WI1270053 | AD37: 0.7147 | AE37: Arise Metro Silver POS 2000 | AF37: 84670WI1270053 | AG37: 250 | AH37: Arise Metro Silver POS 2000 | AI37: 84670WI1270053 | AJ37: 0.6 | AK37: Arise Metro Silver POS 2000 | AL37: 84670WI1270053 | AM37: 10 | AN37: POS | AO37: Silver | AP37: 2000 | AQ37: 4000 | AR37: 0.8 | AS37: 0.6 | AT37: 6600 | AU37: 12000 | AV37: 10 | AW37: 30 | AX37: 60 | AY37: 200 | AZ37: 0 | BA37: $20/$50/$75/25% to $500 | BB37: 0.7147 | BD37: Silver | BE37: 250 | BF37: 4000 | BG37: 1 | BH37: 0.6 | BI37: 500 | BJ37: 12000 | BK37: 10 | BL37: 20 | BM37: 40 | BN37: 100 | BO37: $10/$35/$60/25% to $500 | BP37: 500 | BQ37: 4000 | BR37: 1 | BS37: 0.6 | BT37: 1500 | BU37: 12000 | BV37: 10 | BW37: 25 | BX37: 50 | BY37: 150 | BZ37: $15/$40/$65/25% to $500 | CA37: 1500 | CB37: 4000 | CC37: 1 | CD37: 0.6 | CE37: 6600 | CF37: 12000 | CG37: 10 | CH37: 30 | CI37: 60 | CJ37: 200 | CK37: $20/$50/$75/25% to $500 | CQ37: 40 | CR37: 40 - 44 | CS37: 30.23
C38: 44 | D38: 1.397 | E38: 1.145 | G38: 29 | H38: Racine | I38: 9 | J38: 1.069 | K38: Aurora | L38: ="" ->  | M38: ="" ->  | O38: 2 | P38: 0 | Q38: 0 | T38: 28 | U38: 0.817 | V38: Arise Gold POS 1000 | W38: 84670WI1270007 | X38: 0.9008 | Y38: Aspirus Arise Gold POS 1000 | Z38: 84670WI1270045 | AA38: 0.9008 | AB38: Arise Metro Gold POS 1000 | AC38: 84670WI1270051 | AD38: 0.9008 | AE38: Arise Metro Gold POS 1000 | AF38: 84670WI1270051 | AG38: 1000 | AH38: Arise Metro Gold POS 1000 | AI38: 84670WI1270051 | AJ38: 0.6 | AK38: Arise Metro Gold POS 1000 | AL38: 84670WI1270051 | AM38: 10 | AN38: POS | AO38: Gold | AP38: 1000 | AQ38: 2000 | AR38: 0.8 | AS38: 0.6 | AT38: 2500 | AU38: 10000 | AV38: 10 | AW38: 25 | AX38: 50 | AY38: 150 | AZ38: 0 | BA38: $15/$40/$65/25% to $500 | BB38: 0.9008 | BD38: Gold | BE38: 1000 | BF38: 2000 | BG38: 0.8 | BH38: 0.6 | BI38: 2500 | BJ38: 10000 | BK38: 10 | BL38: 25 | BM38: 50 | BN38: 150 | BO38: $15/$40/$65/25% to $500 | BP38: 1000 | BQ38: 2000 | BR38: 0.8 | BS38: 0.6 | BT38: 2500 | BU38: 10000 | BV38: 10 | BW38: 25 | BX38: 50 | BY38: 150 | BZ38: $15/$40/$65/25% to $500 | CA38: 1000 | CB38: 2000 | CC38: 0.8 | CD38: 0.6 | CE38: 2500 | CF38: 10000 | CG38: 10 | CH38: 25 | CI38: 50 | CJ38: 150 | CK38: $15/$40/$65/25% to $500 | CQ38: 45 | CR38: 45 - 49 | CS38: 33.31
C39: 45 | D39: 1.444 | E39: 1.15 | G39: 30 | H39: Shawano | I39: 16 | J39: 0.918 | K39: ThedaCare | L39: ="" ->  | M39: ="" ->  | O39: 3 | P39: 1 | Q39: 1 | T39: 27 | U39: 0.889 | V39: Arise Platinum POS 250 | W39: 84670WI1270001 | X39: 1.2448 | Y39: Aspirus Arise Platinum POS 250 | Z39: 84670WI1270043 | AA39: 1.2448 | AB39: Arise Metro Platinum POS 250 | AC39: 84670WI1270049 | AD39: 1.2448 | AE39: Arise Metro Platinum POS 250 | AF39: 84670WI1270049 | AG39: 250 | AH39: Arise Metro Platinum POS 250 | AI39: 84670WI1270049 | AJ39: 0.8 | AK39: Arise Metro Platinum POS 250 | AL39: 84670WI1270049 | AM39: 10 | AN39: POS | AO39: Platinum | AP39: 250 | AQ39: 500 | AR39: 1 | AS39: 0.8 | AT39: 1250 | AU39: 4500 | AV39: 10 | AW39: 20 | AX39: 40 | AY39: 150 | AZ39: 0 | BA39: $10/$35/$60/25% to $500 | BB39: 1.2448 | BD39: Platinum | BE39: 250 | BF39: 500 | BG39: 1 | BH39: 0.8 | BI39: 1250 | BJ39: 4500 | BK39: 10 | BL39: 20 | BM39: 40 | BN39: 150 | BO39: $10/$35/$60/25% to $500 | BP39: 250 | BQ39: 500 | BR39: 1 | BS39: 0.8 | BT39: 1250 | BU39: 4500 | BV39: 10 | BW39: 20 | BX39: 40 | BY39: 150 | BZ39: $10/$35/$60/25% to $500 | CA39: 250 | CB39: 500 | CC39: 1 | CD39: 0.8 | CE39: 1250 | CF39: 4500 | CG39: 10 | CH39: 20 | CI39: 40 | CJ39: 150 | CK39: $10/$35/$60/25% to $500 | CQ39: 50 | CR39: 50 - 54 | CS39: 35.6
C40: 46 | D40: 1.5 | E40: 1.155 | G40: 31 | H40: Sheboygan | I40: 11 | J40: 0.885 | K40: Aurora | L40: ="" ->  | M40: ="" ->  | O40: 4 | P40: 2 | Q40: 2 | T40: 33 | U40: 0.492 | V40: Arise Catastrophic POS 6600 | W40: 84670WI1270039 | X40: 0.4504 | Y40: Aspirus Arise Catastrophic POS 6600 | Z40: 84670WI1270093 | AA40: 0.4504 | AB40: Arise Metro Catastrophic POS 6600 | AC40: 84670WI1270094 | AD40: 0.4504 | AE40: Arise Metro Catastrophic POS 6600 | AF40: 84670WI1270094 | AG40: 6600 | AH40: Arise Metro Catastrophic POS 6600 | AI40: 84670WI1270094 | AJ40: 0.8 | AK40: Arise Metro Catastrophic POS 6600 | AL40: 84670WI1270094 | AM40: D/C | AN40: POS | AO40: Catastrophic | AP40: 6600 | AQ40: 13200 | AR40: 1 | AS40: 0.8 | AT40: 6600 | AU40: 17200 | AV40: D/C | AW40: D/C | AX40: D/C | AY40: D/C | AZ40: 3 | BA40: D/C | BB40: 0.4504 | BD40: Catastrophic | BE40: 6600 | BF40: 13200 | BG40: 1 | BH40: 0.8 | BI40: 6600 | BJ40: 17200 | BK40: D/C | BL40: D/C | BM40: D/C | BN40: D/C | BO40: D/C | BP40: 6600 | BQ40: 13200 | BR40: 1 | BS40: 0.8 | BT40: 6600 | BU40: 17200 | BV40: D/C | BW40: D/C | BX40: D/C | BY40: D/C | BZ40: D/C | CA40: 6600 | CB40: 13200 | CC40: 1 | CD40: 0.8 | CE40: 6600 | CF40: 17200 | CG40: D/C | CH40: D/C | CI40: D/C | CJ40: D/C | CK40: D/C | CQ40: 55 | CR40: 55 - 59 | CS40: 37.77
C41: 47 | D41: 1.563 | E41: 1.16 | G41: 32 | H41: Taylor | I41: 8 | J41: 0.871 | K41: Aspirus Arise | O41: 5 | P41: 3 + | Q41: 3 | T41: 37 | U41: 0.583 | V41: Arise Bronze POS 5500 HSA | W41: 84670WI1270036 | X41: =BB41 -> 0.5309 | Y41: Aspirus Arise Bronze POS 5500 HSA | Z41: 84670WI1270081 | AA41: =BB41 -> 0.5309 | AB41: Arise Metro Bronze POS 5500 HSA | AC41: 84670WI1270091 | AD41: =BB41 -> 0.5309 | AE41: Arise Metro Bronze POS 5500 HSA | AF41: 84670WI1270091 | AG41: =BE41 -> 5500 | AH41: Arise Metro Bronze POS 5500 HSA | AI41: 84670WI1270091 | AJ41: =BH41 -> 0.6 | AK41: Arise Metro Bronze POS 5500 HSA | AL41: 84670WI1270091 | AM41: =BK41 -> D/C | AN41: POS | AO41: Bronze | AP41: 5500 | AQ41: 11000 | AR41: 0.8 | AS41: 0.6 | AT41: 6450 | AU41: 19000 | AV41: D/C | AW41: D/C | AX41: D/C | AY41: D/C | AZ41: 0 | BA41: D/C | BB41: 0.5309 | BD41: Bronze | BE41: 5500 | BF41: 11000 | BG41: 0.8 | BH41: 0.6 | BI41: 6450 | BJ41: 19000 | BK41: D/C | BL41: D/C | BM41: D/C | BN41: D/C | BO41: D/C | BP41: 5500 | BQ41: 11000 | BR41: 0.8 | BS41: 0.6 | BT41: 6450 | BU41: 19000 | BV41: D/C | BW41: D/C | BX41: D/C | BY41: D/C | BZ41: D/C | CA41: 5500 | CB41: 11000 | CC41: 0.8 | CD41: 0.6 | CE41: 6450 | CF41: 19000 | CG41: D/C | CH41: D/C | CI41: D/C | CJ41: D/C | CK41: D/C | CQ41: 60 | CR41: 60 - 64 | CS41: 37.77
C42: 48 | D42: 1.635 | E42: 1.165 | G42: 33 | H42: Vilas | I42: 13 | J42: 0.857 | K42: Aspirus Arise | T42: 36 | U42: 0.684 | V42: Arise Silver POS 2500 HSA | W42: 84670WI1270032 | X42: =BB42 -> 0.6712 | Y42: Aspirus Arise Silver POS 2500 HSA | Z42: 84670WI1270077 | AA42: =BB42 -> 0.6712 | AB42: Arise Metro Silver POS 2500 HSA | AC42: 84670WI1270087 | AD42: =BB42 -> 0.6712 | AE42: Arise Metro Silver POS 2500 HSA | AF42: 84670WI1270087 | AG42: =BE42 -> 500 | AH42: Arise Metro Silver POS 2500 HSA | AI42: 84670WI1270087 | AJ42: =BH42 -> 0.6 | AK42: Arise Metro Silver POS 2500 HSA | AL42: 84670WI1270087 | AM42: =BK42 -> D/C | AN42: POS | AO42: Silver | AP42: 2500 | AQ42: 5000 | AR42: 0.8 | AS42: 0.6 | AT42: 4500 | AU42: 13000 | AV42: D/C | AW42: D/C | AX42: D/C | AY42: D/C | AZ42: 0 | BA42: D/C | BB42: 0.6712 | BD42: Silver | BE42: 500 | BF42: 5000 | BG42: 1 | BH42: 0.6 | BI42: 500 | BJ42: 13000 | BK42: D/C | BL42: D/C | BM42: D/C | BN42: D/C | BO42: D/C | BP42: 1000 | BQ42: 5000 | BR42: 1 | BS42: 0.6 | BT42: 1000 | BU42: 13000 | BV42: D/C | BW42: D/C | BX42: D/C | BY42: D/C | BZ42: D/C | CA42: 2000 | CB42: 5000 | CC42: 0.8 | CD42: 0.6 | CE42: 3000 | CF42: 13000 | CG42: D/C | CH42: D/C | CI42: D/C | CJ42: D/C | CK42: D/C | CQ42: 65 | CR42: 65+ | CS42: 43.2
C43: 49 | D43: 1.706 | E43: 1.17 | G43: 34 | H43: Walworth | I43: 14 | J43: 0.958 | K43: Aurora | P43: PPO | Q43: 1 | T43: 35 | U43: 0.687 | V43: Arise Silver POS 1400 HSA | W43: 84670WI1270033 | X43: =BB43 -> 0.687 | Y43: Aspirus Arise Silver POS 1400 HSA | Z43: 84670WI1270078 | AA43: =BB43 -> 0.687 | AB43: Arise Metro Silver POS 1400 HSA | AC43: 84670WI1270088 | AD43: =BB43 -> 0.687 | AE43: Arise Metro Silver POS 1400 HSA | AF43: 84670WI1270088 | AG43: =BE43 -> 500 | AH43: Arise Metro Silver POS 1400 HSA | AI43: 84670WI1270088 | AJ43: =BH43 -> 0.5 | AK43: Arise Metro Silver POS 1400 HSA | AL43: 84670WI1270088 | AM43: =BK43 -> D/C | AN43: POS | AO43: Silver | AP43: 1400 | AQ43: 2800 | AR43: 0.7 | AS43: 0.5 | AT43: 6450 | AU43: 12800 | AV43: D/C | AW43: D/C | AX43: D/C | AY43: D/C | AZ43: 0 | BA43: D/C | BB43: 0.687 | BD43: Silver | BE43: 500 | BF43: 2800 | BG43: 1 | BH43: 0.5 | BI43: 500 | BJ43: 12800 | BK43: D/C | BL43: D/C | BM43: D/C | BN43: D/C | BO43: D/C | BP43: 1000 | BQ43: 2800 | BR43: 1 | BS43: 0.5 | BT43: 1000 | BU43: 12800 | BV43: D/C | BW43: D/C | BX43: D/C | BY43: D/C | BZ43: D/C | CA43: 1400 | CB43: 2800 | CC43: 0.8 | CD43: 0.5 | CE43: 4500 | CF43: 12800 | CG43: D/C | CH43: D/C | CI43: D/C | CJ43: D/C | CK43: D/C
C44: 50 | D44: 1.786 | E44: 1.175 | G44: 35 | H44: Washington | I44: 12 | J44: 0.98 | K44: Aurora | P44: HDHP | Q44: 2 | T44: 34 | U44: 0.788 | V44: Arise Gold POS 2000 HSA | W44: 84670WI1270028 | X44: =BB44 -> 0.8286 | Y44: Aspirus Arise Gold POS 2000 HSA | Z44: 84670WI1270073 | AA44: =BB44 -> 0.8286 | AB44: Arise Metro Gold POS 2000 HSA | AC44: 84670WI1270083 | AD44: =BB44 -> 0.8286 | AE44: Arise Metro Gold POS 2000 HSA | AF44: 84670WI1270083 | AG44: =BE44 -> 2000 | AH44: Arise Metro Gold POS 2000 HSA | AI44: 84670WI1270083 | AJ44: =BH44 -> 0.8 | AK44: Arise Metro Gold POS 2000 HSA | AL44: 84670WI1270083 | AM44: =BK44 -> D/C | AN44: POS | AO44: Gold | AP44: 2000 | AQ44: 4000 | AR44: 1 | AS44: 0.8 | AT44: 2000 | AU44: 8000 | AV44: D/C | AW44: D/C | AX44: D/C | AY44: D/C | AZ44: 0 | BA44: D/C | BB44: 0.8286 | BD44: Gold | BE44: 2000 | BF44: 4000 | BG44: 1 | BH44: 0.8 | BI44: 2000 | BJ44: 8000 | BK44: D/C | BL44: D/C | BM44: D/C | BN44: D/C | BO44: D/C | BP44: 2000 | BQ44: 4000 | BR44: 1 | BS44: 0.8 | BT44: 2000 | BU44: 8000 | BV44: D/C | BW44: D/C | BX44: D/C | BY44: D/C | BZ44: D/C | CA44: 2000 | CB44: 4000 | CC44: 1 | CD44: 0.8 | CE44: 2000 | CF44: 8000 | CG44: D/C | CH44: D/C | CI44: D/C | CJ44: D/C | CK44: D/C | CQ44: 0 | CR44: 0 | CS44: 0
C45: 51 | D45: 1.865 | E45: 1.18 | G45: 36 | H45: Waukesha | I45: 12 | J45: 0.98 | K45: ProHealth and Aurora | P45: Product | AN45: POS | AO45: Gold | AP45: PCP | AR45: 500 | AT45: 1000 | AZ45: 0.6 | BA45: 3500 | BB45: 0.9048 | BC45: =$DJ$8*ROUND($A$8*VLOOKUP($I$5,$G$8:$J$36,4,FALSE)*ROUND(VLOOKUP($Q$6,$O$8:$Q$8,3,FALSE)*BB45,4),2) ->  | CQ45: 1 | CR45: 1 | CS45: 22.82 | DL45: =$DJ$12*ROUND($A$8*VLOOKUP($I$5,$G$8:$J$36,4,FALSE)*ROUND(VLOOKUP($Q$6,$O$8:$Q$8,3,FALSE)*BB45,4),2) -> 
C46: 52 | D46: 1.952 | E46: 1.185 | G46: 37 | H46: Waupaca | I46: 11 | J46: 0.885 | K46: ThedaCare | O46: 1 | P46: Select | AN46: POS | AO46: Silver | AP46: Copay | AR46: 4500 | AT46: 9000 | AZ46: 0.8 | BA46: 6350 | BB46: 0.7327 | CQ46: 2 | CR46: 2 | CS46: 45.64
C47: 53 | D47: 2.04 | E47: 1.19 | G47: 38 | H47: Waushara | I47: 11 | J47: 0.885 | K47: Aurora and ThedaCare | O47: 2 | P47: HMO | AN47: POS | AO47: Silver | AP47: Copay | AR47: 3000 | AT47: 6000 | AZ47: 0.7 | BA47: 6350 | BB47: 0.6684 | CQ47: 3 | CR47: 3+ | CS47: 78.58
C48: 54 | D48: 2.135 | E48: 1.195 | G48: 39 | H48: Winnebago | I48: 11 | J48: 0.885 | K48: Aurora and ThedaCare | O48: 3 | P48: POS | AN48: POS | AO48: Silver | AP48: Copay | AR48: 2500 | AT48: 5000 | AZ48: 0.6 | BA48: 5000 | BB48: 0.6949
C49: 55 | D49: 2.23 | E49: 1.2 | G49: 40 | H49: Wood | I49: 10 | J49: 0.832 | K49: Aspirus Arise | AN49: POS | AO49: Silver | AP49: Copay | AR49: 2000 | AT49: 4000 | AZ49: 0.6 | BA49: 6350 | BB49: 0.6607
C50: 56 | D50: 2.333 | E50: 1.205 | AN50: POS | AO50: Silver | AP50: Copay | AR50: 4500 | AT50: 9000 | AZ50: 0.5 | BA50: 6350 | BB50: 0.6242
C51: 57 | D51: 2.437 | E51: 1.21 | AN51: POS | AO51: Silver | AP51: Copay | AR51: 3000 | AT51: 6000 | AZ51: 0.5 | BA51: 6350 | BB51: 0.6279
C52: 58 | D52: 2.548 | E52: 1.215 | AN52: POS | AO52: Silver | AP52: PCP | AR52: 4000 | AT52: 8000 | AZ52: 0.8 | BA52: 5000 | BB52: 0.7101
C53: 59 | D53: 2.603 | E53: 1.22 | AN53: POS | AO53: Silver | AP53: PCP | AR53: 3000 | AT53: 6000 | AZ53: 0.7 | BA53: 6350 | BB53: 0.6457
C54: 60 | D54: 2.714 | E54: 1.226 | AN54: POS | AO54: Silver | AP54: PCP | AR54: 2000 | AT54: 4000 | AZ54: 0.6 | BA54: 6350 | BB54: 0.6402
C55: 61 | D55: 2.81 | E55: 1.232 | AN55: POS | AO55: Silver | AP55: PCP | AR55: 2000 | AT55: 4000 | AZ55: 0.6 | BA55: 5000 | BB55: 0.6877
C56: 62 | D56: 2.873 | E56: 1.238 | AN56: POS | AO56: Silver | AP56: PCP | AR56: 1500 | AT56: 3000 | AZ56: 0.5 | BA56: 6350 | BB56: 0.6721
C57: 63 | D57: 2.952 | E57: 1.244 | AN57: POS | AO57: Silver | AP57: PCP | AR57: 2500 | AT57: 5000 | AZ57: 0.5 | BA57: 5000 | BB57: 0.6533
C58: 64 | D58: 3 | E58: 1.25 | AN58: POS | AO58: Silver | AP58: D/C | AR58: 0 | AT58: 1000 | AZ58: 0.5 | BA58: 6350 | BB58: 0.8335
AN59: POS | AO59: Bronze | AP59: PCP | AR59: 6350 | AT59: 12700 | AZ59: 0.8 | BA59: 6350 | BB59: 0.5954
AN60: POS | AO60: Bronze | AP60: PCP | AR60: 5500 | AT60: 11000 | AZ60: 0.7 | BA60: 6350 | BB60: 0.5788
AN61: POS | AO61: Bronze | AP61: PCP | AR61: 5000 | AT61: 10000 | AZ61: 0.6 | BA61: 6350 | BB61: 0.5618
AN62: POS | AO62: Bronze | AP62: PCP | AR62: 4500 | AT62: 9000 | AZ62: 0.5 | BA62: 6350 | BB62: 0.5673
AN63: POS | AO63: Catastrophic | AP63: PCP | AR63: 6350 | AT63: 12700 | AZ63: 0.8 | BA63: 6350 | BB63: 0.4941
AN64: HMO | AO64: Gold | AP64: D/C | AR64: 2000 | AT64: - | AZ64: - | BA64: 2000 | BB64: 0.7792
AN65: HMO | AO65: Silver | AP65: D/C | AR65: 3500 | AT65: - | AZ65: - | BA65: 3500 | BB65: 0.6663
AN66: HMO | AO66: Silver | AP66: D/C | AR66: 3000 | AT66: - | AZ66: - | BA66: 3000 | BB66: 0.6941
AN67: HMO | AO67: Silver | AP67: D/C | AR67: 3000 | AT67: - | AZ67: - | BA67: 4000 | BB67: 0.6402
AN68: HMO | AO68: Silver | AP68: D/C | AR68: 2500 | AT68: - | AZ68: - | BA68: 4500 | BB68: 0.6202
AN69: HMO | AO69: Silver | AP69: D/C | AR69: 1500 | AT69: - | AZ69: - | BA69: 6350 | BB69: 0.6128
AN70: HMO | AO70: Bronze | AP70: D/C | AR70: 6000 | AT70: - | AZ70: - | BA70: 6000 | BB70: 0.5519
AN71: HMO | AO71: Bronze | AP71: D/C | AR71: 4500 | AT71: - | AZ71: - | BA71: 6350 | BB71: 0.5493
AN72: HMO | AO72: Bronze | AP72: D/C | AR72: 5500 | AT72: - | AZ72: - | BA72: 6350 | BB72: 0.5103
AN73: HMO | AO73: Bronze | AP73: D/C | AR73: 3500 | AT73: - | AZ73: - | BA73: 6350 | BB73: 0.5283
AN74: POS | AO74: Gold | AP74: D/C | AR74: 2000 | AT74: 2000 | AZ74: 0.8 | BA74: 2000 | BB74: 0.8229
AN75: POS | AO75: Silver | AP75: D/C | AR75: 3500 | AT75: 3500 | AZ75: 0.8 | BA75: 3500 | BB75: 0.7036
AN76: POS | AO76: Silver | AP76: D/C | AR76: 3000 | AT76: 3000 | AZ76: 0.8 | BA76: 3000 | BB76: 0.7325
AN77: POS | AO77: Silver | AP77: D/C | AR77: 3000 | AT77: 3000 | AZ77: 0.7 | BA77: 4000 | BB77: 0.6757
AN78: POS | AO78: Silver | AP78: D/C | AR78: 2500 | AT78: 2500 | AZ78: 0.6 | BA78: 4500 | BB78: 0.6545
AN79: POS | AO79: Silver | AP79: D/C | AR79: 1500 | AT79: 1500 | AZ79: 0.5 | BA79: 6350 | BB79: 0.6476
AN80: POS | AO80: Bronze | AP80: D/C | AR80: 6000 | AT80: 6000 | AZ80: 0.8 | BA80: 6000 | BB80: 0.5829
AN81: POS | AO81: Bronze | AP81: D/C | AR81: 4500 | AT81: 4500 | AZ81: 0.7 | BA81: 6350 | BB81: 0.5803
AN82: POS | AO82: Bronze | AP82: D/C | AR82: 5500 | AT82: 5500 | AZ82: 0.6 | BA82: 6350 | BB82: 0.5381
AN83: POS | AO83: Bronze | AP83: D/C | AR83: 3500 | AT83: 3500 | AZ83: 0.5 | BA83: 6350 | BB83: 0.5574
V89: WPS PPO Bronze 4700 | W89: 81974WI1880048 | Y89: ThedaCare HMO 6000 | Z89: 84670WI1250101 | AA89: 0.4921 | AB89: Aurora HMO 6000 | AC89: 84670WI1250107 | AD89: 0.4921 | AE89: Aurora and ThedaCare HMO 6000 | AF89: 84670WI1250117 | AG89: 5681.25 | AH89: Aurora and Bellin HMO 6000 | AI89: 84670WI1250127 | AK89: ProHealth and Aurora HMO 6000 | AL89: 84670WI1250137 | AN89: PPO | AO89: Bronze | AP89: 4700 | AQ89: 9400 | AR89: 0.2 | AS89: 0.5 | AT89: 7900 | AU89: 19400 | AV89: D/C | AW89: 3 Free | AX89: D/C | AY89: D/C | AZ89: 3 | BA89: $0 preventive, D/C all others | BB89: 0.5414
V90: WPS PPO Bronze 7900 | W90: 81974WI1880030 | Y90: ThedaCare HMO 6850 | Z90: 84670WI1250102 | AA90: 0.4656 | AB90: Aurora HMO 6850 | AC90: 84670WI1250108 | AD90: 0.4656 | AE90: Aurora and ThedaCare HMO 6850 | AF90: 84670WI1250118 | AG90: 6499.35 | AH90: Aurora and Bellin HMO 6850 | AI90: 84670WI1250128 | AK90: ProHealth and Aurora HMO 6850 | AL90: 84670WI1250138 | AN90: PPO | AO90: Bronze | AP90: 7900 | AQ90: 15800 | AR90: 0 | AS90: 0.3 | AT90: 7900 | AU90: 21800 | AV90: D/C | AW90: D/C | AX90: D/C | AY90: D/C | AZ90: 0 | BA90: $0 preventive, D/C all others | BB90: 0.5122
V91: WPS PPO Catastrophic 7900 | W91: 81974WI1880044 | Y91: ThedaCare HMO 6850 Catastrophic | Z91: 84670WI1250039 | AA91: 0.4011 | AB91: Aurora HMO 6850 Catastrophic | AC91: 84670WI1250094 | AD91: 0.4011 | AE91: Aurora and ThedaCare HMO 6850 Catastrophic | AF91: 84670WI1250111 | AG91: 6499.35 | AH91: Aurora and Bellin HMO 6850 Catastrophic | AI91: 84670WI1250121 | AK91: ProHealth and Aurora HMO 6850 Catastrophic | AL91: 84670WI1250131 | AN91: PPO | AO91: Catastrophic | AP91: 7900 | AQ91: 15800 | AR91: 0 | AS91: 0.3 | AT91: 7900 | AU91: 21800 | AV91: D/C | AW91: 3 Free | AX91: D/C | AY91: D/C | AZ91: 3 | BA91: $0 preventive, D/C all others | BB91: 0.4413
V92: WPS PPO HDHP Bronze 5500 | W92: 81974WI1880042 | Y92: ThedaCare HMO 5500 HDHP | Z92: 84670WI1250036 | AA92: 0.4772 | AB92: Aurora HMO 5500 HDHP | AC92: 84670WI1250091 | AD92: 0.4772 | AE92: Aurora and ThedaCare HMO 5500 HDHP | AF92: 84670WI1250112 | AG92: 4999.5 | AH92: Aurora and Bellin HMO 5500 HDHP | AI92: 84670WI1250122 | AK92: ProHealth and Aurora HMO 5500 HDHP | AL92: 84670WI1250132 | AN92: PPO HDHP | AO92: Bronze | AP92: 5500 | AQ92: 11000 | AR92: 0.3 | AS92: 0.5 | AT92: 6750 | AU92: 21000 | AV92: D/C | AW92: D/C | AX92: D/C | AY92: D/C | AZ92: 0 | BA92: $0 preventive, D/C all others | BB92: 0.525
V93: WPS PPO HDHP Bronze 6750 | W93: 81974WI1880049 | Y93: ThedaCare HMO 6450 HDHP | Z93: 84670WI1250034 | AA93: 0.4785 | AB93: Aurora HMO 6450 HDHP | AC93: 84670WI1250090 | AD93: 0.4785 | AE93: Aurora and ThedaCare HMO 6450 HDHP | AF93: 84670WI1250113 | AG93: 5953.95 | AH93: Aurora and Bellin HMO 6450 HDHP | AI93: 84670WI1250123 | AK93: ProHealth and Aurora HMO 6450 HDHP | AL93: 84670WI1250133 | AN93: PPO HDHP | AO93: Bronze | AP93: 6750 | AQ93: 13500 | AR93: 0 | AS93: 0.3 | AT93: 6750 | AU93: 19500 | AV93: D/C | AW93: D/C | AX93: D/C | AY93: D/C | AZ93: 0 | BA93: $0 preventive, D/C all others | BB93: 0.5264

Sheet WPS Health Plan Quote
O1: Quote Date: | P1: =TODAY() -> 2021-10-26
O2: Valid Through: | P2: 2022-12-31
R5: =IF('WPS Health Plan Quote'!L15="Off Exchange",HYPERLINK('WPS Health Plan Tables'!O2,"Enroll Now"),IF('WPS Health Plan Quote'!L15="On Exchange",HYPERLINK('WPS Health Plan Tables'!O1,"Enroll Now"),"")) -> 
B9: 2022 Individual ACA Plan Quote
C13: Applicant Name: | G13: Effective Date: | K13: County:
C15: Spouse: | G15: # of Dependents: | K15: Exchange:
C17: =IF('WPS Health Plan Tables'!J22=2,"Household Size: ","") ->  | G17: =IF('WPS Health Plan Tables'!J22=2,"Household Income: ","") ->  | K17: =IF('WPS Health Plan Tables'!J22=2,"Premium Tax Credit: ","") ->  | L17: ='WPS Health Plan Subsidy Calcs'!C54 -> 0
C21: Date of Birth | E21: Tobacco Status | G21: =IF(H15>0,"Date of Birth","") ->  | I21: =IF(H15>2,"Date of Birth","") ->  | L21: =IF(H15>4,"Date of Birth","") ->  | N21: =IF(H15>6,"Date of Birth","") -> 
B23: Applicant: | F23: =IF('WPS Health Plan Quote'!H15>0,"Dependent 1: ","") ->  | H23: =IF('WPS Health Plan Quote'!H15>2,"Dependent 3: ","") ->  | K23: =IF('WPS Health Plan Quote'!H15>4,"Dependent 5: ","") ->  | M23: =IF('WPS Health Plan Quote'!H15>6,"Dependent 7: ","") -> 
B25: =IF('WPS Health Plan Tables'!G5=3,"Spouse: ","") ->  | F25: =IF('WPS Health Plan Quote'!H15>1,"Dependent 2: ","") ->  | H25: =IF('WPS Health Plan Quote'!H15>3,"Dependent 4: ","") ->  | K25: =IF('WPS Health Plan Quote'!H15>5,"Dependent 6: ","") ->  | M25: =IF('WPS Health Plan Quote'!H15>7,"Dependent 8: ","") -> 
B27: Medical Plan Name | F27: Individual | H27: Individual Out-of-Pocket Limit (In Only)1 | I27: In Network Plan Copays | M27: Prescription Drug Copays | P27: Monthly Rate
B28: Select Network | E28: Metal | F28: Deductible | G28: Coins. | I28: Telehealth/ | J28: PCP | K28: Spec. | L28: Emerg. | M28: Preventive/Pref Gen/Non-Pref Gen/
B29: (select plan name for SBC) | F29: (In Only)1 | G29: (In Only) | I29: Retail | L29: Room | M29: Pref Brand/Non-Pref Brand/Specialty
B30: =IF(L15="On Exchange",HYPERLINK('WPS Health Plan Tables'!O5,'WPS Health Plan Tables'!N5),HYPERLINK('WPS Health Plan Tables'!O4,'WPS Health Plan Tables'!N4)) -> WPS HMO Bronze $6,500 with 3 Free PCP Visits | E30: ='WPS Health Plan Rating Factors'!AO8 -> Bronze | F30: =IF(AND('WPS Health Plan Subsidy Calcs'!$D$4>1,'WPS Health Plan Subsidy Calcs'!$D$4<=1.5),"$"&'WPS Health Plan Rating Factors'!BE8,IF(AND('WPS Health Plan Subsidy Calcs'!$D$4>1.5,'WPS Health Plan Subsidy Calcs'!$D$4<=2),"$"&'WPS Health Plan Rating Factors'!BP8,IF(AND('WPS Health Plan Subsidy Calcs'!$D$4>2,'WPS Health Plan Subsidy Calcs'!$D$4<=2.5),"$"&'WPS Health Plan Rating Factors'!CA8,"$"&'WPS Health Plan Rating Factors'!AP8))) -> $6500 | G30: =IF(AND('WPS Health Plan Subsidy Calcs'!$D$4>1,'WPS Health Plan Subsidy Calcs'!$D$4<=1.5),100*'WPS Health Plan Rating Factors'!BG8&"%",IF(AND('WPS Health Plan Subsidy Calcs'!$D$4>1.5,'WPS Health Plan Subsidy Calcs'!$D$4<=2),100*'WPS Health Plan Rating Factors'!BR8&"%",IF(AND('WPS Health Plan Subsidy Calcs'!$D$4>2,'WPS Health Plan Subsidy Calcs'!$D$4<=2.5),100*'WPS Health Plan Rating Factors'!CC8&"%",100*'WPS Health Plan Rating Factors'!AR8&"%"))) -> 20% | H30: =IF(AND('WPS Health Plan Subsidy Calcs'!$D$4>1,'WPS Health Plan Subsidy Calcs'!$D$4<=1.5),"$"&'WPS Health Plan Rating Factors'!BI8,IF(AND('WPS Health Plan Subsidy Calcs'!$D$4>1.5,'WPS Health Plan Subsidy Calcs'!$D$4<=2),"$"&'WPS Health Plan Rating Factors'!BT8,IF(AND('WPS Health Plan Subsidy Calcs'!$D$4>2,'WPS Health Plan Subsidy Calcs'!$D$4<=2.5),"$"&'WPS Health Plan Rating Factors'!CE8,"$"&'WPS Health Plan Rating Factors'!AT8))) -> $8700 | I30: =IF(AND('WPS Health Plan Subsidy Calcs'!$D$4>1,'WPS Health Plan Subsidy Calcs'!$D$4<=1.5),'WPS Health Plan Rating Factors'!BK8,IF(AND('WPS Health Plan Subsidy Calcs'!$D$4>1.5,'WPS Health Plan Subsidy Calcs'!$D$4<=2),'WPS Health Plan Rating Factors'!BV8,IF(AND('WPS Health Plan Subsidy Calcs'!$D$4>2,'WPS Health Plan Subsidy Calcs'!$D$4<=2.5),'WPS Health Plan Rating Factors'!CG8,'WPS Health Plan Rating Factors'!AV8))) -> D/C | J30: =IF(AND('WPS Health Plan Subsidy Calcs'!$D$4>1,'WPS Health Plan Subsidy Calcs'!$D$4<=1.5),'WPS Health Plan Rating Factors'!BL8,IF(AND('WPS Health Plan Subsidy Calcs'!$D$4>1.5,'WPS Health Plan Subsidy Calcs'!$D$4<=2),'WPS Health Plan Rating Factors'!BW8,IF(AND('WPS Health Plan Subsidy Calcs'!$D$4>2,'WPS Health Plan Subsidy Calcs'!$D$4<=2.5),'WPS Health Plan Rating Factors'!CH8,'WPS Health Plan Rating Factors'!AW8))) -> 3 Free | K30: =IF(AND('WPS Health Plan Subsidy Calcs'!$D$4>1,'WPS Health Plan Subsidy Calcs'!$D$4<=1.5),'WPS Health Plan Rating Factors'!BM8,IF(AND('WPS Health Plan Subsidy Calcs'!$D$4>1.5,'WPS Health Plan Subsidy Calcs'!$D$4<=2),'WPS Health Plan Rating Factors'!BX8,IF(AND('WPS Health Plan Subsidy Calcs'!$D$4>2,'WPS Health Plan Subsidy Calcs'!$D$4<=2.5),'WPS Health Plan Rating Factors'!CI8,'WPS Health Plan Rating Factors'!AX8))) -> D/C | L30: =IF(AND('WPS Health Plan Subsidy Calcs'!$D$4>1,'WPS Health Plan Subsidy Calcs'!$D$4<=1.5),'WPS Health Plan Rating Factors'!BN8,IF(AND('WPS Health Plan Subsidy Calcs'!$D$4>1.5,'WPS Health Plan Subsidy Calcs'!$D$4<=2),'WPS Health Plan Rating Factors'!BY8,IF(AND('WPS Health Plan Subsidy Calcs'!$D$4>2,'WPS Health Plan Subsidy Calcs'!$D$4<=2.5),'WPS Health Plan Rating Factors'!CJ8,'WPS Health Plan Rating Factors'!AY8))) -> D/C | M30: =IF(AND('WPS Health Plan Subsidy Calcs'!$D$4>1,'WPS Health Plan Subsidy Calcs'!$D$4<=1.5),'WPS Health Plan Rating Factors'!BO8,IF(AND('WPS Health Plan Subsidy Calcs'!$D$4>1.5,'WPS Health Plan Subsidy Calcs'!$D$4<=2),'WPS Health Plan Rating Factors'!BZ8,IF(AND('WPS Health Plan Subsidy Calcs'!$D$4>2,'WPS Health Plan Subsidy Calcs'!$D$4<=2.5),'WPS Health Plan Rating Factors'!CK8,'WPS Health Plan Rating Factors'!BA8))) -> $0 preventive, D/C all others | P30: =IF('WPS Health Plan Rating Factors'!BC8-'WPS Health Plan Quote'!$L$17<0,0,'WPS Health Plan Rating Factors'!BC8-'WPS Health Plan Quote'!$L$17) -> 
B32: =IF(L15="On Exchange",HYPERLINK('WPS Health Plan Tables'!O9,'WPS Health Plan Tables'!N9),HYPERLINK('WPS Health Plan Tables'!O8,'WPS Health Plan Tables'!N8)) -> WPS HMO Bronze $7,500 | E32: ='WPS Health Plan Rating Factors'!AO9 -> Bronze | F32: =IF(AND('WPS Health Plan Subsidy Calcs'!$D$4>1,'WPS Health Plan Subsidy Calcs'!$D$4<=1.5),"$"&'WPS Health Plan Rating Factors'!BE9,IF(AND('WPS Health Plan Subsidy Calcs'!$D$4>1.5,'WPS Health Plan Subsidy Calcs'!$D$4<=2),"$"&'WPS Health Plan Rating Factors'!BP9,IF(AND('WPS Health Plan Subsidy Calcs'!$D$4>2,'WPS Health Plan Subsidy Calcs'!$D$4<=2.5),"$"&'WPS Health Plan Rating Factors'!CA9,"$"&'WPS Health Plan Rating Factors'!AP9))) -> $7500 | G32: =IF(AND('WPS Health Plan Subsidy Calcs'!$D$4>1,'WPS Health Plan Subsidy Calcs'!$D$4<=1.5),100*'WPS Health Plan Rating Factors'!BG9&"%",IF(AND('WPS Health Plan Subsidy Calcs'!$D$4>1.5,'WPS Health Plan Subsidy Calcs'!$D$4<=2),100*'WPS Health Plan Rating Factors'!BR9&"%",IF(AND('WPS Health Plan Subsidy Calcs'!$D$4>2,'WPS Health Plan Subsidy Calcs'!$D$4<=2.5),100*'WPS Health Plan Rating Factors'!CC9&"%",100*'WPS Health Plan Rating Factors'!AR9&"%"))) -> 40% | H32: =IF(AND('WPS Health Plan Subsidy Calcs'!$D$4>1,'WPS Health Plan Subsidy Calcs'!$D$4<=1.5),"$"&'WPS Health Plan Rating Factors'!BI9,IF(AND('WPS Health Plan Subsidy Calcs'!$D$4>1.5,'WPS Health Plan Subsidy Calcs'!$D$4<=2),"$"&'WPS Health Plan Rating Factors'!BT9,IF(AND('WPS Health Plan Subsidy Calcs'!$D$4>2,'WPS Health Plan Subsidy Calcs'!$D$4<=2.5),"$"&'WPS Health Plan Rating Factors'!CE9,"$"&'WPS Health Plan Rating Factors'!AT9))) -> $8700 | I32: =IF(AND('WPS Health Plan Subsidy Calcs'!$D$4>1,'WPS Health Plan Subsidy Calcs'!$D$4<=1.5),'WPS Health Plan Rating Factors'!BK9,IF(AND('WPS Health Plan Subsidy Calcs'!$D$4>1.5,'WPS Health Plan Subsidy Calcs'!$D$4<=2),'WPS Health Plan Rating Factors'!BV9,IF(AND('WPS Health Plan Subsidy Calcs'!$D$4>2,'WPS Health Plan Subsidy Calcs'!$D$4<=2.5),'WPS Health Plan Rating Factors'!CG9,'WPS Health Plan Rating Factors'!AV9))) -> D/C | J32: =IF(AND('WPS Health Plan Subsidy Calcs'!$D$4>1,'WPS Health Plan Subsidy Calcs'!$D$4<=1.5),'WPS Health Plan Rating Factors'!BL9,IF(AND('WPS Health Plan Subsidy Calcs'!$D$4>1.5,'WPS Health Plan Subsidy Calcs'!$D$4<=2),'WPS Health Plan Rating Factors'!BW9,IF(AND('WPS Health Plan Subsidy Calcs'!$D$4>2,'WPS Health Plan Subsidy Calcs'!$D$4<=2.5),'WPS Health Plan Rating Factors'!CH9,'WPS Health Plan Rating Factors'!AW9))) -> D/C | K32: =IF(AND('WPS Health Plan Subsidy Calcs'!$D$4>1,'WPS Health Plan Subsidy Calcs'!$D$4<=1.5),'WPS Health Plan Rating Factors'!BM9,IF(AND('WPS Health Plan Subsidy Calcs'!$D$4>1.5,'WPS Health Plan Subsidy Calcs'!$D$4<=2),'WPS Health Plan Rating Factors'!BX9,IF(AND('WPS Health Plan Subsidy Calcs'!$D$4>2,'WPS Health Plan Subsidy Calcs'!$D$4<=2.5),'WPS Health Plan Rating Factors'!CI9,'WPS Health Plan Rating Factors'!AX9))) -> D/C | L32: =IF(AND('WPS Health Plan Subsidy Calcs'!$D$4>1,'WPS Health Plan Subsidy Calcs'!$D$4<=1.5),'WPS Health Plan Rating Factors'!BN9,IF(AND('WPS Health Plan Subsidy Calcs'!$D$4>1.5,'WPS Health Plan Subsidy Calcs'!$D$4<=2),'WPS Health Plan Rating Factors'!BY9,IF(AND('WPS Health Plan Subsidy Calcs'!$D$4>2,'WPS Health Plan Subsidy Calcs'!$D$4<=2.5),'WPS Health Plan Rating Factors'!CJ9,'WPS Health Plan Rating Factors'!AY9))) -> D/C | M32: =IF(AND('WPS Health Plan Subsidy Calcs'!$D$4>1,'WPS Health Plan Subsidy Calcs'!$D$4<=1.5),'WPS Health Plan Rating Factors'!BO9,IF(AND('WPS Health Plan Subsidy Calcs'!$D$4>1.5,'WPS Health Plan Subsidy Calcs'!$D$4<=2),'WPS Health Plan Rating Factors'!BZ9,IF(AND('WPS Health Plan Subsidy Calcs'!$D$4>2,'WPS Health Plan Subsidy Calcs'!$D$4<=2.5),'WPS Health Plan Rating Factors'!CK9,'WPS Health Plan Rating Factors'!BA9))) -> $0 / $15/ $30 / $125 / $250 / $750 Ded. 40% Coins. | P32: =IF('WPS Health Plan Rating Factors'!BC9-'WPS Health Plan Quote'!$L$17<0,0,'WPS Health Plan Rating Factors'!BC9-'WPS Health Plan Quote'!$L$17) -> 
B34: =IF(L15="On Exchange",HYPERLINK('WPS Health Plan Tables'!O13,'WPS Health Plan Tables'!N13),HYPERLINK('WPS Health Plan Tables'!O12,'WPS Health Plan Tables'!N12)) -> WPS HMO Bronze $8,700 | E34: ='WPS Health Plan Rating Factors'!AO10 -> Bronze | F34: =IF(AND('WPS Health Plan Subsidy Calcs'!$D$4>1,'WPS Health Plan Subsidy Calcs'!$D$4<=1.5),"$"&'WPS Health Plan Rating Factors'!BE10,IF(AND('WPS Health Plan Subsidy Calcs'!$D$4>1.5,'WPS Health Plan Subsidy Calcs'!$D$4<=2),"$"&'WPS Health Plan Rating Factors'!BP10,IF(AND('WPS Health Plan Subsidy Calcs'!$D$4>2,'WPS Health Plan Subsidy Calcs'!$D$4<=2.5),"$"&'WPS Health Plan Rating Factors'!CA10,"$"&'WPS Health Plan Rating Factors'!AP10))) -> $8700 | G34: =IF(AND('WPS Health Plan Subsidy Calcs'!$D$4>1,'WPS Health Plan Subsidy Calcs'!$D$4<=1.5),100*'WPS Health Plan Rating Factors'!BG10&"%",IF(AND('WPS Health Plan Subsidy Calcs'!$D$4>1.5,'WPS Health Plan Subsidy Calcs'!$D$4<=2),100*'WPS Health Plan Rating Factors'!BR10&"%",IF(AND('WPS Health Plan Subsidy Calcs'!$D$4>2,'WPS Health Plan Subsidy Calcs'!$D$4<=2.5),100*'WPS Health Plan Rating Factors'!CC10&"%",100*'WPS Health Plan Rating Factors'!AR10&"%"))) -> 0% | H34: =IF(AND('WPS Health Plan Subsidy Calcs'!$D$4>1,'WPS Health Plan Subsidy Calcs'!$D$4<=1.5),"$"&'WPS Health Plan Rating Factors'!BI10,IF(AND('WPS Health Plan Subsidy Calcs'!$D$4>1.5,'WPS Health Plan Subsidy Calcs'!$D$4<=2),"$"&'WPS Health Plan Rating Factors'!BT10,IF(AND('WPS Health Plan Subsidy Calcs'!$D$4>2,'WPS Health Plan Subsidy Calcs'!$D$4<=2.5),"$"&'WPS Health Plan Rating Factors'!CE10,"$"&'WPS Health Plan Rating Factors'!AT10))) -> $8700 | I34: =IF(AND('WPS Health Plan Subsidy Calcs'!$D$4>1,'WPS Health Plan Subsidy Calcs'!$D$4<=1.5),'WPS Health Plan Rating Factors'!BK10,IF(AND('WPS Health Plan Subsidy Calcs'!$D$4>1.5,'WPS Health Plan Subsidy Calcs'!$D$4<=2),'WPS Health Plan Rating Factors'!BV10,IF(AND('WPS Health Plan Subsidy Calcs'!$D$4>2,'WPS Health Plan Subsidy Calcs'!$D$4<=2.5),'WPS Health Plan Rating Factors'!CG10,'WPS Health Plan Rating Factors'!AV10))) -> D/C | J34: =IF(AND('WPS Health Plan Subsidy Calcs'!$D$4>1,'WPS Health Plan Subsidy Calcs'!$D$4<=1.5),'WPS Health Plan Rating Factors'!BL10,IF(AND('WPS Health Plan Subsidy Calcs'!$D$4>1.5,'WPS Health Plan Subsidy Calcs'!$D$4<=2),'WPS Health Plan Rating Factors'!BW10,IF(AND('WPS Health Plan Subsidy Calcs'!$D$4>2,'WPS Health Plan Subsidy Calcs'!$D$4<=2.5),'WPS Health Plan Rating Factors'!CH10,'WPS Health Plan Rating Factors'!AW10))) -> D/C | K34: =IF(AND('WPS Health Plan Subsidy Calcs'!$D$4>1,'WPS Health Plan Subsidy Calcs'!$D$4<=1.5),'WPS Health Plan Rating Factors'!BM10,IF(AND('WPS Health Plan Subsidy Calcs'!$D$4>1.5,'WPS Health Plan Subsidy Calcs'!$D$4<=2),'WPS Health Plan Rating Factors'!BX10,IF(AND('WPS Health Plan Subsidy Calcs'!$D$4>2,'WPS Health Plan Subsidy Calcs'!$D$4<=2.5),'WPS Health Plan Rating Factors'!CI10,'WPS Health Plan Rating Factors'!AX10))) -> D/C | L34: =IF(AND('WPS Health Plan Subsidy Calcs'!$D$4>1,'WPS Health Plan Subsidy Calcs'!$D$4<=1.5),'WPS Health Plan Rating Factors'!BN10,IF(AND('WPS Health Plan Subsidy Calcs'!$D$4>1.5,'WPS Health Plan Subsidy Calcs'!$D$4<=2),'WPS Health Plan Rating Factors'!BY10,IF(AND('WPS Health Plan Subsidy Calcs'!$D$4>2,'WPS Health Plan Subsidy Calcs'!$D$4<=2.5),'WPS Health Plan Rating Factors'!CJ10,'WPS Health Plan Rating Factors'!AY10))) -> D/C | M34: =IF(AND('WPS Health Plan Subsidy Calcs'!$D$4>1,'WPS Health Plan Subsidy Calcs'!$D$4<=1.5),'WPS Health Plan Rating Factors'!BO10,IF(AND('WPS Health Plan Subsidy Calcs'!$D$4>1.5,'WPS Health Plan Subsidy Calcs'!$D$4<=2),'WPS Health Plan Rating Factors'!BZ10,IF(AND('WPS Health Plan Subsidy Calcs'!$D$4>2,'WPS Health Plan Subsidy Calcs'!$D$4<=2.5),'WPS Health Plan Rating Factors'!CK10,'WPS Health Plan Rating Factors'!BA10))) -> $0 preventive, D/C all others | P34: =IF('WPS Health Plan Rating Factors'!BC10-'WPS Health Plan Quote'!$L$17<0,0,'WPS Health Plan Rating Factors'!BC10-'WPS Health Plan Quote'!$L$17) -> 
B36: =IF(L15="On Exchange",IF(AND('WPS Health Plan Subsidy Calcs'!$D$4>1,'WPS Health Plan Subsidy Calcs'!$D$4<=1.5),HYPERLINK('WPS Health Plan Tables'!O22,'WPS Health Plan Tables'!N22),IF(AND('WPS Health Plan Subsidy Calcs'!$D$4>1.5,'WPS Health Plan Subsidy Calcs'!$D$4<=2),HYPERLINK('WPS Health Plan Tables'!O21,'WPS Health Plan Tables'!N21),IF(AND('WPS Health Plan Subsidy Calcs'!$D$4>2,'WPS Health Plan Subsidy Calcs'!$D$4<=2.5),HYPERLINK('WPS Health Plan Tables'!O20,'WPS Health Plan Tables'!N20),HYPERLINK('WPS Health Plan Tables'!O17,'WPS Health Plan Tables'!N17)))),HYPERLINK('WPS Health Plan Tables'!O16,'WPS Health Plan Tables'!N16)) -> WPS HMO Silver $4,500 | E36: ='WPS Health Plan Rating Factors'!AO11 -> Silver | F36: =IF(AND('WPS Health Plan Subsidy Calcs'!$D$4>1,'WPS Health Plan Subsidy Calcs'!$D$4<=1.5),"$"&'WPS Health Plan Rating Factors'!BE11,IF(AND('WPS Health Plan Subsidy Calcs'!$D$4>1.5,'WPS Health Plan Subsidy Calcs'!$D$4<=2),"$"&'WPS Health Plan Rating Factors'!BP11,IF(AND('WPS Health Plan Subsidy Calcs'!$D$4>2,'WPS Health Plan Subsidy Calcs'!$D$4<=2.5),"$"&'WPS Health Plan Rating Factors'!CA11,"$"&'WPS Health Plan Rating Factors'!AP11))) -> $4500 | G36: =IF(AND('WPS Health Plan Subsidy Calcs'!$D$4>1,'WPS Health Plan Subsidy Calcs'!$D$4<=1.5),100*'WPS Health Plan Rating Factors'!BG11&"%",IF(AND('WPS Health Plan Subsidy Calcs'!$D$4>1.5,'WPS Health Plan Subsidy Calcs'!$D$4<=2),100*'WPS Health Plan Rating Factors'!BR11&"%",IF(AND('WPS Health Plan Subsidy Calcs'!$D$4>2,'WPS Health Plan Subsidy Calcs'!$D$4<=2.5),100*'WPS Health Plan Rating Factors'!CC11&"%",100*'WPS Health Plan Rating Factors'!AR11&"%"))) -> 30% | H36: =IF(AND('WPS Health Plan Subsidy Calcs'!$D$4>1,'WPS Health Plan Subsidy Calcs'!$D$4<=1.5),"$"&'WPS Health Plan Rating Factors'!BI11,IF(AND('WPS Health Plan Subsidy Calcs'!$D$4>1.5,'WPS Health Plan Subsidy Calcs'!$D$4<=2),"$"&'WPS Health Plan Rating Factors'!BT11,IF(AND('WPS Health Plan Subsidy Calcs'!$D$4>2,'WPS Health Plan Subsidy Calcs'!$D$4<=2.5),"$"&'WPS Health Plan Rating Factors'!CE11,"$"&'WPS Health Plan Rating Factors'!AT11))) -> $8700 | I36: =IF(AND('WPS Health Plan Subsidy Calcs'!$D$4>1,'WPS Health Plan Subsidy Calcs'!$D$4<=1.5),'WPS Health Plan Rating Factors'!BK11,IF(AND('WPS Health Plan Subsidy Calcs'!$D$4>1.5,'WPS Health Plan Subsidy Calcs'!$D$4<=2),'WPS Health Plan Rating Factors'!BV11,IF(AND('WPS Health Plan Subsidy Calcs'!$D$4>2,'WPS Health Plan Subsidy Calcs'!$D$4<=2.5),'WPS Health Plan Rating Factors'!CG11,'WPS Health Plan Rating Factors'!AV11))) -> $0/$10 | J36: =IF(AND('WPS Health Plan Subsidy Calcs'!$D$4>1,'WPS Health Plan Subsidy Calcs'!$D$4<=1.5),'WPS Health Plan Rating Factors'!BL11,IF(AND('WPS Health Plan Subsidy Calcs'!$D$4>1.5,'WPS Health Plan Subsidy Calcs'!$D$4<=2),'WPS Health Plan Rating Factors'!BW11,IF(AND('WPS Health Plan Subsidy Calcs'!$D$4>2,'WPS Health Plan Subsidy Calcs'!$D$4<=2.5),'WPS Health Plan Rating Factors'!CH11,'WPS Health Plan Rating Factors'!AW11))) -> 45 | K36: =IF(AND('WPS Health Plan Subsidy Calcs'!$D$4>1,'WPS Health Plan Subsidy Calcs'!$D$4<=1.5),'WPS Health Plan Rating Factors'!BM11,IF(AND('WPS Health Plan Subsidy Calcs'!$D$4>1.5,'WPS Health Plan Subsidy Calcs'!$D$4<=2),'WPS Health Plan Rating Factors'!BX11,IF(AND('WPS Health Plan Subsidy Calcs'!$D$4>2,'WPS Health Plan Subsidy Calcs'!$D$4<=2.5),'WPS Health Plan Rating Factors'!CI11,'WPS Health Plan Rating Factors'!AX11))) -> 90 | L36: =IF(AND('WPS Health Plan Subsidy Calcs'!$D$4>1,'WPS Health Plan Subsidy Calcs'!$D$4<=1.5),'WPS Health Plan Rating Factors'!BN11,IF(AND('WPS Health Plan Subsidy Calcs'!$D$4>1.5,'WPS Health Plan Subsidy Calcs'!$D$4<=2),'WPS Health Plan Rating Factors'!BY11,IF(AND('WPS Health Plan Subsidy Calcs'!$D$4>2,'WPS Health Plan Subsidy Calcs'!$D$4<=2.5),'WPS Health Plan Rating Factors'!CJ11,'WPS Health Plan Rating Factors'!AY11))) -> 500 | M36: =IF(AND('WPS Health Plan Subsidy Calcs'!$D$4>1,'WPS Health Plan Subsidy Calcs'!$D$4<=1.5),'WPS Health Plan Rating Factors'!BO11,IF(AND('WPS Health Plan Subsidy Calcs'!$D$4>1.5,'WPS Health Plan Subsidy Calcs'!$D$4<=2),'WPS Health Plan Rating Factors'!BZ11,IF(AND('WPS Health Plan Subsidy Calcs'!$D$4>2,'WPS Health Plan Subsidy Calcs'!$D$4<=2.5),'WPS Health Plan Rating Factors'!CK11,'WPS Health Plan Rating Factors'!BA11))) -> $0 / $15 / $25 / $75 / $150 / $750 Ded. 40% Coins. | P36: =IF('WPS Health Plan Rating Factors'!BC11-'WPS Health Plan Quote'!$L$17<0,0,'WPS Health Plan Rating Factors'!BC11-'WPS Health Plan Quote'!$L$17) -> 
B38: =IF(L15="On Exchange",IF(AND('WPS Health Plan Subsidy Calcs'!$D$4>1,'WPS Health Plan Subsidy Calcs'!$D$4<=1.5),HYPERLINK('WPS Health Plan Tables'!O29,'WPS Health Plan Tables'!N29),IF(AND('WPS Health Plan Subsidy Calcs'!$D$4>1.5,'WPS Health Plan Subsidy Calcs'!$D$4<=2),HYPERLINK('WPS Health Plan Tables'!O28,'WPS Health Plan Tables'!N28),IF(AND('WPS Health Plan Subsidy Calcs'!$D$4>2,'WPS Health Plan Subsidy Calcs'!$D$4<=2.5),HYPERLINK('WPS Health Plan Tables'!O27,'WPS Health Plan Tables'!N27),HYPERLINK('WPS Health Plan Tables'!O24,'WPS Health Plan Tables'!N24)))),HYPERLINK('WPS Health Plan Tables'!O23,'WPS Health Plan Tables'!N23)) -> WPS HMO Silver $5,000 | E38: ='WPS Health Plan Rating Factors'!AO12 -> Silver | F38: =IF(AND('WPS Health Plan Subsidy Calcs'!$D$4>1,'WPS Health Plan Subsidy Calcs'!$D$4<=1.5),"$"&'WPS Health Plan Rating Factors'!BE12,IF(AND('WPS Health Plan Subsidy Calcs'!$D$4>1.5,'WPS Health Plan Subsidy Calcs'!$D$4<=2),"$"&'WPS Health Plan Rating Factors'!BP12,IF(AND('WPS Health Plan Subsidy Calcs'!$D$4>2,'WPS Health Plan Subsidy Calcs'!$D$4<=2.5),"$"&'WPS Health Plan Rating Factors'!CA12,"$"&'WPS Health Plan Rating Factors'!AP12))) -> $5000 | G38: =IF(AND('WPS Health Plan Subsidy Calcs'!$D$4>1,'WPS Health Plan Subsidy Calcs'!$D$4<=1.5),100*'WPS Health Plan Rating Factors'!BG12&"%",IF(AND('WPS Health Plan Subsidy Calcs'!$D$4>1.5,'WPS Health Plan Subsidy Calcs'!$D$4<=2),100*'WPS Health Plan Rating Factors'!BR12&"%",IF(AND('WPS Health Plan Subsidy Calcs'!$D$4>2,'WPS Health Plan Subsidy Calcs'!$D$4<=2.5),100*'WPS Health Plan Rating Factors'!CC12&"%",100*'WPS Health Plan Rating Factors'!AR12&"%"))) -> 20% | H38: =IF(AND('WPS Health Plan Subsidy Calcs'!$D$4>1,'WPS Health Plan Subsidy Calcs'!$D$4<=1.5),"$"&'WPS Health Plan Rating Factors'!BI12,IF(AND('WPS Health Plan Subsidy Calcs'!$D$4>1.5,'WPS Health Plan Subsidy Calcs'!$D$4<=2),"$"&'WPS Health Plan Rating Factors'!BT12,IF(AND('WPS Health Plan Subsidy Calcs'!$D$4>2,'WPS Health Plan Subsidy Calcs'!$D$4<=2.5),"$"&'WPS Health Plan Rating Factors'!CE12,"$"&'WPS Health Plan Rating Factors'!AT12))) -> $8700 | I38: =IF(AND('WPS Health Plan Subsidy Calcs'!$D$4>1,'WPS Health Plan Subsidy Calcs'!$D$4<=1.5),'WPS Health Plan Rating Factors'!BK12,IF(AND('WPS Health Plan Subsidy Calcs'!$D$4>1.5,'WPS Health Plan Subsidy Calcs'!$D$4<=2),'WPS Health Plan Rating Factors'!BV12,IF(AND('WPS Health Plan Subsidy Calcs'!$D$4>2,'WPS Health Plan Subsidy Calcs'!$D$4<=2.5),'WPS Health Plan Rating Factors'!CG12,'WPS Health Plan Rating Factors'!AV12))) -> $0/$10 | J38: =IF(AND('WPS Health Plan Subsidy Calcs'!$D$4>1,'WPS Health Plan Subsidy Calcs'!$D$4<=1.5),'WPS Health Plan Rating Factors'!BL12,IF(AND('WPS Health Plan Subsidy Calcs'!$D$4>1.5,'WPS Health Plan Subsidy Calcs'!$D$4<=2),'WPS Health Plan Rating Factors'!BW12,IF(AND('WPS Health Plan Subsidy Calcs'!$D$4>2,'WPS Health Plan Subsidy Calcs'!$D$4<=2.5),'WPS Health Plan Rating Factors'!CH12,'WPS Health Plan Rating Factors'!AW12))) -> 45 | K38: =IF(AND('WPS Health Plan Subsidy Calcs'!$D$4>1,'WPS Health Plan Subsidy Calcs'!$D$4<=1.5),'WPS Health Plan Rating Factors'!BM12,IF(AND('WPS Health Plan Subsidy Calcs'!$D$4>1.5,'WPS Health Plan Subsidy Calcs'!$D$4<=2),'WPS Health Plan Rating Factors'!BX12,IF(AND('WPS Health Plan Subsidy Calcs'!$D$4>2,'WPS Health Plan Subsidy Calcs'!$D$4<=2.5),'WPS Health Plan Rating Factors'!CI12,'WPS Health Plan Rating Factors'!AX12))) -> 90 | L38: =IF(AND('WPS Health Plan Subsidy Calcs'!$D$4>1,'WPS Health Plan Subsidy Calcs'!$D$4<=1.5),'WPS Health Plan Rating Factors'!BN12,IF(AND('WPS Health Plan Subsidy Calcs'!$D$4>1.5,'WPS Health Plan Subsidy Calcs'!$D$4<=2),'WPS Health Plan Rating Factors'!BY12,IF(AND('WPS Health Plan Subsidy Calcs'!$D$4>2,'WPS Health Plan Subsidy Calcs'!$D$4<=2.5),'WPS Health Plan Rating Factors'!CJ12,'WPS Health Plan Rating Factors'!AY12))) -> 500 | M38: =IF(AND('WPS Health Plan Subsidy Calcs'!$D$4>1,'WPS Health Plan Subsidy Calcs'!$D$4<=1.5),'WPS Health Plan Rating Factors'!BO12,IF(AND('WPS Health Plan Subsidy Calcs'!$D$4>1.5,'WPS Health Plan Subsidy Calcs'!$D$4<=2),'WPS Health Plan Rating Factors'!BZ12,IF(AND('WPS Health Plan Subsidy Calcs'!$D$4>2,'WPS Health Plan Subsidy Calcs'!$D$4<=2.5),'WPS Health Plan Rating Factors'!CK12,'WPS Health Plan Rating Factors'!BA12))) -> $0 / $15 / $25 / $75 / $150 / $750 Ded. 40% Coins. | P38: =IF('WPS Health Plan Rating Factors'!BC12-'WPS Health Plan Quote'!$L$17<0,0,'WPS Health Plan Rating Factors'!BC12-'WPS Health Plan Quote'!$L$17) -> 
B40: =IF(L15="On Exchange",IF(AND('WPS Health Plan Subsidy Calcs'!$D$4>1,'WPS Health Plan Subsidy Calcs'!$D$4<=1.5),HYPERLINK('WPS Health Plan Tables'!O36,'WPS Health Plan Tables'!N36),IF(AND('WPS Health Plan Subsidy Calcs'!$D$4>1.5,'WPS Health Plan Subsidy Calcs'!$D$4<=2),HYPERLINK('WPS Health Plan Tables'!O35,'WPS Health Plan Tables'!N35),IF(AND('WPS Health Plan Subsidy Calcs'!$D$4>2,'WPS Health Plan Subsidy Calcs'!$D$4<=2.5),HYPERLINK('WPS Health Plan Tables'!O34,'WPS Health Plan Tables'!N34),HYPERLINK('WPS Health Plan Tables'!O31,'WPS Health Plan Tables'!N31)))),HYPERLINK('WPS Health Plan Tables'!O30,'WPS Health Plan Tables'!N30)) -> WPS HMO Silver $7,500 | E40: ='WPS Health Plan Rating Factors'!AO13 -> Silver | F40: =IF(AND('WPS Health Plan Subsidy Calcs'!$D$4>1,'WPS Health Plan Subsidy Calcs'!$D$4<=1.5),"$"&'WPS Health Plan Rating Factors'!BE13,IF(AND('WPS Health Plan Subsidy Calcs'!$D$4>1.5,'WPS Health Plan Subsidy Calcs'!$D$4<=2),"$"&'WPS Health Plan Rating Factors'!BP13,IF(AND('WPS Health Plan Subsidy Calcs'!$D$4>2,'WPS Health Plan Subsidy Calcs'!$D$4<=2.5),"$"&'WPS Health Plan Rating Factors'!CA13,"$"&'WPS Health Plan Rating Factors'!AP13))) -> $7500 | G40: =IF(AND('WPS Health Plan Subsidy Calcs'!$D$4>1,'WPS Health Plan Subsidy Calcs'!$D$4<=1.5),100*'WPS Health Plan Rating Factors'!BG13&"%",IF(AND('WPS Health Plan Subsidy Calcs'!$D$4>1.5,'WPS Health Plan Subsidy Calcs'!$D$4<=2),100*'WPS Health Plan Rating Factors'!BR13&"%",IF(AND('WPS Health Plan Subsidy Calcs'!$D$4>2,'WPS Health Plan Subsidy Calcs'!$D$4<=2.5),100*'WPS Health Plan Rating Factors'!CC13&"%",100*'WPS Health Plan Rating Factors'!AR13&"%"))) -> 0% | H40: =IF(AND('WPS Health Plan Subsidy Calcs'!$D$4>1,'WPS Health Plan Subsidy Calcs'!$D$4<=1.5),"$"&'WPS Health Plan Rating Factors'!BI13,IF(AND('WPS Health Plan Subsidy Calcs'!$D$4>1.5,'WPS Health Plan Subsidy Calcs'!$D$4<=2),"$"&'WPS Health Plan Rating Factors'!BT13,IF(AND('WPS Health Plan Subsidy Calcs'!$D$4>2,'WPS Health Plan Subsidy Calcs'!$D$4<=2.5),"$"&'WPS Health Plan Rating Factors'!CE13,"$"&'WPS Health Plan Rating Factors'!AT13))) -> $7500 | I40: =IF(AND('WPS Health Plan Subsidy Calcs'!$D$4>1,'WPS Health Plan Subsidy Calcs'!$D$4<=1.5),'WPS Health Plan Rating Factors'!BK13,IF(AND('WPS Health Plan Subsidy Calcs'!$D$4>1.5,'WPS Health Plan Subsidy Calcs'!$D$4<=2),'WPS Health Plan Rating Factors'!BV13,IF(AND('WPS Health Plan Subsidy Calcs'!$D$4>2,'WPS Health Plan Subsidy Calcs'!$D$4<=2.5),'WPS Health Plan Rating Factors'!CG13,'WPS Health Plan Rating Factors'!AV13))) -> $0/$10 | J40: =IF(AND('WPS Health Plan Subsidy Calcs'!$D$4>1,'WPS Health Plan Subsidy Calcs'!$D$4<=1.5),'WPS Health Plan Rating Factors'!BL13,IF(AND('WPS Health Plan Subsidy Calcs'!$D$4>1.5,'WPS Health Plan Subsidy Calcs'!$D$4<=2),'WPS Health Plan Rating Factors'!BW13,IF(AND('WPS Health Plan Subsidy Calcs'!$D$4>2,'WPS Health Plan Subsidy Calcs'!$D$4<=2.5),'WPS Health Plan Rating Factors'!CH13,'WPS Health Plan Rating Factors'!AW13))) -> 45 | K40: =IF(AND('WPS Health Plan Subsidy Calcs'!$D$4>1,'WPS Health Plan Subsidy Calcs'!$D$4<=1.5),'WPS Health Plan Rating Factors'!BM13,IF(AND('WPS Health Plan Subsidy Calcs'!$D$4>1.5,'WPS Health Plan Subsidy Calcs'!$D$4<=2),'WPS Health Plan Rating Factors'!BX13,IF(AND('WPS Health Plan Subsidy Calcs'!$D$4>2,'WPS Health Plan Subsidy Calcs'!$D$4<=2.5),'WPS Health Plan Rating Factors'!CI13,'WPS Health Plan Rating Factors'!AX13))) -> 90 | L40: =IF(AND('WPS Health Plan Subsidy Calcs'!$D$4>1,'WPS Health Plan Subsidy Calcs'!$D$4<=1.5),'WPS Health Plan Rating Factors'!BN13,IF(AND('WPS Health Plan Subsidy Calcs'!$D$4>1.5,'WPS Health Plan Subsidy Calcs'!$D$4<=2),'WPS Health Plan Rating Factors'!BY13,IF(AND('WPS Health Plan Subsidy Calcs'!$D$4>2,'WPS Health Plan Subsidy Calcs'!$D$4<=2.5),'WPS Health Plan Rating Factors'!CJ13,'WPS Health Plan Rating Factors'!AY13))) -> 500 | M40: =IF(AND('WPS Health Plan Subsidy Calcs'!$D$4>1,'WPS Health Plan Subsidy Calcs'!$D$4<=1.5),'WPS Health Plan Rating Factors'!BO13,IF(AND('WPS Health Plan Subsidy Calcs'!$D$4>1.5,'WPS Health Plan Subsidy Calcs'!$D$4<=2),'WPS Health Plan Rating Factors'!BZ13,IF(AND('WPS Health Plan Subsidy Calcs'!$D$4>2,'WPS Health Plan Subsidy Calcs'!$D$4<=2.5),'WPS Health Plan Rating Factors'!CK13,'WPS Health Plan Rating Factors'!BA13))) -> $0 / $15 / $25 / $75 / $150 / $750 Ded. 40% Coins. | P40: =IF('WPS Health Plan Rating Factors'!BC13-'WPS Health Plan Quote'!$L$17<0,0,'WPS Health Plan Rating Factors'!BC13-'WPS Health Plan Quote'!$L$17) -> 
B42: =IF(L15="On Exchange",HYPERLINK('WPS Health Plan Tables'!O38,'WPS Health Plan Tables'!N38),HYPERLINK('WPS Health Plan Tables'!O37,'WPS Health Plan Tables'!N37)) -> WPS HMO Gold $3,000 | E42: ='WPS Health Plan Rating Factors'!AO14 -> Gold | F42: =IF(AND('WPS Health Plan Subsidy Calcs'!$D$4>1,'WPS Health Plan Subsidy Calcs'!$D$4<=1.5),"$"&'WPS Health Plan Rating Factors'!BE14,IF(AND('WPS Health Plan Subsidy Calcs'!$D$4>1.5,'WPS Health Plan Subsidy Calcs'!$D$4<=2),"$"&'WPS Health Plan Rating Factors'!BP14,IF(AND('WPS Health Plan Subsidy Calcs'!$D$4>2,'WPS Health Plan Subsidy Calcs'!$D$4<=2.5),"$"&'WPS Health Plan Rating Factors'!CA14,"$"&'WPS Health Plan Rating Factors'!AP14))) -> $3000 | G42: =IF(AND('WPS Health Plan Subsidy Calcs'!$D$4>1,'WPS Health Plan Subsidy Calcs'!$D$4<=1.5),100*'WPS Health Plan Rating Factors'!BG14&"%",IF(AND('WPS Health Plan Subsidy Calcs'!$D$4>1.5,'WPS Health Plan Subsidy Calcs'!$D$4<=2),100*'WPS Health Plan Rating Factors'!BR14&"%",IF(AND('WPS Health Plan Subsidy Calcs'!$D$4>2,'WPS Health Plan Subsidy Calcs'!$D$4<=2.5),100*'WPS Health Plan Rating Factors'!CC14&"%",100*'WPS Health Plan Rating Factors'!AR14&"%"))) -> 20% | H42: =IF(AND('WPS Health Plan Subsidy Calcs'!$D$4>1,'WPS Health Plan Subsidy Calcs'!$D$4<=1.5),"$"&'WPS Health Plan Rating Factors'!BI14,IF(AND('WPS Health Plan Subsidy Calcs'!$D$4>1.5,'WPS Health Plan Subsidy Calcs'!$D$4<=2),"$"&'WPS Health Plan Rating Factors'!BT14,IF(AND('WPS Health Plan Subsidy Calcs'!$D$4>2,'WPS Health Plan Subsidy Calcs'!$D$4<=2.5),"$"&'WPS Health Plan Rating Factors'!CE14,"$"&'WPS Health Plan Rating Factors'!AT14))) -> $6500 | I42: =IF(AND('WPS Health Plan Subsidy Calcs'!$D$4>1,'WPS Health Plan Subsidy Calcs'!$D$4<=1.5),'WPS Health Plan Rating Factors'!BK14,IF(AND('WPS Health Plan Subsidy Calcs'!$D$4>1.5,'WPS Health Plan Subsidy Calcs'!$D$4<=2),'WPS Health Plan Rating Factors'!BV14,IF(AND('WPS Health Plan Subsidy Calcs'!$D$4>2,'WPS Health Plan Subsidy Calcs'!$D$4<=2.5),'WPS Health Plan Rating Factors'!CG14,'WPS Health Plan Rating Factors'!AV14))) -> $0/$10 | J42: =IF(AND('WPS Health Plan Subsidy Calcs'!$D$4>1,'WPS Health Plan Subsidy Calcs'!$D$4<=1.5),'WPS Health Plan Rating Factors'!BL14,IF(AND('WPS Health Plan Subsidy Calcs'!$D$4>1.5,'WPS Health Plan Subsidy Calcs'!$D$4<=2),'WPS Health Plan Rating Factors'!BW14,IF(AND('WPS Health Plan Subsidy Calcs'!$D$4>2,'WPS Health Plan Subsidy Calcs'!$D$4<=2.5),'WPS Health Plan Rating Factors'!CH14,'WPS Health Plan Rating Factors'!AW14))) -> 35 | K42: =IF(AND('WPS Health Plan Subsidy Calcs'!$D$4>1,'WPS Health Plan Subsidy Calcs'!$D$4<=1.5),'WPS Health Plan Rating Factors'!BM14,IF(AND('WPS Health Plan Subsidy Calcs'!$D$4>1.5,'WPS Health Plan Subsidy Calcs'!$D$4<=2),'WPS Health Plan Rating Factors'!BX14,IF(AND('WPS Health Plan Subsidy Calcs'!$D$4>2,'WPS Health Plan Subsidy Calcs'!$D$4<=2.5),'WPS Health Plan Rating Factors'!CI14,'WPS Health Plan Rating Factors'!AX14))) -> 70 | L42: =IF(AND('WPS Health Plan Subsidy Calcs'!$D$4>1,'WPS Health Plan Subsidy Calcs'!$D$4<=1.5),'WPS Health Plan Rating Factors'!BN14,IF(AND('WPS Health Plan Subsidy Calcs'!$D$4>1.5,'WPS Health Plan Subsidy Calcs'!$D$4<=2),'WPS Health Plan Rating Factors'!BY14,IF(AND('WPS Health Plan Subsidy Calcs'!$D$4>2,'WPS Health Plan Subsidy Calcs'!$D$4<=2.5),'WPS Health Plan Rating Factors'!CJ14,'WPS Health Plan Rating Factors'!AY14))) -> 450 | M42: =IF(AND('WPS Health Plan Subsidy Calcs'!$D$4>1,'WPS Health Plan Subsidy Calcs'!$D$4<=1.5),'WPS Health Plan Rating Factors'!BO14,IF(AND('WPS Health Plan Subsidy Calcs'!$D$4>1.5,'WPS Health Plan Subsidy Calcs'!$D$4<=2),'WPS Health Plan Rating Factors'!BZ14,IF(AND('WPS Health Plan Subsidy Calcs'!$D$4>2,'WPS Health Plan Subsidy Calcs'!$D$4<=2.5),'WPS Health Plan Rating Factors'!CK14,'WPS Health Plan Rating Factors'!BA14))) -> $0 / $5 / $15 / $50 / $100 / $750 Ded. 40% Coins. | P42: =IF('WPS Health Plan Rating Factors'!BC14-'WPS Health Plan Quote'!$L$17<0,0,'WPS Health Plan Rating Factors'!BC14-'WPS Health Plan Quote'!$L$17) -> 
B44: =IF(L15="On Exchange",HYPERLINK('WPS Health Plan Tables'!O42,'WPS Health Plan Tables'!N42),HYPERLINK('WPS Health Plan Tables'!O41,'WPS Health Plan Tables'!N41)) -> WPS HMO Catastrophic $8,700 with 3 Free PCP Visits | E44: Catastrophic2 | F44: =IF(AND('WPS Health Plan Subsidy Calcs'!$D$4>1,'WPS Health Plan Subsidy Calcs'!$D$4<=1.5),"$"&'WPS Health Plan Rating Factors'!BE15,IF(AND('WPS Health Plan Subsidy Calcs'!$D$4>1.5,'WPS Health Plan Subsidy Calcs'!$D$4<=2),"$"&'WPS Health Plan Rating Factors'!BP15,IF(AND('WPS Health Plan Subsidy Calcs'!$D$4>2,'WPS Health Plan Subsidy Calcs'!$D$4<=2.5),"$"&'WPS Health Plan Rating Factors'!CA15,"$"&'WPS Health Plan Rating Factors'!AP15))) -> $8700 | G44: =IF(AND('WPS Health Plan Subsidy Calcs'!$D$4>1,'WPS Health Plan Subsidy Calcs'!$D$4<=1.5),100*'WPS Health Plan Rating Factors'!BG15&"%",IF(AND('WPS Health Plan Subsidy Calcs'!$D$4>1.5,'WPS Health Plan Subsidy Calcs'!$D$4<=2),100*'WPS Health Plan Rating Factors'!BR15&"%",IF(AND('WPS Health Plan Subsidy Calcs'!$D$4>2,'WPS Health Plan Subsidy Calcs'!$D$4<=2.5),100*'WPS Health Plan Rating Factors'!CC15&"%",100*'WPS Health Plan Rating Factors'!AR15&"%"))) -> 0% | H44: =IF(AND('WPS Health Plan Subsidy Calcs'!$D$4>1,'WPS Health Plan Subsidy Calcs'!$D$4<=1.5),"$"&'WPS Health Plan Rating Factors'!BI15,IF(AND('WPS Health Plan Subsidy Calcs'!$D$4>1.5,'WPS Health Plan Subsidy Calcs'!$D$4<=2),"$"&'WPS Health Plan Rating Factors'!BT15,IF(AND('WPS Health Plan Subsidy Calcs'!$D$4>2,'WPS Health Plan Subsidy Calcs'!$D$4<=2.5),"$"&'WPS Health Plan Rating Factors'!CE15,"$"&'WPS Health Plan Rating Factors'!AT15))) -> $8700 | I44: =IF(AND('WPS Health Plan Subsidy Calcs'!$D$4>1,'WPS Health Plan Subsidy Calcs'!$D$4<=1.5),'WPS Health Plan Rating Factors'!BK15,IF(AND('WPS Health Plan Subsidy Calcs'!$D$4>1.5,'WPS Health Plan Subsidy Calcs'!$D$4<=2),'WPS Health Plan Rating Factors'!BV15,IF(AND('WPS Health Plan Subsidy Calcs'!$D$4>2,'WPS Health Plan Subsidy Calcs'!$D$4<=2.5),'WPS Health Plan Rating Factors'!CG15,'WPS Health Plan Rating Factors'!AV15))) -> D/C | J44: =IF(AND('WPS Health Plan Subsidy Calcs'!$D$4>1,'WPS Health Plan Subsidy Calcs'!$D$4<=1.5),'WPS Health Plan Rating Factors'!BL15,IF(AND('WPS Health Plan Subsidy Calcs'!$D$4>1.5,'WPS Health Plan Subsidy Calcs'!$D$4<=2),'WPS Health Plan Rating Factors'!BW15,IF(AND('WPS Health Plan Subsidy Calcs'!$D$4>2,'WPS Health Plan Subsidy Calcs'!$D$4<=2.5),'WPS Health Plan Rating Factors'!CH15,'WPS Health Plan Rating Factors'!AW15))) -> 3 Free | K44: =IF(AND('WPS Health Plan Subsidy Calcs'!$D$4>1,'WPS Health Plan Subsidy Calcs'!$D$4<=1.5),'WPS Health Plan Rating Factors'!BM15,IF(AND('WPS Health Plan Subsidy Calcs'!$D$4>1.5,'WPS Health Plan Subsidy Calcs'!$D$4<=2),'WPS Health Plan Rating Factors'!BX15,IF(AND('WPS Health Plan Subsidy Calcs'!$D$4>2,'WPS Health Plan Subsidy Calcs'!$D$4<=2.5),'WPS Health Plan Rating Factors'!CI15,'WPS Health Plan Rating Factors'!AX15))) -> D/C | L44: =IF(AND('WPS Health Plan Subsidy Calcs'!$D$4>1,'WPS Health Plan Subsidy Calcs'!$D$4<=1.5),'WPS Health Plan Rating Factors'!BN15,IF(AND('WPS Health Plan Subsidy Calcs'!$D$4>1.5,'WPS Health Plan Subsidy Calcs'!$D$4<=2),'WPS Health Plan Rating Factors'!BY15,IF(AND('WPS Health Plan Subsidy Calcs'!$D$4>2,'WPS Health Plan Subsidy Calcs'!$D$4<=2.5),'WPS Health Plan Rating Factors'!CJ15,'WPS Health Plan Rating Factors'!AY15))) -> D/C | M44: =IF(AND('WPS Health Plan Subsidy Calcs'!$D$4>1,'WPS Health Plan Subsidy Calcs'!$D$4<=1.5),'WPS Health Plan Rating Factors'!BO15,IF(AND('WPS Health Plan Subsidy Calcs'!$D$4>1.5,'WPS Health Plan Subsidy Calcs'!$D$4<=2),'WPS Health Plan Rating Factors'!BZ15,IF(AND('WPS Health Plan Subsidy Calcs'!$D$4>2,'WPS Health Plan Subsidy Calcs'!$D$4<=2.5),'WPS Health Plan Rating Factors'!CK15,'WPS Health Plan Rating Factors'!BA15))) -> $0 preventive, D/C all others | P44: ='WPS Health Plan Rating Factors'!BC15 -> 
B46: =IF(L15="On Exchange",HYPERLINK('WPS Health Plan Tables'!O44,'WPS Health Plan Tables'!N44),HYPERLINK('WPS Health Plan Tables'!O43,'WPS Health Plan Tables'!N43)) -> WPS HMO HDHP Bronze $6,000 | E46: ='WPS Health Plan Rating Factors'!AO16 -> Bronze | F46: =IF(AND('WPS Health Plan Subsidy Calcs'!$D$4>1,'WPS Health Plan Subsidy Calcs'!$D$4<=1.5),"$"&'WPS Health Plan Rating Factors'!BE16,IF(AND('WPS Health Plan Subsidy Calcs'!$D$4>1.5,'WPS Health Plan Subsidy Calcs'!$D$4<=2),"$"&'WPS Health Plan Rating Factors'!BP16,IF(AND('WPS Health Plan Subsidy Calcs'!$D$4>2,'WPS Health Plan Subsidy Calcs'!$D$4<=2.5),"$"&'WPS Health Plan Rating Factors'!CA16,"$"&'WPS Health Plan Rating Factors'!AP16))) -> $6000 | G46: =IF(AND('WPS Health Plan Subsidy Calcs'!$D$4>1,'WPS Health Plan Subsidy Calcs'!$D$4<=1.5),100*'WPS Health Plan Rating Factors'!BG16&"%",IF(AND('WPS Health Plan Subsidy Calcs'!$D$4>1.5,'WPS Health Plan Subsidy Calcs'!$D$4<=2),100*'WPS Health Plan Rating Factors'!BR16&"%",IF(AND('WPS Health Plan Subsidy Calcs'!$D$4>2,'WPS Health Plan Subsidy Calcs'!$D$4<=2.5),100*'WPS Health Plan Rating Factors'!CC16&"%",100*'WPS Health Plan Rating Factors'!AR16&"%"))) -> 30% | H46: =IF(AND('WPS Health Plan Subsidy Calcs'!$D$4>1,'WPS Health Plan Subsidy Calcs'!$D$4<=1.5),"$"&'WPS Health Plan Rating Factors'!BI16,IF(AND('WPS Health Plan Subsidy Calcs'!$D$4>1.5,'WPS Health Plan Subsidy Calcs'!$D$4<=2),"$"&'WPS Health Plan Rating Factors'!BT16,IF(AND('WPS Health Plan Subsidy Calcs'!$D$4>2,'WPS Health Plan Subsidy Calcs'!$D$4<=2.5),"$"&'WPS Health Plan Rating Factors'!CE16,"$"&'WPS Health Plan Rating Factors'!AT16))) -> $7050 | I46: =IF(AND('WPS Health Plan Subsidy Calcs'!$D$4>1,'WPS Health Plan Subsidy Calcs'!$D$4<=1.5),'WPS Health Plan Rating Factors'!BK16,IF(AND('WPS Health Plan Subsidy Calcs'!$D$4>1.5,'WPS Health Plan Subsidy Calcs'!$D$4<=2),'WPS Health Plan Rating Factors'!BV16,IF(AND('WPS Health Plan Subsidy Calcs'!$D$4>2,'WPS Health Plan Subsidy Calcs'!$D$4<=2.5),'WPS Health Plan Rating Factors'!CG16,'WPS Health Plan Rating Factors'!AV16))) -> D/C | J46: =IF(AND('WPS Health Plan Subsidy Calcs'!$D$4>1,'WPS Health Plan Subsidy Calcs'!$D$4<=1.5),'WPS Health Plan Rating Factors'!BL16,IF(AND('WPS Health Plan Subsidy Calcs'!$D$4>1.5,'WPS Health Plan Subsidy Calcs'!$D$4<=2),'WPS Health Plan Rating Factors'!BW16,IF(AND('WPS Health Plan Subsidy Calcs'!$D$4>2,'WPS Health Plan Subsidy Calcs'!$D$4<=2.5),'WPS Health Plan Rating Factors'!CH16,'WPS Health Plan Rating Factors'!AW16))) -> D/C | K46: =IF(AND('WPS Health Plan Subsidy Calcs'!$D$4>1,'WPS Health Plan Subsidy Calcs'!$D$4<=1.5),'WPS Health Plan Rating Factors'!BM16,IF(AND('WPS Health Plan Subsidy Calcs'!$D$4>1.5,'WPS Health Plan Subsidy Calcs'!$D$4<=2),'WPS Health Plan Rating Factors'!BX16,IF(AND('WPS Health Plan Subsidy Calcs'!$D$4>2,'WPS Health Plan Subsidy Calcs'!$D$4<=2.5),'WPS Health Plan Rating Factors'!CI16,'WPS Health Plan Rating Factors'!AX16))) -> D/C | L46: =IF(AND('WPS Health Plan Subsidy Calcs'!$D$4>1,'WPS Health Plan Subsidy Calcs'!$D$4<=1.5),'WPS Health Plan Rating Factors'!BN16,IF(AND('WPS Health Plan Subsidy Calcs'!$D$4>1.5,'WPS Health Plan Subsidy Calcs'!$D$4<=2),'WPS Health Plan Rating Factors'!BY16,IF(AND('WPS Health Plan Subsidy Calcs'!$D$4>2,'WPS Health Plan Subsidy Calcs'!$D$4<=2.5),'WPS Health Plan Rating Factors'!CJ16,'WPS Health Plan Rating Factors'!AY16))) -> D/C | M46: =IF(AND('WPS Health Plan Subsidy Calcs'!$D$4>1,'WPS Health Plan Subsidy Calcs'!$D$4<=1.5),'WPS Health Plan Rating Factors'!BO16,IF(AND('WPS Health Plan Subsidy Calcs'!$D$4>1.5,'WPS Health Plan Subsidy Calcs'!$D$4<=2),'WPS Health Plan Rating Factors'!BZ16,IF(AND('WPS Health Plan Subsidy Calcs'!$D$4>2,'WPS Health Plan Subsidy Calcs'!$D$4<=2.5),'WPS Health Plan Rating Factors'!CK16,'WPS Health Plan Rating Factors'!BA16))) -> $0 preventive, D/C all others | P46: =IF('WPS Health Plan Rating Factors'!BC16-'WPS Health Plan Quote'!$L$17<0,0,'WPS Health Plan Rating Factors'!BC16-'WPS Health Plan Quote'!$L$17) -> 
B48: =IF(L15="On Exchange",HYPERLINK('WPS Health Plan Tables'!O48,'WPS Health Plan Tables'!N48),HYPERLINK('WPS Health Plan Tables'!O47,'WPS Health Plan Tables'!N47)) -> WPS HMO HDHP Bronze $6,830 | E48: ='WPS Health Plan Rating Factors'!AO17 -> Bronze | F48: =IF(AND('WPS Health Plan Subsidy Calcs'!$D$4>1,'WPS Health Plan Subsidy Calcs'!$D$4<=1.5),"$"&'WPS Health Plan Rating Factors'!BE17,IF(AND('WPS Health Plan Subsidy Calcs'!$D$4>1.5,'WPS Health Plan Subsidy Calcs'!$D$4<=2),"$"&'WPS Health Plan Rating Factors'!BP17,IF(AND('WPS Health Plan Subsidy Calcs'!$D$4>2,'WPS Health Plan Subsidy Calcs'!$D$4<=2.5),"$"&'WPS Health Plan Rating Factors'!CA17,"$"&'WPS Health Plan Rating Factors'!AP17))) -> $6830 | G48: =IF(AND('WPS Health Plan Subsidy Calcs'!$D$4>1,'WPS Health Plan Subsidy Calcs'!$D$4<=1.5),100*'WPS Health Plan Rating Factors'!BG17&"%",IF(AND('WPS Health Plan Subsidy Calcs'!$D$4>1.5,'WPS Health Plan Subsidy Calcs'!$D$4<=2),100*'WPS Health Plan Rating Factors'!BR17&"%",IF(AND('WPS Health Plan Subsidy Calcs'!$D$4>2,'WPS Health Plan Subsidy Calcs'!$D$4<=2.5),100*'WPS Health Plan Rating Factors'!CC17&"%",100*'WPS Health Plan Rating Factors'!AR17&"%"))) -> 0% | H48: =IF(AND('WPS Health Plan Subsidy Calcs'!$D$4>1,'WPS Health Plan Subsidy Calcs'!$D$4<=1.5),"$"&'WPS Health Plan Rating Factors'!BI17,IF(AND('WPS Health Plan Subsidy Calcs'!$D$4>1.5,'WPS Health Plan Subsidy Calcs'!$D$4<=2),"$"&'WPS Health Plan Rating Factors'!BT17,IF(AND('WPS Health Plan Subsidy Calcs'!$D$4>2,'WPS Health Plan Subsidy Calcs'!$D$4<=2.5),"$"&'WPS Health Plan Rating Factors'!CE17,"$"&'WPS Health Plan Rating Factors'!AT17))) -> $6830 | I48: =IF(AND('WPS Health Plan Subsidy Calcs'!$D$4>1,'WPS Health Plan Subsidy Calcs'!$D$4<=1.5),'WPS Health Plan Rating Factors'!BK17,IF(AND('WPS Health Plan Subsidy Calcs'!$D$4>1.5,'WPS Health Plan Subsidy Calcs'!$D$4<=2),'WPS Health Plan Rating Factors'!BV17,IF(AND('WPS Health Plan Subsidy Calcs'!$D$4>2,'WPS Health Plan Subsidy Calcs'!$D$4<=2.5),'WPS Health Plan Rating Factors'!CG17,'WPS Health Plan Rating Factors'!AV17))) -> D/C | J48: =IF(AND('WPS Health Plan Subsidy Calcs'!$D$4>1,'WPS Health Plan Subsidy Calcs'!$D$4<=1.5),'WPS Health Plan Rating Factors'!BL17,IF(AND('WPS Health Plan Subsidy Calcs'!$D$4>1.5,'WPS Health Plan Subsidy Calcs'!$D$4<=2),'WPS Health Plan Rating Factors'!BW17,IF(AND('WPS Health Plan Subsidy Calcs'!$D$4>2,'WPS Health Plan Subsidy Calcs'!$D$4<=2.5),'WPS Health Plan Rating Factors'!CH17,'WPS Health Plan Rating Factors'!AW17))) -> D/C | K48: =IF(AND('WPS Health Plan Subsidy Calcs'!$D$4>1,'WPS Health Plan Subsidy Calcs'!$D$4<=1.5),'WPS Health Plan Rating Factors'!BM17,IF(AND('WPS Health Plan Subsidy Calcs'!$D$4>1.5,'WPS Health Plan Subsidy Calcs'!$D$4<=2),'WPS Health Plan Rating Factors'!BX17,IF(AND('WPS Health Plan Subsidy Calcs'!$D$4>2,'WPS Health Plan Subsidy Calcs'!$D$4<=2.5),'WPS Health Plan Rating Factors'!CI17,'WPS Health Plan Rating Factors'!AX17))) -> D/C | L48: =IF(AND('WPS Health Plan Subsidy Calcs'!$D$4>1,'WPS Health Plan Subsidy Calcs'!$D$4<=1.5),'WPS Health Plan Rating Factors'!BN17,IF(AND('WPS Health Plan Subsidy Calcs'!$D$4>1.5,'WPS Health Plan Subsidy Calcs'!$D$4<=2),'WPS Health Plan Rating Factors'!BY17,IF(AND('WPS Health Plan Subsidy Calcs'!$D$4>2,'WPS Health Plan Subsidy Calcs'!$D$4<=2.5),'WPS Health Plan Rating Factors'!CJ17,'WPS Health Plan Rating Factors'!AY17))) -> D/C | M48: =IF(AND('WPS Health Plan Subsidy Calcs'!$D$4>1,'WPS Health Plan Subsidy Calcs'!$D$4<=1.5),'WPS Health Plan Rating Factors'!BO17,IF(AND('WPS Health Plan Subsidy Calcs'!$D$4>1.5,'WPS Health Plan Subsidy Calcs'!$D$4<=2),'WPS Health Plan Rating Factors'!BZ17,IF(AND('WPS Health Plan Subsidy Calcs'!$D$4>2,'WPS Health Plan Subsidy Calcs'!$D$4<=2.5),'WPS Health Plan Rating Factors'!CK17,'WPS Health Plan Rating Factors'!BA17))) -> $0 preventive, D/C all others | P48: =IF('WPS Health Plan Rating Factors'!BC17-'WPS Health Plan Quote'!$L$17<0,0,'WPS Health Plan Rating Factors'!BC17-'WPS Health Plan Quote'!$L$17) -> 
B50: =IF(L15="On Exchange",HYPERLINK('WPS Health Plan Tables'!O52,'WPS Health Plan Tables'!N52),HYPERLINK('WPS Health Plan Tables'!O51,'WPS Health Plan Tables'!N51)) -> WPS HMO HDHP Bronze $7,050 | E50: ='WPS Health Plan Rating Factors'!AO18 -> Bronze | F50: =IF(AND('WPS Health Plan Subsidy Calcs'!$D$4>1,'WPS Health Plan Subsidy Calcs'!$D$4<=1.5),"$"&'WPS Health Plan Rating Factors'!BE18,IF(AND('WPS Health Plan Subsidy Calcs'!$D$4>1.5,'WPS Health Plan Subsidy Calcs'!$D$4<=2),"$"&'WPS Health Plan Rating Factors'!BP18,IF(AND('WPS Health Plan Subsidy Calcs'!$D$4>2,'WPS Health Plan Subsidy Calcs'!$D$4<=2.5),"$"&'WPS Health Plan Rating Factors'!CA18,"$"&'WPS Health Plan Rating Factors'!AP18))) -> $7050 | G50: =IF(AND('WPS Health Plan Subsidy Calcs'!$D$4>1,'WPS Health Plan Subsidy Calcs'!$D$4<=1.5),100*'WPS Health Plan Rating Factors'!BG18&"%",IF(AND('WPS Health Plan Subsidy Calcs'!$D$4>1.5,'WPS Health Plan Subsidy Calcs'!$D$4<=2),100*'WPS Health Plan Rating Factors'!BR18&"%",IF(AND('WPS Health Plan Subsidy Calcs'!$D$4>2,'WPS Health Plan Subsidy Calcs'!$D$4<=2.5),100*'WPS Health Plan Rating Factors'!CC18&"%",100*'WPS Health Plan Rating Factors'!AR18&"%"))) -> 0% | H50: =IF(AND('WPS Health Plan Subsidy Calcs'!$D$4>1,'WPS Health Plan Subsidy Calcs'!$D$4<=1.5),"$"&'WPS Health Plan Rating Factors'!BI18,IF(AND('WPS Health Plan Subsidy Calcs'!$D$4>1.5,'WPS Health Plan Subsidy Calcs'!$D$4<=2),"$"&'WPS Health Plan Rating Factors'!BT18,IF(AND('WPS Health Plan Subsidy Calcs'!$D$4>2,'WPS Health Plan Subsidy Calcs'!$D$4<=2.5),"$"&'WPS Health Plan Rating Factors'!CE18,"$"&'WPS Health Plan Rating Factors'!AT18))) -> $7050 | I50: =IF(AND('WPS Health Plan Subsidy Calcs'!$D$4>1,'WPS Health Plan Subsidy Calcs'!$D$4<=1.5),'WPS Health Plan Rating Factors'!BK18,IF(AND('WPS Health Plan Subsidy Calcs'!$D$4>1.5,'WPS Health Plan Subsidy Calcs'!$D$4<=2),'WPS Health Plan Rating Factors'!BV18,IF(AND('WPS Health Plan Subsidy Calcs'!$D$4>2,'WPS Health Plan Subsidy Calcs'!$D$4<=2.5),'WPS Health Plan Rating Factors'!CG18,'WPS Health Plan Rating Factors'!AV18))) -> D/C | J50: =IF(AND('WPS Health Plan Subsidy Calcs'!$D$4>1,'WPS Health Plan Subsidy Calcs'!$D$4<=1.5),'WPS Health Plan Rating Factors'!BL18,IF(AND('WPS Health Plan Subsidy Calcs'!$D$4>1.5,'WPS Health Plan Subsidy Calcs'!$D$4<=2),'WPS Health Plan Rating Factors'!BW18,IF(AND('WPS Health Plan Subsidy Calcs'!$D$4>2,'WPS Health Plan Subsidy Calcs'!$D$4<=2.5),'WPS Health Plan Rating Factors'!CH18,'WPS Health Plan Rating Factors'!AW18))) -> D/C | K50: =IF(AND('WPS Health Plan Subsidy Calcs'!$D$4>1,'WPS Health Plan Subsidy Calcs'!$D$4<=1.5),'WPS Health Plan Rating Factors'!BM18,IF(AND('WPS Health Plan Subsidy Calcs'!$D$4>1.5,'WPS Health Plan Subsidy Calcs'!$D$4<=2),'WPS Health Plan Rating Factors'!BX18,IF(AND('WPS Health Plan Subsidy Calcs'!$D$4>2,'WPS Health Plan Subsidy Calcs'!$D$4<=2.5),'WPS Health Plan Rating Factors'!CI18,'WPS Health Plan Rating Factors'!AX18))) -> D/C | L50: =IF(AND('WPS Health Plan Subsidy Calcs'!$D$4>1,'WPS Health Plan Subsidy Calcs'!$D$4<=1.5),'WPS Health Plan Rating Factors'!BN18,IF(AND('WPS Health Plan Subsidy Calcs'!$D$4>1.5,'WPS Health Plan Subsidy Calcs'!$D$4<=2),'WPS Health Plan Rating Factors'!BY18,IF(AND('WPS Health Plan Subsidy Calcs'!$D$4>2,'WPS Health Plan Subsidy Calcs'!$D$4<=2.5),'WPS Health Plan Rating Factors'!CJ18,'WPS Health Plan Rating Factors'!AY18))) -> D/C | M50: =IF(AND('WPS Health Plan Subsidy Calcs'!$D$4>1,'WPS Health Plan Subsidy Calcs'!$D$4<=1.5),'WPS Health Plan Rating Factors'!BO18,IF(AND('WPS Health Plan Subsidy Calcs'!$D$4>1.5,'WPS Health Plan Subsidy Calcs'!$D$4<=2),'WPS Health Plan Rating Factors'!BZ18,IF(AND('WPS Health Plan Subsidy Calcs'!$D$4>2,'WPS Health Plan Subsidy Calcs'!$D$4<=2.5),'WPS Health Plan Rating Factors'!CK18,'WPS Health Plan Rating Factors'!BA18))) -> $0 preventive, D/C all others | P50: =IF('WPS Health Plan Rating Factors'!BC18-'WPS Health Plan Quote'!$L$17<0,0,'WPS Health Plan Rating Factors'!BC18-'WPS Health Plan Quote'!$L$17) -> 
B52: =IF(L15="On Exchange",IF(AND('WPS Health Plan Subsidy Calcs'!$D$4>1,'WPS Health Plan Subsidy Calcs'!$D$4<=1.5),HYPERLINK('WPS Health Plan Tables'!O61,'WPS Health Plan Tables'!N61),IF(AND('WPS Health Plan Subsidy Calcs'!$D$4>1.5,'WPS Health Plan Subsidy Calcs'!$D$4<=2),HYPERLINK('WPS Health Plan Tables'!O60,'WPS Health Plan Tables'!N60),IF(AND('WPS Health Plan Subsidy Calcs'!$D$4>2,'WPS Health Plan Subsidy Calcs'!$D$4<=2.5),HYPERLINK('WPS Health Plan Tables'!O59,'WPS Health Plan Tables'!N59),HYPERLINK('WPS Health Plan Tables'!O56,'WPS Health Plan Tables'!N56)))),HYPERLINK('WPS Health Plan Tables'!O55,'WPS Health Plan Tables'!N55)) -> WPS HMO HDHP Silver $4,500 | E52: ='WPS Health Plan Rating Factors'!AO19 -> Silver | F52: =IF(AND('WPS Health Plan Subsidy Calcs'!$D$4>1,'WPS Health Plan Subsidy Calcs'!$D$4<=1.5),"$"&'WPS Health Plan Rating Factors'!BE19,IF(AND('WPS Health Plan Subsidy Calcs'!$D$4>1.5,'WPS Health Plan Subsidy Calcs'!$D$4<=2),"$"&'WPS Health Plan Rating Factors'!BP19,IF(AND('WPS Health Plan Subsidy Calcs'!$D$4>2,'WPS Health Plan Subsidy Calcs'!$D$4<=2.5),"$"&'WPS Health Plan Rating Factors'!CA19,"$"&'WPS Health Plan Rating Factors'!AP19))) -> $4500 | G52: =IF(AND('WPS Health Plan Subsidy Calcs'!$D$4>1,'WPS Health Plan Subsidy Calcs'!$D$4<=1.5),100*'WPS Health Plan Rating Factors'!BG19&"%",IF(AND('WPS Health Plan Subsidy Calcs'!$D$4>1.5,'WPS Health Plan Subsidy Calcs'!$D$4<=2),100*'WPS Health Plan Rating Factors'!BR19&"%",IF(AND('WPS Health Plan Subsidy Calcs'!$D$4>2,'WPS Health Plan Subsidy Calcs'!$D$4<=2.5),100*'WPS Health Plan Rating Factors'!CC19&"%",100*'WPS Health Plan Rating Factors'!AR19&"%"))) -> 20% | H52: =IF(AND('WPS Health Plan Subsidy Calcs'!$D$4>1,'WPS Health Plan Subsidy Calcs'!$D$4<=1.5),"$"&'WPS Health Plan Rating Factors'!BI19,IF(AND('WPS Health Plan Subsidy Calcs'!$D$4>1.5,'WPS Health Plan Subsidy Calcs'!$D$4<=2),"$"&'WPS Health Plan Rating Factors'!BT19,IF(AND('WPS Health Plan Subsidy Calcs'!$D$4>2,'WPS Health Plan Subsidy Calcs'!$D$4<=2.5),"$"&'WPS Health Plan Rating Factors'!CE19,"$"&'WPS Health Plan Rating Factors'!AT19))) -> $7050 | I52: =IF(AND('WPS Health Plan Subsidy Calcs'!$D$4>1,'WPS Health Plan Subsidy Calcs'!$D$4<=1.5),'WPS Health Plan Rating Factors'!BK19,IF(AND('WPS Health Plan Subsidy Calcs'!$D$4>1.5,'WPS Health Plan Subsidy Calcs'!$D$4<=2),'WPS Health Plan Rating Factors'!BV19,IF(AND('WPS Health Plan Subsidy Calcs'!$D$4>2,'WPS Health Plan Subsidy Calcs'!$D$4<=2.5),'WPS Health Plan Rating Factors'!CG19,'WPS Health Plan Rating Factors'!AV19))) -> D/C | J52: =IF(AND('WPS Health Plan Subsidy Calcs'!$D$4>1,'WPS Health Plan Subsidy Calcs'!$D$4<=1.5),'WPS Health Plan Rating Factors'!BL19,IF(AND('WPS Health Plan Subsidy Calcs'!$D$4>1.5,'WPS Health Plan Subsidy Calcs'!$D$4<=2),'WPS Health Plan Rating Factors'!BW19,IF(AND('WPS Health Plan Subsidy Calcs'!$D$4>2,'WPS Health Plan Subsidy Calcs'!$D$4<=2.5),'WPS Health Plan Rating Factors'!CH19,'WPS Health Plan Rating Factors'!AW19))) -> D/C | K52: =IF(AND('WPS Health Plan Subsidy Calcs'!$D$4>1,'WPS Health Plan Subsidy Calcs'!$D$4<=1.5),'WPS Health Plan Rating Factors'!BM19,IF(AND('WPS Health Plan Subsidy Calcs'!$D$4>1.5,'WPS Health Plan Subsidy Calcs'!$D$4<=2),'WPS Health Plan Rating Factors'!BX19,IF(AND('WPS Health Plan Subsidy Calcs'!$D$4>2,'WPS Health Plan Subsidy Calcs'!$D$4<=2.5),'WPS Health Plan Rating Factors'!CI19,'WPS Health Plan Rating Factors'!AX19))) -> D/C | L52: =IF(AND('WPS Health Plan Subsidy Calcs'!$D$4>1,'WPS Health Plan Subsidy Calcs'!$D$4<=1.5),'WPS Health Plan Rating Factors'!BN19,IF(AND('WPS Health Plan Subsidy Calcs'!$D$4>1.5,'WPS Health Plan Subsidy Calcs'!$D$4<=2),'WPS Health Plan Rating Factors'!BY19,IF(AND('WPS Health Plan Subsidy Calcs'!$D$4>2,'WPS Health Plan Subsidy Calcs'!$D$4<=2.5),'WPS Health Plan Rating Factors'!CJ19,'WPS Health Plan Rating Factors'!AY19))) -> D/C | M52: =IF(AND('WPS Health Plan Subsidy Calcs'!$D$4>1,'WPS Health Plan Subsidy Calcs'!$D$4<=1.5),'WPS Health Plan Rating Factors'!BO19,IF(AND('WPS Health Plan Subsidy Calcs'!$D$4>1.5,'WPS Health Plan Subsidy Calcs'!$D$4<=2),'WPS Health Plan Rating Factors'!BZ19,IF(AND('WPS Health Plan Subsidy Calcs'!$D$4>2,'WPS Health Plan Subsidy Calcs'!$D$4<=2.5),'WPS Health Plan Rating Factors'!CK19,'WPS Health Plan Rating Factors'!BA19))) -> $0 preventive, D/C all others | P52: =IF('WPS Health Plan Rating Factors'!BC19-'WPS Health Plan Quote'!$L$17<0,0,'WPS Health Plan Rating Factors'!BC19-'WPS Health Plan Quote'!$L$17) -> 
B54: =IF(L15="On Exchange",IF(AND('WPS Health Plan Subsidy Calcs'!$D$4>1,'WPS Health Plan Subsidy Calcs'!$D$4<=1.5),HYPERLINK('WPS Health Plan Tables'!O68,'WPS Health Plan Tables'!N68),IF(AND('WPS Health Plan Subsidy Calcs'!$D$4>1.5,'WPS Health Plan Subsidy Calcs'!$D$4<=2),HYPERLINK('WPS Health Plan Tables'!O67,'WPS Health Plan Tables'!N67),IF(AND('WPS Health Plan Subsidy Calcs'!$D$4>2,'WPS Health Plan Subsidy Calcs'!$D$4<=2.5),HYPERLINK('WPS Health Plan Tables'!O66,'WPS Health Plan Tables'!N66),HYPERLINK('WPS Health Plan Tables'!O63,'WPS Health Plan Tables'!N63)))),HYPERLINK('WPS Health Plan Tables'!O62,'WPS Health Plan Tables'!N62)) -> WPS HMO HDHP Silver $5,250 | E54: ='WPS Health Plan Rating Factors'!AO20 -> Silver | F54: =IF(AND('WPS Health Plan Subsidy Calcs'!$D$4>1,'WPS Health Plan Subsidy Calcs'!$D$4<=1.5),"$"&'WPS Health Plan Rating Factors'!BE20,IF(AND('WPS Health Plan Subsidy Calcs'!$D$4>1.5,'WPS Health Plan Subsidy Calcs'!$D$4<=2),"$"&'WPS Health Plan Rating Factors'!BP20,IF(AND('WPS Health Plan Subsidy Calcs'!$D$4>2,'WPS Health Plan Subsidy Calcs'!$D$4<=2.5),"$"&'WPS Health Plan Rating Factors'!CA20,"$"&'WPS Health Plan Rating Factors'!AP20))) -> $5250 | G54: =IF(AND('WPS Health Plan Subsidy Calcs'!$D$4>1,'WPS Health Plan Subsidy Calcs'!$D$4<=1.5),100*'WPS Health Plan Rating Factors'!BG20&"%",IF(AND('WPS Health Plan Subsidy Calcs'!$D$4>1.5,'WPS Health Plan Subsidy Calcs'!$D$4<=2),100*'WPS Health Plan Rating Factors'!BR20&"%",IF(AND('WPS Health Plan Subsidy Calcs'!$D$4>2,'WPS Health Plan Subsidy Calcs'!$D$4<=2.5),100*'WPS Health Plan Rating Factors'!CC20&"%",100*'WPS Health Plan Rating Factors'!AR20&"%"))) -> 0% | H54: =IF(AND('WPS Health Plan Subsidy Calcs'!$D$4>1,'WPS Health Plan Subsidy Calcs'!$D$4<=1.5),"$"&'WPS Health Plan Rating Factors'!BI20,IF(AND('WPS Health Plan Subsidy Calcs'!$D$4>1.5,'WPS Health Plan Subsidy Calcs'!$D$4<=2),"$"&'WPS Health Plan Rating Factors'!BT20,IF(AND('WPS Health Plan Subsidy Calcs'!$D$4>2,'WPS Health Plan Subsidy Calcs'!$D$4<=2.5),"$"&'WPS Health Plan Rating Factors'!CE20,"$"&'WPS Health Plan Rating Factors'!AT20))) -> $5250 | I54: =IF(AND('WPS Health Plan Subsidy Calcs'!$D$4>1,'WPS Health Plan Subsidy Calcs'!$D$4<=1.5),'WPS Health Plan Rating Factors'!BK20,IF(AND('WPS Health Plan Subsidy Calcs'!$D$4>1.5,'WPS Health Plan Subsidy Calcs'!$D$4<=2),'WPS Health Plan Rating Factors'!BV20,IF(AND('WPS Health Plan Subsidy Calcs'!$D$4>2,'WPS Health Plan Subsidy Calcs'!$D$4<=2.5),'WPS Health Plan Rating Factors'!CG20,'WPS Health Plan Rating Factors'!AV20))) -> D/C | J54: =IF(AND('WPS Health Plan Subsidy Calcs'!$D$4>1,'WPS Health Plan Subsidy Calcs'!$D$4<=1.5),'WPS Health Plan Rating Factors'!BL20,IF(AND('WPS Health Plan Subsidy Calcs'!$D$4>1.5,'WPS Health Plan Subsidy Calcs'!$D$4<=2),'WPS Health Plan Rating Factors'!BW20,IF(AND('WPS Health Plan Subsidy Calcs'!$D$4>2,'WPS Health Plan Subsidy Calcs'!$D$4<=2.5),'WPS Health Plan Rating Factors'!CH20,'WPS Health Plan Rating Factors'!AW20))) -> D/C | K54: =IF(AND('WPS Health Plan Subsidy Calcs'!$D$4>1,'WPS Health Plan Subsidy Calcs'!$D$4<=1.5),'WPS Health Plan Rating Factors'!BM20,IF(AND('WPS Health Plan Subsidy Calcs'!$D$4>1.5,'WPS Health Plan Subsidy Calcs'!$D$4<=2),'WPS Health Plan Rating Factors'!BX20,IF(AND('WPS Health Plan Subsidy Calcs'!$D$4>2,'WPS Health Plan Subsidy Calcs'!$D$4<=2.5),'WPS Health Plan Rating Factors'!CI20,'WPS Health Plan Rating Factors'!AX20))) -> D/C | L54: =IF(AND('WPS Health Plan Subsidy Calcs'!$D$4>1,'WPS Health Plan Subsidy Calcs'!$D$4<=1.5),'WPS Health Plan Rating Factors'!BN20,IF(AND('WPS Health Plan Subsidy Calcs'!$D$4>1.5,'WPS Health Plan Subsidy Calcs'!$D$4<=2),'WPS Health Plan Rating Factors'!BY20,IF(AND('WPS Health Plan Subsidy Calcs'!$D$4>2,'WPS Health Plan Subsidy Calcs'!$D$4<=2.5),'WPS Health Plan Rating Factors'!CJ20,'WPS Health Plan Rating Factors'!AY20))) -> D/C | M54: =IF(AND('WPS Health Plan Subsidy Calcs'!$D$4>1,'WPS Health Plan Subsidy Calcs'!$D$4<=1.5),'WPS Health Plan Rating Factors'!BO20,IF(AND('WPS Health Plan Subsidy Calcs'!$D$4>1.5,'WPS Health Plan Subsidy Calcs'!$D$4<=2),'WPS Health Plan Rating Factors'!BZ20,IF(AND('WPS Health Plan Subsidy Calcs'!$D$4>2,'WPS Health Plan Subsidy Calcs'!$D$4<=2.5),'WPS Health Plan Rating Factors'!CK20,'WPS Health Plan Rating Factors'!BA20))) -> $0 preventive, D/C all others | P54: =IF('WPS Health Plan Rating Factors'!BC20-'WPS Health Plan Quote'!$L$17<0,0,'WPS Health Plan Rating Factors'!BC20-'WPS Health Plan Quote'!$L$17) -> 
B56: =IF(L15="On Exchange",IF(AND('WPS Health Plan Subsidy Calcs'!$D$4>1,'WPS Health Plan Subsidy Calcs'!$D$4<=1.5),HYPERLINK('WPS Health Plan Tables'!O75,'WPS Health Plan Tables'!N75),IF(AND('WPS Health Plan Subsidy Calcs'!$D$4>1.5,'WPS Health Plan Subsidy Calcs'!$D$4<=2),HYPERLINK('WPS Health Plan Tables'!O74,'WPS Health Plan Tables'!N74),IF(AND('WPS Health Plan Subsidy Calcs'!$D$4>2,'WPS Health Plan Subsidy Calcs'!$D$4<=2.5),HYPERLINK('WPS Health Plan Tables'!O73,'WPS Health Plan Tables'!N73),HYPERLINK('WPS Health Plan Tables'!O70,'WPS Health Plan Tables'!N70)))),HYPERLINK('WPS Health Plan Tables'!O69,'WPS Health Plan Tables'!N69)) -> WPS HMO HDHP Silver $6,125 | E56: ='WPS Health Plan Rating Factors'!AO21 -> Silver | F56: =IF(AND('WPS Health Plan Subsidy Calcs'!$D$4>1,'WPS Health Plan Subsidy Calcs'!$D$4<=1.5),"$"&'WPS Health Plan Rating Factors'!BE21,IF(AND('WPS Health Plan Subsidy Calcs'!$D$4>1.5,'WPS Health Plan Subsidy Calcs'!$D$4<=2),"$"&'WPS Health Plan Rating Factors'!BP21,IF(AND('WPS Health Plan Subsidy Calcs'!$D$4>2,'WPS Health Plan Subsidy Calcs'!$D$4<=2.5),"$"&'WPS Health Plan Rating Factors'!CA21,"$"&'WPS Health Plan Rating Factors'!AP21))) -> $6125 | G56: =IF(AND('WPS Health Plan Subsidy Calcs'!$D$4>1,'WPS Health Plan Subsidy Calcs'!$D$4<=1.5),100*'WPS Health Plan Rating Factors'!BG21&"%",IF(AND('WPS Health Plan Subsidy Calcs'!$D$4>1.5,'WPS Health Plan Subsidy Calcs'!$D$4<=2),100*'WPS Health Plan Rating Factors'!BR21&"%",IF(AND('WPS Health Plan Subsidy Calcs'!$D$4>2,'WPS Health Plan Subsidy Calcs'!$D$4<=2.5),100*'WPS Health Plan Rating Factors'!CC21&"%",100*'WPS Health Plan Rating Factors'!AR21&"%"))) -> 0% | H56: =IF(AND('WPS Health Plan Subsidy Calcs'!$D$4>1,'WPS Health Plan Subsidy Calcs'!$D$4<=1.5),"$"&'WPS Health Plan Rating Factors'!BI21,IF(AND('WPS Health Plan Subsidy Calcs'!$D$4>1.5,'WPS Health Plan Subsidy Calcs'!$D$4<=2),"$"&'WPS Health Plan Rating Factors'!BT21,IF(AND('WPS Health Plan Subsidy Calcs'!$D$4>2,'WPS Health Plan Subsidy Calcs'!$D$4<=2.5),"$"&'WPS Health Plan Rating Factors'!CE21,"$"&'WPS Health Plan Rating Factors'!AT21))) -> $6125 | I56: =IF(AND('WPS Health Plan Subsidy Calcs'!$D$4>1,'WPS Health Plan Subsidy Calcs'!$D$4<=1.5),'WPS Health Plan Rating Factors'!BK21,IF(AND('WPS Health Plan Subsidy Calcs'!$D$4>1.5,'WPS Health Plan Subsidy Calcs'!$D$4<=2),'WPS Health Plan Rating Factors'!BV21,IF(AND('WPS Health Plan Subsidy Calcs'!$D$4>2,'WPS Health Plan Subsidy Calcs'!$D$4<=2.5),'WPS Health Plan Rating Factors'!CG21,'WPS Health Plan Rating Factors'!AV21))) -> D/C | J56: =IF(AND('WPS Health Plan Subsidy Calcs'!$D$4>1,'WPS Health Plan Subsidy Calcs'!$D$4<=1.5),'WPS Health Plan Rating Factors'!BL21,IF(AND('WPS Health Plan Subsidy Calcs'!$D$4>1.5,'WPS Health Plan Subsidy Calcs'!$D$4<=2),'WPS Health Plan Rating Factors'!BW21,IF(AND('WPS Health Plan Subsidy Calcs'!$D$4>2,'WPS Health Plan Subsidy Calcs'!$D$4<=2.5),'WPS Health Plan Rating Factors'!CH21,'WPS Health Plan Rating Factors'!AW21))) -> D/C | K56: =IF(AND('WPS Health Plan Subsidy Calcs'!$D$4>1,'WPS Health Plan Subsidy Calcs'!$D$4<=1.5),'WPS Health Plan Rating Factors'!BM21,IF(AND('WPS Health Plan Subsidy Calcs'!$D$4>1.5,'WPS Health Plan Subsidy Calcs'!$D$4<=2),'WPS Health Plan Rating Factors'!BX21,IF(AND('WPS Health Plan Subsidy Calcs'!$D$4>2,'WPS Health Plan Subsidy Calcs'!$D$4<=2.5),'WPS Health Plan Rating Factors'!CI21,'WPS Health Plan Rating Factors'!AX21))) -> D/C | L56: =IF(AND('WPS Health Plan Subsidy Calcs'!$D$4>1,'WPS Health Plan Subsidy Calcs'!$D$4<=1.5),'WPS Health Plan Rating Factors'!BN21,IF(AND('WPS Health Plan Subsidy Calcs'!$D$4>1.5,'WPS Health Plan Subsidy Calcs'!$D$4<=2),'WPS Health Plan Rating Factors'!BY21,IF(AND('WPS Health Plan Subsidy Calcs'!$D$4>2,'WPS Health Plan Subsidy Calcs'!$D$4<=2.5),'WPS Health Plan Rating Factors'!CJ21,'WPS Health Plan Rating Factors'!AY21))) -> D/C | M56: =IF(AND('WPS Health Plan Subsidy Calcs'!$D$4>1,'WPS Health Plan Subsidy Calcs'!$D$4<=1.5),'WPS Health Plan Rating Factors'!BO21,IF(AND('WPS Health Plan Subsidy Calcs'!$D$4>1.5,'WPS Health Plan Subsidy Calcs'!$D$4<=2),'WPS Health Plan Rating Factors'!BZ21,IF(AND('WPS Health Plan Subsidy Calcs'!$D$4>2,'WPS Health Plan Subsidy Calcs'!$D$4<=2.5),'WPS Health Plan Rating Factors'!CK21,'WPS Health Plan Rating Factors'!BA21))) -> $0 preventive, D/C all others | P56: =IF('WPS Health Plan Rating Factors'!BC21-'WPS Health Plan Quote'!$L$17<0,0,'WPS Health Plan Rating Factors'!BC21-'WPS Health Plan Quote'!$L$17) -> 
B58: Medical Plan Name | F58: Individual | H58: Individual Out-of-Pocket Limit (In Only)1 | I58: In Network Plan Copays | M58: Prescription Drug Copays | P58: Monthly Rate
B59: Select Network | E59: Metal | F59: Deductible | G59: Coins. | I59: Telehealth/ | J59: PCP | K59: Spec. | L59: Emerg. | M59: Preventive/Pref Gen/Non-Pref Gen/
B60: (select plan name for SBC) | F60: (In Only)1 | G60: (In Only) | I60: Retail | L60: Room | M60: Pref Brand/Non-Pref Brand/Specialty
B61: =IF(L15="On Exchange",HYPERLINK('WPS Health Plan Tables'!O477,'WPS Health Plan Tables'!N77),HYPERLINK('WPS Health Plan Tables'!O76,'WPS Health Plan Tables'!N76)) -> WPS POS Bronze $8,700 | E61: ='WPS Health Plan Rating Factors'!AO22 -> Bronze | F61: ="$"&'WPS Health Plan Rating Factors'!AP22&"/$"&'WPS Health Plan Rating Factors'!AQ22 -> $8700/$17400 | G61: =100*'WPS Health Plan Rating Factors'!AR22&"% / "&100*'WPS Health Plan Rating Factors'!AS22&"%" -> 0% / 30% | H61: ="$"&'WPS Health Plan Rating Factors'!AT22&"/$"&'WPS Health Plan Rating Factors'!AU22 -> $8700/$23400 | I61: ='WPS Health Plan Rating Factors'!AV22 -> D/C | J61: ='WPS Health Plan Rating Factors'!AW22 -> D/C | K61: ='WPS Health Plan Rating Factors'!AX22 -> D/C | L61: ='WPS Health Plan Rating Factors'!AY22 -> D/C | M61: ='WPS Health Plan Rating Factors'!BA22 -> $0 preventive, D/C all others | P61: =IF('WPS Health Plan Rating Factors'!BC22-'WPS Health Plan Quote'!$L$17<0,0,'WPS Health Plan Rating Factors'!BC22-'WPS Health Plan Quote'!$L$17) -> 
B63: =IF(L15="On Exchange",HYPERLINK('WPS Health Plan Tables'!O81,'WPS Health Plan Tables'!N81),HYPERLINK('WPS Health Plan Tables'!O80,'WPS Health Plan Tables'!N80)) -> WPS POS HDHP Bronze $6,000 | E63: ='WPS Health Plan Rating Factors'!AO23 -> Bronze | F63: ="$"&'WPS Health Plan Rating Factors'!AP23&"/$"&'WPS Health Plan Rating Factors'!AQ23 -> $6000/$12000 | G63: =100*'WPS Health Plan Rating Factors'!AR23&"% / "&100*'WPS Health Plan Rating Factors'!AS23&"%" -> 30% / 50% | H63: ="$"&'WPS Health Plan Rating Factors'!AT23&"/$"&'WPS Health Plan Rating Factors'!AU23 -> $7050/$22000 | I63: ='WPS Health Plan Rating Factors'!AV23 -> D/C | J63: ='WPS Health Plan Rating Factors'!AW23 -> D/C | K63: ='WPS Health Plan Rating Factors'!AX23 -> D/C | L63: ='WPS Health Plan Rating Factors'!AY23 -> D/C | M63: ='WPS Health Plan Rating Factors'!BA23 -> $0 preventive, D/C all others | P63: =IF('WPS Health Plan Rating Factors'!BC23-'WPS Health Plan Quote'!$L$17<0,0,'WPS Health Plan Rating Factors'!BC23-'WPS Health Plan Quote'!$L$17) -> 
B67: Optional Dental Plan | E67: Annual Maximum Benefit | G67: Annual Deductible | I67: Diagnostic & Preventive Care | P67: Monthly Rate
B68: (select plan for Brochure) | M68: Restorative Services
B71: =HYPERLINK('WPS Health Plan Tables'!O85,'WPS Health Plan Tables'!N85) -> Delta Dental PPO Individual Plan | E71: $1,200 per person | G71: $50 per person | I71: 20% Coinsurance after Deductible | M71: 50% after Deductible | P71: =SUM('WPS Health Plan Rating Factors'!CS15:CU15) -> 0
B74: D/C = Deductible & Coinsurance, PCP = Primary Care Practitioner, HMO = Health Maintenance Organizations, POS = Point of Service
B76: Premium and Subsidy estimates are based on the information you have provided. Actual rates will be based on the information in your signed application.
B78: Plans offered on the Federal Exchange can be issued to applicants under the age of 18.
B80: 1Family deductibles and out-of-pocket limits are 2x the individual amounts.
B82: 2The catastrophic plan is only available to people under age 30 or those who qualify for a hardship exemption from the Federally Facilitated Marketplace (FFM).
B84: =IF(AND('WPS Health Plan Subsidy Calcs'!D4<1,'WPS Health Plan Quote'!H17<>""),'WPS Health Plan Subsidy Calcs'!A95,IF(AND('WPS Health Plan Subsidy Calcs'!D4<=2,'WPS Health Plan Subsidy Calcs'!D4>1,'WPS Health Plan Rating Factors'!CQ13=0),'WPS Health Plan Subsidy Calcs'!A94,IF(AND('WPS Health Plan Subsidy Calcs'!D4<=2,'WPS Health Plan Subsidy Calcs'!D4>1,'WPS Health Plan Rating Factors'!CQ13>0),'WPS Health Plan Subsidy Calcs'!A94,IF(AND('WPS Health Plan Subsidy Calcs'!D4<=3.0633,'WPS Health Plan Subsidy Calcs'!D4>2,'WPS Health Plan Rating Factors'!CQ13>0),'WPS Health Plan Subsidy Calcs'!A97,"")))) -> 
B86: =IF(AND('WPS Health Plan Subsidy Calcs'!D4<1,'WPS Health Plan Quote'!H17<>""),'WPS Health Plan Subsidy Calcs'!A96,IF(AND('WPS Health Plan Subsidy Calcs'!D4<=2,'WPS Health Plan Subsidy Calcs'!D4>1,'WPS Health Plan Rating Factors'!CQ13=0),"",IF(AND('WPS Health Plan Subsidy Calcs'!D4<=2,'WPS Health Plan Subsidy Calcs'!D4>1,'WPS Health Plan Rating Factors'!CQ13>0),'WPS Health Plan Subsidy Calcs'!A97,IF(AND('WPS Health Plan Subsidy Calcs'!D4<=3.0633,'WPS Health Plan Subsidy Calcs'!D4>2,'WPS Health Plan Rating Factors'!CQ13>0),'WPS Health Plan Subsidy Calcs'!A98,"")))) -> 
B87: =IF(AND('WPS Health Plan Subsidy Calcs'!D4<1,'WPS Health Plan Quote'!H17<>""),"",IF(AND('WPS Health Plan Subsidy Calcs'!D4<=2,'WPS Health Plan Subsidy Calcs'!D4>1,'WPS Health Plan Rating Factors'!CQ13=0),"",IF(AND('WPS Health Plan Subsidy Calcs'!D4<=2,'WPS Health Plan Subsidy Calcs'!D4>1,'WPS Health Plan Rating Factors'!CQ13>0),'WPS Health Plan Subsidy Calcs'!A98,IF(AND('WPS Health Plan Subsidy Calcs'!D4<=3.0633,'WPS Health Plan Subsidy Calcs'!D4>2,'WPS Health Plan Rating Factors'!CQ13>0),"","")))) -> 

Sheet WPS Health Plan Tables (hidden)
N1: On Exchange Link | O1: https://wps.healthsherpa.com/?_agent_id=wps
N2: Off Exchange Link | O2: https://my.wpshealth.com/en/Individual/healthplanhome?WebsiteId=ahsnpwa&state=pjn2yxr&producttype=tvewa9w
N3: NOTE: These plan names are supposed to have "| Select Network" at the end, but do to size constraints, im leaving that off and putting it in the title of the categorey
B4: County Selection | F4: Spouse Selection | I4: App. Tobacco | N4: WPS HMO Bronze $6,500 with 3 Free PCP Visits | O4: https://www.wpshealth.com/resources/sbc/files/2022/84670WI1250150-00.pdf
F5: Indicator | G5: =IF('WPS Health Plan Quote'!D15=G6,1,IF('WPS Health Plan Quote'!D15=G7,2,3)) -> 1 | I5: Indicator | J5: =IF('WPS Health Plan Quote'!E23=J6,1,IF(#REF!=J7,2,3)) -> 1 | N5: WPS HMO Bronze $6,500 with 3 Free PCP Visits | O5: https://www.wpshealth.com/resources/sbc/files/2022/84670WI1250150-01.pdf
B6: Brown | C6: 2 | F6: 1 | I6: 1 | N6: WPS HMO Bronze $0 CSR Zero | O6: https://www.wpshealth.com/resources/sbc/files/2022/84670WI1250150-02.pdf
B7: Calumet | C7: 3 | F7: 2 | G7: No | I7: 2 | J7: No | N7: WPS HMO Bronze $6,500 CSR Limited with 3 Free PCP Visits | O7: https://www.wpshealth.com/resources/sbc/files/2022/84670WI1250150-03.pdf
B8: Dodge | C8: 4 | F8: 3 | G8: Yes | I8: 3 | J8: Yes | N8: WPS HMO Bronze $7,500 | O8: https://www.wpshealth.com/resources/sbc/files/2022/84670WI1250151-00.pdf
B9: Door | C9: 5 | N9: WPS HMO Bronze $7,500 | O9: https://www.wpshealth.com/resources/sbc/files/2022/84670WI1250151-01.pdf
B10: Fond du Lac | C10: 6 | F10: Dependent Sel. | I10: Spouse Tabacco | N10: WPS HMO Bronze $0 CSR Zero | O10: https://www.wpshealth.com/resources/sbc/files/2022/84670WI1250151-02.pdf
B11: Green Lake | C11: 7 | F11: 1 | I11: Indicator | J11: =IF('WPS Health Plan Quote'!#REF!=J12,1,IF(#REF!=J13,2,3)) ->  | N11: WPS HMO Bronze $7,500 CSR Limited | O11: https://www.wpshealth.com/resources/sbc/files/2022/84670WI1250151-03.pdf
B12: Kenosha | C12: 8 | F12: 2 | G12: 0 | I12: 1 | N12: WPS HMO Bronze $8,700 | O12: https://www.wpshealth.com/resources/sbc/files/2022/84670WI1250149-00.pdf
B13: Kewaunee | C13: 9 | F13: 3 | G13: 1 | I13: 2 | J13: No | N13: WPS HMO Bronze $8,700 | O13: https://www.wpshealth.com/resources/sbc/files/2022/84670WI1250149-01.pdf
B14: Manitowoc | C14: 10 | F14: 4 | G14: 2 | I14: 3 | J14: Yes | N14: WPS HMO Bronze $0 CSR Zero | O14: https://www.wpshealth.com/resources/sbc/files/2022/84670WI1250149-02.pdf
B15: Marinette | C15: 11 | F15: 5 | G15: 3 | N15: WPS HMO Bronze $8,700 CSR Limited | O15: https://www.wpshealth.com/resources/sbc/files/2022/84670WI1250149-03.pdf
B16: Marquette | C16: 12 | F16: 6 | G16: 4 | I16: Under Age 26? | N16: WPS HMO Silver $4,500 | O16: https://www.wpshealth.com/resources/sbc/files/2022/84670WI1250153-00.pdf
B17: Milwaukee | C17: 13 | F17: 7 | G17: 5 | I17: Eff Date | J17: =DATE(YEAR('WPS Health Plan Quote'!H13),MONTH('WPS Health Plan Quote'!H13),DAY('WPS Health Plan Quote'!H13)) -> 00:00:00 | N17: WPS HMO Silver $4,500 | O17: https://www.wpshealth.com/resources/sbc/files/2022/84670WI1250153-01.pdf | DL17: =ROUND(ROUND(ROUND(ROUND(BB17*#REF!,4)*$A$8,2)*VLOOKUP($I$5,$G$9:$J$24,4,FALSE),2)*$CS$12,2)+ROUND(ROUND(ROUND(ROUND(BB17*#REF!,4)*$A$8,2)*VLOOKUP($I$5,$G$9:$J$24,4,FALSE),2)*$CT$12,2)+ROUND(ROUND(ROUND(ROUND(BB17*#REF!,4)*$A$8,2)*VLOOKUP($I$5,$G$9:$J$24,4,FALSE),2)*$CU$12,2)+ROUND(ROUND(ROUND(ROUND(BB17*#REF!,4)*$A$8,2)*VLOOKUP($I$5,$G$9:$J$24,4,FALSE),2)*$CV$12,2)+ROUND(ROUND(ROUND(ROUND(BB17*#REF!,4)*$A$8,2)*VLOOKUP($I$5,$G$9:$J$24,4,FALSE),2)*$CW$12,2)+ROUND(ROUND(ROUND(ROUND(BB17*#REF!,4)*$A$8,2)*VLOOKUP($I$5,$G$9:$J$24,4,FALSE),2)*$CX$12,2)+ROUND(ROUND(ROUND(ROUND(BB17*#REF!,4)*$A$8,2)*VLOOKUP($I$5,$G$9:$J$24,4,FALSE),2)*$CY$12,2)+ROUND(ROUND(ROUND(ROUND(BB17*#REF!,4)*$A$8,2)*VLOOKUP($I$5,$G$9:$J$24,4,FALSE),2)*$CZ$12,2)+ROUND(ROUND(ROUND(ROUND(BB17*#REF!,4)*$A$8,2)*VLOOKUP($I$5,$G$9:$J$24,4,FALSE),2)*$DA$12,2)+ROUND(ROUND(ROUND(ROUND(BB17*#REF!,4)*$A$8,2)*VLOOKUP($I$5,$G$9:$J$24,4,FALSE),2)*$DB$12,2)+ROUND(ROUND(ROUND(ROUND(BB17*#REF!,4)*$A$8,2)*VLOOKUP($I$5,$G$9:$J$24,4,FALSE),2)*$DC$12,2)+ROUND(ROUND(ROUND(ROUND(BB17*#REF!,4)*$A$8,2)*VLOOKUP($I$5,$G$9:$J$24,4,FALSE),2)*$DD$12,2) -> 
B18: Oconto | C18: 14 | F18: 8 | G18: 6 | I18: Age | J18: =EDATE(DATE(YEAR('WPS Health Plan Quote'!H13),MONTH('WPS Health Plan Quote'!H13),DAY('WPS Health Plan Quote'!H13)),-312) ->  | N18: WPS HMO Silver $0 CSR Zero | O18: https://www.wpshealth.com/resources/sbc/files/2022/84670WI1250153-02.pdf
B19: Outagamie | C19: 15 | F19: 9 | G19: 7 | N19: WPS HMO Silver $4,500 CSR Limited | O19: https://www.wpshealth.com/resources/sbc/files/2022/84670WI1250153-03.pdf
B20: Ozaukee | C20: 16 | F20: 10 | G20: 8 | N20: WPS HMO Silver $4,200 CSR 73 | O20: https://www.wpshealth.com/resources/sbc/files/2022/84670WI1250153-04.pdf
B21: Racine | C21: 17 | F21: 11 | G21: 9 | I21: Exchange Indicator | N21: WPS HMO Silver $1,100 CSR 87 | O21: https://www.wpshealth.com/resources/sbc/files/2022/84670WI1250153-05.pdf
B22: Sheboygan | C22: 18 | F22: 12 | G22: 10 | I22: Indicator | J22: =IF('WPS Health Plan Quote'!L15=J23,1,IF('WPS Health Plan Quote'!L15=J24,2,3)) -> 1 | N22: WPS HMO Silver $100 CSR 94 | O22: https://www.wpshealth.com/resources/sbc/files/2022/84670WI1250153-06.pdf
B23: Washington | C23: 19 | I23: 1 | N23: WPS HMO Silver $5,000 | O23: https://www.wpshealth.com/resources/sbc/files/2022/84670WI1250154-00.pdf
B24: Waukesha | C24: 20 | I24: 2 | J24: On Exchange | N24: WPS HMO Silver $5,000 | O24: https://www.wpshealth.com/resources/sbc/files/2022/84670WI1250154-01.pdf
B25: Waupaca | C25: 21 | I25: 3 | J25: Off Exchange | N25: WPS HMO Silver $0 CSR Zero | O25: https://www.wpshealth.com/resources/sbc/files/2022/84670WI1250154-02.pdf
B26: Waushara | C26: 22 | N26: WPS HMO Silver $5,000 CSR Limited | O26: https://www.wpshealth.com/resources/sbc/files/2022/84670WI1250154-03.pdf
B27: Winnebago | C27: 23 | N27: WPS HMO Silver $4,300 CSR 73 | O27: https://www.wpshealth.com/resources/sbc/files/2022/84670WI1250154-04.pdf
I28: Under Age 18? | N28: WPS HMO Silver $1,350 CSR 87 | O28: https://www.wpshealth.com/resources/sbc/files/2022/84670WI1250154-05.pdf
I29: Eff Date | J29: =DATE(YEAR('WPS Health Plan Quote'!H13),MONTH('WPS Health Plan Quote'!H13),DAY('WPS Health Plan Quote'!H13)) -> 00:00:00 | N29: WPS HMO Silver $200 CSR 94 | O29: https://www.wpshealth.com/resources/sbc/files/2022/84670WI1250154-06.pdf
I30: Age | J30: =IF(J22=2,DATE(9999,12,31),EDATE(DATE(YEAR('WPS Health Plan Quote'!H13),MONTH('WPS Health Plan Quote'!H13),DAY('WPS Health Plan Quote'!H13)),-216)) ->  | N30: WPS HMO Silver $7,500 | O30: https://www.wpshealth.com/resources/sbc/files/2022/84670WI1250152-00.pdf
N31: WPS HMO Silver $7,500 | O31: https://www.wpshealth.com/resources/sbc/files/2022/84670WI1250152-01.pdf
N32: WPS HMO Silver $0 CSR Zero | O32: https://www.wpshealth.com/resources/sbc/files/2022/84670WI1250152-02.pdf
N33: WPS HMO Silver $7,500 CSR Limited | O33: https://www.wpshealth.com/resources/sbc/files/2022/84670WI1250152-03.pdf
N34: WPS HMO Silver $5,250 CSR 73 | O34: https://www.wpshealth.com/resources/sbc/files/2022/84670WI1250152-04.pdf
N35: WPS HMO Silver $1,400 CSR 87 | O35: https://www.wpshealth.com/resources/sbc/files/2022/84670WI1250152-05.pdf
N36: WPS HMO Silver $300 CSR 94 | O36: https://www.wpshealth.com/resources/sbc/files/2022/84670WI1250152-06.pdf
N37: WPS HMO Gold $3,000 | O37: https://www.wpshealth.com/resources/sbc/files/2022/84670WI1250155-00.pdf
N38: WPS HMO Gold $3,000 | O38: https://www.wpshealth.com/resources/sbc/files/2022/84670WI1250155-01.pdf
F39: =COUNTA(#REF!) -> 1 | N39: WPS HMO Gold $0 CSR Zero | O39: https://www.wpshealth.com/resources/sbc/files/2022/84670WI1250155-02.pdf
N40: WPS HMO Gold $3,000 CSR Limited | O40: https://www.wpshealth.com/resources/sbc/files/2022/84670WI1250155-03.pdf
N41: WPS HMO Catastrophic $8,700 with 3 Free PCP Visits | O41: https://www.wpshealth.com/resources/sbc/files/2022/84670WI1250156-00.pdf
N42: WPS HMO Catastrophic $8,700 with 3 Free PCP Visits | O42: https://www.wpshealth.com/resources/sbc/files/2022/84670WI1250156-01.pdf
N43: WPS HMO HDHP Bronze $6,000 | O43: https://www.wpshealth.com/resources/sbc/files/2022/84670WI1250159-00.pdf
N44: WPS HMO HDHP Bronze $6,000 | O44: https://www.wpshealth.com/resources/sbc/files/2022/84670WI1250159-01.pdf
N45: WPS HMO HDHP Bronze $0 CSR Zero | O45: https://www.wpshealth.com/resources/sbc/files/2022/84670WI1250159-02.pdf
N46: WPS HMO HDHP Bronze $6,000 CSR Limited | O46: https://www.wpshealth.com/resources/sbc/files/2022/84670WI1250159-03.pdf
N47: WPS HMO HDHP Bronze $6,830 | O47: https://www.wpshealth.com/resources/sbc/files/2022/84670WI1250158-00.pdf
N48: WPS HMO HDHP Bronze $6,830 | O48: https://www.wpshealth.com/resources/sbc/files/2022/84670WI1250158-01.pdf
N49: WPS HMO HDHP Bronze $0 CSR Zero | O49: https://www.wpshealth.com/resources/sbc/files/2022/84670WI1250158-02.pdf
N50: WPS HMO HDHP Bronze $6,830 CSR Limited | O50: https://www.wpshealth.com/resources/sbc/files/2022/84670WI1250158-03.pdf
N51: WPS HMO HDHP Bronze $7,050 | O51: https://www.wpshealth.com/resources/sbc/files/2022/84670WI1250157-00.pdf
N52: WPS HMO HDHP Bronze $7,050 | O52: https://www.wpshealth.com/resources/sbc/files/2022/84670WI1250157-01.pdf
N53: WPS HMO HDHP Bronze $0 CSR Zero | O53: https://www.wpshealth.com/resources/sbc/files/2022/84670WI1250157-02.pdf
N54: WPS HMO HDHP Bronze $7,050 CSR Limited | O54: https://www.wpshealth.com/resources/sbc/files/2022/84670WI1250157-03.pdf
N55: WPS HMO HDHP Silver $4,500 | O55: https://www.wpshealth.com/resources/sbc/files/2022/84670WI1250160-00.pdf
N56: WPS HMO HDHP Silver $4,500 | O56: https://www.wpshealth.com/resources/sbc/files/2022/84670WI1250160-01.pdf
N57: WPS HMO HDHP Silver $0 CSR Zero | O57: https://www.wpshealth.com/resources/sbc/files/2022/84670WI1250160-02.pdf
N58: WPS HMO HDHP Silver $4,500 CSR Limited | O58: https://www.wpshealth.com/resources/sbc/files/2022/84670WI1250160-03.pdf
N59: WPS HMO HDHP Silver $2,800 CSR 73 | O59: https://www.wpshealth.com/resources/sbc/files/2022/84670WI1250160-04.pdf
N60: WPS HMO HDHP Silver $1,400 CSR 87 | O60: https://www.wpshealth.com/resources/sbc/files/2022/84670WI1250160-05.pdf
N61: WPS HMO HDHP Silver $225 CSR 94 | O61: https://www.wpshealth.com/resources/sbc/files/2022/84670WI1250160-06.pdf
N62: WPS HMO HDHP Silver $5,250 | O62: https://www.wpshealth.com/resources/sbc/files/2022/84670WI1250161-00.pdf
N63: WPS HMO HDHP Silver $5,250 | O63: https://www.wpshealth.com/resources/sbc/files/2022/84670WI1250161-01.pdf
N64: WPS HMO HDHP Silver $0 CSR Zero | O64: https://www.wpshealth.com/resources/sbc/files/2022/84670WI1250161-02.pdf
N65: WPS HMO HDHP Silver $5,250 CSR Limited | O65: https://www.wpshealth.com/resources/sbc/files/2022/84670WI1250161-03.pdf
N66: WPS HMO HDHP Silver $4,200 CSR 73 | O66: https://www.wpshealth.com/resources/sbc/files/2022/84670WI1250161-04.pdf
N67: WPS HMO HDHP Silver $1,700 CSR 87 | O67: https://www.wpshealth.com/resources/sbc/files/2022/84670WI1250161-05.pdf
N68: WPS HMO HDHP Silver $625 CSR 94 | O68: https://www.wpshealth.com/resources/sbc/files/2022/84670WI1250161-06.pdf
N69: WPS HMO HDHP Silver $6,125 | O69: https://www.wpshealth.com/resources/sbc/files/2022/84670WI1250162-00.pdf
N70: WPS HMO HDHP Silver $6,125 | O70: https://www.wpshealth.com/resources/sbc/files/2022/84670WI1250162-01.pdf
N71: WPS HMO HDHP Silver $0 CSR Zero | O71: https://www.wpshealth.com/resources/sbc/files/2022/84670WI1250162-02.pdf
N72: WPS HMO HDHP Silver $6,125 CSR Limited | O72: https://www.wpshealth.com/resources/sbc/files/2022/84670WI1250162-03.pdf
N73: WPS HMO HDHP Silver $4,200 CSR 73 | O73: https://www.wpshealth.com/resources/sbc/files/2022/84670WI1250162-04.pdf
N74: WPS HMO HDHP Silver $1,700 CSR 87 | O74: https://www.wpshealth.com/resources/sbc/files/2022/84670WI1250162-05.pdf
N75: WPS HMO HDHP Silver $625 CSR 94 | O75: https://www.wpshealth.com/resources/sbc/files/2022/84670WI1250162-06.pdf
N76: WPS POS Bronze $8,700 | O76: https://www.wpshealth.com/resources/sbc/files/2022/84670WI1270149-00.pdf
N77: WPS POS Bronze $8,700 | O77: https://www.wpshealth.com/resources/sbc/files/2022/84670WI1270149-01.pdf
N78: WPS POS Bronze $0 CSR Zero | O78: https://www.wpshealth.com/resources/sbc/files/2022/84670WI1270149-02.pdf
N79: WPS POS Bronze $8,700 CSR Limited | O79: https://www.wpshealth.com/resources/sbc/files/2022/84670WI1270149-03.pdf
N80: WPS POS HDHP Bronze $6,000 | O80: https://www.wpshealth.com/resources/sbc/files/2022/84670WI1270159-00.pdf
N81: WPS POS HDHP Bronze $6,000 | O81: https://www.wpshealth.com/resources/sbc/files/2022/84670WI1270159-01.pdf
N82: WPS POS HDHP Bronze $0 CSR Zero | O82: https://www.wpshealth.com/resources/sbc/files/2022/84670WI1270159-02.pdf
N83: WPS POS HDHP Bronze $6,000 CSR Limited | O83: https://www.wpshealth.com/resources/sbc/files/2022/84670WI1270159-03.pdf
N85: Delta Dental PPO Individual Plan | O85: https://secure.wpsic.com/sales-materials/files/33873_wps-optional-dental-coverage.pdf

Sheet WPS Health Plan Rating Factors (hidden)
CR1: Eff. Date | CS1: ='WPS Health Plan Quote'!H13 -> 00:00:00
CR2: Rate Calc Date
I4: On/Off | CR4: Member | CS4: Applicant | CT4: Spouse | CU4: Dep. 1 | CV4: Dep. 2 | CW4: Dep. 3 | CX4: Dep. 4 | CY4: Dep. 5 | CZ4: Dep. 6 | DA4: Dep. 7 | DB4: Dep. 8 | DC4: Dep. 9 | DD4: Dep. 10 | DJ4: TOTAL
H5: PPO | I5: =VLOOKUP('WPS Health Plan Quote'!L13,'WPS Health Plan Tables'!$B$5:$C$27,2,FALSE) ->  | T5: Original | CR5: DOB | CS5: =IF('WPS Health Plan Quote'!C23="","",'WPS Health Plan Quote'!C23) ->  | CT5: =IF('WPS Health Plan Quote'!C25="","",'WPS Health Plan Quote'!C25) ->  | CU5: =IF('WPS Health Plan Quote'!G23="","",'WPS Health Plan Quote'!G23) ->  | CV5: =IF('WPS Health Plan Quote'!G25="","",'WPS Health Plan Quote'!G25) ->  | CW5: =IF('WPS Health Plan Quote'!I23="","",'WPS Health Plan Quote'!I23) ->  | CX5: =IF('WPS Health Plan Quote'!I25="","",'WPS Health Plan Quote'!I25) ->  | CY5: =IF('WPS Health Plan Quote'!L23="","",'WPS Health Plan Quote'!L23) ->  | CZ5: =IF('WPS Health Plan Quote'!L25="","",'WPS Health Plan Quote'!L25) ->  | DA5: =IF('WPS Health Plan Quote'!N23="","",'WPS Health Plan Quote'!N23) ->  | DB5: =IF('WPS Health Plan Quote'!N25="","",'WPS Health Plan Quote'!N25) ->  | DC5: =IF('WPS Health Plan Rating Factors'!DD39="","",'WPS Health Plan Rating Factors'!DD39) ->  | DD5: =IF('WPS Health Plan Rating Factors'!DD41="","",'WPS Health Plan Rating Factors'!DD41) ->  | DM5: Value of the
D6: Age | E6: Tobacco | H6: HDHP | I6: 2 | P6: PPO | Q6: 1 | T6: Plan Order | V6: Aspirus Arise | W6: Aspirus Arise | X6: Aspirus Arise | Y6: ThedaCare | Z6: ThedaCare | AA6: ThedaCare | AB6: Aurora | AC6: Aurora | AD6: Aurora | AE6: Aurora | AF6: Aurora | AG6: Aurora | AH6: Aurora | AI6: Aurora | AJ6: Aurora | AK6: Aurora | AL6: Aurora | AM6: Aurora | AV6: Retail | AW6: PCP | AX6: SPC | AY6: ER | BB6: POS | BE6: Poverty Level 101-150 | BP6: Poverty Level 151%-200% | CA6: Poverty Level 201%-250% | CR6: Age | CS6: =IF(MONTH(IF(CS2="",$CS$1,CS2))<MONTH(CS5),YEAR(IF(CS2="",$CS$1,CS2))-YEAR(CS5)-1,IF(MONTH(IF(CS2="",$CS$1,CS2))>MONTH(CS5),YEAR(IF(CS2="",$CS$1,CS2))-YEAR(CS5),IF(DAY(IF(CS2="",$CS$1,CS2))<DAY(CS5),YEAR(IF(CS2="",$CS$1,CS2))-YEAR(CS5)-1,YEAR(IF(CS2="",$CS$1,CS2))-YEAR(CS5)))) ->  | DL6: For Subsidy Calculator | DM6: Smoker Surcharge
A7: Index Rate | C7: Age | D7: Factor | E7: Factor | H7: County | I7: OCI Region | J7: Factor | K7: Network 1 | L7: Network 2 | M7: Network 3 | P7: Network | Q7: HMO Factor | R7: POS Factor | T7: Plan Number | U7: AV Value | V7: Plan Name | W7: HIOS # | X7: Pricing Value | Y7: Plan Name | Z7: HIOS # | AA7: Pricing Value | AB7: Plan Name | AC7: HIOS # | AD7: Pricing Value | AE7: Plan Name | AF7: HIOS # | AG7: Pricing Value | AH7: Plan Name | AI7: HIOS # | AJ7: Pricing Value | AK7: Plan Name | AL7: HIOS # | AM7: Pricing Value | AN7: Plan Type | AO7: Metal | AP7: Deductible (IN) | AQ7: Deductible (OUT) | AR7: Coins. (IN) | AS7: Coins. (OUT) | AT7: OOP Max (IN) | AU7: OOP Max (OUT) | AV7: Copay | AW7: Copay | AX7: Copay | AY7: Copay | AZ7: Free PCP Visits | BA7: Prev/Gen-Prf/Gen-Oth/Brand-Prf/Brand-Oth/Spcl | BB7: Factor | BC7: Rate | BD7: Metal | BE7: Deductible (IN) | BF7: Deductible (OUT) | BG7: Coins. (IN) | BH7: Coins. (OUT) | BI7: OOP Max (IN) | BJ7: OOP Max (OUT) | BK7: Retail | BL7: PCP | BM7: SPC | BN7: ER | BO7: Prescription Plan Preventive/Generic/Preferred/ Non-Preferred/Specialty | BP7: Deductible (IN) | BQ7: Deductible (OUT) | BR7: Coins. (IN) | BS7: Coins. (OUT) | BT7: OOP Max (IN) | BU7: OOP Max (OUT) | BV7: Retail | BW7: PCP | BX7: SPC | BY7: ER | BZ7: Prescription Plan Preventive/Generic/Preferred/ Non-Preferred/Specialty | CA7: Deductible (IN) | CB7: Deductible (OUT) | CC7: Coins. (IN) | CD7: Coins. (OUT) | CE7: OOP Max (IN) | CF7: OOP Max (OUT) | CG7: Retail | CH7: PCP | CI7: SPC | CJ7: ER | CK7: Prescription Plan Preventive/Generic/Preferred/ Non-Preferred/Specialty | CR7: Tobacco | CS7: =IF('WPS Health Plan Quote'!E23="Yes",3,1) -> 1 | CT7: =IF('WPS Health Plan Quote'!E25="Yes",3,1) -> 1 | CU7: 1 | CV7: 1 | CW7: 1 | CX7: 1 | CY7: 1 | CZ7: 1 | DA7: 1 | DB7: 1 | DC7: 1 | DD7: 1 | DL7: Always Assume No Smoker | DM7: and children under 19
A8: 654.74 | C8: 0 | D8: 0.765 | E8: 1 | G8: 1 | J8: 0 | L8: ="" ->  | M8: ="" ->  | O8: 2 | P8: Select | Q8: 0 | T8: 15 | V8: WPS HMO Bronze $6,500 with 3 Free PCP Visits | Select Network | W8: 84670WI1250150 | Y8: ThedaCare HMO 6000 | Z8: 84670WI1250101 | AA8: 0.487 | AB8: Aurora HMO 6000 | AC8: 84670WI1250107 | AD8: 0.487 | AE8: Aurora and ThedaCare HMO 6000 | AF8: 84670WI1250117 | AG8: 5681.25 | AH8: Aurora and Bellin HMO 6000 | AI8: 84670WI1250127 | AK8: ProHealth and Aurora HMO 6000 | AL8: 84670WI1250137 | AN8: HMO | AO8: Bronze | AP8: 6500 | AQ8: - | AR8: 0.2 | AS8: - | AT8: 8700 | AU8: - | AV8: D/C | AW8: 3 Free | AX8: D/C | AY8: D/C | AZ8: 3 | BA8: $0 preventive, D/C all others | BB8: 0.5175 | BC8: =ROUND(ROUND(ROUND(ROUND(BB8*$Q$9,4)*$A$8,2)*VLOOKUP($I$5,$G$9:$J$30,4,FALSE),2)*$CS$8,2)+ROUND(ROUND(ROUND(ROUND(BB8*$Q$9,4)*$A$8,2)*VLOOKUP($I$5,$G$9:$J$30,4,FALSE),2)*$CT$8,2)+ROUND(ROUND(ROUND(ROUND(BB8*$Q$9,4)*$A$8,2)*VLOOKUP($I$5,$G$9:$J$30,4,FALSE),2)*$CU$8,2)+ROUND(ROUND(ROUND(ROUND(BB8*$Q$9,4)*$A$8,2)*VLOOKUP($I$5,$G$9:$J$30,4,FALSE),2)*$CV$8,2)+ROUND(ROUND(ROUND(ROUND(BB8*$Q$9,4)*$A$8,2)*VLOOKUP($I$5,$G$9:$J$30,4,FALSE),2)*$CW$8,2)+ROUND(ROUND(ROUND(ROUND(BB8*$Q$9,4)*$A$8,2)*VLOOKUP($I$5,$G$9:$J$30,4,FALSE),2)*$CX$8,2)+ROUND(ROUND(ROUND(ROUND(BB8*$Q$9,4)*$A$8,2)*VLOOKUP($I$5,$G$9:$J$30,4,FALSE),2)*$CY$8,2)+ROUND(ROUND(ROUND(ROUND(BB8*$Q$9,4)*$A$8,2)*VLOOKUP($I$5,$G$9:$J$30,4,FALSE),2)*$CZ$8,2)+ROUND(ROUND(ROUND(ROUND(BB8*$Q$9,4)*$A$8,2)*VLOOKUP($I$5,$G$9:$J$30,4,FALSE),2)*$DA$8,2)+ROUND(ROUND(ROUND(ROUND(BB8*$Q$9,4)*$A$8,2)*VLOOKUP($I$5,$G$9:$J$30,4,FALSE),2)*$DB$8,2)+ROUND(ROUND(ROUND(ROUND(BB8*$Q$9,4)*$A$8,2)*VLOOKUP($I$5,$G$9:$J$30,4,FALSE),2)*$DC$8,2)+ROUND(ROUND(ROUND(ROUND(BB8*$Q$9,4)*$A$8,2)*VLOOKUP($I$5,$G$9:$J$30,4,FALSE),2)*$DD$8,2)+ROUND(ROUND(ROUND(ROUND(BB8*$Q$9,4)*$A$8,2)*VLOOKUP($I$5,$G$9:$J$30,4,FALSE),2)*$CU$10,2)+ROUND(ROUND(ROUND(ROUND(BB8*$Q$9,4)*$A$8,2)*VLOOKUP($I$5,$G$9:$J$30,4,FALSE),2)*$CV$10,2)+ROUND(ROUND(ROUND(ROUND(BB8*$Q$9,4)*$A$8,2)*VLOOKUP($I$5,$G$9:$J$30,4,FALSE),2)*$CW$10,2)+ROUND(ROUND(ROUND(ROUND(BB8*$Q$9,4)*$A$8,2)*VLOOKUP($I$5,$G$9:$J$30,4,FALSE),2)*$CX$10,2)+ROUND(ROUND(ROUND(ROUND(BB8*$Q$9,4)*$A$8,2)*VLOOKUP($I$5,$G$9:$J$30,4,FALSE),2)*$CY$10,2)+ROUND(ROUND(ROUND(ROUND(BB8*$Q$9,4)*$A$8,2)*VLOOKUP($I$5,$G$9:$J$30,4,FALSE),2)*$CZ$10,2)+ROUND(ROUND(ROUND(ROUND(BB8*$Q$9,4)*$A$8,2)*VLOOKUP($I$5,$G$9:$J$30,4,FALSE),2)*$DA$10,2)+ROUND(ROUND(ROUND(ROUND(BB8*$Q$9,4)*$A$8,2)*VLOOKUP($I$5,$G$9:$J$30,4,FALSE),2)*$DB$10,2)+ROUND(ROUND(ROUND(ROUND(BB8*$Q$9,4)*$A$8,2)*VLOOKUP($I$5,$G$9:$J$30,4,FALSE),2)*$DC$10,2)+ROUND(ROUND(ROUND(ROUND(BB8*$Q$9,4)*$A$8,2)*VLOOKUP($I$5,$G$9:$J$30,4,FALSE),2)*$DD$10,2) ->  | BD8: Bronze | BE8: 6500 | BF8: - | BG8: 0.2 | BH8: - | BI8: 8700 | BJ8: - | BK8: D/C | BL8: 3 Free | BM8: D/C | BN8: D/C | BO8: $0 preventive, D/C all others | BP8: 6500 | BQ8: - | BR8: 0.2 | BS8: - | BT8: 8700 | BU8: - | BV8: D/C | BW8: 3 Free | BX8: D/C | BY8: D/C | BZ8: $0 preventive, D/C all others | CA8: 6500 | CB8: - | CC8: 0.2 | CD8: - | CE8: 8700 | CF8: - | CG8: D/C | CH8: 3 Free | CI8: D/C | CJ8: D/C | CK8: $0 preventive, D/C all others | CR8: EE, SP, DP Over 20 Value | CS8: =IF(CS5="",0,VLOOKUP(CS6,$C$8:$E$58,2)*IF(CS7=3,VLOOKUP(CS6,$C$8:$E$58,3),1)) -> 0 | CT8: =IF(CT5="",0,VLOOKUP(CT6,$C$8:$E$58,2)*IF(CT7=3,VLOOKUP(CT6,$C$8:$E$58,3),1)) -> 0 | CU8: =IF(CU5="",0,VLOOKUP(CU6,$C$8:$E$58,2)*IF(CU7=3,VLOOKUP(CU6,$C$8:$E$58,3),1)*IF(CU6<21,0,1)) -> 0 | CV8: 0 | CW8: 0 | CX8: 0 | CY8: 0 | CZ8: 0 | DA8: 0 | DB8: 0 | DC8: 0 | DD8: 0 | DJ8: =SUM(CS8:DD8) -> 0 | DL8: =ROUND(ROUND(ROUND(ROUND(BB8*$Q$9,4)*$A$8,2)*VLOOKUP($I$5,$G$9:$J$30,4,FALSE),2)*$CS$12,2)+ROUND(ROUND(ROUND(ROUND(BB8*$Q$9,4)*$A$8,2)*VLOOKUP($I$5,$G$9:$J$30,4,FALSE),2)*$CT$12,2)+ROUND(ROUND(ROUND(ROUND(BB8*$Q$9,4)*$A$8,2)*VLOOKUP($I$5,$G$9:$J$30,4,FALSE),2)*$CU$12,2)+ROUND(ROUND(ROUND(ROUND(BB8*$Q$9,4)*$A$8,2)*VLOOKUP($I$5,$G$9:$J$30,4,FALSE),2)*$CV$12,2)+ROUND(ROUND(ROUND(ROUND(BB8*$Q$9,4)*$A$8,2)*VLOOKUP($I$5,$G$9:$J$30,4,FALSE),2)*$CW$12,2)+ROUND(ROUND(ROUND(ROUND(BB8*$Q$9,4)*$A$8,2)*VLOOKUP($I$5,$G$9:$J$30,4,FALSE),2)*$CX$12,2)+ROUND(ROUND(ROUND(ROUND(BB8*$Q$9,4)*$A$8,2)*VLOOKUP($I$5,$G$9:$J$30,4,FALSE),2)*$CY$12,2)+ROUND(ROUND(ROUND(ROUND(BB8*$Q$9,4)*$A$8,2)*VLOOKUP($I$5,$G$9:$J$30,4,FALSE),2)*$CZ$12,2)+ROUND(ROUND(ROUND(ROUND(BB8*$Q$9,4)*$A$8,2)*VLOOKUP($I$5,$G$9:$J$30,4,FALSE),2)*$DA$12,2)+ROUND(ROUND(ROUND(ROUND(BB8*$Q$9,4)*$A$8,2)*VLOOKUP($I$5,$G$9:$J$30,4,FALSE),2)*$DB$12,2)+ROUND(ROUND(ROUND(ROUND(BB8*$Q$9,4)*$A$8,2)*VLOOKUP($I$5,$G$9:$J$30,4,FALSE),2)*$DC$12,2)+ROUND(ROUND(ROUND(ROUND(BB8*$Q$9,4)*$A$8,2)*VLOOKUP($I$5,$G$9:$J$30,4,FALSE),2)*$DD$12,2)+IF(AND($CU$10<0.941,'WPS Health Plan Subsidy Calcs'!$D$4<3.0633),0,ROUND(ROUND(ROUND(ROUND(BB8*$Q$9,4)*$A$8,2)*VLOOKUP($I$5,$G$9:$J$30,4,FALSE),2)*$CU$10,2))+IF(AND($CV$10<0.941,'WPS Health Plan Subsidy Calcs'!$D$4<3.0633),0,ROUND(ROUND(ROUND(ROUND(BB8*$Q$9,4)*$A$8,2)*VLOOKUP($I$5,$G$9:$J$30,4,FALSE),2)*$CV$10,2))+IF(AND($CW$10<0.941,'WPS Health Plan Subsidy Calcs'!$D$4<3.0633),0,ROUND(ROUND(ROUND(ROUND(BB8*$Q$9,4)*$A$8,2)*VLOOKUP($I$5,$G$9:$J$30,4,FALSE),2)*$CW$10,2)) ->  | DM8: =BC8-DL8 -> 
C9: 15 | D9: 0.833 | E9: 1 | G9: 2 | H9: Brown | I9: 16 | J9: 0.92 | L9: ="" ->  | M9: ="" ->  | O9: 1 | P9: =VLOOKUP(I5,$G$8:$M$80,5,FALSE) ->  | Q9: 0.935 | R9: 1 | T9: 14 | V9: WPS HMO Bronze $7,500 | Select Network | W9: 84670WI1250151 | Y9: ThedaCare 6850 | Z9: 84670WI1270102 | AA9: 0.489 | AB9: Aurora 6850 | AC9: 84670WI1270108 | AD9: 0.489 | AE9: Aurora and ThedaCare 6850 | AF9: 84670WI1270118 | AG9: 6044.85 | AH9: Aurora and Bellin 6850 | AI9: 84670WI1270128 | AK9: ProHealth and Aurora 6850 | AL9: 84670WI1270138 | AN9: HMO | AO9: Bronze | AP9: 7500 | AQ9: - | AR9: 0.4 | AS9: - | AT9: 8700 | AU9: - | AV9: D/C | AW9: D/C | AX9: D/C | AY9: D/C | AZ9: 0 | BA9: $0 / $15/ $30 / $125 / $250 / $750 Ded. 40% Coins. | BB9: 0.4991 | BD9: Bronze | BE9: 7500 | BF9: - | BG9: 0.4 | BH9: - | BI9: 8700 | BJ9: - | BK9: D/C | BL9: D/C | BM9: D/C | BN9: D/C | BO9: $0 / $15/ $30 / $125 / $250 / $750 Ded. 40% Coins. | BP9: 7500 | BQ9: - | BR9: 0.4 | BS9: - | BT9: 8700 | BU9: - | BV9: D/C | BW9: D/C | BX9: D/C | BY9: D/C | BZ9: $0 / $15/ $30 / $125 / $250 / $750 Ded. 40% Coins. | CA9: 7500 | CB9: - | CC9: 0.4 | CD9: - | CE9: 8700 | CF9: - | CG9: D/C | CH9: D/C | CI9: D/C | CJ9: D/C | CK9: $0 / $15/ $30 / $125 / $250 / $750 Ded. 40% Coins. | CR9: DP 20 and Under Value | CU9: =IF(CU5="",0,IF(CU6<21,VLOOKUP(CU6,$C$8:$D$58,2),0)) -> 0 | CV9: 0 | CW9: 0 | CX9: 0 | CY9: 0 | CZ9: 0 | DA9: 0 | DB9: 0 | DC9: 0 | DD9: 0 | DJ9: =IF(SUM(CS9:DD9)>3,3,SUM(CS9:DD9)) -> 0 | DL9: =ROUND(ROUND(ROUND(ROUND(BB9*$Q$9,4)*$A$8,2)*VLOOKUP($I$5,$G$9:$J$30,4,FALSE),2)*$CS$12,2)+ROUND(ROUND(ROUND(ROUND(BB9*$Q$9,4)*$A$8,2)*VLOOKUP($I$5,$G$9:$J$30,4,FALSE),2)*$CT$12,2)+ROUND(ROUND(ROUND(ROUND(BB9*$Q$9,4)*$A$8,2)*VLOOKUP($I$5,$G$9:$J$30,4,FALSE),2)*$CU$12,2)+ROUND(ROUND(ROUND(ROUND(BB9*$Q$9,4)*$A$8,2)*VLOOKUP($I$5,$G$9:$J$30,4,FALSE),2)*$CV$12,2)+ROUND(ROUND(ROUND(ROUND(BB9*$Q$9,4)*$A$8,2)*VLOOKUP($I$5,$G$9:$J$30,4,FALSE),2)*$CW$12,2)+ROUND(ROUND(ROUND(ROUND(BB9*$Q$9,4)*$A$8,2)*VLOOKUP($I$5,$G$9:$J$30,4,FALSE),2)*$CX$12,2)+ROUND(ROUND(ROUND(ROUND(BB9*$Q$9,4)*$A$8,2)*VLOOKUP($I$5,$G$9:$J$30,4,FALSE),2)*$CY$12,2)+ROUND(ROUND(ROUND(ROUND(BB9*$Q$9,4)*$A$8,2)*VLOOKUP($I$5,$G$9:$J$30,4,FALSE),2)*$CZ$12,2)+ROUND(ROUND(ROUND(ROUND(BB9*$Q$9,4)*$A$8,2)*VLOOKUP($I$5,$G$9:$J$30,4,FALSE),2)*$DA$12,2)+ROUND(ROUND(ROUND(ROUND(BB9*$Q$9,4)*$A$8,2)*VLOOKUP($I$5,$G$9:$J$30,4,FALSE),2)*$DB$12,2)+ROUND(ROUND(ROUND(ROUND(BB9*$Q$9,4)*$A$8,2)*VLOOKUP($I$5,$G$9:$J$30,4,FALSE),2)*$DC$12,2)+ROUND(ROUND(ROUND(ROUND(BB9*$Q$9,4)*$A$8,2)*VLOOKUP($I$5,$G$9:$J$30,4,FALSE),2)*$DD$12,2)+IF(AND($CU$10<0.941,'WPS Health Plan Subsidy Calcs'!$D$4<3.0633),0,ROUND(ROUND(ROUND(ROUND(BB9*$Q$9,4)*$A$8,2)*VLOOKUP($I$5,$G$9:$J$30,4,FALSE),2)*$CU$10,2))+IF(AND($CV$10<0.941,'WPS Health Plan Subsidy Calcs'!$D$4<3.0633),0,ROUND(ROUND(ROUND(ROUND(BB9*$Q$9,4)*$A$8,2)*VLOOKUP($I$5,$G$9:$J$30,4,FALSE),2)*$CV$10,2))+IF(AND($CW$10<0.941,'WPS Health Plan Subsidy Calcs'!$D$4<3.0633),0,ROUND(ROUND(ROUND(ROUND(BB9*$Q$9,4)*$A$8,2)*VLOOKUP($I$5,$G$9:$J$30,4,FALSE),2)*$CW$10,2)) ->  | DM9: =BC9-DL9 -> 
C10: 16 | D10: 0.859 | E10: 1 | G10: 3 | H10: Calumet | I10: 11 | J10: 0.952 | L10: ="" ->  | M10: ="" ->  | O10: 3 | P10: =VLOOKUP(I5,$G$8:$M$80,6,FALSE) ->  | Q10: =IF(P10="Arise",0.959,IF(P10="Aspirus Arise",0.909,IF(P10="Arise Metro",0.909,IF(P10="Southern",0.93,IF(P10="Healthy U",0.93,0))))) ->  | T10: 13 | V10: WPS HMO Bronze $8,700 | Select Network | W10: 84670WI1250149 | Y10: ThedaCare HMO 6850 | Z10: 84670WI1250102 | AA10: 0.4826 | AB10: Aurora HMO 6850 | AC10: 84670WI1250108 | AD10: 0.4826 | AE10: Aurora and ThedaCare HMO 6850 | AF10: 84670WI1250118 | AG10: 6681.15 | AH10: Aurora and Bellin HMO 6850 | AI10: 84670WI1250128 | AK10: ProHealth and Aurora HMO 6850 | AL10: 84670WI1250138 | AN10: HMO | AO10: Bronze | AP10: 8700 | AQ10: - | AR10: 0 | AS10: - | AT10: 8700 | AU10: - | AV10: D/C | AW10: D/C | AX10: D/C | AY10: D/C | AZ10: 0 | BA10: $0 preventive, D/C all others | BB10: 0.4979 | BD10: Bronze | BE10: 8700 | BF10: - | BG10: 0 | BH10: - | BI10: 8700 | BJ10: - | BK10: D/C | BL10: D/C | BM10: D/C | BN10: D/C | BO10: $0 preventive, D/C all others | BP10: 8700 | BQ10: - | BR10: 0 | BS10: - | BT10: 8700 | BU10: - | BV10: D/C | BW10: D/C | BX10: D/C | BY10: D/C | BZ10: $0 preventive, D/C all others | CA10: 8700 | CB10: - | CC10: 0 | CD10: - | CE10: 8700 | CF10: - | CG10: D/C | CH10: D/C | CI10: D/C | CJ10: D/C | CK10: $0 preventive, D/C all others | CR10: 3 Oldest? | CU10: =LARGE(CU9:DD9,1) -> 0 | CV10: =LARGE(CU9:DD9,2) -> 0 | CW10: =LARGE(CU9:DD9,3) -> 0 | DJ10: =SUM(DJ8:DJ9) -> 0 | DL10: =ROUND(ROUND(ROUND(ROUND(BB10*$Q$9,4)*$A$8,2)*VLOOKUP($I$5,$G$9:$J$30,4,FALSE),2)*$CS$12,2)+ROUND(ROUND(ROUND(ROUND(BB10*$Q$9,4)*$A$8,2)*VLOOKUP($I$5,$G$9:$J$30,4,FALSE),2)*$CT$12,2)+ROUND(ROUND(ROUND(ROUND(BB10*$Q$9,4)*$A$8,2)*VLOOKUP($I$5,$G$9:$J$30,4,FALSE),2)*$CU$12,2)+ROUND(ROUND(ROUND(ROUND(BB10*$Q$9,4)*$A$8,2)*VLOOKUP($I$5,$G$9:$J$30,4,FALSE),2)*$CV$12,2)+ROUND(ROUND(ROUND(ROUND(BB10*$Q$9,4)*$A$8,2)*VLOOKUP($I$5,$G$9:$J$30,4,FALSE),2)*$CW$12,2)+ROUND(ROUND(ROUND(ROUND(BB10*$Q$9,4)*$A$8,2)*VLOOKUP($I$5,$G$9:$J$30,4,FALSE),2)*$CX$12,2)+ROUND(ROUND(ROUND(ROUND(BB10*$Q$9,4)*$A$8,2)*VLOOKUP($I$5,$G$9:$J$30,4,FALSE),2)*$CY$12,2)+ROUND(ROUND(ROUND(ROUND(BB10*$Q$9,4)*$A$8,2)*VLOOKUP($I$5,$G$9:$J$30,4,FALSE),2)*$CZ$12,2)+ROUND(ROUND(ROUND(ROUND(BB10*$Q$9,4)*$A$8,2)*VLOOKUP($I$5,$G$9:$J$30,4,FALSE),2)*$DA$12,2)+ROUND(ROUND(ROUND(ROUND(BB10*$Q$9,4)*$A$8,2)*VLOOKUP($I$5,$G$9:$J$30,4,FALSE),2)*$DB$12,2)+ROUND(ROUND(ROUND(ROUND(BB10*$Q$9,4)*$A$8,2)*VLOOKUP($I$5,$G$9:$J$30,4,FALSE),2)*$DC$12,2)+ROUND(ROUND(ROUND(ROUND(BB10*$Q$9,4)*$A$8,2)*VLOOKUP($I$5,$G$9:$J$30,4,FALSE),2)*$DD$12,2)+IF(AND($CU$10<0.941,'WPS Health Plan Subsidy Calcs'!$D$4<3.0633),0,ROUND(ROUND(ROUND(ROUND(BB10*$Q$9,4)*$A$8,2)*VLOOKUP($I$5,$G$9:$J$30,4,FALSE),2)*$CU$10,2))+IF(AND($CV$10<0.941,'WPS Health Plan Subsidy Calcs'!$D$4<3.0633),0,ROUND(ROUND(ROUND(ROUND(BB10*$Q$9,4)*$A$8,2)*VLOOKUP($I$5,$G$9:$J$30,4,FALSE),2)*$CV$10,2))+IF(AND($CW$10<0.941,'WPS Health Plan Subsidy Calcs'!$D$4<3.0633),0,ROUND(ROUND(ROUND(ROUND(BB10*$Q$9,4)*$A$8,2)*VLOOKUP($I$5,$G$9:$J$30,4,FALSE),2)*$CW$10,2)) -> 
C11: 17 | D11: 0.885 | E11: 1 | G11: 4 | H11: Dodge | I11: 11 | J11: 0.952 | L11: ="" ->  | M11: ="" ->  | O11: 4 | P11: =VLOOKUP(I5,$G$8:$M$80,7,FALSE) ->  | Q11: =IF(P11="Arise",0.959,IF(P11="Aspirus Arise",0.909,IF(P11="Arise Metro",0.909,IF(P11="Southern",0.93,IF(P11="Healthy U",0.93,0))))) ->  | T11: 9 | V11: WPS HMO Silver $4,500 | Select Network | W11: 84670WI1250153 | Y11: ThedaCare 4000 | Z11: 84670WI1270015 | AA11: 0.7169 | AB11: Aurora 4000 | AC11: 84670WI1270054 | AD11: 0.7169 | AE11: Aurora and ThedaCare 4000 | AF11: 84670WI1270109 | AG11: 0 | AH11: Aurora and Bellin 4000 | AI11: 84670WI1270119 | AK11: ProHealth and Aurora 4000 | AL11: 84670WI1270129 | AN11: HMO | AO11: Silver | AP11: 4500 | AQ11: - | AR11: 0.3 | AS11: - | AT11: 8700 | AU11: - | AV11: $0/$10 | AW11: 45 | AX11: 90 | AY11: 500 | AZ11: 0 | BA11: $0 / $15 / $25 / $75 / $150 / $750 Ded. 40% Coins. | BB11: 0.6573 | BD11: Silver | BE11: 100 | BF11: - | BG11: 0.3 | BH11: - | BI11: 900 | BJ11: - | BK11: $0/$10 | BL11: 15 | BM11: 30 | BN11: 250 | BO11: $0 / $5 / $15 / $30 / $60 / 40% Coins. | BP11: 1100 | BQ11: - | BR11: 0.3 | BS11: - | BT11: 2500 | BU11: - | BV11: $0/$10 | BW11: 30 | BX11: 60 | BY11: 350 | BZ11: $0 / $15 / $25 / $50 / $75 / 40% Coins. | CA11: 4200 | CB11: - | CC11: 0.3 | CD11: - | CE11: 6200 | CF11: - | CG11: $0/$10 | CH11: 45 | CI11: 90 | CJ11: 500 | CK11: $0 / $15 / $25 / $75 / $150 / $750 Ded. 40% Coins. | DL11: =ROUND(ROUND(ROUND(ROUND(BB11*$Q$9,4)*$A$8,2)*VLOOKUP($I$5,$G$9:$J$30,4,FALSE),2)*$CS$12,2)+ROUND(ROUND(ROUND(ROUND(BB11*$Q$9,4)*$A$8,2)*VLOOKUP($I$5,$G$9:$J$30,4,FALSE),2)*$CT$12,2)+ROUND(ROUND(ROUND(ROUND(BB11*$Q$9,4)*$A$8,2)*VLOOKUP($I$5,$G$9:$J$30,4,FALSE),2)*$CU$12,2)+ROUND(ROUND(ROUND(ROUND(BB11*$Q$9,4)*$A$8,2)*VLOOKUP($I$5,$G$9:$J$30,4,FALSE),2)*$CV$12,2)+ROUND(ROUND(ROUND(ROUND(BB11*$Q$9,4)*$A$8,2)*VLOOKUP($I$5,$G$9:$J$30,4,FALSE),2)*$CW$12,2)+ROUND(ROUND(ROUND(ROUND(BB11*$Q$9,4)*$A$8,2)*VLOOKUP($I$5,$G$9:$J$30,4,FALSE),2)*$CX$12,2)+ROUND(ROUND(ROUND(ROUND(BB11*$Q$9,4)*$A$8,2)*VLOOKUP($I$5,$G$9:$J$30,4,FALSE),2)*$CY$12,2)+ROUND(ROUND(ROUND(ROUND(BB11*$Q$9,4)*$A$8,2)*VLOOKUP($I$5,$G$9:$J$30,4,FALSE),2)*$CZ$12,2)+ROUND(ROUND(ROUND(ROUND(BB11*$Q$9,4)*$A$8,2)*VLOOKUP($I$5,$G$9:$J$30,4,FALSE),2)*$DA$12,2)+ROUND(ROUND(ROUND(ROUND(BB11*$Q$9,4)*$A$8,2)*VLOOKUP($I$5,$G$9:$J$30,4,FALSE),2)*$DB$12,2)+ROUND(ROUND(ROUND(ROUND(BB11*$Q$9,4)*$A$8,2)*VLOOKUP($I$5,$G$9:$J$30,4,FALSE),2)*$DC$12,2)+ROUND(ROUND(ROUND(ROUND(BB11*$Q$9,4)*$A$8,2)*VLOOKUP($I$5,$G$9:$J$30,4,FALSE),2)*$DD$12,2)+IF(AND($CU$10<0.941,'WPS Health Plan Subsidy Calcs'!$D$4<3.0633),0,ROUND(ROUND(ROUND(ROUND(BB11*$Q$9,4)*$A$8,2)*VLOOKUP($I$5,$G$9:$J$30,4,FALSE),2)*$CU$10,2))+IF(AND($CV$10<0.941,'WPS Health Plan Subsidy Calcs'!$D$4<3.0633),0,ROUND(ROUND(ROUND(ROUND(BB11*$Q$9,4)*$A$8,2)*VLOOKUP($I$5,$G$9:$J$30,4,FALSE),2)*$CV$10,2))+IF(AND($CW$10<0.941,'WPS Health Plan Subsidy Calcs'!$D$4<3.0633),0,ROUND(ROUND(ROUND(ROUND(BB11*$Q$9,4)*$A$8,2)*VLOOKUP($I$5,$G$9:$J$30,4,FALSE),2)*$CW$10,2)) ->  | DM11: =BC11-DL11 -> 
C12: 18 | D12: 0.913 | E12: 1 | G12: 5 | H12: Door | I12: 16 | J12: 0.92 | L12: ="" ->  | M12: ="" ->  | T12: 12 | V12: WPS HMO Silver $5,000 | Select Network | W12: 84670WI1250154 | Y12: ThedaCare HMO 4000 | Z12: 84670WI1250015 | AA12: 0.7402 | AB12: Aurora HMO 4000 | AC12: 84670WI1250054 | AD12: 0.7402 | AE12: Aurora and ThedaCare HMO 4000 | AF12: 84670WI1250109 | AG12: 0 | AH12: Aurora and Bellin HMO 4000 | AI12: 84670WI1250119 | AK12: ProHealth and Aurora HMO 4000 | AL12: 84670WI1250129 | AN12: HMO | AO12: Silver | AP12: 5000 | AQ12: - | AR12: 0.2 | AS12: - | AT12: 8700 | AU12: - | AV12: $0/$10 | AW12: 45 | AX12: 90 | AY12: 500 | AZ12: 0 | BA12: $0 / $15 / $25 / $75 / $150 / $750 Ded. 40% Coins. | BB12: 0.6812 | BD12: Silver | BE12: 200 | BF12: - | BG12: 0.2 | BH12: - | BI12: 900 | BJ12: - | BK12: $0/$10 | BL12: 15 | BM12: 30 | BN12: 250 | BO12: $0 / $5 / $15 / $30 / $60 / 40% Coins. | BP12: 1350 | BQ12: - | BR12: 0.2 | BS12: - | BT12: 2500 | BU12: - | BV12: $0/$10 | BW12: 30 | BX12: 60 | BY12: 350 | BZ12: $0 / $15 / $25 / $50 / $75 / 40% Coins. | CA12: 4300 | CB12: - | CC12: 0.2 | CD12: - | CE12: 6300 | CF12: - | CG12: $0/$10 | CH12: 45 | CI12: 90 | CJ12: 500 | CK12: $0 / $15 / $25 / $75 / $150 / $750 Ded. 40% Coins. | CR12: Subsidy Calc Value | CS12: =IF(CS5="",0,IF(AND(CS6<19,'WPS Health Plan Subsidy Calcs'!$D$4<3.0633),0,VLOOKUP(CS6,$C$8:$E$58,2))) -> 0 | CT12: =IF(CT5="",0,IF(AND(CT6<19,'WPS Health Plan Subsidy Calcs'!$D$4<3.0633),0,VLOOKUP(CT6,$C$8:$E$58,2))) -> 0 | CU12: =IF(CU5="",0,CU8) -> 0 | CV12: =IF(CV5="",0,CV8) -> 0 | CW12: 0 | CX12: 0 | CY12: 0 | CZ12: 0 | DA12: 0 | DB12: 0 | DC12: 0 | DD12: 0 | DJ12: =SUM(CS12:DD12) -> 0 | DL12: =ROUND(ROUND(ROUND(ROUND(BB12*$Q$9,4)*$A$8,2)*VLOOKUP($I$5,$G$9:$J$30,4,FALSE),2)*$CS$12,2)+ROUND(ROUND(ROUND(ROUND(BB12*$Q$9,4)*$A$8,2)*VLOOKUP($I$5,$G$9:$J$30,4,FALSE),2)*$CT$12,2)+ROUND(ROUND(ROUND(ROUND(BB12*$Q$9,4)*$A$8,2)*VLOOKUP($I$5,$G$9:$J$30,4,FALSE),2)*$CU$12,2)+ROUND(ROUND(ROUND(ROUND(BB12*$Q$9,4)*$A$8,2)*VLOOKUP($I$5,$G$9:$J$30,4,FALSE),2)*$CV$12,2)+ROUND(ROUND(ROUND(ROUND(BB12*$Q$9,4)*$A$8,2)*VLOOKUP($I$5,$G$9:$J$30,4,FALSE),2)*$CW$12,2)+ROUND(ROUND(ROUND(ROUND(BB12*$Q$9,4)*$A$8,2)*VLOOKUP($I$5,$G$9:$J$30,4,FALSE),2)*$CX$12,2)+ROUND(ROUND(ROUND(ROUND(BB12*$Q$9,4)*$A$8,2)*VLOOKUP($I$5,$G$9:$J$30,4,FALSE),2)*$CY$12,2)+ROUND(ROUND(ROUND(ROUND(BB12*$Q$9,4)*$A$8,2)*VLOOKUP($I$5,$G$9:$J$30,4,FALSE),2)*$CZ$12,2)+ROUND(ROUND(ROUND(ROUND(BB12*$Q$9,4)*$A$8,2)*VLOOKUP($I$5,$G$9:$J$30,4,FALSE),2)*$DA$12,2)+ROUND(ROUND(ROUND(ROUND(BB12*$Q$9,4)*$A$8,2)*VLOOKUP($I$5,$G$9:$J$30,4,FALSE),2)*$DB$12,2)+ROUND(ROUND(ROUND(ROUND(BB12*$Q$9,4)*$A$8,2)*VLOOKUP($I$5,$G$9:$J$30,4,FALSE),2)*$DC$12,2)+ROUND(ROUND(ROUND(ROUND(BB12*$Q$9,4)*$A$8,2)*VLOOKUP($I$5,$G$9:$J$30,4,FALSE),2)*$DD$12,2)+IF(AND($CU$10<0.941,'WPS Health Plan Subsidy Calcs'!$D$4<3.0633),0,ROUND(ROUND(ROUND(ROUND(BB12*$Q$9,4)*$A$8,2)*VLOOKUP($I$5,$G$9:$J$30,4,FALSE),2)*$CU$10,2))+IF(AND($CV$10<0.941,'WPS Health Plan Subsidy Calcs'!$D$4<3.0633),0,ROUND(ROUND(ROUND(ROUND(BB12*$Q$9,4)*$A$8,2)*VLOOKUP($I$5,$G$9:$J$30,4,FALSE),2)*$CV$10,2))+IF(AND($CW$10<0.941,'WPS Health Plan Subsidy Calcs'!$D$4<3.0633),0,ROUND(ROUND(ROUND(ROUND(BB12*$Q$9,4)*$A$8,2)*VLOOKUP($I$5,$G$9:$J$30,4,FALSE),2)*$CW$10,2)) -> 
C13: 19 | D13: 0.941 | E13: 1 | G13: 6 | H13: Fond du Lac | I13: 11 | J13: 0.952 | L13: ="" ->  | M13: ="" ->  | T13: 8 | V13: WPS HMO Silver $7,500 | Select Network | W13: 84670WI1250152 | Y13: ThedaCare HMO 5000 | Z13: 84670WI1250100 | AA13: 0.7106 | AB13: Aurora HMO 5000 | AC13: 84670WI1250106 | AD13: 0.7106 | AE13: Aurora and ThedaCare HMO 5000 | AF13: 84670WI1250116 | AG13: 0 | AH13: Aurora and Bellin HMO 5000 | AI13: 84670WI1250126 | AK13: ProHealth and Aurora HMO 5000 | AL13: 84670WI1250136 | AN13: HMO | AO13: Silver | AP13: 7500 | AQ13: - | AR13: 0 | AS13: - | AT13: 7500 | AU13: - | AV13: $0/$10 | AW13: 45 | AX13: 90 | AY13: 500 | AZ13: 0 | BA13: $0 / $15 / $25 / $75 / $150 / $750 Ded. 40% Coins. | BB13: 0.6516 | BD13: Silver | BE13: 300 | BF13: - | BG13: 0 | BH13: - | BI13: 1000 | BJ13: - | BK13: $0/$10 | BL13: 15 | BM13: 30 | BN13: 250 | BO13: $0 / $5 / $15 / $30 / $60 / 40% Coins. | BP13: 1400 | BQ13: - | BR13: 0 | BS13: - | BT13: 2700 | BU13: - | BV13: $0/$10 | BW13: 30 | BX13: 60 | BY13: 350 | BZ13: $0 / $15 / $25 / $50 / $75 / 40% Coins. | CA13: 5250 | CB13: - | CC13: 0 | CD13: - | CE13: 6250 | CF13: - | CG13: $0/$10 | CH13: 45 | CI13: 90 | CJ13: 500 | CK13: $0 / $15 / $25 / $75 / $150 / $750 Ded. 40% Coins. | CQ13: =SUM(CS13:DD13) -> 0 | CR13: Under 19? | CS13: =IF(CS5="",0,IF(CS6<19,1,0)) -> 0 | CT13: =IF(CT5="",0,IF(CT6<19,1,0)) -> 0 | CU13: 0 | CV13: 0 | CW13: 0 | CX13: 0 | CY13: 0 | CZ13: 0 | DA13: 0 | DB13: 0 | DC13: 0 | DD13: 0 | DJ13: =IF(SUM(#REF!)>3,3,SUM(#REF!)) ->  | DL13: =ROUND(ROUND(ROUND(ROUND(BB13*$Q$9,4)*$A$8,2)*VLOOKUP($I$5,$G$9:$J$30,4,FALSE),2)*$CS$12,2)+ROUND(ROUND(ROUND(ROUND(BB13*$Q$9,4)*$A$8,2)*VLOOKUP($I$5,$G$9:$J$30,4,FALSE),2)*$CT$12,2)+ROUND(ROUND(ROUND(ROUND(BB13*$Q$9,4)*$A$8,2)*VLOOKUP($I$5,$G$9:$J$30,4,FALSE),2)*$CU$12,2)+ROUND(ROUND(ROUND(ROUND(BB13*$Q$9,4)*$A$8,2)*VLOOKUP($I$5,$G$9:$J$30,4,FALSE),2)*$CV$12,2)+ROUND(ROUND(ROUND(ROUND(BB13*$Q$9,4)*$A$8,2)*VLOOKUP($I$5,$G$9:$J$30,4,FALSE),2)*$CW$12,2)+ROUND(ROUND(ROUND(ROUND(BB13*$Q$9,4)*$A$8,2)*VLOOKUP($I$5,$G$9:$J$30,4,FALSE),2)*$CX$12,2)+ROUND(ROUND(ROUND(ROUND(BB13*$Q$9,4)*$A$8,2)*VLOOKUP($I$5,$G$9:$J$30,4,FALSE),2)*$CY$12,2)+ROUND(ROUND(ROUND(ROUND(BB13*$Q$9,4)*$A$8,2)*VLOOKUP($I$5,$G$9:$J$30,4,FALSE),2)*$CZ$12,2)+ROUND(ROUND(ROUND(ROUND(BB13*$Q$9,4)*$A$8,2)*VLOOKUP($I$5,$G$9:$J$30,4,FALSE),2)*$DA$12,2)+ROUND(ROUND(ROUND(ROUND(BB13*$Q$9,4)*$A$8,2)*VLOOKUP($I$5,$G$9:$J$30,4,FALSE),2)*$DB$12,2)+ROUND(ROUND(ROUND(ROUND(BB13*$Q$9,4)*$A$8,2)*VLOOKUP($I$5,$G$9:$J$30,4,FALSE),2)*$DC$12,2)+ROUND(ROUND(ROUND(ROUND(BB13*$Q$9,4)*$A$8,2)*VLOOKUP($I$5,$G$9:$J$30,4,FALSE),2)*$DD$12,2)+IF(AND($CU$10<0.941,'WPS Health Plan Subsidy Calcs'!$D$4<3.0633),0,ROUND(ROUND(ROUND(ROUND(BB13*$Q$9,4)*$A$8,2)*VLOOKUP($I$5,$G$9:$J$30,4,FALSE),2)*$CU$10,2))+IF(AND($CV$10<0.941,'WPS Health Plan Subsidy Calcs'!$D$4<3.0633),0,ROUND(ROUND(ROUND(ROUND(BB13*$Q$9,4)*$A$8,2)*VLOOKUP($I$5,$G$9:$J$30,4,FALSE),2)*$CV$10,2))+IF(AND($CW$10<0.941,'WPS Health Plan Subsidy Calcs'!$D$4<3.0633),0,ROUND(ROUND(ROUND(ROUND(BB13*$Q$9,4)*$A$8,2)*VLOOKUP($I$5,$G$9:$J$30,4,FALSE),2)*$CW$10,2)) -> 
C14: 20 | D14: 0.97 | E14: 1 | G14: 7 | H14: Green Lake | I14: 15 | J14: 0.975 | L14: ="" ->  | M14: ="" ->  | T14: 10 | V14: WPS HMO Gold $3,000 | Select Network | W14: 84670WI1250155 | Y14: ThedaCare HMO 1500 | Z14: 84670WI1250007 | AA14: 1.1072 | AB14: Aurora HMO 1500 | AC14: 84670WI1250051 | AD14: 1.1072 | AE14: Aurora and ThedaCare HMO 1500 | AF14: 84670WI1250110 | AG14: 1818 | AH14: Aurora and Bellin HMO 1500 | AI14: 84670WI1250120 | AK14: ProHealth and Aurora HMO 1500 | AL14: 84670WI1250130 | AN14: HMO | AO14: Gold | AP14: 3000 | AQ14: - | AR14: 0.2 | AS14: - | AT14: 6500 | AU14: - | AV14: $0/$10 | AW14: 35 | AX14: 70 | AY14: 450 | AZ14: 0 | BA14: $0 / $5 / $15 / $50 / $100 / $750 Ded. 40% Coins. | BB14: 0.8911 | BD14: Gold | BE14: 3000 | BF14: - | BG14: 0.2 | BH14: - | BI14: 6500 | BJ14: - | BK14: $0/$10 | BL14: 35 | BM14: 70 | BN14: 450 | BO14: $0 / $5 / $15 / $50 / $100 / $750 Ded. 40% Coins. | BP14: 3000 | BQ14: - | BR14: 0.2 | BS14: - | BT14: 6500 | BU14: - | BV14: $0/$10 | BW14: 35 | BX14: 70 | BY14: 450 | BZ14: $0 / $5 / $15 / $50 / $100 / $750 Ded. 40% Coins. | CA14: 3000 | CB14: - | CC14: 0.2 | CD14: - | CE14: 6500 | CF14: - | CG14: $0/$10 | CH14: 35 | CI14: 70 | CJ14: 450 | CK14: $0 / $5 / $15 / $50 / $100 / $750 Ded. 40% Coins. | DJ14: =SUM(DJ12:DJ13) ->  | DL14: =ROUND(ROUND(ROUND(ROUND(BB14*$Q$9,4)*$A$8,2)*VLOOKUP($I$5,$G$9:$J$30,4,FALSE),2)*$CS$12,2)+ROUND(ROUND(ROUND(ROUND(BB14*$Q$9,4)*$A$8,2)*VLOOKUP($I$5,$G$9:$J$30,4,FALSE),2)*$CT$12,2)+ROUND(ROUND(ROUND(ROUND(BB14*$Q$9,4)*$A$8,2)*VLOOKUP($I$5,$G$9:$J$30,4,FALSE),2)*$CU$12,2)+ROUND(ROUND(ROUND(ROUND(BB14*$Q$9,4)*$A$8,2)*VLOOKUP($I$5,$G$9:$J$30,4,FALSE),2)*$CV$12,2)+ROUND(ROUND(ROUND(ROUND(BB14*$Q$9,4)*$A$8,2)*VLOOKUP($I$5,$G$9:$J$30,4,FALSE),2)*$CW$12,2)+ROUND(ROUND(ROUND(ROUND(BB14*$Q$9,4)*$A$8,2)*VLOOKUP($I$5,$G$9:$J$30,4,FALSE),2)*$CX$12,2)+ROUND(ROUND(ROUND(ROUND(BB14*$Q$9,4)*$A$8,2)*VLOOKUP($I$5,$G$9:$J$30,4,FALSE),2)*$CY$12,2)+ROUND(ROUND(ROUND(ROUND(BB14*$Q$9,4)*$A$8,2)*VLOOKUP($I$5,$G$9:$J$30,4,FALSE),2)*$CZ$12,2)+ROUND(ROUND(ROUND(ROUND(BB14*$Q$9,4)*$A$8,2)*VLOOKUP($I$5,$G$9:$J$30,4,FALSE),2)*$DA$12,2)+ROUND(ROUND(ROUND(ROUND(BB14*$Q$9,4)*$A$8,2)*VLOOKUP($I$5,$G$9:$J$30,4,FALSE),2)*$DB$12,2)+ROUND(ROUND(ROUND(ROUND(BB14*$Q$9,4)*$A$8,2)*VLOOKUP($I$5,$G$9:$J$30,4,FALSE),2)*$DC$12,2)+ROUND(ROUND(ROUND(ROUND(BB14*$Q$9,4)*$A$8,2)*VLOOKUP($I$5,$G$9:$J$30,4,FALSE),2)*$DD$12,2)+IF(AND($CU$10<0.941,'WPS Health Plan Subsidy Calcs'!$D$4<3.0633),0,ROUND(ROUND(ROUND(ROUND(BB14*$Q$9,4)*$A$8,2)*VLOOKUP($I$5,$G$9:$J$30,4,FALSE),2)*$CU$10,2))+IF(AND($CV$10<0.941,'WPS Health Plan Subsidy Calcs'!$D$4<3.0633),0,ROUND(ROUND(ROUND(ROUND(BB14*$Q$9,4)*$A$8,2)*VLOOKUP($I$5,$G$9:$J$30,4,FALSE),2)*$CV$10,2))+IF(AND($CW$10<0.941,'WPS Health Plan Subsidy Calcs'!$D$4<3.0633),0,ROUND(ROUND(ROUND(ROUND(BB14*$Q$9,4)*$A$8,2)*VLOOKUP($I$5,$G$9:$J$30,4,FALSE),2)*$CW$10,2)) -> 
C15: 21 | D15: 1 | E15: 1 | G15: 8 | H15: Kenosha | I15: 9 | J15: 1.065 | L15: ="" ->  | M15: ="" ->  | T15: 7 | V15: WPS HMO Catastrophic $8,700 with 3 Free PCP Visits | Select Network | W15: 84670WI1250156 | Y15: ThedaCare HMO 6850 Catastrophic | Z15: 84670WI1250039 | AA15: 0.4012 | AB15: Aurora HMO 6850 Catastrophic | AC15: 84670WI1250094 | AD15: 0.4012 | AE15: Aurora and ThedaCare HMO 6850 Catastrophic | AF15: 84670WI1250111 | AG15: 6681.15 | AH15: Aurora and Bellin HMO 6850 Catastrophic | AI15: 84670WI1250121 | AK15: ProHealth and Aurora HMO 6850 Catastrophic | AL15: 84670WI1250131 | AN15: HMO | AO15: Catastrophic | AP15: 8700 | AQ15: - | AR15: 0 | AS15: - | AT15: 8700 | AU15: - | AV15: D/C | AW15: 3 Free | AX15: D/C | AY15: D/C | AZ15: 3 | BA15: $0 preventive, D/C all others | BB15: 0.4328 | BD15: Catastrophic | BE15: 8700 | BF15: - | BG15: 0 | BH15: - | BI15: 8700 | BJ15: - | BK15: D/C | BL15: 3 Free | BM15: D/C | BN15: D/C | BO15: $0 preventive, D/C all others | BP15: 8700 | BQ15: - | BR15: 0 | BS15: - | BT15: 8700 | BU15: - | BV15: D/C | BW15: 3 Free | BX15: D/C | BY15: D/C | BZ15: $0 preventive, D/C all others | CA15: 8700 | CB15: - | CC15: 0 | CD15: - | CE15: 8700 | CF15: - | CG15: D/C | CH15: 3 Free | CI15: D/C | CJ15: D/C | CK15: $0 preventive, D/C all others | CR15: Dental Rate | CS15: =IF(ISERROR(CS6),0,VLOOKUP(CS6,$CQ$34:$CS$42,3)) -> 0 | CT15: =IF(ISERROR(CT6),0,VLOOKUP(CT6,$CQ$34:$CS$42,3)) -> 0 | CU15: =VLOOKUP(IF(ISERROR(CU6),0,1) + IF(ISERROR(CV6),0,1) + IF(ISERROR(CW6),0,1) + IF(ISERROR(CX6),0,1) + IF(ISERROR(CY6),0,1) + IF(ISERROR(CZ6),0,1) + IF(ISERROR(DA6),0,1) + IF(ISERROR(DB6),0,1),$CQ$44:$CS$47,3) -> 0 | DL15: =ROUND(ROUND(ROUND(ROUND(BB15*$Q$9,4)*$A$8,2)*VLOOKUP($I$5,$G$9:$J$30,4,FALSE),2)*$CS$12,2)+ROUND(ROUND(ROUND(ROUND(BB15*$Q$9,4)*$A$8,2)*VLOOKUP($I$5,$G$9:$J$30,4,FALSE),2)*$CT$12,2)+ROUND(ROUND(ROUND(ROUND(BB15*$Q$9,4)*$A$8,2)*VLOOKUP($I$5,$G$9:$J$30,4,FALSE),2)*$CU$12,2)+ROUND(ROUND(ROUND(ROUND(BB15*$Q$9,4)*$A$8,2)*VLOOKUP($I$5,$G$9:$J$30,4,FALSE),2)*$CV$12,2)+ROUND(ROUND(ROUND(ROUND(BB15*$Q$9,4)*$A$8,2)*VLOOKUP($I$5,$G$9:$J$30,4,FALSE),2)*$CW$12,2)+ROUND(ROUND(ROUND(ROUND(BB15*$Q$9,4)*$A$8,2)*VLOOKUP($I$5,$G$9:$J$30,4,FALSE),2)*$CX$12,2)+ROUND(ROUND(ROUND(ROUND(BB15*$Q$9,4)*$A$8,2)*VLOOKUP($I$5,$G$9:$J$30,4,FALSE),2)*$CY$12,2)+ROUND(ROUND(ROUND(ROUND(BB15*$Q$9,4)*$A$8,2)*VLOOKUP($I$5,$G$9:$J$30,4,FALSE),2)*$CZ$12,2)+ROUND(ROUND(ROUND(ROUND(BB15*$Q$9,4)*$A$8,2)*VLOOKUP($I$5,$G$9:$J$30,4,FALSE),2)*$DA$12,2)+ROUND(ROUND(ROUND(ROUND(BB15*$Q$9,4)*$A$8,2)*VLOOKUP($I$5,$G$9:$J$30,4,FALSE),2)*$DB$12,2)+ROUND(ROUND(ROUND(ROUND(BB15*$Q$9,4)*$A$8,2)*VLOOKUP($I$5,$G$9:$J$30,4,FALSE),2)*$DC$12,2)+ROUND(ROUND(ROUND(ROUND(BB15*$Q$9,4)*$A$8,2)*VLOOKUP($I$5,$G$9:$J$30,4,FALSE),2)*$DD$12,2)+IF(AND($CU$10<0.941,'WPS Health Plan Subsidy Calcs'!$D$4<3.0633),0,ROUND(ROUND(ROUND(ROUND(BB15*$Q$9,4)*$A$8,2)*VLOOKUP($I$5,$G$9:$J$30,4,FALSE),2)*$CU$10,2))+IF(AND($CV$10<0.941,'WPS Health Plan Subsidy Calcs'!$D$4<3.0633),0,ROUND(ROUND(ROUND(ROUND(BB15*$Q$9,4)*$A$8,2)*VLOOKUP($I$5,$G$9:$J$30,4,FALSE),2)*$CV$10,2))+IF(AND($CW$10<0.941,'WPS Health Plan Subsidy Calcs'!$D$4<3.0633),0,ROUND(ROUND(ROUND(ROUND(BB15*$Q$9,4)*$A$8,2)*VLOOKUP($I$5,$G$9:$J$30,4,FALSE),2)*$CW$10,2)) -> 
C16: 22 | D16: 1 | E16: 1 | G16: 9 | H16: Kewaunee | I16: 16 | J16: 0.92 | L16: ="" ->  | M16: ="" ->  | T16: 11 | V16: WPS HMO HDHP Bronze $6,000 | Select Network | W16: 84670WI1250159 | Y16: ThedaCare HMO 5500 HDHP | Z16: 84670WI1250036 | AA16: 0.4995 | AB16: Aurora HMO 5500 HDHP | AC16: 84670WI1250091 | AD16: 0.4995 | AE16: Aurora and ThedaCare HMO 5500 HDHP | AF16: 84670WI1250112 | AG16: 4999.5 | AH16: Aurora and Bellin HMO 5500 HDHP | AI16: 84670WI1250122 | AK16: ProHealth and Aurora HMO 5500 HDHP | AL16: 84670WI1250132 | AN16: HMO HDHP | AO16: Bronze | AP16: 6000 | AQ16: - | AR16: 0.3 | AS16: - | AT16: 7050 | AU16: - | AV16: D/C | AW16: D/C | AX16: D/C | AY16: D/C | AZ16: 0 | BA16: $0 preventive, D/C all others | BB16: 0.5198 | BD16: Bronze | BE16: 6000 | BF16: - | BG16: 0.3 | BH16: - | BI16: 7050 | BJ16: - | BK16: D/C | BL16: D/C | BM16: D/C | BN16: D/C | BO16: $0 preventive, D/C all others | BP16: 6000 | BQ16: - | BR16: 0.3 | BS16: - | BT16: 7050 | BU16: - | BV16: D/C | BW16: D/C | BX16: D/C | BY16: D/C | BZ16: $0 preventive, D/C all others | CA16: 6000 | CB16: - | CC16: 0.3 | CD16: - | CE16: 7050 | CF16: - | CG16: D/C | CH16: D/C | CI16: D/C | CJ16: D/C | CK16: $0 preventive, D/C all others | DL16: =ROUND(ROUND(ROUND(ROUND(BB16*$Q$9,4)*$A$8,2)*VLOOKUP($I$5,$G$9:$J$30,4,FALSE),2)*$CS$12,2)+ROUND(ROUND(ROUND(ROUND(BB16*$Q$9,4)*$A$8,2)*VLOOKUP($I$5,$G$9:$J$30,4,FALSE),2)*$CT$12,2)+ROUND(ROUND(ROUND(ROUND(BB16*$Q$9,4)*$A$8,2)*VLOOKUP($I$5,$G$9:$J$30,4,FALSE),2)*$CU$12,2)+ROUND(ROUND(ROUND(ROUND(BB16*$Q$9,4)*$A$8,2)*VLOOKUP($I$5,$G$9:$J$30,4,FALSE),2)*$CV$12,2)+ROUND(ROUND(ROUND(ROUND(BB16*$Q$9,4)*$A$8,2)*VLOOKUP($I$5,$G$9:$J$30,4,FALSE),2)*$CW$12,2)+ROUND(ROUND(ROUND(ROUND(BB16*$Q$9,4)*$A$8,2)*VLOOKUP($I$5,$G$9:$J$30,4,FALSE),2)*$CX$12,2)+ROUND(ROUND(ROUND(ROUND(BB16*$Q$9,4)*$A$8,2)*VLOOKUP($I$5,$G$9:$J$30,4,FALSE),2)*$CY$12,2)+ROUND(ROUND(ROUND(ROUND(BB16*$Q$9,4)*$A$8,2)*VLOOKUP($I$5,$G$9:$J$30,4,FALSE),2)*$CZ$12,2)+ROUND(ROUND(ROUND(ROUND(BB16*$Q$9,4)*$A$8,2)*VLOOKUP($I$5,$G$9:$J$30,4,FALSE),2)*$DA$12,2)+ROUND(ROUND(ROUND(ROUND(BB16*$Q$9,4)*$A$8,2)*VLOOKUP($I$5,$G$9:$J$30,4,FALSE),2)*$DB$12,2)+ROUND(ROUND(ROUND(ROUND(BB16*$Q$9,4)*$A$8,2)*VLOOKUP($I$5,$G$9:$J$30,4,FALSE),2)*$DC$12,2)+ROUND(ROUND(ROUND(ROUND(BB16*$Q$9,4)*$A$8,2)*VLOOKUP($I$5,$G$9:$J$30,4,FALSE),2)*$DD$12,2)+IF(AND($CU$10<0.941,'WPS Health Plan Subsidy Calcs'!$D$4<3.0633),0,ROUND(ROUND(ROUND(ROUND(BB16*$Q$9,4)*$A$8,2)*VLOOKUP($I$5,$G$9:$J$30,4,FALSE),2)*$CU$10,2))+IF(AND($CV$10<0.941,'WPS Health Plan Subsidy Calcs'!$D$4<3.0633),0,ROUND(ROUND(ROUND(ROUND(BB16*$Q$9,4)*$A$8,2)*VLOOKUP($I$5,$G$9:$J$30,4,FALSE),2)*$CV$10,2))+IF(AND($CW$10<0.941,'WPS Health Plan Subsidy Calcs'!$D$4<3.0633),0,ROUND(ROUND(ROUND(ROUND(BB16*$Q$9,4)*$A$8,2)*VLOOKUP($I$5,$G$9:$J$30,4,FALSE),2)*$CW$10,2)) -> 
C17: 23 | D17: 1 | E17: 1 | G17: 10 | H17: Manitowoc | I17: 16 | J17: 0.92 | L17: ="" ->  | M17: ="" ->  | P17: HDHP | Q17: 1 | T17: 5 | V17: WPS HMO HDHP Bronze $6,830 | Select Network | W17: 84670WI1250158 | AN17: HMO HDHP | AO17: Bronze | AP17: 6830 | AQ17: - | AR17: 0 | AS17: - | AT17: 6830 | AU17: - | AV17: D/C | AW17: D/C | AX17: D/C | AY17: D/C | AZ17: 0 | BA17: $0 preventive, D/C all others | BB17: 0.5298 | BD17: Bronze | BE17: 6830 | BF17: - | BG17: 0 | BH17: - | BI17: 6830 | BJ17: - | BK17: D/C | BL17: D/C | BM17: D/C | BN17: D/C | BO17: $0 preventive, D/C all others | BP17: 6830 | BQ17: - | BR17: 0 | BS17: - | BT17: 6830 | BU17: - | BV17: D/C | BW17: D/C | BX17: D/C | BY17: D/C | BZ17: $0 preventive, D/C all others | CA17: 6830 | CB17: - | CC17: 0 | CD17: - | CE17: 6830 | CF17: - | CG17: D/C | CH17: D/C | CI17: D/C | CJ17: D/C | CK17: $0 preventive, D/C all others | DL17: =ROUND(ROUND(ROUND(ROUND(BB17*$Q$9,4)*$A$8,2)*VLOOKUP($I$5,$G$9:$J$30,4,FALSE),2)*$CS$12,2)+ROUND(ROUND(ROUND(ROUND(BB17*$Q$9,4)*$A$8,2)*VLOOKUP($I$5,$G$9:$J$30,4,FALSE),2)*$CT$12,2)+ROUND(ROUND(ROUND(ROUND(BB17*$Q$9,4)*$A$8,2)*VLOOKUP($I$5,$G$9:$J$30,4,FALSE),2)*$CU$12,2)+ROUND(ROUND(ROUND(ROUND(BB17*$Q$9,4)*$A$8,2)*VLOOKUP($I$5,$G$9:$J$30,4,FALSE),2)*$CV$12,2)+ROUND(ROUND(ROUND(ROUND(BB17*$Q$9,4)*$A$8,2)*VLOOKUP($I$5,$G$9:$J$30,4,FALSE),2)*$CW$12,2)+ROUND(ROUND(ROUND(ROUND(BB17*$Q$9,4)*$A$8,2)*VLOOKUP($I$5,$G$9:$J$30,4,FALSE),2)*$CX$12,2)+ROUND(ROUND(ROUND(ROUND(BB17*$Q$9,4)*$A$8,2)*VLOOKUP($I$5,$G$9:$J$30,4,FALSE),2)*$CY$12,2)+ROUND(ROUND(ROUND(ROUND(BB17*$Q$9,4)*$A$8,2)*VLOOKUP($I$5,$G$9:$J$30,4,FALSE),2)*$CZ$12,2)+ROUND(ROUND(ROUND(ROUND(BB17*$Q$9,4)*$A$8,2)*VLOOKUP($I$5,$G$9:$J$30,4,FALSE),2)*$DA$12,2)+ROUND(ROUND(ROUND(ROUND(BB17*$Q$9,4)*$A$8,2)*VLOOKUP($I$5,$G$9:$J$30,4,FALSE),2)*$DB$12,2)+ROUND(ROUND(ROUND(ROUND(BB17*$Q$9,4)*$A$8,2)*VLOOKUP($I$5,$G$9:$J$30,4,FALSE),2)*$DC$12,2)+ROUND(ROUND(ROUND(ROUND(BB17*$Q$9,4)*$A$8,2)*VLOOKUP($I$5,$G$9:$J$30,4,FALSE),2)*$DD$12,2)+IF(AND($CU$10<0.941,'WPS Health Plan Subsidy Calcs'!$D$4<3.0633),0,ROUND(ROUND(ROUND(ROUND(BB17*$Q$9,4)*$A$8,2)*VLOOKUP($I$5,$G$9:$J$30,4,FALSE),2)*$CU$10,2))+IF(AND($CV$10<0.941,'WPS Health Plan Subsidy Calcs'!$D$4<3.0633),0,ROUND(ROUND(ROUND(ROUND(BB17*$Q$9,4)*$A$8,2)*VLOOKUP($I$5,$G$9:$J$30,4,FALSE),2)*$CV$10,2))+IF(AND($CW$10<0.941,'WPS Health Plan Subsidy Calcs'!$D$4<3.0633),0,ROUND(ROUND(ROUND(ROUND(BB17*$Q$9,4)*$A$8,2)*VLOOKUP($I$5,$G$9:$J$30,4,FALSE),2)*$CW$10,2)) -> 
C18: 24 | D18: 1 | E18: 1 | G18: 11 | H18: Marinette | I18: 16 | J18: 0.92 | L18: ="" ->  | M18: ="" ->  | P18: Network | Q18: Factor | V18: WPS HMO HDHP Bronze $7,050 | Select Network | W18: 84670WI1250157 | Y18: ThedaCare HMO 6450 HDHP | Z18: 84670WI1250034 | AA18: 0.4985 | AB18: Aurora HMO 6450 HDHP | AC18: 84670WI1250090 | AD18: 0.4985 | AE18: Aurora and ThedaCare HMO 6450 HDHP | AF18: 84670WI1250113 | AG18: 6044.85 | AH18: Aurora and Bellin HMO 6450 HDHP | AI18: 84670WI1250123 | AK18: ProHealth and Aurora HMO 6450 HDHP | AL18: 84670WI1250133 | AN18: HMO HDHP | AO18: Bronze | AP18: 7050 | AQ18: - | AR18: 0 | AS18: - | AT18: 7050 | AU18: - | AV18: D/C | AW18: D/C | AX18: D/C | AY18: D/C | AZ18: 0 | BA18: $0 preventive, D/C all others | BB18: 0.5186 | BD18: Bronze | BE18: 7050 | BF18: - | BG18: 0 | BH18: - | BI18: 7050 | BJ18: - | BK18: D/C | BL18: D/C | BM18: D/C | BN18: D/C | BO18: $0 preventive, D/C all others | BP18: 7050 | BQ18: - | BR18: 0 | BS18: - | BT18: 7050 | BU18: - | BV18: D/C | BW18: D/C | BX18: D/C | BY18: D/C | BZ18: $0 preventive, D/C all others | CA18: 7050 | CB18: - | CC18: 0 | CD18: - | CE18: 7050 | CF18: - | CG18: D/C | CH18: D/C | CI18: D/C | CJ18: D/C | CK18: $0 preventive, D/C all others | DL18: =ROUND(ROUND(ROUND(ROUND(BB18*$Q$9,4)*$A$8,2)*VLOOKUP($I$5,$G$9:$J$30,4,FALSE),2)*$CS$12,2)+ROUND(ROUND(ROUND(ROUND(BB18*$Q$9,4)*$A$8,2)*VLOOKUP($I$5,$G$9:$J$30,4,FALSE),2)*$CT$12,2)+ROUND(ROUND(ROUND(ROUND(BB18*$Q$9,4)*$A$8,2)*VLOOKUP($I$5,$G$9:$J$30,4,FALSE),2)*$CU$12,2)+ROUND(ROUND(ROUND(ROUND(BB18*$Q$9,4)*$A$8,2)*VLOOKUP($I$5,$G$9:$J$30,4,FALSE),2)*$CV$12,2)+ROUND(ROUND(ROUND(ROUND(BB18*$Q$9,4)*$A$8,2)*VLOOKUP($I$5,$G$9:$J$30,4,FALSE),2)*$CW$12,2)+ROUND(ROUND(ROUND(ROUND(BB18*$Q$9,4)*$A$8,2)*VLOOKUP($I$5,$G$9:$J$30,4,FALSE),2)*$CX$12,2)+ROUND(ROUND(ROUND(ROUND(BB18*$Q$9,4)*$A$8,2)*VLOOKUP($I$5,$G$9:$J$30,4,FALSE),2)*$CY$12,2)+ROUND(ROUND(ROUND(ROUND(BB18*$Q$9,4)*$A$8,2)*VLOOKUP($I$5,$G$9:$J$30,4,FALSE),2)*$CZ$12,2)+ROUND(ROUND(ROUND(ROUND(BB18*$Q$9,4)*$A$8,2)*VLOOKUP($I$5,$G$9:$J$30,4,FALSE),2)*$DA$12,2)+ROUND(ROUND(ROUND(ROUND(BB18*$Q$9,4)*$A$8,2)*VLOOKUP($I$5,$G$9:$J$30,4,FALSE),2)*$DB$12,2)+ROUND(ROUND(ROUND(ROUND(BB18*$Q$9,4)*$A$8,2)*VLOOKUP($I$5,$G$9:$J$30,4,FALSE),2)*$DC$12,2)+ROUND(ROUND(ROUND(ROUND(BB18*$Q$9,4)*$A$8,2)*VLOOKUP($I$5,$G$9:$J$30,4,FALSE),2)*$DD$12,2)+IF(AND($CU$10<0.941,'WPS Health Plan Subsidy Calcs'!$D$4<3.0633),0,ROUND(ROUND(ROUND(ROUND(BB18*$Q$9,4)*$A$8,2)*VLOOKUP($I$5,$G$9:$J$30,4,FALSE),2)*$CU$10,2))+IF(AND($CV$10<0.941,'WPS Health Plan Subsidy Calcs'!$D$4<3.0633),0,ROUND(ROUND(ROUND(ROUND(BB18*$Q$9,4)*$A$8,2)*VLOOKUP($I$5,$G$9:$J$30,4,FALSE),2)*$CV$10,2))+IF(AND($CW$10<0.941,'WPS Health Plan Subsidy Calcs'!$D$4<3.0633),0,ROUND(ROUND(ROUND(ROUND(BB18*$Q$9,4)*$A$8,2)*VLOOKUP($I$5,$G$9:$J$30,4,FALSE),2)*$CW$10,2)) -> 
C19: 25 | D19: 1.004 | E19: 1 | G19: 12 | H19: Marquette | I19: 15 | J19: 0.975 | L19: ="" ->  | M19: ="" ->  | O19: 1 | P19: Arise | Q19: 1 | T19: 4 | V19: WPS HMO HDHP Silver $4,500 | Select Network | W19: 84670WI1250160 | Y19: ThedaCare HMO 3500 HDHP | Z19: 84670WI1250029 | AA19: 0.727 | AB19: Aurora HMO 3500 HDHP | AC19: 84670WI1250084 | AD19: 0.727 | AE19: Aurora and ThedaCare HMO 3500 HDHP | AF19: 84670WI1250114 | AG19: 409.05 | AH19: Aurora and Bellin HMO 3500 HDHP | AI19: 84670WI1250124 | AK19: ProHealth and Aurora HMO 3500 HDHP | AL19: 84670WI1250134 | AN19: HMO HDHP | AO19: Silver | AP19: 4500 | AQ19: - | AR19: 0.2 | AS19: - | AT19: 7050 | AU19: - | AV19: D/C | AW19: D/C | AX19: D/C | AY19: D/C | AZ19: 0 | BA19: $0 preventive, D/C all others | BB19: 0.662 | BD19: Silver | BE19: 225 | BF19: - | BG19: 0.2 | BH19: - | BI19: 850 | BJ19: - | BK19: D/C | BL19: D/C | BM19: D/C | BN19: D/C | BO19: $0 preventive, D/C all others | BP19: 1400 | BQ19: - | BR19: 0.2 | BS19: - | BT19: 1750 | BU19: - | BV19: D/C | BW19: D/C | BX19: D/C | BY19: D/C | BZ19: $0 preventive, D/C all others | CA19: 2800 | CB19: - | CC19: 0.2 | CD19: - | CE19: 5500 | CF19: - | CG19: D/C | CH19: D/C | CI19: D/C | CJ19: D/C | CK19: $0 preventive, D/C all others | DL19: =ROUND(ROUND(ROUND(ROUND(BB19*$Q$9,4)*$A$8,2)*VLOOKUP($I$5,$G$9:$J$30,4,FALSE),2)*$CS$12,2)+ROUND(ROUND(ROUND(ROUND(BB19*$Q$9,4)*$A$8,2)*VLOOKUP($I$5,$G$9:$J$30,4,FALSE),2)*$CT$12,2)+ROUND(ROUND(ROUND(ROUND(BB19*$Q$9,4)*$A$8,2)*VLOOKUP($I$5,$G$9:$J$30,4,FALSE),2)*$CU$12,2)+ROUND(ROUND(ROUND(ROUND(BB19*$Q$9,4)*$A$8,2)*VLOOKUP($I$5,$G$9:$J$30,4,FALSE),2)*$CV$12,2)+ROUND(ROUND(ROUND(ROUND(BB19*$Q$9,4)*$A$8,2)*VLOOKUP($I$5,$G$9:$J$30,4,FALSE),2)*$CW$12,2)+ROUND(ROUND(ROUND(ROUND(BB19*$Q$9,4)*$A$8,2)*VLOOKUP($I$5,$G$9:$J$30,4,FALSE),2)*$CX$12,2)+ROUND(ROUND(ROUND(ROUND(BB19*$Q$9,4)*$A$8,2)*VLOOKUP($I$5,$G$9:$J$30,4,FALSE),2)*$CY$12,2)+ROUND(ROUND(ROUND(ROUND(BB19*$Q$9,4)*$A$8,2)*VLOOKUP($I$5,$G$9:$J$30,4,FALSE),2)*$CZ$12,2)+ROUND(ROUND(ROUND(ROUND(BB19*$Q$9,4)*$A$8,2)*VLOOKUP($I$5,$G$9:$J$30,4,FALSE),2)*$DA$12,2)+ROUND(ROUND(ROUND(ROUND(BB19*$Q$9,4)*$A$8,2)*VLOOKUP($I$5,$G$9:$J$30,4,FALSE),2)*$DB$12,2)+ROUND(ROUND(ROUND(ROUND(BB19*$Q$9,4)*$A$8,2)*VLOOKUP($I$5,$G$9:$J$30,4,FALSE),2)*$DC$12,2)+ROUND(ROUND(ROUND(ROUND(BB19*$Q$9,4)*$A$8,2)*VLOOKUP($I$5,$G$9:$J$30,4,FALSE),2)*$DD$12,2)+IF(AND($CU$10<0.941,'WPS Health Plan Subsidy Calcs'!$D$4<3.0633),0,ROUND(ROUND(ROUND(ROUND(BB19*$Q$9,4)*$A$8,2)*VLOOKUP($I$5,$G$9:$J$30,4,FALSE),2)*$CU$10,2))+IF(AND($CV$10<0.941,'WPS Health Plan Subsidy Calcs'!$D$4<3.0633),0,ROUND(ROUND(ROUND(ROUND(BB19*$Q$9,4)*$A$8,2)*VLOOKUP($I$5,$G$9:$J$30,4,FALSE),2)*$CV$10,2))+IF(AND($CW$10<0.941,'WPS Health Plan Subsidy Calcs'!$D$4<3.0633),0,ROUND(ROUND(ROUND(ROUND(BB19*$Q$9,4)*$A$8,2)*VLOOKUP($I$5,$G$9:$J$30,4,FALSE),2)*$CW$10,2)) -> 
C20: 26 | D20: 1.024 | E20: 1 | G20: 13 | H20: Milwaukee | I20: 1 | J20: 0.947 | L20: ="" ->  | M20: ="" ->  | O20: 2 | P20: =VLOOKUP(I6,$G$8:$M$80,5,FALSE) -> 0 | Q20: =IF(P20="Statewide",1,IF(P20="Western",0.95,IF(P20="Aspirus",0.84,IF(P20="Southern",0.93,IF(P20="Healthy U",0.93,0))))) -> 0 | V20: WPS HMO HDHP Silver $5,250 | Select Network | W20: 84670WI1250161 | Y20: ThedaCare HMO 2600 HDHP | Z20: 84670WI1250032 | AA20: 0.7344 | AB20: Aurora HMO 2600 HDHP | AC20: 84670WI1250087 | AD20: 0.7344 | AE20: Aurora and ThedaCare HMO 2600 HDHP | AF20: 84670WI1250115 | AG20: 409.05 | AH20: Aurora and Bellin HMO 2600 HDHP | AI20: 84670WI1250125 | AK20: ProHealth and Aurora HMO 2600 HDHP | AL20: 84670WI1250135 | AN20: HMO HDHP | AO20: Silver | AP20: 5250 | AQ20: - | AR20: 0 | AS20: - | AT20: 5250 | AU20: - | AV20: D/C | AW20: D/C | AX20: D/C | AY20: D/C | AZ20: 0 | BA20: $0 preventive, D/C all others | BB20: 0.6666 | BD20: Silver | BE20: 625 | BF20: - | BG20: 0 | BH20: - | BI20: 625 | BJ20: - | BK20: D/C | BL20: D/C | BM20: D/C | BN20: D/C | BO20: $0 preventive, D/C all others | BP20: 1700 | BQ20: - | BR20: 0 | BS20: - | BT20: 1700 | BU20: - | BV20: D/C | BW20: D/C | BX20: D/C | BY20: D/C | BZ20: $0 preventive, D/C all others | CA20: 4200 | CB20: - | CC20: 0 | CD20: - | CE20: 4200 | CF20: - | CG20: D/C | CH20: D/C | CI20: D/C | CJ20: D/C | CK20: $0 preventive, D/C all others | CR20: HDHP | DL20: =ROUND(ROUND(ROUND(ROUND(BB20*$Q$9,4)*$A$8,2)*VLOOKUP($I$5,$G$9:$J$30,4,FALSE),2)*$CS$12,2)+ROUND(ROUND(ROUND(ROUND(BB20*$Q$9,4)*$A$8,2)*VLOOKUP($I$5,$G$9:$J$30,4,FALSE),2)*$CT$12,2)+ROUND(ROUND(ROUND(ROUND(BB20*$Q$9,4)*$A$8,2)*VLOOKUP($I$5,$G$9:$J$30,4,FALSE),2)*$CU$12,2)+ROUND(ROUND(ROUND(ROUND(BB20*$Q$9,4)*$A$8,2)*VLOOKUP($I$5,$G$9:$J$30,4,FALSE),2)*$CV$12,2)+ROUND(ROUND(ROUND(ROUND(BB20*$Q$9,4)*$A$8,2)*VLOOKUP($I$5,$G$9:$J$30,4,FALSE),2)*$CW$12,2)+ROUND(ROUND(ROUND(ROUND(BB20*$Q$9,4)*$A$8,2)*VLOOKUP($I$5,$G$9:$J$30,4,FALSE),2)*$CX$12,2)+ROUND(ROUND(ROUND(ROUND(BB20*$Q$9,4)*$A$8,2)*VLOOKUP($I$5,$G$9:$J$30,4,FALSE),2)*$CY$12,2)+ROUND(ROUND(ROUND(ROUND(BB20*$Q$9,4)*$A$8,2)*VLOOKUP($I$5,$G$9:$J$30,4,FALSE),2)*$CZ$12,2)+ROUND(ROUND(ROUND(ROUND(BB20*$Q$9,4)*$A$8,2)*VLOOKUP($I$5,$G$9:$J$30,4,FALSE),2)*$DA$12,2)+ROUND(ROUND(ROUND(ROUND(BB20*$Q$9,4)*$A$8,2)*VLOOKUP($I$5,$G$9:$J$30,4,FALSE),2)*$DB$12,2)+ROUND(ROUND(ROUND(ROUND(BB20*$Q$9,4)*$A$8,2)*VLOOKUP($I$5,$G$9:$J$30,4,FALSE),2)*$DC$12,2)+ROUND(ROUND(ROUND(ROUND(BB20*$Q$9,4)*$A$8,2)*VLOOKUP($I$5,$G$9:$J$30,4,FALSE),2)*$DD$12,2)+IF(AND($CU$10<0.941,'WPS Health Plan Subsidy Calcs'!$D$4<3.0633),0,ROUND(ROUND(ROUND(ROUND(BB20*$Q$9,4)*$A$8,2)*VLOOKUP($I$5,$G$9:$J$30,4,FALSE),2)*$CU$10,2))+IF(AND($CV$10<0.941,'WPS Health Plan Subsidy Calcs'!$D$4<3.0633),0,ROUND(ROUND(ROUND(ROUND(BB20*$Q$9,4)*$A$8,2)*VLOOKUP($I$5,$G$9:$J$30,4,FALSE),2)*$CV$10,2))+IF(AND($CW$10<0.941,'WPS Health Plan Subsidy Calcs'!$D$4<3.0633),0,ROUND(ROUND(ROUND(ROUND(BB20*$Q$9,4)*$A$8,2)*VLOOKUP($I$5,$G$9:$J$30,4,FALSE),2)*$CW$10,2)) -> 
C21: 27 | D21: 1.048 | E21: 1 | G21: 14 | H21: Oconto | I21: 16 | J21: 0.92 | L21: ="" ->  | M21: ="" ->  | O21: 3 | P21: =VLOOKUP(I6,$G$8:$M$80,6,FALSE) ->  | Q21: =IF(P21="Statewide",1,IF(P21="Western",0.95,IF(P21="Aspirus",0.84,IF(P21="Southern",0.93,IF(P21="Healthy U",0.93,0))))) -> 0 | T21: 6 | V21: WPS HMO HDHP Silver $6,125 | Select Network | W21: 84670WI1250162 | AG21: 409.05 | AN21: HMO HDHP | AO21: Silver | AP21: 6125 | AQ21: - | AR21: 0 | AS21: - | AT21: 6125 | AU21: - | AV21: D/C | AW21: D/C | AX21: D/C | AY21: D/C | AZ21: 0 | BA21: $0 preventive, D/C all others | BB21: 0.6359 | BD21: Silver | BE21: 625 | BF21: - | BG21: 0 | BH21: - | BI21: 625 | BJ21: - | BK21: D/C | BL21: D/C | BM21: D/C | BN21: D/C | BO21: $0 preventive, D/C all others | BP21: 1700 | BQ21: - | BR21: 0 | BS21: - | BT21: 1700 | BU21: - | BV21: D/C | BW21: D/C | BX21: D/C | BY21: D/C | BZ21: $0 preventive, D/C all others | CA21: 4200 | CB21: - | CC21: 0 | CD21: - | CE21: 4200 | CG21: D/C | CH21: D/C | CI21: D/C | CJ21: D/C | CK21: $0 preventive, D/C all others | CR21: Eff. Date | CS21: =#REF! ->  | DL21: =ROUND(ROUND(ROUND(ROUND(BB21*$Q$9,4)*$A$8,2)*VLOOKUP($I$5,$G$9:$J$30,4,FALSE),2)*$CS$12,2)+ROUND(ROUND(ROUND(ROUND(BB21*$Q$9,4)*$A$8,2)*VLOOKUP($I$5,$G$9:$J$30,4,FALSE),2)*$CT$12,2)+ROUND(ROUND(ROUND(ROUND(BB21*$Q$9,4)*$A$8,2)*VLOOKUP($I$5,$G$9:$J$30,4,FALSE),2)*$CU$12,2)+ROUND(ROUND(ROUND(ROUND(BB21*$Q$9,4)*$A$8,2)*VLOOKUP($I$5,$G$9:$J$30,4,FALSE),2)*$CV$12,2)+ROUND(ROUND(ROUND(ROUND(BB21*$Q$9,4)*$A$8,2)*VLOOKUP($I$5,$G$9:$J$30,4,FALSE),2)*$CW$12,2)+ROUND(ROUND(ROUND(ROUND(BB21*$Q$9,4)*$A$8,2)*VLOOKUP($I$5,$G$9:$J$30,4,FALSE),2)*$CX$12,2)+ROUND(ROUND(ROUND(ROUND(BB21*$Q$9,4)*$A$8,2)*VLOOKUP($I$5,$G$9:$J$30,4,FALSE),2)*$CY$12,2)+ROUND(ROUND(ROUND(ROUND(BB21*$Q$9,4)*$A$8,2)*VLOOKUP($I$5,$G$9:$J$30,4,FALSE),2)*$CZ$12,2)+ROUND(ROUND(ROUND(ROUND(BB21*$Q$9,4)*$A$8,2)*VLOOKUP($I$5,$G$9:$J$30,4,FALSE),2)*$DA$12,2)+ROUND(ROUND(ROUND(ROUND(BB21*$Q$9,4)*$A$8,2)*VLOOKUP($I$5,$G$9:$J$30,4,FALSE),2)*$DB$12,2)+ROUND(ROUND(ROUND(ROUND(BB21*$Q$9,4)*$A$8,2)*VLOOKUP($I$5,$G$9:$J$30,4,FALSE),2)*$DC$12,2)+ROUND(ROUND(ROUND(ROUND(BB21*$Q$9,4)*$A$8,2)*VLOOKUP($I$5,$G$9:$J$30,4,FALSE),2)*$DD$12,2)+IF(AND($CU$10<0.941,'WPS Health Plan Subsidy Calcs'!$D$4<3.0633),0,ROUND(ROUND(ROUND(ROUND(BB21*$Q$9,4)*$A$8,2)*VLOOKUP($I$5,$G$9:$J$30,4,FALSE),2)*$CU$10,2))+IF(AND($CV$10<0.941,'WPS Health Plan Subsidy Calcs'!$D$4<3.0633),0,ROUND(ROUND(ROUND(ROUND(BB21*$Q$9,4)*$A$8,2)*VLOOKUP($I$5,$G$9:$J$30,4,FALSE),2)*$CV$10,2))+IF(AND($CW$10<0.941,'WPS Health Plan Subsidy Calcs'!$D$4<3.0633),0,ROUND(ROUND(ROUND(ROUND(BB21*$Q$9,4)*$A$8,2)*VLOOKUP($I$5,$G$9:$J$30,4,FALSE),2)*$CW$10,2)) -> 
C22: 28 | D22: 1.087 | E22: 1 | G22: 15 | H22: Outagamie | I22: 11 | J22: 0.952 | L22: ="" ->  | M22: ="" ->  | O22: 4 | P22: =VLOOKUP(I6,$G$8:$M$80,7,FALSE) ->  | Q22: 0 | T22: 2 | V22: WPS POS Bronze $8,700 | Select Network | W22: 84670WI1270149 | Y22: ThedaCare 2600 HDHP | Z22: 84670WI1270032 | AA22: 0.7402 | AB22: Aurora 2600 HDHP | AC22: 84670WI1270087 | AD22: 0.7402 | AE22: Aurora and ThedaCare 2600 HDHP | AF22: 84670WI1270115 | AG22: 0 | AH22: Aurora and Bellin 2600 HDHP | AI22: 84670WI1270125 | AJ22: 0.4545 | AK22: ProHealth and Aurora 2600 HDHP | AL22: 84670WI1270135 | AN22: POS | AO22: Bronze | AP22: 8700 | AQ22: 17400 | AR22: 0 | AS22: 0.3 | AT22: 8700 | AU22: 23400 | AV22: D/C | AW22: D/C | AX22: D/C | AY22: D/C | AZ22: 0 | BA22: $0 preventive, D/C all others | BB22: 0.4979 | BC22: =ROUND(ROUND(ROUND(ROUND(BB22*$R$9,4)*$A$8,2)*VLOOKUP($I$5,$G$9:$J$30,4,FALSE),2)*$CS$8,2)+ROUND(ROUND(ROUND(ROUND(BB22*$R$9,4)*$A$8,2)*VLOOKUP($I$5,$G$9:$J$30,4,FALSE),2)*$CT$8,2)+ROUND(ROUND(ROUND(ROUND(BB22*$R$9,4)*$A$8,2)*VLOOKUP($I$5,$G$9:$J$30,4,FALSE),2)*$CU$8,2)+ROUND(ROUND(ROUND(ROUND(BB22*$R$9,4)*$A$8,2)*VLOOKUP($I$5,$G$9:$J$30,4,FALSE),2)*$CV$8,2)+ROUND(ROUND(ROUND(ROUND(BB22*$R$9,4)*$A$8,2)*VLOOKUP($I$5,$G$9:$J$30,4,FALSE),2)*$CW$8,2)+ROUND(ROUND(ROUND(ROUND(BB22*$R$9,4)*$A$8,2)*VLOOKUP($I$5,$G$9:$J$30,4,FALSE),2)*$CX$8,2)+ROUND(ROUND(ROUND(ROUND(BB22*$R$9,4)*$A$8,2)*VLOOKUP($I$5,$G$9:$J$30,4,FALSE),2)*$CY$8,2)+ROUND(ROUND(ROUND(ROUND(BB22*$R$9,4)*$A$8,2)*VLOOKUP($I$5,$G$9:$J$30,4,FALSE),2)*$CZ$8,2)+ROUND(ROUND(ROUND(ROUND(BB22*$R$9,4)*$A$8,2)*VLOOKUP($I$5,$G$9:$J$30,4,FALSE),2)*$DA$8,2)+ROUND(ROUND(ROUND(ROUND(BB22*$R$9,4)*$A$8,2)*VLOOKUP($I$5,$G$9:$J$30,4,FALSE),2)*$DB$8,2)+ROUND(ROUND(ROUND(ROUND(BB22*$R$9,4)*$A$8,2)*VLOOKUP($I$5,$G$9:$J$30,4,FALSE),2)*$DC$8,2)+ROUND(ROUND(ROUND(ROUND(BB22*$R$9,4)*$A$8,2)*VLOOKUP($I$5,$G$9:$J$30,4,FALSE),2)*$DD$8,2)+ROUND(ROUND(ROUND(ROUND(BB22*$R$9,4)*$A$8,2)*VLOOKUP($I$5,$G$9:$J$30,4,FALSE),2)*$CU$10,2)+ROUND(ROUND(ROUND(ROUND(BB22*$R$9,4)*$A$8,2)*VLOOKUP($I$5,$G$9:$J$30,4,FALSE),2)*$CV$10,2)+ROUND(ROUND(ROUND(ROUND(BB22*$R$9,4)*$A$8,2)*VLOOKUP($I$5,$G$9:$J$30,4,FALSE),2)*$CW$10,2)+ROUND(ROUND(ROUND(ROUND(BB22*$R$9,4)*$A$8,2)*VLOOKUP($I$5,$G$9:$J$30,4,FALSE),2)*$CX$10,2)+ROUND(ROUND(ROUND(ROUND(BB22*$R$9,4)*$A$8,2)*VLOOKUP($I$5,$G$9:$J$30,4,FALSE),2)*$CY$10,2)+ROUND(ROUND(ROUND(ROUND(BB22*$R$9,4)*$A$8,2)*VLOOKUP($I$5,$G$9:$J$30,4,FALSE),2)*$CZ$10,2)+ROUND(ROUND(ROUND(ROUND(BB22*$R$9,4)*$A$8,2)*VLOOKUP($I$5,$G$9:$J$30,4,FALSE),2)*$DA$10,2)+ROUND(ROUND(ROUND(ROUND(BB22*$R$9,4)*$A$8,2)*VLOOKUP($I$5,$G$9:$J$30,4,FALSE),2)*$DB$10,2)+ROUND(ROUND(ROUND(ROUND(BB22*$R$9,4)*$A$8,2)*VLOOKUP($I$5,$G$9:$J$30,4,FALSE),2)*$DC$10,2)+ROUND(ROUND(ROUND(ROUND(BB22*$R$9,4)*$A$8,2)*VLOOKUP($I$5,$G$9:$J$30,4,FALSE),2)*$DD$10,2) ->  | BD22: Bronze | BE22: 8700 | BF22: 17400 | BG22: 0 | BH22: 0.3 | BI22: 8700 | BJ22: 23400 | BK22: D/C | BL22: D/C | BM22: D/C | BN22: D/C | BO22: $0 preventive, D/C all others | BP22: 8700 | BQ22: 17400 | BR22: 0 | BS22: 0.3 | BT22: 8700 | BU22: 23400 | BV22: D/C | BW22: D/C | BX22: D/C | BY22: D/C | BZ22: $0 preventive, D/C all others | CA22: 8700 | CB22: 17400 | CC22: 0 | CD22: 0.3 | CE22: 8700 | CF22: 23400 | CG22: D/C | CH22: D/C | CI22: D/C | CJ22: D/C | CK22: $0 preventive, D/C all others | DL22: =ROUND(ROUND(ROUND(ROUND(BB22*$R$9,4)*$A$8,2)*VLOOKUP($I$5,$G$9:$J$30,4,FALSE),2)*$CS$12,2)+ROUND(ROUND(ROUND(ROUND(BB22*$R$9,4)*$A$8,2)*VLOOKUP($I$5,$G$9:$J$30,4,FALSE),2)*$CT$12,2)+ROUND(ROUND(ROUND(ROUND(BB22*$R$9,4)*$A$8,2)*VLOOKUP($I$5,$G$9:$J$30,4,FALSE),2)*$CU$12,2)+ROUND(ROUND(ROUND(ROUND(BB22*$R$9,4)*$A$8,2)*VLOOKUP($I$5,$G$9:$J$30,4,FALSE),2)*$CV$12,2)+ROUND(ROUND(ROUND(ROUND(BB22*$R$9,4)*$A$8,2)*VLOOKUP($I$5,$G$9:$J$30,4,FALSE),2)*$CW$12,2)+ROUND(ROUND(ROUND(ROUND(BB22*$R$9,4)*$A$8,2)*VLOOKUP($I$5,$G$9:$J$30,4,FALSE),2)*$CX$12,2)+ROUND(ROUND(ROUND(ROUND(BB22*$R$9,4)*$A$8,2)*VLOOKUP($I$5,$G$9:$J$30,4,FALSE),2)*$CY$12,2)+ROUND(ROUND(ROUND(ROUND(BB22*$R$9,4)*$A$8,2)*VLOOKUP($I$5,$G$9:$J$30,4,FALSE),2)*$CZ$12,2)+ROUND(ROUND(ROUND(ROUND(BB22*$R$9,4)*$A$8,2)*VLOOKUP($I$5,$G$9:$J$30,4,FALSE),2)*$DA$12,2)+ROUND(ROUND(ROUND(ROUND(BB22*$R$9,4)*$A$8,2)*VLOOKUP($I$5,$G$9:$J$30,4,FALSE),2)*$DB$12,2)+ROUND(ROUND(ROUND(ROUND(BB22*$R$9,4)*$A$8,2)*VLOOKUP($I$5,$G$9:$J$30,4,FALSE),2)*$DC$12,2)+ROUND(ROUND(ROUND(ROUND(BB22*$R$9,4)*$A$8,2)*VLOOKUP($I$5,$G$9:$J$30,4,FALSE),2)*$DD$12,2)+IF(AND($CU$10<0.941,'WPS Health Plan Subsidy Calcs'!$D$4<3.0633),0,ROUND(ROUND(ROUND(ROUND(BB22*$R$9,4)*$A$8,2)*VLOOKUP($I$5,$G$9:$J$30,4,FALSE),2)*$CU$10,2))+IF(AND($CV$10<0.941,'WPS Health Plan Subsidy Calcs'!$D$4<3.0633),0,ROUND(ROUND(ROUND(ROUND(BB22*$R$9,4)*$A$8,2)*VLOOKUP($I$5,$G$9:$J$30,4,FALSE),2)*$CV$10,2))+IF(AND($CW$10<0.941,'WPS Health Plan Subsidy Calcs'!$D$4<3.0633),0,ROUND(ROUND(ROUND(ROUND(BB22*$R$9,4)*$A$8,2)*VLOOKUP($I$5,$G$9:$J$30,4,FALSE),2)*$CW$10,2)) ->  | DM22: =BC22-DL22 -> 
C23: 29 | D23: 1.119 | E23: 1 | G23: 16 | H23: Ozaukee | I23: 12 | J23: 1.012 | L23: ="" ->  | M23: ="" ->  | T23: 3 | V23: WPS POS HDHP Bronze $6,000 | Select Network | W23: 84670WI1270159 | Y23: ThedaCare 5500 HDHP | Z23: 84670WI1270036 | AA23: 0.7106 | AB23: Aurora 5500 HDHP | AC23: 84670WI1270091 | AD23: 0.7106 | AE23: Aurora and ThedaCare 5500 HDHP | AF23: 84670WI1270112 | AG23: 0 | AH23: Aurora and Bellin 5500 HDHP | AI23: 84670WI1270122 | AJ23: 0.2727 | AK23: ProHealth and Aurora 5500 HDHP | AL23: 84670WI1270132 | AN23: POS HDHP | AO23: Bronze | AP23: 6000 | AQ23: 12000 | AR23: 0.3 | AS23: 0.5 | AT23: 7050 | AU23: 22000 | AV23: D/C | AW23: D/C | AX23: D/C | AY23: D/C | AZ23: 0 | BA23: $0 preventive, D/C all others | BB23: 0.5198 | BC23: =ROUND(ROUND(ROUND(ROUND(BB23*$R$9,4)*$A$8,2)*VLOOKUP($I$5,$G$9:$J$30,4,FALSE),2)*$CS$8,2)+ROUND(ROUND(ROUND(ROUND(BB23*$R$9,4)*$A$8,2)*VLOOKUP($I$5,$G$9:$J$30,4,FALSE),2)*$CT$8,2)+ROUND(ROUND(ROUND(ROUND(BB23*$R$9,4)*$A$8,2)*VLOOKUP($I$5,$G$9:$J$30,4,FALSE),2)*$CU$8,2)+ROUND(ROUND(ROUND(ROUND(BB23*$R$9,4)*$A$8,2)*VLOOKUP($I$5,$G$9:$J$30,4,FALSE),2)*$CV$8,2)+ROUND(ROUND(ROUND(ROUND(BB23*$R$9,4)*$A$8,2)*VLOOKUP($I$5,$G$9:$J$30,4,FALSE),2)*$CW$8,2)+ROUND(ROUND(ROUND(ROUND(BB23*$R$9,4)*$A$8,2)*VLOOKUP($I$5,$G$9:$J$30,4,FALSE),2)*$CX$8,2)+ROUND(ROUND(ROUND(ROUND(BB23*$R$9,4)*$A$8,2)*VLOOKUP($I$5,$G$9:$J$30,4,FALSE),2)*$CY$8,2)+ROUND(ROUND(ROUND(ROUND(BB23*$R$9,4)*$A$8,2)*VLOOKUP($I$5,$G$9:$J$30,4,FALSE),2)*$CZ$8,2)+ROUND(ROUND(ROUND(ROUND(BB23*$R$9,4)*$A$8,2)*VLOOKUP($I$5,$G$9:$J$30,4,FALSE),2)*$DA$8,2)+ROUND(ROUND(ROUND(ROUND(BB23*$R$9,4)*$A$8,2)*VLOOKUP($I$5,$G$9:$J$30,4,FALSE),2)*$DB$8,2)+ROUND(ROUND(ROUND(ROUND(BB23*$R$9,4)*$A$8,2)*VLOOKUP($I$5,$G$9:$J$30,4,FALSE),2)*$DC$8,2)+ROUND(ROUND(ROUND(ROUND(BB23*$R$9,4)*$A$8,2)*VLOOKUP($I$5,$G$9:$J$30,4,FALSE),2)*$DD$8,2)+ROUND(ROUND(ROUND(ROUND(BB23*$R$9,4)*$A$8,2)*VLOOKUP($I$5,$G$9:$J$30,4,FALSE),2)*$CU$10,2)+ROUND(ROUND(ROUND(ROUND(BB23*$R$9,4)*$A$8,2)*VLOOKUP($I$5,$G$9:$J$30,4,FALSE),2)*$CV$10,2)+ROUND(ROUND(ROUND(ROUND(BB23*$R$9,4)*$A$8,2)*VLOOKUP($I$5,$G$9:$J$30,4,FALSE),2)*$CW$10,2)+ROUND(ROUND(ROUND(ROUND(BB23*$R$9,4)*$A$8,2)*VLOOKUP($I$5,$G$9:$J$30,4,FALSE),2)*$CX$10,2)+ROUND(ROUND(ROUND(ROUND(BB23*$R$9,4)*$A$8,2)*VLOOKUP($I$5,$G$9:$J$30,4,FALSE),2)*$CY$10,2)+ROUND(ROUND(ROUND(ROUND(BB23*$R$9,4)*$A$8,2)*VLOOKUP($I$5,$G$9:$J$30,4,FALSE),2)*$CZ$10,2)+ROUND(ROUND(ROUND(ROUND(BB23*$R$9,4)*$A$8,2)*VLOOKUP($I$5,$G$9:$J$30,4,FALSE),2)*$DA$10,2)+ROUND(ROUND(ROUND(ROUND(BB23*$R$9,4)*$A$8,2)*VLOOKUP($I$5,$G$9:$J$30,4,FALSE),2)*$DB$10,2)+ROUND(ROUND(ROUND(ROUND(BB23*$R$9,4)*$A$8,2)*VLOOKUP($I$5,$G$9:$J$30,4,FALSE),2)*$DC$10,2)+ROUND(ROUND(ROUND(ROUND(BB23*$R$9,4)*$A$8,2)*VLOOKUP($I$5,$G$9:$J$30,4,FALSE),2)*$DD$10,2) ->  | BD23: Bronze | BE23: 6000 | BF23: 12000 | BG23: 0.3 | BH23: 0.5 | BI23: 7050 | BJ23: 22000 | BK23: D/C | BL23: D/C | BM23: D/C | BN23: D/C | BO23: $0 preventive, D/C all others | BP23: 6000 | BQ23: 12000 | BR23: 0.3 | BS23: 0.5 | BT23: 7050 | BU23: 22000 | BV23: D/C | BW23: D/C | BX23: D/C | BY23: D/C | BZ23: $0 preventive, D/C all others | CA23: 6000 | CB23: 12000 | CC23: 0.3 | CD23: 0.5 | CE23: 7050 | CF23: 22000 | CG23: D/C | CH23: D/C | CI23: D/C | CJ23: D/C | CK23: $0 preventive, D/C all others | CR23: Member | CS23: Applicant | CT23: Spouse | CU23: Dep.<21 | CV23: Dep. 1 | CW23: Dep. 2 | CX23: Dep. 3 | CY23: Dep. 4 | CZ23: Dep. 5 | DA23: Dep. 6 | DJ23: TOTAL | DL23: =ROUND(ROUND(ROUND(ROUND(BB23*$R$9,4)*$A$8,2)*VLOOKUP($I$5,$G$9:$J$30,4,FALSE),2)*$CS$12,2)+ROUND(ROUND(ROUND(ROUND(BB23*$R$9,4)*$A$8,2)*VLOOKUP($I$5,$G$9:$J$30,4,FALSE),2)*$CT$12,2)+ROUND(ROUND(ROUND(ROUND(BB23*$R$9,4)*$A$8,2)*VLOOKUP($I$5,$G$9:$J$30,4,FALSE),2)*$CU$12,2)+ROUND(ROUND(ROUND(ROUND(BB23*$R$9,4)*$A$8,2)*VLOOKUP($I$5,$G$9:$J$30,4,FALSE),2)*$CV$12,2)+ROUND(ROUND(ROUND(ROUND(BB23*$R$9,4)*$A$8,2)*VLOOKUP($I$5,$G$9:$J$30,4,FALSE),2)*$CW$12,2)+ROUND(ROUND(ROUND(ROUND(BB23*$R$9,4)*$A$8,2)*VLOOKUP($I$5,$G$9:$J$30,4,FALSE),2)*$CX$12,2)+ROUND(ROUND(ROUND(ROUND(BB23*$R$9,4)*$A$8,2)*VLOOKUP($I$5,$G$9:$J$30,4,FALSE),2)*$CY$12,2)+ROUND(ROUND(ROUND(ROUND(BB23*$R$9,4)*$A$8,2)*VLOOKUP($I$5,$G$9:$J$30,4,FALSE),2)*$CZ$12,2)+ROUND(ROUND(ROUND(ROUND(BB23*$R$9,4)*$A$8,2)*VLOOKUP($I$5,$G$9:$J$30,4,FALSE),2)*$DA$12,2)+ROUND(ROUND(ROUND(ROUND(BB23*$R$9,4)*$A$8,2)*VLOOKUP($I$5,$G$9:$J$30,4,FALSE),2)*$DB$12,2)+ROUND(ROUND(ROUND(ROUND(BB23*$R$9,4)*$A$8,2)*VLOOKUP($I$5,$G$9:$J$30,4,FALSE),2)*$DC$12,2)+ROUND(ROUND(ROUND(ROUND(BB23*$R$9,4)*$A$8,2)*VLOOKUP($I$5,$G$9:$J$30,4,FALSE),2)*$DD$12,2)+IF(AND($CU$10<0.941,'WPS Health Plan Subsidy Calcs'!$D$4<3.0633),0,ROUND(ROUND(ROUND(ROUND(BB23*$R$9,4)*$A$8,2)*VLOOKUP($I$5,$G$9:$J$30,4,FALSE),2)*$CU$10,2))+IF(AND($CV$10<0.941,'WPS Health Plan Subsidy Calcs'!$D$4<3.0633),0,ROUND(ROUND(ROUND(ROUND(BB23*$R$9,4)*$A$8,2)*VLOOKUP($I$5,$G$9:$J$30,4,FALSE),2)*$CV$10,2))+IF(AND($CW$10<0.941,'WPS Health Plan Subsidy Calcs'!$D$4<3.0633),0,ROUND(ROUND(ROUND(ROUND(BB23*$R$9,4)*$A$8,2)*VLOOKUP($I$5,$G$9:$J$30,4,FALSE),2)*$CW$10,2)) -> 
C24: 30 | D24: 1.135 | E24: 1 | G24: 17 | H24: Racine | I24: 9 | J24: 1.065 | L24: ="" ->  | M24: ="" ->  | T24: 1 | V24: POS HDHP Bronze 5500 | W24: 86584WI0020003 | Y24: Aspirus Arise Platinum HMO 250 | Z24: 84670WI1250043 | AA24: 0.4995 | AB24: Arise Metro Platinum HMO 250 | AC24: 84670WI1250049 | AD24: 0.4995 | AE24: Arise Metro Platinum HMO 250 | AF24: 84670WI1250049 | AG24: 4999.5 | AH24: Arise Metro Platinum HMO 250 | AI24: 84670WI1250049 | AJ24: 0.4545 | AK24: Arise Metro Platinum HMO 250 | AL24: 84670WI1250049 | AN24: POS HDHP | AO24: Bronze | AP24: 5500 | AQ24: 11000 | AR24: 0.3 | AS24: 0.5 | AT24: 6900 | AU24: 21000 | AV24: D/C | AW24: D/C | AX24: D/C | AY24: D/C | AZ24: 0 | BA24: $0 preventive, D/C all others | BB24: 0.5477 | BC24: =ROUND(ROUND(ROUND(ROUND(BB24*$R$9,4)*$A$8,2)*VLOOKUP($I$5,$G$9:$J$24,4,FALSE),2)*$CS$8,2)+ROUND(ROUND(ROUND(ROUND(BB24*$R$9,4)*$A$8,2)*VLOOKUP($I$5,$G$9:$J$24,4,FALSE),2)*$CT$8,2)+ROUND(ROUND(ROUND(ROUND(BB24*$R$9,4)*$A$8,2)*VLOOKUP($I$5,$G$9:$J$24,4,FALSE),2)*$CU$8,2)+ROUND(ROUND(ROUND(ROUND(BB24*$R$9,4)*$A$8,2)*VLOOKUP($I$5,$G$9:$J$24,4,FALSE),2)*$CV$8,2)+ROUND(ROUND(ROUND(ROUND(BB24*$R$9,4)*$A$8,2)*VLOOKUP($I$5,$G$9:$J$24,4,FALSE),2)*$CW$8,2)+ROUND(ROUND(ROUND(ROUND(BB24*$R$9,4)*$A$8,2)*VLOOKUP($I$5,$G$9:$J$24,4,FALSE),2)*$CX$8,2)+ROUND(ROUND(ROUND(ROUND(BB24*$R$9,4)*$A$8,2)*VLOOKUP($I$5,$G$9:$J$24,4,FALSE),2)*$CY$8,2)+ROUND(ROUND(ROUND(ROUND(BB24*$R$9,4)*$A$8,2)*VLOOKUP($I$5,$G$9:$J$24,4,FALSE),2)*$CZ$8,2)+ROUND(ROUND(ROUND(ROUND(BB24*$R$9,4)*$A$8,2)*VLOOKUP($I$5,$G$9:$J$24,4,FALSE),2)*$DA$8,2)+ROUND(ROUND(ROUND(ROUND(BB24*$R$9,4)*$A$8,2)*VLOOKUP($I$5,$G$9:$J$24,4,FALSE),2)*$DB$8,2)+ROUND(ROUND(ROUND(ROUND(BB24*$R$9,4)*$A$8,2)*VLOOKUP($I$5,$G$9:$J$24,4,FALSE),2)*$DC$8,2)+ROUND(ROUND(ROUND(ROUND(BB24*$R$9,4)*$A$8,2)*VLOOKUP($I$5,$G$9:$J$24,4,FALSE),2)*$DD$8,2)+ROUND(ROUND(ROUND(ROUND(BB24*$R$9,4)*$A$8,2)*VLOOKUP($I$5,$G$9:$J$24,4,FALSE),2)*$CU$10,2)+ROUND(ROUND(ROUND(ROUND(BB24*$R$9,4)*$A$8,2)*VLOOKUP($I$5,$G$9:$J$24,4,FALSE),2)*$CV$10,2)+ROUND(ROUND(ROUND(ROUND(BB24*$R$9,4)*$A$8,2)*VLOOKUP($I$5,$G$9:$J$24,4,FALSE),2)*$CW$10,2)+ROUND(ROUND(ROUND(ROUND(BB24*$R$9,4)*$A$8,2)*VLOOKUP($I$5,$G$9:$J$24,4,FALSE),2)*$CX$10,2)+ROUND(ROUND(ROUND(ROUND(BB24*$R$9,4)*$A$8,2)*VLOOKUP($I$5,$G$9:$J$24,4,FALSE),2)*$CY$10,2)+ROUND(ROUND(ROUND(ROUND(BB24*$R$9,4)*$A$8,2)*VLOOKUP($I$5,$G$9:$J$24,4,FALSE),2)*$CZ$10,2)+ROUND(ROUND(ROUND(ROUND(BB24*$R$9,4)*$A$8,2)*VLOOKUP($I$5,$G$9:$J$24,4,FALSE),2)*$DA$10,2)+ROUND(ROUND(ROUND(ROUND(BB24*$R$9,4)*$A$8,2)*VLOOKUP($I$5,$G$9:$J$24,4,FALSE),2)*$DB$10,2)+ROUND(ROUND(ROUND(ROUND(BB24*$R$9,4)*$A$8,2)*VLOOKUP($I$5,$G$9:$J$24,4,FALSE),2)*$DC$10,2)+ROUND(ROUND(ROUND(ROUND(BB24*$R$9,4)*$A$8,2)*VLOOKUP($I$5,$G$9:$J$24,4,FALSE),2)*$DD$10,2) ->  | BD24: Bronze | BE24: 5500 | BF24: 11000 | BG24: 0.3 | BH24: 0.5 | BI24: 6900 | BJ24: 21000 | BK24: D/C | BL24: D/C | BM24: D/C | BN24: D/C | BO24: $0 preventive, D/C all others | BP24: 5500 | BQ24: 11000 | BR24: 0.3 | BS24: 0.5 | BT24: 6900 | BU24: 21000 | BV24: D/C | BW24: D/C | BX24: D/C | BY24: D/C | BZ24: $0 preventive, D/C all others | CA24: 5500 | CB24: 11000 | CC24: 0.3 | CD24: 0.5 | CE24: 6900 | CF24: 21000 | CG24: D/C | CH24: D/C | CI24: D/C | CJ24: D/C | CK24: $0 preventive, D/C all others | CR24: DOB | CS24: =IF(#REF!="","",#REF!) ->  | CT24: =IF(#REF!="","",#REF!) ->  | CU24: =IF(ISERROR(VALUE(#REF!)),0,IF(VALUE(#REF!)>3,3,#REF!)) -> 0 | CV24: =IF(#REF!="","",#REF!) ->  | CW24: =IF(#REF!="","",#REF!) ->  | CX24: =IF(#REF!="","",#REF!) ->  | CY24: =IF(#REF!="","",#REF!) ->  | CZ24: =IF(#REF!="","",#REF!) ->  | DA24: =IF(#REF!="","",#REF!) ->  | DL24: =ROUND(ROUND(ROUND(ROUND(BB24*$R$9,4)*$A$8,2)*VLOOKUP($I$5,$G$9:$J$24,4,FALSE),2)*$CS$12,2)+ROUND(ROUND(ROUND(ROUND(BB24*$R$9,4)*$A$8,2)*VLOOKUP($I$5,$G$9:$J$24,4,FALSE),2)*$CT$12,2)+ROUND(ROUND(ROUND(ROUND(BB24*$R$9,4)*$A$8,2)*VLOOKUP($I$5,$G$9:$J$24,4,FALSE),2)*$CU$12,2)+ROUND(ROUND(ROUND(ROUND(BB24*$R$9,4)*$A$8,2)*VLOOKUP($I$5,$G$9:$J$24,4,FALSE),2)*$CV$12,2)+ROUND(ROUND(ROUND(ROUND(BB24*$R$9,4)*$A$8,2)*VLOOKUP($I$5,$G$9:$J$24,4,FALSE),2)*$CW$12,2)+ROUND(ROUND(ROUND(ROUND(BB24*$R$9,4)*$A$8,2)*VLOOKUP($I$5,$G$9:$J$24,4,FALSE),2)*$CX$12,2)+ROUND(ROUND(ROUND(ROUND(BB24*$R$9,4)*$A$8,2)*VLOOKUP($I$5,$G$9:$J$24,4,FALSE),2)*$CY$12,2)+ROUND(ROUND(ROUND(ROUND(BB24*$R$9,4)*$A$8,2)*VLOOKUP($I$5,$G$9:$J$24,4,FALSE),2)*$CZ$12,2)+ROUND(ROUND(ROUND(ROUND(BB24*$R$9,4)*$A$8,2)*VLOOKUP($I$5,$G$9:$J$24,4,FALSE),2)*$DA$12,2)+ROUND(ROUND(ROUND(ROUND(BB24*$R$9,4)*$A$8,2)*VLOOKUP($I$5,$G$9:$J$24,4,FALSE),2)*$DB$12,2)+ROUND(ROUND(ROUND(ROUND(BB24*$R$9,4)*$A$8,2)*VLOOKUP($I$5,$G$9:$J$24,4,FALSE),2)*$DC$12,2)+ROUND(ROUND(ROUND(ROUND(BB24*$R$9,4)*$A$8,2)*VLOOKUP($I$5,$G$9:$J$24,4,FALSE),2)*$DD$12,2)+IF(AND($CU$10<0.941,'WPS Health Plan Subsidy Calcs'!$D$4<3.0633),0,ROUND(ROUND(ROUND(ROUND(BB24*$R$9,4)*$A$8,2)*VLOOKUP($I$5,$G$9:$J$24,4,FALSE),2)*$CU$10,2))+IF(AND($CV$10<0.941,'WPS Health Plan Subsidy Calcs'!$D$4<3.0633),0,ROUND(ROUND(ROUND(ROUND(BB24*$R$9,4)*$A$8,2)*VLOOKUP($I$5,$G$9:$J$24,4,FALSE),2)*$CV$10,2))+IF(AND($CW$10<0.941,'WPS Health Plan Subsidy Calcs'!$D$4<3.0633),0,ROUND(ROUND(ROUND(ROUND(BB24*$R$9,4)*$A$8,2)*VLOOKUP($I$5,$G$9:$J$24,4,FALSE),2)*$CW$10,2)) -> 
C25: 31 | D25: 1.159 | E25: 1 | G25: 18 | H25: Sheboygan | I25: 11 | J25: 0.952 | L25: ="" ->  | M25: ="" ->  | T25: 16 | V25: POS HDHP Silver 2800 | W25: 86584WI0020004 | Y25: Aspirus Arise Catastrophic HMO 6600 | Z25: 84670WI1250093 | AA25: 0.7261 | AB25: Arise Metro Catastrophic HMO 6600 | AC25: 84670WI1250094 | AD25: 0.7261 | AE25: Arise Metro Catastrophic HMO 6600 | AF25: 84670WI1250094 | AG25: 545.4 | AH25: Arise Metro Catastrophic HMO 6600 | AI25: 84670WI1250094 | AJ25: 0.4545 | AK25: Arise Metro Catastrophic HMO 6600 | AL25: 84670WI1250094 | AN25: POS HDHP | AO25: Silver | AP25: 2800 | AQ25: 5600 | AR25: 0.2 | AS25: 0.5 | AT25: 6900 | AU25: 15600 | AV25: D/C | AW25: D/C | AX25: D/C | AY25: D/C | AZ25: 0 | BA25: $0 preventive, D/C all others | BB25: 0.7948 | BC25: =ROUND(ROUND(ROUND(ROUND(BB25*$R$9,4)*$A$8,2)*VLOOKUP($I$5,$G$9:$J$24,4,FALSE),2)*$CS$8,2)+ROUND(ROUND(ROUND(ROUND(BB25*$R$9,4)*$A$8,2)*VLOOKUP($I$5,$G$9:$J$24,4,FALSE),2)*$CT$8,2)+ROUND(ROUND(ROUND(ROUND(BB25*$R$9,4)*$A$8,2)*VLOOKUP($I$5,$G$9:$J$24,4,FALSE),2)*$CU$8,2)+ROUND(ROUND(ROUND(ROUND(BB25*$R$9,4)*$A$8,2)*VLOOKUP($I$5,$G$9:$J$24,4,FALSE),2)*$CV$8,2)+ROUND(ROUND(ROUND(ROUND(BB25*$R$9,4)*$A$8,2)*VLOOKUP($I$5,$G$9:$J$24,4,FALSE),2)*$CW$8,2)+ROUND(ROUND(ROUND(ROUND(BB25*$R$9,4)*$A$8,2)*VLOOKUP($I$5,$G$9:$J$24,4,FALSE),2)*$CX$8,2)+ROUND(ROUND(ROUND(ROUND(BB25*$R$9,4)*$A$8,2)*VLOOKUP($I$5,$G$9:$J$24,4,FALSE),2)*$CY$8,2)+ROUND(ROUND(ROUND(ROUND(BB25*$R$9,4)*$A$8,2)*VLOOKUP($I$5,$G$9:$J$24,4,FALSE),2)*$CZ$8,2)+ROUND(ROUND(ROUND(ROUND(BB25*$R$9,4)*$A$8,2)*VLOOKUP($I$5,$G$9:$J$24,4,FALSE),2)*$DA$8,2)+ROUND(ROUND(ROUND(ROUND(BB25*$R$9,4)*$A$8,2)*VLOOKUP($I$5,$G$9:$J$24,4,FALSE),2)*$DB$8,2)+ROUND(ROUND(ROUND(ROUND(BB25*$R$9,4)*$A$8,2)*VLOOKUP($I$5,$G$9:$J$24,4,FALSE),2)*$DC$8,2)+ROUND(ROUND(ROUND(ROUND(BB25*$R$9,4)*$A$8,2)*VLOOKUP($I$5,$G$9:$J$24,4,FALSE),2)*$DD$8,2)+ROUND(ROUND(ROUND(ROUND(BB25*$R$9,4)*$A$8,2)*VLOOKUP($I$5,$G$9:$J$24,4,FALSE),2)*$CU$10,2)+ROUND(ROUND(ROUND(ROUND(BB25*$R$9,4)*$A$8,2)*VLOOKUP($I$5,$G$9:$J$24,4,FALSE),2)*$CV$10,2)+ROUND(ROUND(ROUND(ROUND(BB25*$R$9,4)*$A$8,2)*VLOOKUP($I$5,$G$9:$J$24,4,FALSE),2)*$CW$10,2)+ROUND(ROUND(ROUND(ROUND(BB25*$R$9,4)*$A$8,2)*VLOOKUP($I$5,$G$9:$J$24,4,FALSE),2)*$CX$10,2)+ROUND(ROUND(ROUND(ROUND(BB25*$R$9,4)*$A$8,2)*VLOOKUP($I$5,$G$9:$J$24,4,FALSE),2)*$CY$10,2)+ROUND(ROUND(ROUND(ROUND(BB25*$R$9,4)*$A$8,2)*VLOOKUP($I$5,$G$9:$J$24,4,FALSE),2)*$CZ$10,2)+ROUND(ROUND(ROUND(ROUND(BB25*$R$9,4)*$A$8,2)*VLOOKUP($I$5,$G$9:$J$24,4,FALSE),2)*$DA$10,2)+ROUND(ROUND(ROUND(ROUND(BB25*$R$9,4)*$A$8,2)*VLOOKUP($I$5,$G$9:$J$24,4,FALSE),2)*$DB$10,2)+ROUND(ROUND(ROUND(ROUND(BB25*$R$9,4)*$A$8,2)*VLOOKUP($I$5,$G$9:$J$24,4,FALSE),2)*$DC$10,2)+ROUND(ROUND(ROUND(ROUND(BB25*$R$9,4)*$A$8,2)*VLOOKUP($I$5,$G$9:$J$24,4,FALSE),2)*$DD$10,2) ->  | BD25: Silver | BE25: 450 | BF25: 5600 | BG25: 0.2 | BH25: 0.5 | BI25: 700 | BJ25: 15600 | BK25: D/C | BL25: D/C | BM25: D/C | BN25: D/C | BO25: $0 preventive, D/C all others | BP25: 1250 | BQ25: 5600 | BR25: 0.2 | BS25: 0.5 | BT25: 1500 | BU25: 15600 | BV25: D/C | BW25: D/C | BX25: D/C | BY25: D/C | BZ25: $0 preventive, D/C all others | CA25: 2500 | CB25: 5600 | CC25: 0.2 | CD25: 0.5 | CE25: 5400 | CF25: 15600 | CG25: D/C | CH25: D/C | CI25: D/C | CJ25: D/C | CK25: $0 preventive, D/C all others | CR25: Age | CS25: =IF(MONTH($CS$21)<MONTH(CS24),YEAR($CS$21)-YEAR(CS24)-1,IF(MONTH($CS$21)>MONTH(CS24),YEAR($CS$21)-YEAR(CS24),IF(DAY($CS$21)<DAY(CS24),YEAR($CS$21)-YEAR(CS24)-1,YEAR($CS$21)-YEAR(CS24)))) ->  | CT25: =IF(MONTH($CS$21)<MONTH(CT24),YEAR($CS$21)-YEAR(CT24)-1,IF(MONTH($CS$21)>MONTH(CT24),YEAR($CS$21)-YEAR(CT24),IF(DAY($CS$21)<DAY(CT24),YEAR($CS$21)-YEAR(CT24)-1,YEAR($CS$21)-YEAR(CT24)))) ->  | CU25: N/A | CV25: =IF(MONTH($CS$21)<MONTH(CV24),YEAR($CS$21)-YEAR(CV24)-1,IF(MONTH($CS$21)>MONTH(CV24),YEAR($CS$21)-YEAR(CV24),IF(DAY($CS$21)<DAY(CV24),YEAR($CS$21)-YEAR(CV24)-1,YEAR($CS$21)-YEAR(CV24)))) ->  | DL25: =ROUND(ROUND(ROUND(ROUND(BB25*$R$9,4)*$A$8,2)*VLOOKUP($I$5,$G$9:$J$24,4,FALSE),2)*$CS$12,2)+ROUND(ROUND(ROUND(ROUND(BB25*$R$9,4)*$A$8,2)*VLOOKUP($I$5,$G$9:$J$24,4,FALSE),2)*$CT$12,2)+ROUND(ROUND(ROUND(ROUND(BB25*$R$9,4)*$A$8,2)*VLOOKUP($I$5,$G$9:$J$24,4,FALSE),2)*$CU$12,2)+ROUND(ROUND(ROUND(ROUND(BB25*$R$9,4)*$A$8,2)*VLOOKUP($I$5,$G$9:$J$24,4,FALSE),2)*$CV$12,2)+ROUND(ROUND(ROUND(ROUND(BB25*$R$9,4)*$A$8,2)*VLOOKUP($I$5,$G$9:$J$24,4,FALSE),2)*$CW$12,2)+ROUND(ROUND(ROUND(ROUND(BB25*$R$9,4)*$A$8,2)*VLOOKUP($I$5,$G$9:$J$24,4,FALSE),2)*$CX$12,2)+ROUND(ROUND(ROUND(ROUND(BB25*$R$9,4)*$A$8,2)*VLOOKUP($I$5,$G$9:$J$24,4,FALSE),2)*$CY$12,2)+ROUND(ROUND(ROUND(ROUND(BB25*$R$9,4)*$A$8,2)*VLOOKUP($I$5,$G$9:$J$24,4,FALSE),2)*$CZ$12,2)+ROUND(ROUND(ROUND(ROUND(BB25*$R$9,4)*$A$8,2)*VLOOKUP($I$5,$G$9:$J$24,4,FALSE),2)*$DA$12,2)+ROUND(ROUND(ROUND(ROUND(BB25*$R$9,4)*$A$8,2)*VLOOKUP($I$5,$G$9:$J$24,4,FALSE),2)*$DB$12,2)+ROUND(ROUND(ROUND(ROUND(BB25*$R$9,4)*$A$8,2)*VLOOKUP($I$5,$G$9:$J$24,4,FALSE),2)*$DC$12,2)+ROUND(ROUND(ROUND(ROUND(BB25*$R$9,4)*$A$8,2)*VLOOKUP($I$5,$G$9:$J$24,4,FALSE),2)*$DD$12,2)+IF(AND($CU$10<0.941,'WPS Health Plan Subsidy Calcs'!$D$4<3.0633),0,ROUND(ROUND(ROUND(ROUND(BB25*$R$9,4)*$A$8,2)*VLOOKUP($I$5,$G$9:$J$24,4,FALSE),2)*$CU$10,2))+IF(AND($CV$10<0.941,'WPS Health Plan Subsidy Calcs'!$D$4<3.0633),0,ROUND(ROUND(ROUND(ROUND(BB25*$R$9,4)*$A$8,2)*VLOOKUP($I$5,$G$9:$J$24,4,FALSE),2)*$CV$10,2))+IF(AND($CW$10<0.941,'WPS Health Plan Subsidy Calcs'!$D$4<3.0633),0,ROUND(ROUND(ROUND(ROUND(BB25*$R$9,4)*$A$8,2)*VLOOKUP($I$5,$G$9:$J$24,4,FALSE),2)*$CW$10,2)) -> 
C26: 32 | D26: 1.183 | E26: 1 | G26: 19 | H26: Washington | I26: 12 | J26: 1.012 | L26: ="" ->  | M26: ="" ->  | T26: 25 | V26: HMO SE Bronze 7150 | W26: 84670WI1250143 | Y26: Aspirus Arise Bronze HMO 5500 HSA | Z26: 84670WI1250081 | AA26: =ROUND(BB26*0.909,4) -> 0 | AB26: Arise Metro Bronze HMO 5500 HSA | AC26: 84670WI1250091 | AD26: =ROUND(BB26*0.909,4) -> 0 | AE26: Arise Metro Bronze HMO 5500 HSA | AF26: 84670WI1250091 | AG26: =ROUND(BE26*0.909,4) -> 4999.5 | AH26: Arise Metro Bronze HMO 5500 HSA | AI26: 84670WI1250091 | AJ26: =ROUND(BH26*0.909,4) ->  | AK26: Arise Metro Bronze HMO 5500 HSA | AL26: 84670WI1250091 | AM26: =ROUND(BK26*0.909,4) ->  | AN26: HMO | AO26: Bronze | AP26: 5500 | AQ26: - | AR26: 0.8 | AS26: - | AT26: 6450 | AU26: - | AV26: D/C | AW26: D/C | AX26: D/C | AY26: D/C | AZ26: 0 | BA26: D/C | BC26: =ROUND($DJ$10*ROUND($A$8*VLOOKUP($I$5,$G$8:$J$40,4,FALSE)*ROUND(VLOOKUP($Q$6,$O$9:$Q$9,3,FALSE)*BB26,4),2),2) ->  | BD26: Bronze | BE26: 5500 | BF26: - | BG26: 0.8 | BH26: - | BI26: 6450 | BJ26: - | BK26: D/C | BL26: D/C | BM26: D/C | BN26: D/C | BO26: D/C | BP26: 5500 | BQ26: - | BR26: 0.8 | BS26: - | BT26: 6450 | BU26: - | BV26: D/C | BW26: D/C | BX26: D/C | BY26: D/C | BZ26: D/C | CA26: 5500 | CB26: - | CC26: 0.8 | CD26: - | CE26: 6450 | CF26: - | CG26: D/C | CH26: D/C | CI26: D/C | CJ26: D/C | CK26: D/C | CR26: Tobacco | CS26: 2 | CT26: 1 | CU26: N/A | CV26: 1 | CW26: 1 | CX26: 1 | CY26: 1 | CZ26: 1 | DA26: 1 | DL26: =ROUND($DJ$14*ROUND($A$8*VLOOKUP($I$5,$G$8:$J$40,4,FALSE)*ROUND(VLOOKUP($Q$6,$O$9:$Q$9,3,FALSE)*BB26,4),2),2) -> 
C27: 33 | D27: 1.198 | E27: 1 | G27: 20 | H27: Waukesha | I27: 12 | J27: 1.012 | L27: ="" ->  | M27: ="" ->  | T27: 26 | V27: HMO SE Catastrophic 7150 | W27: 84670WI1250144 | Y27: Aspirus Arise Bronze HMO 6000 HSA | Z27: 84670WI1250080 | AA27: 0 | AB27: Arise Metro Bronze HMO 6000 HSA | AC27: 84670WI1250090 | AD27: 0 | AE27: Arise Metro Bronze HMO 6000 HSA | AF27: 84670WI1250090 | AG27: 5454 | AH27: Arise Metro Bronze HMO 6000 HSA | AI27: 84670WI1250090 | AK27: Arise Metro Bronze HMO 6000 HSA | AL27: 84670WI1250090 | AN27: HMO | AO27: Bronze | AP27: 6000 | AQ27: - | AR27: 1 | AS27: - | AT27: 6000 | AU27: - | AV27: D/C | AW27: D/C | AX27: D/C | AY27: D/C | AZ27: 0 | BA27: D/C | BD27: Bronze | BE27: 6000 | BF27: - | BG27: 1 | BH27: - | BI27: 6000 | BJ27: - | BK27: D/C | BL27: D/C | BM27: D/C | BN27: D/C | BO27: D/C | BP27: 6000 | BQ27: - | BR27: 1 | BS27: - | BT27: 6000 | BU27: - | BV27: D/C | BW27: D/C | BX27: D/C | BY27: D/C | BZ27: D/C | CA27: 6000 | CB27: - | CC27: 1 | CD27: - | CE27: 6000 | CF27: - | CG27: D/C | CH27: D/C | CI27: D/C | CJ27: D/C | CK27: D/C | CS27: =IF(CS24="",0,VLOOKUP(CS25,$C$8:$E$58,2)*IF(CS26=3,VLOOKUP(CS25,$C$8:$E$58,3),1)) ->  | CT27: =IF(CT24="",0,VLOOKUP(CT25,$C$8:$E$58,2)*IF(CT26=3,VLOOKUP(CT25,$C$8:$E$58,3),1)) ->  | CU27: =CU24*D8 -> 0 | CV27: =IF(CV24="",0,VLOOKUP(CV25,$C$8:$E$58,2)*IF(CV26=3,VLOOKUP(CV25,$C$8:$E$58,3),1)) ->  | DJ27: =SUM(CS27:DA27) -> 
C28: 34 | D28: 1.214 | E28: 1 | G28: 21 | H28: Waupaca | I28: 11 | J28: 0.952 | L28: ="" ->  | M28: ="" ->  | T28: 24 | V28: HMO SE HDHP Bronze 5500 | W28: 84670WI1250145 | Y28: Aspirus Arise Bronze HMO 3500 HSA | Z28: 84670WI1250082 | AA28: 0 | AB28: Arise Metro Bronze HMO 3500 HSA | AC28: 84670WI1250092 | AD28: 0 | AE28: Arise Metro Bronze HMO 3500 HSA | AF28: 84670WI1250092 | AG28: 3181.5 | AH28: Arise Metro Bronze HMO 3500 HSA | AI28: 84670WI1250092 | AK28: Arise Metro Bronze HMO 3500 HSA | AL28: 84670WI1250092 | AN28: HMO HDHP | AO28: Bronze | AP28: 3500 | AQ28: - | AR28: 0.7 | AS28: - | AT28: 6450 | AU28: - | AV28: D/C | AW28: D/C | AX28: D/C | AY28: D/C | AZ28: 0 | BA28: D/C | BD28: Bronze | BE28: 3500 | BF28: - | BG28: 0.7 | BH28: - | BI28: 6450 | BJ28: - | BK28: D/C | BL28: D/C | BM28: D/C | BN28: D/C | BO28: D/C | BP28: 3500 | BQ28: - | BR28: 0.7 | BS28: - | BT28: 6450 | BU28: - | BV28: D/C | BW28: D/C | BX28: D/C | BY28: D/C | BZ28: D/C | CA28: 3500 | CB28: - | CC28: 0.7 | CD28: - | CE28: 6450 | CF28: - | CG28: D/C | CH28: D/C | CI28: D/C | CJ28: D/C | CK28: D/C
C29: 35 | D29: 1.222 | E29: 1.1 | G29: 22 | H29: Waushara | I29: 11 | J29: 0.952 | L29: ="" ->  | M29: ="" ->  | P29: Tobacco | T29: 23 | W29: 84670WI1270143 | Y29: Aspirus Arise Silver HMO 3500 HSA | Z29: 84670WI1250074 | AA29: 0 | AB29: Arise Metro Silver HMO 3500 HSA | AC29: 84670WI1250084 | AD29: 0 | AE29: Arise Metro Silver HMO 3500 HSA | AF29: 84670WI1250084 | AG29: 454.5 | AH29: Arise Metro Silver HMO 3500 HSA | AI29: 84670WI1250084 | AK29: Arise Metro Silver HMO 3500 HSA | AL29: 84670WI1250084 | AN29: POS | AO29: Silver | AP29: 3500 | AQ29: - | AR29: 1 | AS29: - | AT29: 3500 | AU29: - | AV29: D/C | AW29: D/C | AX29: D/C | AY29: D/C | AZ29: 0 | BA29: D/C | BD29: Silver | BE29: 500 | BF29: - | BG29: 1 | BH29: - | BI29: 500 | BJ29: - | BK29: D/C | BL29: D/C | BM29: D/C | BN29: D/C | BO29: D/C | BP29: 1000 | BQ29: - | BR29: 1 | BS29: - | BT29: 1000 | BU29: - | BV29: D/C | BW29: D/C | BX29: D/C | BY29: D/C | BZ29: D/C | CA29: 2800 | CB29: - | CC29: 1 | CD29: - | CE29: 2800 | CF29: - | CG29: D/C | CH29: D/C | CI29: D/C | CJ29: D/C | CK29: D/C | CS29: =IF(CS24="",0,VLOOKUP(CS25,$C$8:$E$58,2)) ->  | CT29: =IF(CT24="",0,VLOOKUP(CT25,$C$8:$E$58,2)) ->  | CU29: =CU24*D8 -> 0 | CV29: =IF(CV24="",0,VLOOKUP(CV25,$C$8:$E$58,2)) ->  | DJ29: =SUM(CS29:DA29) -> 
C30: 36 | D30: 1.23 | E30: 1.105 | G30: 23 | H30: Winnebago | I30: 11 | J30: 0.952 | L30: ="" ->  | M30: ="" ->  | O30: 1 | P30: Select | T30: 22 | W30: 84670WI1270145 | Y30: Aspirus Arise Silver HMO 3000-90 HSA | Z30: 84670WI1250076 | AA30: 0 | AB30: Arise Metro Silver HMO 3000-90 HSA | AC30: 84670WI1250086 | AD30: 0 | AE30: Arise Metro Silver HMO 3000-90 HSA | AF30: 84670WI1250086 | AG30: 454.5 | AH30: Arise Metro Silver HMO 3000-90 HSA | AI30: 84670WI1250086 | AK30: Arise Metro Silver HMO 3000-90 HSA | AL30: 84670WI1250086 | AN30: POS HDHP | AO30: Silver | AP30: 3000 | AQ30: - | AR30: 0.9 | AS30: - | AT30: 4000 | AU30: - | AV30: D/C | AW30: D/C | AX30: D/C | AY30: D/C | AZ30: 0 | BA30: D/C | BD30: Silver | BE30: 500 | BF30: - | BG30: 1 | BH30: - | BI30: 500 | BJ30: - | BK30: D/C | BL30: D/C | BM30: D/C | BN30: D/C | BO30: D/C | BP30: 1000 | BQ30: - | BR30: 1 | BS30: - | BT30: 1000 | BU30: - | BV30: D/C | BW30: D/C | BX30: D/C | BY30: D/C | BZ30: D/C | CA30: 2800 | CB30: - | CC30: 1 | CD30: - | CE30: 2800 | CF30: - | CG30: D/C | CH30: D/C | CI30: D/C | CJ30: D/C | CK30: D/C
C31: 37 | D31: 1.238 | E31: 1.11 | G31: 24 | H31: Walworth | I31: 14 | J31: 0.958 | K31: About Health | L31: ="" ->  | M31: ="" ->  | O31: 2 | P31: No | T31: 20 | U31: 0.684 | V31: Arise Silver HMO 2500 HSA | W31: 84670WI1250032 | X31: =ROUND(BB31*0.959,4) -> 0.6437 | Y31: Aspirus Arise Silver HMO 2500 HSA | Z31: 84670WI1250077 | AA31: 0.6101 | AB31: Arise Metro Silver HMO 2500 HSA | AC31: 84670WI1250087 | AD31: 0.6101 | AE31: Arise Metro Silver HMO 2500 HSA | AF31: 84670WI1250087 | AG31: 454.5 | AH31: Arise Metro Silver HMO 2500 HSA | AI31: 84670WI1250087 | AK31: Arise Metro Silver HMO 2500 HSA | AL31: 84670WI1250087 | AN31: HMO | AO31: Silver | AP31: 2500 | AQ31: - | AR31: 0.8 | AS31: - | AT31: 4500 | AU31: - | AV31: D/C | AW31: D/C | AX31: D/C | AY31: D/C | AZ31: 0 | BA31: D/C | BB31: 0.6712 | BD31: Silver | BE31: 500 | BF31: - | BG31: 1 | BH31: - | BI31: 500 | BJ31: - | BK31: D/C | BL31: D/C | BM31: D/C | BN31: D/C | BO31: D/C | BP31: 1000 | BQ31: - | BR31: 1 | BS31: - | BT31: 1000 | BU31: - | BV31: D/C | BW31: D/C | BX31: D/C | BY31: D/C | BZ31: D/C | CA31: 2000 | CB31: - | CC31: 0.8 | CD31: - | CE31: 3000 | CF31: - | CG31: D/C | CH31: D/C | CI31: D/C | CJ31: D/C | CK31: D/C
C32: 38 | D32: 1.246 | E32: 1.115 | G32: 25 | H32: Washington | I32: 12 | J32: 0.98 | K32: About Health | L32: ="" ->  | M32: ="" ->  | O32: 3 | P32: Yes | T32: 18 | U32: 0.687 | V32: Arise Silver HMO 1400 HSA | W32: 84670WI1250033 | X32: 0.6588 | Y32: Aspirus Arise Silver HMO 1400 HSA | Z32: 84670WI1250078 | AA32: 0.6245 | AB32: Arise Metro Silver HMO 1400 HSA | AC32: 84670WI1250088 | AD32: 0.6245 | AE32: Arise Metro Silver HMO 1400 HSA | AF32: 84670WI1250088 | AG32: 454.5 | AH32: Arise Metro Silver HMO 1400 HSA | AI32: 84670WI1250088 | AK32: Arise Metro Silver HMO 1400 HSA | AL32: 84670WI1250088 | AN32: HMO | AO32: Silver | AP32: 1400 | AQ32: - | AR32: 0.7 | AS32: - | AT32: 6450 | AU32: - | AV32: D/C | AW32: D/C | AX32: D/C | AY32: D/C | AZ32: 0 | BA32: D/C | BB32: 0.687 | BD32: Silver | BE32: 500 | BF32: - | BG32: 1 | BH32: - | BI32: 500 | BJ32: - | BK32: D/C | BL32: D/C | BM32: D/C | BN32: D/C | BO32: D/C | BP32: 1000 | BQ32: - | BR32: 1 | BS32: - | BT32: 1000 | BU32: - | BV32: D/C | BW32: D/C | BX32: D/C | BY32: D/C | BZ32: D/C | CA32: 1400 | CB32: - | CC32: 0.8 | CD32: - | CE32: 4500 | CF32: - | CG32: D/C | CH32: D/C | CI32: D/C | CJ32: D/C | CK32: D/C
C33: 39 | D33: 1.262 | E33: 1.12 | G33: 26 | H33: Waukesha | I33: 12 | J33: 0.98 | K33: About Health | L33: ="" ->  | M33: ="" ->  | T33: 21 | U33: 0.717 | V33: Arise Silver HMO 3000-100 HSA | W33: 84670WI1250030 | X33: 0.6796 | Y33: Aspirus Arise Silver HMO 3000-100 HSA | Z33: 84670WI1250075 | AA33: 0.6442 | AB33: Arise Metro Silver HMO 3000-100 HSA | AC33: 84670WI1250085 | AD33: 0.6442 | AE33: Arise Metro Silver HMO 3000-100 HSA | AF33: 84670WI1250085 | AG33: 454.5 | AH33: Arise Metro Silver HMO 3000-100 HSA | AI33: 84670WI1250085 | AK33: Arise Metro Silver HMO 3000-100 HSA | AL33: 84670WI1250085 | AN33: HMO | AO33: Silver | AP33: 3000 | AQ33: - | AR33: 1 | AS33: - | AT33: 3000 | AU33: - | AV33: D/C | AW33: D/C | AX33: D/C | AY33: D/C | AZ33: 0 | BA33: D/C | BB33: 0.7087 | BD33: Silver | BE33: 500 | BF33: - | BG33: 1 | BH33: - | BI33: 500 | BJ33: - | BK33: D/C | BL33: D/C | BM33: D/C | BN33: D/C | BO33: D/C | BP33: 1000 | BQ33: - | BR33: 1 | BS33: - | BT33: 1000 | BU33: - | BV33: D/C | BW33: D/C | BX33: D/C | BY33: D/C | BZ33: D/C | CA33: 2650 | CB33: - | CC33: 1 | CD33: - | CE33: 2650 | CF33: - | CG33: D/C | CH33: D/C | CI33: D/C | CJ33: D/C | CK33: D/C
C34: 40 | D34: 1.278 | E34: 1.125 | G34: 27 | H34: Portage | I34: 10 | J34: 0.832 | K34: Aspirus Arise | L34: ="" ->  | M34: ="" ->  | P34: PPO | Q34: 1 | T34: 19 | U34: 0.714 | V34: Arise Silver HMO 2000 HSA | W34: 84670WI1250042 | X34: 0.6868 | Y34: Aspirus Arise Silver HMO 2000 HSA | Z34: 84670WI1250079 | AA34: 0.651 | AB34: Arise Metro Silver HMO 2000 HSA | AC34: 84670WI1250089 | AD34: 0.651 | AE34: Arise Metro Silver HMO 2000 HSA | AF34: 84670WI1250089 | AG34: 454.5 | AH34: Arise Metro Silver HMO 2000 HSA | AI34: 84670WI1250089 | AK34: Arise Metro Silver HMO 2000 HSA | AL34: 84670WI1250089 | AN34: HMO | AO34: Silver | AP34: 2000 | AQ34: - | AR34: 0.8 | AS34: - | AT34: 4000 | AU34: - | AV34: D/C | AW34: D/C | AX34: D/C | AY34: D/C | AZ34: 0 | BA34: D/C | BB34: 0.7162 | BD34: Silver | BE34: 500 | BF34: - | BG34: 1 | BH34: - | BI34: 500 | BJ34: - | BK34: D/C | BL34: D/C | BM34: D/C | BN34: D/C | BO34: D/C | BP34: 1000 | BQ34: - | BR34: 1 | BS34: - | BT34: 1000 | BU34: - | BV34: D/C | BW34: D/C | BX34: D/C | BY34: D/C | BZ34: D/C | CA34: 2000 | CB34: - | CC34: 0.8 | CD34: - | CE34: 3000 | CF34: - | CG34: D/C | CH34: D/C | CI34: D/C | CJ34: D/C | CK34: D/C | CQ34: -10 | CR34: Under 30 | CS34: 22.67
C35: 41 | D35: 1.302 | E35: 1.13 | G35: 28 | H35: Price | I35: 8 | J35: 0.871 | K35: Aspirus Arise | L35: ="" ->  | M35: ="" ->  | P35: HDHP | Q35: 1 | T35: 17 | U35: 0.788 | V35: Arise Gold HMO 2000 HSA | W35: 84670WI1250028 | X35: 0.7946 | Y35: Aspirus Arise Gold HMO 2000 HSA | Z35: 84670WI1250073 | AA35: 0.7532 | AB35: Arise Metro Gold HMO 2000 HSA | AC35: 84670WI1250083 | AD35: 0.7532 | AE35: Arise Metro Gold HMO 2000 HSA | AF35: 84670WI1250083 | AG35: 1818 | AH35: Arise Metro Gold HMO 2000 HSA | AI35: 84670WI1250083 | AK35: Arise Metro Gold HMO 2000 HSA | AL35: 84670WI1250083 | AN35: HMO | AO35: Gold | AP35: 2000 | AQ35: - | AR35: 1 | AS35: - | AT35: 2000 | AU35: - | AV35: D/C | AW35: D/C | AX35: D/C | AY35: D/C | AZ35: 0 | BA35: D/C | BB35: 0.8286 | BD35: Gold | BE35: 2000 | BF35: - | BG35: 1 | BH35: - | BI35: 2000 | BJ35: - | BK35: D/C | BL35: D/C | BM35: D/C | BN35: D/C | BO35: D/C | BP35: 2000 | BQ35: - | BR35: 1 | BS35: - | BT35: 2000 | BU35: - | BV35: D/C | BW35: D/C | BX35: D/C | BY35: D/C | BZ35: D/C | CA35: 2000 | CB35: - | CC35: 1 | CD35: - | CE35: 2000 | CF35: - | CG35: D/C | CH35: D/C | CI35: D/C | CJ35: D/C | CK35: D/C | CQ35: 30 | CR35: 30 - 34 | CS35: 26.48
C36: 42 | D36: 1.325 | E36: 1.135 | G36: 29 | H36: Racine | I36: 9 | J36: 1.069 | K36: Aurora | L36: ="" ->  | M36: ="" ->  | P36: Under 21 | T36: 32 | U36: 0.613 | V36: Arise Bronze POS 5000 | W36: 84670WI1270026 | X36: =BB36 -> 0.585 | Y36: Aspirus Arise Bronze POS 5000 | Z36: 84670WI1270068 | AA36: =BB36 -> 0.585 | AB36: Arise Metro Bronze POS 5000 | AC36: 84670WI1270071 | AD36: =BB36 -> 0.585 | AE36: Arise Metro Bronze POS 5000 | AF36: 84670WI1270071 | AG36: =BE36 -> 5000 | AH36: Arise Metro Bronze POS 5000 | AI36: 84670WI1270071 | AJ36: =BH36 -> 0.6 | AK36: Arise Metro Bronze POS 5000 | AL36: 84670WI1270071 | AM36: =BK36 -> D/C | AN36: POS | AO36: Bronze | AP36: 5000 | AQ36: 10000 | AR36: 0.8 | AS36: 0.6 | AT36: 6600 | AU36: 18000 | AV36: D/C | AW36: D/C | AX36: D/C | AY36: D/C | AZ36: 3 | BA36: D/C | BB36: 0.585 | BC36: =ROUND($DJ$10*ROUND($A$8*VLOOKUP($I$5,$G$8:$J$40,4,FALSE)*ROUND(VLOOKUP($Q$6,$O$9:$R$9,4,FALSE)*BB36,4),2),2) ->  | BD36: Bronze | BE36: 5000 | BF36: 10000 | BG36: 0.8 | BH36: 0.6 | BI36: 6600 | BJ36: 18000 | BK36: D/C | BL36: D/C | BM36: D/C | BN36: D/C | BO36: D/C | BP36: 5000 | BQ36: 10000 | BR36: 0.8 | BS36: 0.6 | BT36: 6600 | BU36: 18000 | BV36: D/C | BW36: D/C | BX36: D/C | BY36: D/C | BZ36: D/C | CA36: 5000 | CB36: 10000 | CC36: 0.8 | CD36: 0.6 | CE36: 6600 | CF36: 18000 | CG36: D/C | CH36: D/C | CI36: D/C | CJ36: D/C | CK36: D/C | CQ36: 35 | CR36: 35 - 39 | CS36: 28.03 | DL36: =ROUND($DJ$14*ROUND($A$8*VLOOKUP($I$5,$G$8:$J$40,4,FALSE)*ROUND(VLOOKUP($Q$6,$O$9:$R$9,4,FALSE)*BB36,4),2),2) -> 
C37: 43 | D37: 1.357 | E37: 1.14 | G37: 30 | H37: Shawano | I37: 16 | J37: 0.918 | K37: ThedaCare | L37: ="" ->  | M37: ="" ->  | O37: 1 | P37: Select | Q37: 0 | T37: 30 | U37: 0.68 | V37: Arise Silver POS 4000 | W37: 84670WI1270015 | X37: 0.6409 | Y37: Aspirus Arise Silver POS 4000 | Z37: 84670WI1270048 | AA37: 0.6409 | AB37: Arise Metro Silver POS 4000 | AC37: 84670WI1270054 | AD37: 0.6409 | AE37: Arise Metro Silver POS 4000 | AF37: 84670WI1270054 | AG37: 250 | AH37: Arise Metro Silver POS 4000 | AI37: 84670WI1270054 | AJ37: 0.5 | AK37: Arise Metro Silver POS 4000 | AL37: 84670WI1270054 | AM37: 10 | AN37: POS | AO37: Silver | AP37: 4000 | AQ37: 8000 | AR37: 0.7 | AS37: 0.5 | AT37: 6600 | AU37: 18000 | AV37: 10 | AW37: 30 | AX37: 60 | AY37: 200 | AZ37: 0 | BA37: $20/$50/$75/25% to $500 | BB37: 0.6409 | BD37: Silver | BE37: 250 | BF37: 8000 | BG37: 1 | BH37: 0.5 | BI37: 500 | BJ37: 18000 | BK37: 10 | BL37: 20 | BM37: 40 | BN37: 100 | BO37: $10/$35/$60/25% to $500 | BP37: 500 | BQ37: 8000 | BR37: 1 | BS37: 0.5 | BT37: 1500 | BU37: 18000 | BV37: 10 | BW37: 25 | BX37: 50 | BY37: 150 | BZ37: $15/$40/$65/25% to $500 | CA37: 1500 | CB37: 8000 | CC37: 1 | CD37: 0.5 | CE37: 5000 | CF37: 18000 | CG37: 10 | CH37: 30 | CI37: 60 | CJ37: 200 | CK37: $20/$50/$75/25% to $500 | CQ37: 40 | CR37: 40 - 44 | CS37: 30.23 | DC37: I need to get rid of for Dep 9 and 10
C38: 44 | D38: 1.397 | E38: 1.145 | G38: 31 | H38: Sheboygan | I38: 11 | J38: 0.885 | K38: Aurora | L38: ="" ->  | M38: ="" ->  | O38: 2 | P38: 0 | Q38: 0 | T38: 31 | U38: 0.7 | V38: Arise Silver POS 2500 | W38: 84670WI1270022 | X38: 0.6952 | Y38: Aspirus Arise Silver POS 2500 | Z38: 84670WI1270060 | AA38: 0.6952 | AB38: Arise Metro Silver POS 2500 | AC38: 84670WI1270066 | AD38: 0.6952 | AE38: Arise Metro Silver POS 2500 | AF38: 84670WI1270066 | AG38: 250 | AH38: Arise Metro Silver POS 2500 | AI38: 84670WI1270066 | AJ38: 0.5 | AK38: Arise Metro Silver POS 2500 | AL38: 84670WI1270066 | AM38: D/C | AN38: POS | AO38: Silver | AP38: 2500 | AQ38: 5000 | AR38: 0.7 | AS38: 0.5 | AT38: 5000 | AU38: 15000 | AV38: D/C | AW38: D/C | AX38: D/C | AY38: D/C | AZ38: 3 | BA38: $20/$50/$75/25% to $500 | BB38: 0.6952 | BD38: Silver | BE38: 250 | BF38: 5000 | BG38: 1 | BH38: 0.5 | BI38: 500 | BJ38: 15000 | BK38: D/C | BL38: D/C | BM38: D/C | BN38: D/C | BO38: $10/$35/$60/25% to $500 | BP38: 500 | BQ38: 5000 | BR38: 1 | BS38: 0.5 | BT38: 1500 | BU38: 15000 | BV38: D/C | BW38: D/C | BX38: D/C | BY38: D/C | BZ38: $15/$40/$65/25% to $500 | CA38: 1500 | CB38: 5000 | CC38: 1 | CD38: 0.5 | CE38: 5000 | CF38: 15000 | CG38: D/C | CH38: D/C | CI38: D/C | CJ38: D/C | CK38: $20/$50/$75/25% to $500 | CQ38: 45 | CR38: 45 - 49 | CS38: 33.31
C39: 45 | D39: 1.444 | E39: 1.15 | G39: 32 | H39: Taylor | I39: 8 | J39: 0.871 | K39: Aspirus Arise | O39: 3 | P39: 1 | Q39: 1 | T39: 29 | U39: 0.711 | V39: Arise Silver POS 2000 | W39: 84670WI1270014 | X39: 0.7147 | Y39: Aspirus Arise Silver POS 2000 | Z39: 84670WI1270047 | AA39: 0.7147 | AB39: Arise Metro Silver POS 2000 | AC39: 84670WI1270053 | AD39: 0.7147 | AE39: Arise Metro Silver POS 2000 | AF39: 84670WI1270053 | AG39: 250 | AH39: Arise Metro Silver POS 2000 | AI39: 84670WI1270053 | AJ39: 0.6 | AK39: Arise Metro Silver POS 2000 | AL39: 84670WI1270053 | AM39: 10 | AN39: POS | AO39: Silver | AP39: 2000 | AQ39: 4000 | AR39: 0.8 | AS39: 0.6 | AT39: 6600 | AU39: 12000 | AV39: 10 | AW39: 30 | AX39: 60 | AY39: 200 | AZ39: 0 | BA39: $20/$50/$75/25% to $500 | BB39: 0.7147 | BD39: Silver | BE39: 250 | BF39: 4000 | BG39: 1 | BH39: 0.6 | BI39: 500 | BJ39: 12000 | BK39: 10 | BL39: 20 | BM39: 40 | BN39: 100 | BO39: $10/$35/$60/25% to $500 | BP39: 500 | BQ39: 4000 | BR39: 1 | BS39: 0.6 | BT39: 1500 | BU39: 12000 | BV39: 10 | BW39: 25 | BX39: 50 | BY39: 150 | BZ39: $15/$40/$65/25% to $500 | CA39: 1500 | CB39: 4000 | CC39: 1 | CD39: 0.6 | CE39: 6600 | CF39: 12000 | CG39: 10 | CH39: 30 | CI39: 60 | CJ39: 200 | CK39: $20/$50/$75/25% to $500 | CQ39: 50 | CR39: 50 - 54 | CS39: 35.6 | DC39: =IF('WPS Health Plan Quote'!H15>8,"Dependent 9: ","") -> 
C40: 46 | D40: 1.5 | E40: 1.155 | G40: 33 | H40: Vilas | I40: 13 | J40: 0.857 | K40: Aspirus Arise | O40: 4 | P40: 2 | Q40: 2 | T40: 28 | U40: 0.817 | V40: Arise Gold POS 1000 | W40: 84670WI1270007 | X40: 0.9008 | Y40: Aspirus Arise Gold POS 1000 | Z40: 84670WI1270045 | AA40: 0.9008 | AB40: Arise Metro Gold POS 1000 | AC40: 84670WI1270051 | AD40: 0.9008 | AE40: Arise Metro Gold POS 1000 | AF40: 84670WI1270051 | AG40: 1000 | AH40: Arise Metro Gold POS 1000 | AI40: 84670WI1270051 | AJ40: 0.6 | AK40: Arise Metro Gold POS 1000 | AL40: 84670WI1270051 | AM40: 10 | AN40: POS | AO40: Gold | AP40: 1000 | AQ40: 2000 | AR40: 0.8 | AS40: 0.6 | AT40: 2500 | AU40: 10000 | AV40: 10 | AW40: 25 | AX40: 50 | AY40: 150 | AZ40: 0 | BA40: $15/$40/$65/25% to $500 | BB40: 0.9008 | BD40: Gold | BE40: 1000 | BF40: 2000 | BG40: 0.8 | BH40: 0.6 | BI40: 2500 | BJ40: 10000 | BK40: 10 | BL40: 25 | BM40: 50 | BN40: 150 | BO40: $15/$40/$65/25% to $500 | BP40: 1000 | BQ40: 2000 | BR40: 0.8 | BS40: 0.6 | BT40: 2500 | BU40: 10000 | BV40: 10 | BW40: 25 | BX40: 50 | BY40: 150 | BZ40: $15/$40/$65/25% to $500 | CA40: 1000 | CB40: 2000 | CC40: 0.8 | CD40: 0.6 | CE40: 2500 | CF40: 10000 | CG40: 10 | CH40: 25 | CI40: 50 | CJ40: 150 | CK40: $15/$40/$65/25% to $500 | CQ40: 55 | CR40: 55 - 59 | CS40: 37.77
C41: 47 | D41: 1.563 | E41: 1.16 | G41: 34 | H41: Walworth | I41: 14 | J41: 0.958 | K41: Aurora | O41: 5 | P41: 3 + | Q41: 3 | T41: 27 | U41: 0.889 | V41: Arise Platinum POS 250 | W41: 84670WI1270001 | X41: 1.2448 | Y41: Aspirus Arise Platinum POS 250 | Z41: 84670WI1270043 | AA41: 1.2448 | AB41: Arise Metro Platinum POS 250 | AC41: 84670WI1270049 | AD41: 1.2448 | AE41: Arise Metro Platinum POS 250 | AF41: 84670WI1270049 | AG41: 250 | AH41: Arise Metro Platinum POS 250 | AI41: 84670WI1270049 | AJ41: 0.8 | AK41: Arise Metro Platinum POS 250 | AL41: 84670WI1270049 | AM41: 10 | AN41: POS | AO41: Platinum | AP41: 250 | AQ41: 500 | AR41: 1 | AS41: 0.8 | AT41: 1250 | AU41: 4500 | AV41: 10 | AW41: 20 | AX41: 40 | AY41: 150 | AZ41: 0 | BA41: $10/$35/$60/25% to $500 | BB41: 1.2448 | BD41: Platinum | BE41: 250 | BF41: 500 | BG41: 1 | BH41: 0.8 | BI41: 1250 | BJ41: 4500 | BK41: 10 | BL41: 20 | BM41: 40 | BN41: 150 | BO41: $10/$35/$60/25% to $500 | BP41: 250 | BQ41: 500 | BR41: 1 | BS41: 0.8 | BT41: 1250 | BU41: 4500 | BV41: 10 | BW41: 20 | BX41: 40 | BY41: 150 | BZ41: $10/$35/$60/25% to $500 | CA41: 250 | CB41: 500 | CC41: 1 | CD41: 0.8 | CE41: 1250 | CF41: 4500 | CG41: 10 | CH41: 20 | CI41: 40 | CJ41: 150 | CK41: $10/$35/$60/25% to $500 | CQ41: 60 | CR41: 60 - 64 | CS41: 37.77 | DC41: =IF('WPS Health Plan Quote'!H15>9,"Dependent 10: ","") -> 
C42: 48 | D42: 1.635 | E42: 1.165 | G42: 35 | H42: Washington | I42: 12 | J42: 0.98 | K42: Aurora | T42: 33 | U42: 0.492 | V42: Arise Catastrophic POS 6600 | W42: 84670WI1270039 | X42: 0.4504 | Y42: Aspirus Arise Catastrophic POS 6600 | Z42: 84670WI1270093 | AA42: 0.4504 | AB42: Arise Metro Catastrophic POS 6600 | AC42: 84670WI1270094 | AD42: 0.4504 | AE42: Arise Metro Catastrophic POS 6600 | AF42: 84670WI1270094 | AG42: 6600 | AH42: Arise Metro Catastrophic POS 6600 | AI42: 84670WI1270094 | AJ42: 0.8 | AK42: Arise Metro Catastrophic POS 6600 | AL42: 84670WI1270094 | AM42: D/C | AN42: POS | AO42: Catastrophic | AP42: 6600 | AQ42: 13200 | AR42: 1 | AS42: 0.8 | AT42: 6600 | AU42: 17200 | AV42: D/C | AW42: D/C | AX42: D/C | AY42: D/C | AZ42: 3 | BA42: D/C | BB42: 0.4504 | BD42: Catastrophic | BE42: 6600 | BF42: 13200 | BG42: 1 | BH42: 0.8 | BI42: 6600 | BJ42: 17200 | BK42: D/C | BL42: D/C | BM42: D/C | BN42: D/C | BO42: D/C | BP42: 6600 | BQ42: 13200 | BR42: 1 | BS42: 0.8 | BT42: 6600 | BU42: 17200 | BV42: D/C | BW42: D/C | BX42: D/C | BY42: D/C | BZ42: D/C | CA42: 6600 | CB42: 13200 | CC42: 1 | CD42: 0.8 | CE42: 6600 | CF42: 17200 | CG42: D/C | CH42: D/C | CI42: D/C | CJ42: D/C | CK42: D/C | CQ42: 65 | CR42: 65+ | CS42: 43.2
C43: 49 | D43: 1.706 | E43: 1.17 | G43: 36 | H43: Waukesha | I43: 12 | J43: 0.98 | K43: ProHealth and Aurora | P43: PPO | Q43: 1 | T43: 37 | U43: 0.583 | V43: Arise Bronze POS 5500 HSA | W43: 84670WI1270036 | X43: =BB43 -> 0.5309 | Y43: Aspirus Arise Bronze POS 5500 HSA | Z43: 84670WI1270081 | AA43: =BB43 -> 0.5309 | AB43: Arise Metro Bronze POS 5500 HSA | AC43: 84670WI1270091 | AD43: =BB43 -> 0.5309 | AE43: Arise Metro Bronze POS 5500 HSA | AF43: 84670WI1270091 | AG43: =BE43 -> 5500 | AH43: Arise Metro Bronze POS 5500 HSA | AI43: 84670WI1270091 | AJ43: =BH43 -> 0.6 | AK43: Arise Metro Bronze POS 5500 HSA | AL43: 84670WI1270091 | AM43: =BK43 -> D/C | AN43: POS | AO43: Bronze | AP43: 5500 | AQ43: 11000 | AR43: 0.8 | AS43: 0.6 | AT43: 6450 | AU43: 19000 | AV43: D/C | AW43: D/C | AX43: D/C | AY43: D/C | AZ43: 0 | BA43: D/C | BB43: 0.5309 | BD43: Bronze | BE43: 5500 | BF43: 11000 | BG43: 0.8 | BH43: 0.6 | BI43: 6450 | BJ43: 19000 | BK43: D/C | BL43: D/C | BM43: D/C | BN43: D/C | BO43: D/C | BP43: 5500 | BQ43: 11000 | BR43: 0.8 | BS43: 0.6 | BT43: 6450 | BU43: 19000 | BV43: D/C | BW43: D/C | BX43: D/C | BY43: D/C | BZ43: D/C | CA43: 5500 | CB43: 11000 | CC43: 0.8 | CD43: 0.6 | CE43: 6450 | CF43: 19000 | CG43: D/C | CH43: D/C | CI43: D/C | CJ43: D/C | CK43: D/C
C44: 50 | D44: 1.786 | E44: 1.175 | G44: 37 | H44: Waupaca | I44: 11 | J44: 0.885 | K44: ThedaCare | P44: HDHP | Q44: 2 | T44: 36 | U44: 0.684 | V44: Arise Silver POS 2500 HSA | W44: 84670WI1270032 | X44: =BB44 -> 0.6712 | Y44: Aspirus Arise Silver POS 2500 HSA | Z44: 84670WI1270077 | AA44: =BB44 -> 0.6712 | AB44: Arise Metro Silver POS 2500 HSA | AC44: 84670WI1270087 | AD44: =BB44 -> 0.6712 | AE44: Arise Metro Silver POS 2500 HSA | AF44: 84670WI1270087 | AG44: =BE44 -> 500 | AH44: Arise Metro Silver POS 2500 HSA | AI44: 84670WI1270087 | AJ44: =BH44 -> 0.6 | AK44: Arise Metro Silver POS 2500 HSA | AL44: 84670WI1270087 | AM44: =BK44 -> D/C | AN44: POS | AO44: Silver | AP44: 2500 | AQ44: 5000 | AR44: 0.8 | AS44: 0.6 | AT44: 4500 | AU44: 13000 | AV44: D/C | AW44: D/C | AX44: D/C | AY44: D/C | AZ44: 0 | BA44: D/C | BB44: 0.6712 | BD44: Silver | BE44: 500 | BF44: 5000 | BG44: 1 | BH44: 0.6 | BI44: 500 | BJ44: 13000 | BK44: D/C | BL44: D/C | BM44: D/C | BN44: D/C | BO44: D/C | BP44: 1000 | BQ44: 5000 | BR44: 1 | BS44: 0.6 | BT44: 1000 | BU44: 13000 | BV44: D/C | BW44: D/C | BX44: D/C | BY44: D/C | BZ44: D/C | CA44: 2000 | CB44: 5000 | CC44: 0.8 | CD44: 0.6 | CE44: 3000 | CF44: 13000 | CG44: D/C | CH44: D/C | CI44: D/C | CJ44: D/C | CK44: D/C | CQ44: 0 | CR44: 0 | CS44: 0
C45: 51 | D45: 1.865 | E45: 1.18 | G45: 38 | H45: Waushara | I45: 11 | J45: 0.885 | K45: Aurora and ThedaCare | P45: Product | T45: 35 | U45: 0.687 | V45: Arise Silver POS 1400 HSA | W45: 84670WI1270033 | X45: =BB45 -> 0.687 | Y45: Aspirus Arise Silver POS 1400 HSA | Z45: 84670WI1270078 | AA45: =BB45 -> 0.687 | AB45: Arise Metro Silver POS 1400 HSA | AC45: 84670WI1270088 | AD45: =BB45 -> 0.687 | AE45: Arise Metro Silver POS 1400 HSA | AF45: 84670WI1270088 | AG45: =BE45 -> 500 | AH45: Arise Metro Silver POS 1400 HSA | AI45: 84670WI1270088 | AJ45: =BH45 -> 0.5 | AK45: Arise Metro Silver POS 1400 HSA | AL45: 84670WI1270088 | AM45: =BK45 -> D/C | AN45: POS | AO45: Silver | AP45: 1400 | AQ45: 2800 | AR45: 0.7 | AS45: 0.5 | AT45: 6450 | AU45: 12800 | AV45: D/C | AW45: D/C | AX45: D/C | AY45: D/C | AZ45: 0 | BA45: D/C | BB45: 0.687 | BD45: Silver | BE45: 500 | BF45: 2800 | BG45: 1 | BH45: 0.5 | BI45: 500 | BJ45: 12800 | BK45: D/C | BL45: D/C | BM45: D/C | BN45: D/C | BO45: D/C | BP45: 1000 | BQ45: 2800 | BR45: 1 | BS45: 0.5 | BT45: 1000 | BU45: 12800 | BV45: D/C | BW45: D/C | BX45: D/C | BY45: D/C | BZ45: D/C | CA45: 1400 | CB45: 2800 | CC45: 0.8 | CD45: 0.5 | CE45: 4500 | CF45: 12800 | CG45: D/C | CH45: D/C | CI45: D/C | CJ45: D/C | CK45: D/C | CQ45: 1 | CR45: 1 | CS45: 22.82
C46: 52 | D46: 1.952 | E46: 1.185 | G46: 39 | H46: Winnebago | I46: 11 | J46: 0.885 | K46: Aurora and ThedaCare | O46: 1 | P46: Select | T46: 34 | U46: 0.788 | V46: Arise Gold POS 2000 HSA | W46: 84670WI1270028 | X46: =BB46 -> 0.8286 | Y46: Aspirus Arise Gold POS 2000 HSA | Z46: 84670WI1270073 | AA46: =BB46 -> 0.8286 | AB46: Arise Metro Gold POS 2000 HSA | AC46: 84670WI1270083 | AD46: =BB46 -> 0.8286 | AE46: Arise Metro Gold POS 2000 HSA | AF46: 84670WI1270083 | AG46: =BE46 -> 2000 | AH46: Arise Metro Gold POS 2000 HSA | AI46: 84670WI1270083 | AJ46: =BH46 -> 0.8 | AK46: Arise Metro Gold POS 2000 HSA | AL46: 84670WI1270083 | AM46: =BK46 -> D/C | AN46: POS | AO46: Gold | AP46: 2000 | AQ46: 4000 | AR46: 1 | AS46: 0.8 | AT46: 2000 | AU46: 8000 | AV46: D/C | AW46: D/C | AX46: D/C | AY46: D/C | AZ46: 0 | BA46: D/C | BB46: 0.8286 | BD46: Gold | BE46: 2000 | BF46: 4000 | BG46: 1 | BH46: 0.8 | BI46: 2000 | BJ46: 8000 | BK46: D/C | BL46: D/C | BM46: D/C | BN46: D/C | BO46: D/C | BP46: 2000 | BQ46: 4000 | BR46: 1 | BS46: 0.8 | BT46: 2000 | BU46: 8000 | BV46: D/C | BW46: D/C | BX46: D/C | BY46: D/C | BZ46: D/C | CA46: 2000 | CB46: 4000 | CC46: 1 | CD46: 0.8 | CE46: 2000 | CF46: 8000 | CG46: D/C | CH46: D/C | CI46: D/C | CJ46: D/C | CK46: D/C | CQ46: 2 | CR46: 2 | CS46: 45.64
C47: 53 | D47: 2.04 | E47: 1.19 | G47: 40 | H47: Wood | I47: 10 | J47: 0.832 | K47: Aspirus Arise | O47: 2 | P47: HMO | AN47: POS | AO47: Gold | AP47: PCP | AR47: 500 | AT47: 1000 | AZ47: 0.6 | BA47: 3500 | BB47: 0.9048 | BC47: =$DJ$8*ROUND($A$8*VLOOKUP($I$5,$G$8:$J$34,4,FALSE)*ROUND(VLOOKUP($Q$6,$O$8:$Q$8,3,FALSE)*BB47,4),2) ->  | CQ47: 3 | CR47: 3+ | CS47: 78.58 | DL47: =$DJ$12*ROUND($A$8*VLOOKUP($I$5,$G$8:$J$34,4,FALSE)*ROUND(VLOOKUP($Q$6,$O$8:$Q$8,3,FALSE)*BB47,4),2) -> 
C48: 54 | D48: 2.135 | E48: 1.195 | O48: 3 | P48: POS | AN48: POS | AO48: Silver | AP48: Copay | AR48: 4500 | AT48: 9000 | AZ48: 0.8 | BA48: 6350 | BB48: 0.7327
C49: 55 | D49: 2.23 | E49: 1.2 | AN49: POS | AO49: Silver | AP49: Copay | AR49: 3000 | AT49: 6000 | AZ49: 0.7 | BA49: 6350 | BB49: 0.6684
C50: 56 | D50: 2.333 | E50: 1.205 | AN50: POS | AO50: Silver | AP50: Copay | AR50: 2500 | AT50: 5000 | AZ50: 0.6 | BA50: 5000 | BB50: 0.6949
C51: 57 | D51: 2.437 | E51: 1.21 | AN51: POS | AO51: Silver | AP51: Copay | AR51: 2000 | AT51: 4000 | AZ51: 0.6 | BA51: 6350 | BB51: 0.6607
C52: 58 | D52: 2.548 | E52: 1.215 | AN52: POS | AO52: Silver | AP52: Copay | AR52: 4500 | AT52: 9000 | AZ52: 0.5 | BA52: 6350 | BB52: 0.6242
C53: 59 | D53: 2.603 | E53: 1.22 | AN53: POS | AO53: Silver | AP53: Copay | AR53: 3000 | AT53: 6000 | AZ53: 0.5 | BA53: 6350 | BB53: 0.6279
C54: 60 | D54: 2.714 | E54: 1.226 | AN54: POS | AO54: Silver | AP54: PCP | AR54: 4000 | AT54: 8000 | AZ54: 0.8 | BA54: 5000 | BB54: 0.7101
C55: 61 | D55: 2.81 | E55: 1.232 | AN55: POS | AO55: Silver | AP55: PCP | AR55: 3000 | AT55: 6000 | AZ55: 0.7 | BA55: 6350 | BB55: 0.6457
C56: 62 | D56: 2.873 | E56: 1.238 | AN56: POS | AO56: Silver | AP56: PCP | AR56: 2000 | AT56: 4000 | AZ56: 0.6 | BA56: 6350 | BB56: 0.6402
C57: 63 | D57: 2.952 | E57: 1.244 | AN57: POS | AO57: Silver | AP57: PCP | AR57: 2000 | AT57: 4000 | AZ57: 0.6 | BA57: 5000 | BB57: 0.6877
C58: 64 | D58: 3 | E58: 1.25 | AN58: POS | AO58: Silver | AP58: PCP | AR58: 1500 | AT58: 3000 | AZ58: 0.5 | BA58: 6350 | BB58: 0.6721
AN59: POS | AO59: Silver | AP59: PCP | AR59: 2500 | AT59: 5000 | AZ59: 0.5 | BA59: 5000 | BB59: 0.6533
AN60: POS | AO60: Silver | AP60: D/C | AR60: 0 | AT60: 1000 | AZ60: 0.5 | BA60: 6350 | BB60: 0.8335
AN61: POS | AO61: Bronze | AP61: PCP | AR61: 6350 | AT61: 12700 | AZ61: 0.8 | BA61: 6350 | BB61: 0.5954
AN62: POS | AO62: Bronze | AP62: PCP | AR62: 5500 | AT62: 11000 | AZ62: 0.7 | BA62: 6350 | BB62: 0.5788
AN63: POS | AO63: Bronze | AP63: PCP | AR63: 5000 | AT63: 10000 | AZ63: 0.6 | BA63: 6350 | BB63: 0.5618
AN64: POS | AO64: Bronze | AP64: PCP | AR64: 4500 | AT64: 9000 | AZ64: 0.5 | BA64: 6350 | BB64: 0.5673
AN65: POS | AO65: Catastrophic | AP65: PCP | AR65: 6350 | AT65: 12700 | AZ65: 0.8 | BA65: 6350 | BB65: 0.4941
AN66: HMO | AO66: Gold | AP66: D/C | AR66: 2000 | AT66: - | AZ66: - | BA66: 2000 | BB66: 0.7792
AN67: HMO | AO67: Silver | AP67: D/C | AR67: 3500 | AT67: - | AZ67: - | BA67: 3500 | BB67: 0.6663
AN68: HMO | AO68: Silver | AP68: D/C | AR68: 3000 | AT68: - | AZ68: - | BA68: 3000 | BB68: 0.6941
AN69: HMO | AO69: Silver | AP69: D/C | AR69: 3000 | AT69: - | AZ69: - | BA69: 4000 | BB69: 0.6402
AN70: HMO | AO70: Silver | AP70: D/C | AR70: 2500 | AT70: - | AZ70: - | BA70: 4500 | BB70: 0.6202
AN71: HMO | AO71: Silver | AP71: D/C | AR71: 1500 | AT71: - | AZ71: - | BA71: 6350 | BB71: 0.6128
AN72: HMO | AO72: Bronze | AP72: D/C | AR72: 6000 | AT72: - | AZ72: - | BA72: 6000 | BB72: 0.5519
AN73: HMO | AO73: Bronze | AP73: D/C | AR73: 4500 | AT73: - | AZ73: - | BA73: 6350 | BB73: 0.5493
AN74: HMO | AO74: Bronze | AP74: D/C | AR74: 5500 | AT74: - | AZ74: - | BA74: 6350 | BB74: 0.5103
AN75: HMO | AO75: Bronze | AP75: D/C | AR75: 3500 | AT75: - | AZ75: - | BA75: 6350 | BB75: 0.5283
AN76: POS | AO76: Gold | AP76: D/C | AR76: 2000 | AT76: 2000 | AZ76: 0.8 | BA76: 2000 | BB76: 0.8229
AN77: POS | AO77: Silver | AP77: D/C | AR77: 3500 | AT77: 3500 | AZ77: 0.8 | BA77: 3500 | BB77: 0.7036
AN78: POS | AO78: Silver | AP78: D/C | AR78: 3000 | AT78: 3000 | AZ78: 0.8 | BA78: 3000 | BB78: 0.7325
AN79: POS | AO79: Silver | AP79: D/C | AR79: 3000 | AT79: 3000 | AZ79: 0.7 | BA79: 4000 | BB79: 0.6757
AN80: POS | AO80: Silver | AP80: D/C | AR80: 2500 | AT80: 2500 | AZ80: 0.6 | BA80: 4500 | BB80: 0.6545
AN81: POS | AO81: Silver | AP81: D/C | AR81: 1500 | AT81: 1500 | AZ81: 0.5 | BA81: 6350 | BB81: 0.6476
AN82: POS | AO82: Bronze | AP82: D/C | AR82: 6000 | AT82: 6000 | AZ82: 0.8 | BA82: 6000 | BB82: 0.5829
AN83: POS | AO83: Bronze | AP83: D/C | AR83: 4500 | AT83: 4500 | AZ83: 0.7 | BA83: 6350 | BB83: 0.5803
AN84: POS | AO84: Bronze | AP84: D/C | AR84: 5500 | AT84: 5500 | AZ84: 0.6 | BA84: 6350 | BB84: 0.5381
AN85: POS | AO85: Bronze | AP85: D/C | AR85: 3500 | AT85: 3500 | AZ85: 0.5 | BA85: 6350 | BB85: 0.5574
AG91: 409.05
Y92: ThedaCare HMO 3500 HDHP | Z92: 84670WI1250029 | AA92: 0.727 | AB92: Aurora HMO 3500 HDHP | AC92: 84670WI1250084 | AD92: 0.727 | AE92: Aurora and ThedaCare HMO 3500 HDHP | AF92: 84670WI1250114 | AG92: 409.05 | AH92: Aurora and Bellin HMO 3500 HDHP | AI92: 84670WI1250124 | AK92: ProHealth and Aurora HMO 3500 HDHP | AL92: 84670WI1250134
Y93: ThedaCare HMO 2600 HDHP | Z93: 84670WI1250032 | AA93: 0.7344 | AB93: Aurora HMO 2600 HDHP | AC93: 84670WI1250087 | AD93: 0.7344 | AE93: Aurora and ThedaCare HMO 2600 HDHP | AF93: 84670WI1250115 | AG93: 409.05 | AH93: Aurora and Bellin HMO 2600 HDHP | AI93: 84670WI1250125 | AK93: ProHealth and Aurora HMO 2600 HDHP | AL93: 84670WI1250135
H96: Brown | I96: 16 | J96: 1.134 | U96: 1 | V96: HMO Bronze 6250 | W96: 86584WI0010006 | Y96: ThedaCare HMO 6000 | Z96: 84670WI1250101 | AA96: 0.487 | AB96: Aurora HMO 6000 | AC96: 84670WI1250107 | AD96: 0.487 | AE96: Aurora and ThedaCare HMO 6000 | AF96: 84670WI1250117 | AG96: 5681.25 | AH96: Aurora and Bellin HMO 6000 | AI96: 84670WI1250127 | AK96: ProHealth and Aurora HMO 6000 | AL96: 84670WI1250137 | AN96: HMO | AO96: Bronze | AP96: 6250 | AQ96: - | AR96: 0.2 | AS96: - | AT96: 7900 | AU96: - | AV96: D/C | AW96: D/C | AX96: D/C | AY96: D/C | AZ96: 0 | BA96: $0 preventive, D/C all others | BB96: 0.5357716292 | BD96: Bronze | BE96: 6250 | BF96: - | BG96: 0.2 | BH96: - | BI96: 7350 | BJ96: - | BK96: D/C | BL96: D/C | BM96: D/C | BN96: D/C | BO96: $0 preventive, D/C all others | BP96: 6250 | BQ96: - | BR96: 0.2 | BS96: - | BT96: 7350 | BU96: - | BV96: D/C | BW96: D/C | BX96: D/C | BY96: D/C | BZ96: $0 preventive, D/C all others | CA96: 6250 | CB96: - | CC96: 0.2 | CD96: - | CE96: 7350 | CF96: - | CG96: D/C | CH96: D/C | CI96: D/C | CJ96: D/C | CK96: $0 preventive, D/C all others
H97: Calumet | I97: 11 | J97: 0.907 | U97: 2 | V97: HMO Bronze 7150 | W97: 86584WI0010011 | Y97: ThedaCare 6850 | Z97: 84670WI1270102 | AA97: 0.489 | AB97: Aurora 6850 | AC97: 84670WI1270108 | AD97: 0.489 | AE97: Aurora and ThedaCare 6850 | AF97: 84670WI1270118 | AG97: 6044.85 | AH97: Aurora and Bellin 6850 | AI97: 84670WI1270128 | AK97: ProHealth and Aurora 6850 | AL97: 84670WI1270138 | AN97: Simple Choice HMO | AO97: Bronze | AP97: 7150 | AQ97: - | AR97: 0.4 | AS97: - | AT97: 7900 | AU97: - | AV97: D/C | AW97: D/C | AX97: D/C | AY97: D/C | AZ97: 0 | BA97: $0 / $0 / $25 / $60 / $100 / $500 Ded. 40% Coins. | BB97: 0.5379283904 | BD97: Bronze | BE97: 6650 | BF97: - | BG97: 0.4 | BH97: - | BI97: 7350 | BJ97: - | BK97: $35/$75 | BL97: 35 | BM97: 75 | BN97: D/C | BO97: $0/$35/$35/35%/40%/45% | BP97: 6650 | BQ97: - | BR97: 0.4 | BS97: - | BT97: 7350 | BU97: - | BV97: $35/$75 | BW97: 35 | BX97: 75 | BY97: D/C | BZ97: $0/$35/$35/35%/40%/45% | CA97: 6650 | CB97: - | CC97: 0.4 | CD97: - | CE97: 7350 | CF97: - | CG97: $35/$75 | CH97: 35 | CI97: 75 | CJ97: D/C | CK97: $0/$35/$35/35%/40%/45%
H98: Door | I98: 16 | J98: 1.134 | U98: 3 | V98: HMO Bronze 7900 | W98: 86584WI0010005 | Y98: ThedaCare HMO 6850 | Z98: 84670WI1250102 | AA98: 0.4826 | AB98: Aurora HMO 6850 | AC98: 84670WI1250108 | AD98: 0.4826 | AE98: Aurora and ThedaCare HMO 6850 | AF98: 84670WI1250118 | AG98: 6681.15 | AH98: Aurora and Bellin HMO 6850 | AI98: 84670WI1250128 | AK98: ProHealth and Aurora HMO 6850 | AL98: 84670WI1250138 | AN98: HMO | AO98: Bronze | AP98: 7900 | AQ98: - | AR98: 0 | AS98: - | AT98: 7900 | AU98: - | AV98: D/C | AW98: D/C | AX98: D/C | AY98: D/C | AZ98: 0 | BA98: $0 preventive, D/C all others | BB98: 0.5308708207 | BD98: Bronze | BE98: 7350 | BF98: - | BG98: 0 | BH98: - | BI98: 7350 | BJ98: - | BK98: D/C | BL98: D/C | BM98: D/C | BN98: D/C | BO98: $0 preventive, D/C all others | BP98: 7350 | BQ98: - | BR98: 0 | BS98: - | BT98: 7350 | BU98: - | BV98: D/C | BW98: D/C | BX98: D/C | BY98: D/C | BZ98: $0 preventive, D/C all others | CA98: 7350 | CB98: - | CC98: 0 | CD98: - | CE98: 7350 | CF98: - | CG98: D/C | CH98: D/C | CI98: D/C | CJ98: D/C | CK98: $0 preventive, D/C all others
H99: Fond du Lac | I99: 11 | J99: 0.907 | U99: 4 | V99: HMO Silver 3750 | W99: 86584WI0010012 | Y99: ThedaCare 4000 | Z99: 84670WI1270015 | AA99: 0.7169 | AB99: Aurora 4000 | AC99: 84670WI1270054 | AD99: 0.7169 | AE99: Aurora and ThedaCare 4000 | AF99: 84670WI1270109 | AG99: 0 | AH99: Aurora and Bellin 4000 | AI99: 84670WI1270119 | AK99: ProHealth and Aurora 4000 | AL99: 84670WI1270129 | AN99: Simple Choice HMO | AO99: Silver | AP99: 3750 | AQ99: - | AR99: 0.3 | AS99: - | AT99: 7900 | AU99: - | AV99: $0/$10 | AW99: 35 | AX99: 70 | AY99: 350 | AZ99: 0 | BA99: $0 / $0 / $25 / $60 / $100 / $500 Ded. 40% Coins. | BB99: 0.7886274788 | BD99: Silver | BE99: 0 | BF99: - | BG99: 0 | BH99: - | BI99: 650 | BJ99: - | BK99: $0/$10 | BL99: 35 | BM99: 70 | BN99: 350 | BO99: $0 / $0 / $25 / $60 / $100 / $500 Ded. 40% Coins. | BP99: 600 | BQ99: - | BR99: 0 | BS99: - | BT99: 1600 | BU99: - | BV99: $0/$10 | BW99: 35 | BX99: 70 | BY99: 350 | BZ99: $0 / $0 / $25 / $60 / $100 / $500 Ded. 40% Coins. | CA99: 3750 | CB99: - | CC99: 0.3 | CD99: - | CE99: 6000 | CF99: - | CG99: $0/$10 | CH99: 35 | CI99: 70 | CJ99: 350 | CK99: $0 / $0 / $25 / $60 / $100 / $500 Ded. 40% Coins.
H100: Green Lake | I100: 15 | J100: 0.897 | U100: 5 | V100: HMO Silver 4500 | W100: 86584WI0010002 | Y100: ThedaCare HMO 4000 | Z100: 84670WI1250015 | AA100: 0.7402 | AB100: Aurora HMO 4000 | AC100: 84670WI1250054 | AD100: 0.7402 | AE100: Aurora and ThedaCare HMO 4000 | AF100: 84670WI1250109 | AG100: 0 | AH100: Aurora and Bellin HMO 4000 | AI100: 84670WI1250119 | AK100: ProHealth and Aurora HMO 4000 | AL100: 84670WI1250129 | AN100: HMO | AO100: Silver | AP100: 4500 | AQ100: - | AR100: 0.2 | AS100: - | AT100: 7900 | AU100: - | AV100: $0/$10 | AW100: 35 | AX100: 70 | AY100: 350 | AZ100: 0 | BA100: $0 / $0 / $25 / $60 / $100 / $500 Ded. 40% Coins. | BB100: 0.8143354687 | BD100: Silver | BE100: 0 | BF100: - | BG100: 0 | BH100: - | BI100: 650 | BJ100: - | BK100: $0/$10 | BL100: 35 | BM100: 70 | BN100: 350 | BO100: $0 / $0 / $25 / $60 / $100 / $500 Ded. 40% Coins. | BP100: 600 | BQ100: - | BR100: 0 | BS100: - | BT100: 1600 | BU100: - | BV100: $0/$10 | BW100: 35 | BX100: 70 | BY100: 350 | BZ100: $0 / $0 / $25 / $60 / $100 / $500 Ded. 40% Coins. | CA100: 4200 | CB100: - | CC100: 0.2 | CD100: - | CE100: 6000 | CF100: - | CG100: $0/$10 | CH100: 35 | CI100: 70 | CJ100: 350 | CK100: $0 / $0 / $25 / $60 / $100 / $500 Ded. 40% Coins.
H101: Kewaunee | I101: 16 | J101: 1.134 | U101: 6 | V101: HMO Silver 7000 | W101: 86584WI0010001 | Y101: ThedaCare HMO 5000 | Z101: 84670WI1250100 | AA101: 0.7106 | AB101: Aurora HMO 5000 | AC101: 84670WI1250106 | AD101: 0.7106 | AE101: Aurora and ThedaCare HMO 5000 | AF101: 84670WI1250116 | AG101: 0 | AH101: Aurora and Bellin HMO 5000 | AI101: 84670WI1250126 | AK101: ProHealth and Aurora HMO 5000 | AL101: 84670WI1250136 | AN101: HMO | AO101: Silver | AP101: 7000 | AQ101: - | AR101: 0 | AS101: - | AT101: 7000 | AU101: - | AV101: $0/$10 | AW101: 35 | AX101: 70 | AY101: 350 | AZ101: 0 | BA101: $0 / $0 / $25 / $60 / $100 / $500 Ded. 40% Coins. | BB101: 0.7817009125 | BD101: Silver | BE101: 0 | BF101: - | BG101: 0 | BH101: - | BI101: 650 | BJ101: - | BK101: $0/$10 | BL101: 35 | BM101: 70 | BN101: 350 | BO101: $0 / $0 / $25 / $60 / $100 / $500 Ded. 40% Coins. | BP101: 600 | BQ101: - | BR101: 0 | BS101: - | BT101: 1600 | BU101: - | BV101: $0/$10 | BW101: 35 | BX101: 70 | BY101: 350 | BZ101: $0 / $0 / $25 / $60 / $100 / $500 Ded. 40% Coins. | CA101: 5300 | CB101: - | CC101: 0 | CD101: - | CE101: 6300 | CF101: - | CG101: $0/$10 | CH101: 35 | CI101: 70 | CJ101: 350 | CK101: $0 / $0 / $25 / $60 / $100 / $500 Ded. 40% Coins.
H102: Manitowoc | I102: 16 | J102: 1.134 | U102: 7 | V102: HMO Gold 2000 | W102: 86584WI0010007 | Y102: ThedaCare HMO 1500 | Z102: 84670WI1250007 | AA102: 1.1072 | AB102: Aurora HMO 1500 | AC102: 84670WI1250051 | AD102: 1.1072 | AE102: Aurora and ThedaCare HMO 1500 | AF102: 84670WI1250110 | AG102: 1818 | AH102: Aurora and Bellin HMO 1500 | AI102: 84670WI1250120 | AK102: ProHealth and Aurora HMO 1500 | AL102: 84670WI1250130 | AN102: HMO | AO102: Gold | AP102: 2000 | AQ102: - | AR102: 0.2 | AS102: - | AT102: 3850 | AU102: - | AV102: $0/$10 | AW102: 35 | AX102: 70 | AY102: 350 | AZ102: 0 | BA102: $0 / $0 / $15 / $40 / $70 / 30% | BB102: 1.218055971 | BD102: Gold | BE102: 2000 | BF102: - | BG102: 0.2 | BH102: - | BI102: 3850 | BJ102: - | BK102: $0/$10 | BL102: 35 | BM102: 70 | BN102: 350 | BO102: $0 / $0 / $15 / $40 / $65 / 30% | BP102: 2000 | BQ102: - | BR102: 0.2 | BS102: - | BT102: 3850 | BU102: - | BV102: $0/$10 | BW102: 35 | BX102: 70 | BY102: 350 | BZ102: $0 / $0 / $15 / $40 / $65 / 30% | CA102: 2000 | CB102: - | CC102: 0.2 | CD102: - | CE102: 3850 | CF102: - | CG102: $0/$10 | CH102: 35 | CI102: 70 | CJ102: 350 | CK102: $0 / $0 / $15 / $40 / $65 / 30%
H103: Marinette | I103: 16 | J103: 1.134 | U103: 8 | V103: HMO Catastrophic 7900 | W103: 86584WI0010008 | Y103: ThedaCare HMO 6850 Catastrophic | Z103: 84670WI1250039 | AA103: 0.4012 | AB103: Aurora HMO 6850 Catastrophic | AC103: 84670WI1250094 | AD103: 0.4012 | AE103: Aurora and ThedaCare HMO 6850 Catastrophic | AF103: 84670WI1250111 | AG103: 6681.15 | AH103: Aurora and Bellin HMO 6850 Catastrophic | AI103: 84670WI1250121 | AK103: ProHealth and Aurora HMO 6850 Catastrophic | AL103: 84670WI1250131 | AN103: HMO | AO103: Catastrophic | AP103: 7900 | AQ103: - | AR103: 0 | AS103: - | AT103: 7900 | AU103: - | AV103: D/C | AW103: 3 Free | AX103: D/C | AY103: D/C | AZ103: 3 | BA103: $0 preventive, D/C all others | BB103: 0.4413497959 | BD103: Catastrophic | BE103: 7350 | BF103: - | BG103: 0 | BH103: - | BI103: 7350 | BJ103: - | BK103: D/C | BL103: 3 Free | BM103: D/C | BN103: D/C | BO103: $0 preventive, D/C all others | BP103: 7350 | BQ103: - | BR103: 0 | BS103: - | BT103: 7350 | BU103: - | BV103: D/C | BW103: 3 Free | BX103: D/C | BY103: D/C | BZ103: $0 preventive, D/C all others | CA103: 7350 | CB103: - | CC103: 0 | CD103: - | CE103: 7350 | CF103: - | CG103: D/C | CH103: 3 Free | CI103: D/C | CJ103: D/C | CK103: $0 preventive, D/C all others
H104: Marquette | I104: 15 | J104: 0.897 | U104: 9 | V104: HMO HDHP Bronze 5500 | W104: 86584WI0010003 | Y104: ThedaCare HMO 5500 HDHP | Z104: 84670WI1250036 | AA104: 0.4995 | AB104: Aurora HMO 5500 HDHP | AC104: 84670WI1250091 | AD104: 0.4995 | AE104: Aurora and ThedaCare HMO 5500 HDHP | AF104: 84670WI1250112 | AG104: 4999.5 | AH104: Aurora and Bellin HMO 5500 HDHP | AI104: 84670WI1250122 | AK104: ProHealth and Aurora HMO 5500 HDHP | AL104: 84670WI1250132 | AN104: HMO HDHP | AO104: Bronze | AP104: 5500 | AQ104: - | AR104: 0.3 | AS104: - | AT104: 6750 | AU104: - | AV104: D/C | AW104: D/C | AX104: D/C | AY104: D/C | AZ104: 0 | BA104: $0 preventive, D/C all others | BB104: 0.549493501 | BD104: Bronze | BE104: 5500 | BF104: - | BG104: 0.2 | BH104: - | BI104: 6650 | BJ104: - | BK104: D/C | BL104: D/C | BM104: D/C | BN104: D/C | BO104: $0 preventive, D/C all others | BP104: 5500 | BQ104: - | BR104: 0.2 | BS104: - | BT104: 6650 | BU104: - | BV104: D/C | BW104: D/C | BX104: D/C | BY104: D/C | BZ104: $0 preventive, D/C all others | CA104: 5500 | CB104: - | CC104: 0.2 | CD104: - | CE104: 6650 | CF104: - | CG104: D/C | CH104: D/C | CI104: D/C | CJ104: D/C | CK104: $0 preventive, D/C all others
H105: Oconto | I105: 16 | J105: 1.134 | U105: 10 | V105: HMO HDHP Bronze 6450 | W105: 86584WI0010014 | AN105: Simple Choice HMO HDHP | AO105: Bronze | AP105: 6450 | AR105: 0 | AT105: 6450 | AV105: D/C | AW105: D/C | AX105: D/C | AY105: D/C | AZ105: 0 | BA105: $0 preventive, D/C all others | BB105: 0.5592517927 | BD105: Bronze | BE105: 6000 | BG105: 0 | BI105: 6000 | BK105: D/C | BL105: D/C | BM105: D/C | BN105: D/C | BO105: $0 preventive, D/C all others | BP105: 6000 | BR105: 0 | BT105: 6000 | BV105: D/C | BW105: D/C | BX105: D/C | BY105: D/C | BZ105: $0 preventive, D/C all others | CA105: 6000 | CC105: 0 | CE105: 6000 | CG105: D/C | CH105: D/C | CI105: D/C | CJ105: D/C | CK105: $0 preventive, D/C all others
H106: Outagamie | I106: 11 | J106: 0.907 | U106: 11 | V106: HMO HDHP Bronze 6750 | W106: 86584WI0010009 | Y106: ThedaCare HMO 6450 HDHP | Z106: 84670WI1250034 | AA106: 0.4985 | AB106: Aurora HMO 6450 HDHP | AC106: 84670WI1250090 | AD106: 0.4985 | AE106: Aurora and ThedaCare HMO 6450 HDHP | AF106: 84670WI1250113 | AG106: 6044.85 | AH106: Aurora and Bellin HMO 6450 HDHP | AI106: 84670WI1250123 | AK106: ProHealth and Aurora HMO 6450 HDHP | AL106: 84670WI1250133 | AN106: HMO HDHP | AO106: Bronze | AP106: 6750 | AQ106: - | AR106: 0 | AS106: - | AT106: 6750 | AU106: - | AV106: D/C | AW106: D/C | AX106: D/C | AY106: D/C | AZ106: 0 | BA106: $0 preventive, D/C all others | BB106: 0.548396266 | BD106: Bronze | BE106: 6650 | BF106: - | BG106: 0 | BH106: - | BI106: 6650 | BJ106: - | BK106: D/C | BL106: D/C | BM106: D/C | BN106: D/C | BO106: $0 preventive, D/C all others | BP106: 6650 | BQ106: - | BR106: 0 | BS106: - | BT106: 6650 | BU106: - | BV106: D/C | BW106: D/C | BX106: D/C | BY106: D/C | BZ106: $0 preventive, D/C all others | CA106: 6650 | CB106: - | CC106: 0 | CD106: - | CE106: 6650 | CF106: - | CG106: D/C | CH106: D/C | CI106: D/C | CJ106: D/C | CK106: $0 preventive, D/C all others
H107: Shawano (Non 544 ZIP) | I107: 16 | J107: 1.134 | U107: 12 | V107: HMO HDHP Silver 2700 | W107: 86584WI0010004 | Y107: ThedaCare HMO 3500 HDHP | Z107: 84670WI1250029 | AA107: 0.727 | AB107: Aurora HMO 3500 HDHP | AC107: 84670WI1250084 | AD107: 0.727 | AE107: Aurora and ThedaCare HMO 3500 HDHP | AF107: 84670WI1250114 | AG107: 409.05 | AH107: Aurora and Bellin HMO 3500 HDHP | AI107: 84670WI1250124 | AK107: ProHealth and Aurora HMO 3500 HDHP | AL107: 84670WI1250134 | AN107: HMO HDHP | AO107: Silver | AP107: 2700 | AQ107: - | AR107: 0.2 | AS107: - | AT107: 6750 | AU107: - | AV107: D/C | AW107: D/C | AX107: D/C | AY107: D/C | AZ107: 0 | BA107: $0 preventive, D/C all others | BB107: 0.7987436006 | BD107: Silver | BE107: 600 | BF107: - | BG107: 0 | BH107: - | BI107: 600 | BJ107: - | BK107: D/C | BL107: D/C | BM107: D/C | BN107: D/C | BO107: $0 preventive, D/C all others | BP107: 1350 | BQ107: - | BR107: 0 | BS107: - | BT107: 1350 | BU107: - | BV107: D/C | BW107: D/C | BX107: D/C | BY107: D/C | BZ107: $0 preventive, D/C all others | CA107: 2500 | CB107: - | CC107: 0.2 | CD107: - | CE107: 5000 | CF107: - | CG107: D/C | CH107: D/C | CI107: D/C | CJ107: D/C | CK107: $0 preventive, D/C all others
H108: Waupaca | I108: 11 | J108: 0.907 | U108: 13 | V108: HMO HDHP Silver 4000 | W108: 86584WI0010010 | Y108: ThedaCare HMO 2600 HDHP | Z108: 84670WI1250032 | AA108: 0.7344 | AB108: Aurora HMO 2600 HDHP | AC108: 84670WI1250087 | AD108: 0.7344 | AE108: Aurora and ThedaCare HMO 2600 HDHP | AF108: 84670WI1250115 | AG108: 409.05 | AH108: Aurora and Bellin HMO 2600 HDHP | AI108: 84670WI1250125 | AK108: ProHealth and Aurora HMO 2600 HDHP | AL108: 84670WI1250135 | AN108: HMO HDHP | AO108: Silver | AP108: 4000 | AQ108: - | AR108: 0 | AS108: - | AT108: 4000 | AU108: - | AV108: D/C | AW108: D/C | AX108: D/C | AY108: D/C | AZ108: 0 | BA108: $0 preventive, D/C all others | BB108: 0.8079 | BD108: Silver | BE108: 600 | BF108: - | BG108: 0 | BH108: - | BI108: 600 | BJ108: - | BK108: D/C | BL108: D/C | BM108: D/C | BN108: D/C | BO108: $0 preventive, D/C all others | BP108: 1350 | BQ108: - | BR108: 0 | BS108: - | BT108: 1350 | BU108: - | BV108: D/C | BW108: D/C | BX108: D/C | BY108: D/C | BZ108: $0 preventive, D/C all others | CA108: 3500 | CB108: - | CC108: 0 | CD108: - | CE108: 3500 | CF108: - | CG108: D/C | CH108: D/C | CI108: D/C | CJ108: D/C | CK108: $0 preventive, D/C all others
H109: Waushara | I109: 11 | J109: 0.907 | U109: 14 | V109: HMO HDHP Silver 5000 | W109: 86584WI0010013 | AG109: 409.05 | AN109: HMO HDHP | AO109: Silver | AP109: 5000 | AR109: 0 | AT109: 5000 | AV109: D/C | AW109: D/C | AX109: D/C | AY109: D/C | AZ109: 0 | BA109: $0 preventive, D/C all others | BB109: 0.7661 | BD109: Silver | BE109: 600 | BF109: - | BG109: 0 | BH109: - | BI109: 600 | BJ109: - | BK109: D/C | BL109: D/C | BM109: D/C | BN109: D/C | BO109: $0 preventive, D/C all others | BP109: 1350 | BQ109: - | BR109: 0 | BS109: - | BT109: 1350 | BU109: - | BV109: D/C | BW109: D/C | BX109: D/C | BY109: D/C | BZ109: $0 preventive, D/C all others | CA109: 3500 | CB109: - | CC109: 0 | CD109: - | CE109: 3500 | CG109: D/C | CH109: D/C | CI109: D/C | CJ109: D/C | CK109: $0 preventive, D/C all others
H110: Winnebago | I110: 11 | J110: 0.907 | U110: 15 | V110: POS Silver 4500 | W110: 86584WI0020002 | Y110: ThedaCare 2600 HDHP | Z110: 84670WI1270032 | AA110: 0.7402 | AB110: Aurora 2600 HDHP | AC110: 84670WI1270087 | AD110: 0.7402 | AE110: Aurora and ThedaCare 2600 HDHP | AF110: 84670WI1270115 | AG110: 0 | AH110: Aurora and Bellin 2600 HDHP | AI110: 84670WI1270125 | AJ110: 0.4545 | AK110: ProHealth and Aurora 2600 HDHP | AL110: 84670WI1270135 | AN110: POS | AO110: Silver | AP110: 4500 | AQ110: 9000 | AR110: 0.2 | AS110: 0.5 | AT110: 7900 | AU110: 19000 | AV110: $0/$10 | AW110: 35 | AX110: 70 | AY110: 350 | AZ110: 0 | BA110: $0 / $0 / $25 / $60 / $100 / $500 Ded. 40% Coins. | BB110: 0.8143354687 | BD110: Silver | BE110: 0 | BF110: 9000 | BG110: 0 | BH110: 0.5 | BI110: 650 | BJ110: 19000 | BK110: $0/$10 | BL110: 35 | BM110: 70 | BN110: 350 | BO110: $0 / $0 / $25 / $60 / $100 / $500 Ded. 40% Coins. | BP110: 600 | BQ110: 9000 | BR110: 0 | BS110: 0.5 | BT110: 1600 | BU110: 19000 | BV110: $0/$10 | BW110: 35 | BX110: 70 | BY110: 350 | BZ110: $0 / $0 / $25 / $60 / $100 / $500 Ded. 40% Coins. | CA110: 4200 | CB110: 9000 | CC110: 0.2 | CD110: 0.5 | CE110: 6000 | CF110: 19000 | CG110: $0/$10 | CH110: 35 | CI110: 70 | CJ110: 350 | CK110: $0 / $0 / $25 / $60 / $100 / $500 Ded. 40% Coins.
U111: 16 | V111: POS Silver 7000 | W111: 86584WI0020001 | Y111: ThedaCare 5500 HDHP | Z111: 84670WI1270036 | AA111: 0.7106 | AB111: Aurora 5500 HDHP | AC111: 84670WI1270091 | AD111: 0.7106 | AE111: Aurora and ThedaCare 5500 HDHP | AF111: 84670WI1270112 | AG111: 0 | AH111: Aurora and Bellin 5500 HDHP | AI111: 84670WI1270122 | AJ111: 0.2727 | AK111: ProHealth and Aurora 5500 HDHP | AL111: 84670WI1270132 | AN111: POS | AO111: Silver | AP111: 7000 | AQ111: 14000 | AR111: 0 | AS111: 0.3 | AT111: 7000 | AU111: 20000 | AV111: $0/$10 | AW111: 35 | AX111: 70 | AY111: 350 | AZ111: 0 | BA111: $0 / $0 / $25 / $60 / $100 / $500 Ded. 40% Coins. | BB111: 0.7817009125 | BD111: Silver | BE111: 0 | BF111: 14000 | BG111: 0 | BH111: 0.3 | BI111: 650 | BJ111: 20000 | BK111: $0/$10 | BL111: 35 | BM111: 70 | BN111: 350 | BO111: $0 / $0 / $25 / $60 / $100 / $500 Ded. 40% Coins. | BP111: 600 | BQ111: 14000 | BR111: 0 | BS111: 0.3 | BT111: 1600 | BU111: 20000 | BV111: $0/$10 | BW111: 35 | BX111: 70 | BY111: 350 | BZ111: $0 / $0 / $25 / $60 / $100 / $500 Ded. 40% Coins. | CA111: 5300 | CB111: 14000 | CC111: 0 | CD111: 0.3 | CE111: 6300 | CF111: 20000 | CG111: $0/$10 | CH111: 35 | CI111: 70 | CJ111: 350 | CK111: $0 / $0 / $25 / $60 / $100 / $500 Ded. 40% Coins.
U112: 17 | V112: POS HDHP Bronze 5500 | W112: 86584WI0020003 | Y112: Aspirus Arise Platinum HMO 250 | Z112: 84670WI1250043 | AA112: 0.4995 | AB112: Arise Metro Platinum HMO 250 | AC112: 84670WI1250049 | AD112: 0.4995 | AE112: Arise Metro Platinum HMO 250 | AF112: 84670WI1250049 | AG112: 4999.5 | AH112: Arise Metro Platinum HMO 250 | AI112: 84670WI1250049 | AJ112: 0.4545 | AK112: Arise Metro Platinum HMO 250 | AL112: 84670WI1250049 | AN112: POS HDHP | AO112: Bronze | AP112: 5500 | AQ112: 11000 | AR112: 0.3 | AS112: 0.5 | AT112: 6750 | AU112: 21000 | AV112: D/C | AW112: D/C | AX112: D/C | AY112: D/C | AZ112: 0 | BA112: $0 preventive, D/C all others | BB112: 0.549493501 | BD112: Bronze | BE112: 5500 | BF112: 11000 | BG112: 0.2 | BH112: 0.5 | BI112: 6650 | BJ112: 21000 | BK112: D/C | BL112: D/C | BM112: D/C | BN112: D/C | BO112: $0 preventive, D/C all others | BP112: 5500 | BQ112: 11000 | BR112: 0.2 | BS112: 0.5 | BT112: 6650 | BU112: 21000 | BV112: D/C | BW112: D/C | BX112: D/C | BY112: D/C | BZ112: $0 preventive, D/C all others | CA112: 5500 | CB112: 11000 | CC112: 0.2 | CD112: 0.5 | CE112: 6650 | CF112: 21000 | CG112: D/C | CH112: D/C | CI112: D/C | CJ112: D/C | CK112: $0 preventive, D/C all others
U113: 18 | V113: POS HDHP Silver 2700 | W113: 86584WI0020004 | Y113: Aspirus Arise Catastrophic HMO 6600 | Z113: 84670WI1250093 | AA113: 0.7261 | AB113: Arise Metro Catastrophic HMO 6600 | AC113: 84670WI1250094 | AD113: 0.7261 | AE113: Arise Metro Catastrophic HMO 6600 | AF113: 84670WI1250094 | AG113: 545.4 | AH113: Arise Metro Catastrophic HMO 6600 | AI113: 84670WI1250094 | AJ113: 0.4545 | AK113: Arise Metro Catastrophic HMO 6600 | AL113: 84670WI1250094 | AN113: POS HDHP | AO113: Silver | AP113: 2700 | AQ113: 5400 | AR113: 0.2 | AS113: 0.5 | AT113: 6750 | AU113: 15400 | AV113: D/C | AW113: D/C | AX113: D/C | AY113: D/C | AZ113: 0 | BA113: $0 preventive, D/C all others | BB113: 0.7987436006 | BD113: Silver | BE113: 600 | BF113: 5400 | BG113: 0 | BH113: 0.5 | BI113: 600 | BJ113: 15400 | BK113: D/C | BL113: D/C | BM113: D/C | BN113: D/C | BO113: $0 preventive, D/C all others | BP113: 1350 | BQ113: 5400 | BR113: 0 | BS113: 0.5 | BT113: 1350 | BU113: 15400 | BV113: D/C | BW113: D/C | BX113: D/C | BY113: D/C | BZ113: $0 preventive, D/C all others | CA113: 2500 | CB113: 5400 | CC113: 0.2 | CD113: 0.5 | CE113: 5000 | CF113: 15400 | CG113: D/C | CH113: D/C | CI113: D/C | CJ113: D/C | CK113: $0 preventive, D/C all others

Sheet WPS Health Plan Subsidy Calcs (hidden)
A2: SUBSIDY CALCULATIONS | G2: HDHP
A3: Household Size | B3: Household Income | C3: 100% of FPL | D3: % of Poverty Level | E3: Maximum % | G3: Household Size | H3: Household Income | I3: 100% of FPL | J3: % of Poverty Level | K3: Maximum %
A4: ='WPS Health Plan Quote'!D17 -> 0 | B4: ='WPS Health Plan Quote'!H17 -> 0 | C4: =IF(A4=0,0,IF(A4=1,C79,C79+((A4-1)*C80))) -> 0 | D4: =ROUND(IF(ISERROR(B4/C4),0,B4/C4),4) -> 0 | E4: =IF(D4<1,0,SUM(B19:B20)) -> 0 | G4: =#REF! ->  | H4: =#REF! ->  | I4: =IF(G4=0,0,IF(G4=1,11490,11490+((G4-1)*4020))) ->  | J4: =H4/I4 ->  | K4: =IF(OR(J4>4,J4<1),0,SUM(H19:H20)) -> 
A6: Min Income | B6: Max Income | C6: Min Premium Cap | D6: Max Premium Cap | G6: Min Income | H6: Max Income | I6: Min Premium Cap | J6: Max Premium Cap
A7: (% of FPL) | B7: (% of FPL) | C7: (% of Income) | D7: (% of Income) | G7: (% of FPL) | H7: (% of FPL) | I7: (% of Income) | J7: (% of Income)
A8: 1 | B8: 1.33 | C8: 0 | D8: 0 | G8: 1 | H8: 1.33 | I8: 0.02 | J8: 0.02
A9: 1.33 | B9: 1.5 | C9: 0 | D9: 0 | G9: 1.33 | H9: 1.5 | I9: 0.03 | J9: 0.04
A10: 1.5 | B10: 2 | C10: 0 | D10: 0.02 | G10: 1.5 | H10: 2 | I10: 0.04 | J10: 0.063
A11: 2 | B11: 2.5 | C11: 0.02 | D11: 0.04 | G11: 2 | H11: 2.5 | I11: 0.063 | J11: 0.0805
A12: 2.5 | B12: 3 | C12: 0.04 | D12: 0.06 | G12: 2.5 | H12: 3 | I12: 0.0805 | J12: 0.095
A13: 3 | B13: 4 | C13: 0.06 | D13: 0.085 | G13: 3 | H13: 4 | I13: 0.095 | J13: 0.095
A14: 4 | B14: 9999.99 | C14: 0.085 | D14: 0.085
A16: Quote Specific Percentages | G16: Quote Specific Percentages
A17: =VLOOKUP(D4,A8:A14,1) ->  | B17: =VLOOKUP(A17,A8:D14,2,FALSE) ->  | C17: =VLOOKUP(A17,A8:D14,3,FALSE) ->  | D17: =VLOOKUP(A17,A8:D14,4,FALSE) ->  | G17: =VLOOKUP(J4,G8:G13,1) ->  | H17: =VLOOKUP(G17,G8:J13,2,FALSE) ->  | I17: =VLOOKUP(G17,G8:J13,3,FALSE) ->  | J17: =VLOOKUP(G17,G8:J13,4,FALSE) -> 
DL18: =ROUND(ROUND(ROUND(ROUND(BB18*$Q$9,4)*$A$8,2)*VLOOKUP($I$5,$G$9:$J$25,4,FALSE),2)*$CS$12,2)+ROUND(ROUND(ROUND(ROUND(BB18*$Q$9,4)*$A$8,2)*VLOOKUP($I$5,$G$9:$J$25,4,FALSE),2)*$CT$12,2)+ROUND(ROUND(ROUND(ROUND(BB18*$Q$9,4)*$A$8,2)*VLOOKUP($I$5,$G$9:$J$25,4,FALSE),2)*$CU$12,2)+ROUND(ROUND(ROUND(ROUND(BB18*$Q$9,4)*$A$8,2)*VLOOKUP($I$5,$G$9:$J$25,4,FALSE),2)*$CV$12,2)+ROUND(ROUND(ROUND(ROUND(BB18*$Q$9,4)*$A$8,2)*VLOOKUP($I$5,$G$9:$J$25,4,FALSE),2)*$CW$12,2)+ROUND(ROUND(ROUND(ROUND(BB18*$Q$9,4)*$A$8,2)*VLOOKUP($I$5,$G$9:$J$25,4,FALSE),2)*$CX$12,2)+ROUND(ROUND(ROUND(ROUND(BB18*$Q$9,4)*$A$8,2)*VLOOKUP($I$5,$G$9:$J$25,4,FALSE),2)*$CY$12,2)+ROUND(ROUND(ROUND(ROUND(BB18*$Q$9,4)*$A$8,2)*VLOOKUP($I$5,$G$9:$J$25,4,FALSE),2)*$CZ$12,2)+ROUND(ROUND(ROUND(ROUND(BB18*$Q$9,4)*$A$8,2)*VLOOKUP($I$5,$G$9:$J$25,4,FALSE),2)*$DA$12,2)+ROUND(ROUND(ROUND(ROUND(BB18*$Q$9,4)*$A$8,2)*VLOOKUP($I$5,$G$9:$J$25,4,FALSE),2)*$DB$12,2)+ROUND(ROUND(ROUND(ROUND(BB18*$Q$9,4)*$A$8,2)*VLOOKUP($I$5,$G$9:$J$25,4,FALSE),2)*$DC$12,2)+ROUND(ROUND(ROUND(ROUND(BB18*$Q$9,4)*$A$8,2)*VLOOKUP($I$5,$G$9:$J$25,4,FALSE),2)*$DD$12,2) -> 
A19: =1 - (D4-A17)/(B17-A17) ->  | B19: =A19*C17 ->  | G19: =1 - (J4-G17)/(H17-G17) ->  | H19: =G19*I17 -> 
A20: =1 - (B17-D4)/(B17-A17) ->  | B20: =A20*D17 ->  | G20: =1 - (H17-J4)/(H17-G17) ->  | H20: =G20*J17 -> 
B22: 2022
A23: Rating Area | B23: 2nd Lowest Silver, 21 | C23: HPI 2nd Lowest Silver 21 | D23: Adjustment Factor | E23: Subsidy | F23: ZIP | G23: Rating Area | H23: 2nd Lowest Silver, 27 | I23: Arise Top Gold 27 | J23: Adjustment Factor | L23: lowest | M23: lowest | N23: 2nd lowest
A24: Brown | B24: 295.56 | C24: 366.96 | D24: =C24/B24 -> 1.241575315 | E24: 274.3606333 | F24: 54129 | G24: 1 | H24: 258.39488 | I24: 385.05 | J24: =I24/H24 -> 1.490161105 | L24: 211 | M24: Dean Health Plan · Dean Silver Value Copay 5150X | N24: Dean Health Plan · Dean Silver Classic 4500X
A25: Calumet | B25: 302.13 | C25: 379.72 | D25: =C25/B25 -> 1.256809982 | E25: 288.2406333 | F25: 53916 | G25: 4 | H25: 264.13792 | J25: =I25/H25 -> 0 | L25: 278 | M25: Arise Health Plan · Aspirus Arise HMO 6850 | N25: Security Health Plan · Select $4,500 - 30%
A26: Dodge | B26: 302.19 | C26: 379.72 | D26: 1.256560442 | E26: 276.9606333 | F26: 54935 | G26: 7 | H26: 234.16512 | J26: 0 | L26: 248 | M26: Molina Healthcare of Wisconsin, Inc. · Molina Marketplace Silver Plan | N26: Arise Health Plan · Aspirus Arise HMO 6850
A27: Door | B27: 295.56 | C27: 366.96 | D27: 1.241575315 | E27: 274.3606333 | F27: 54170 | G27: 9 | H27: 245.71408 | I27: 354.14 | J27: 1.441268649 | L27: 248 | M27: Molina Healthcare of Wisconsin, Inc. · Molina Marketplace Silver Plan | N27: Arise Health Plan · Aspirus Arise HMO 6850
A28: Fond du Lac | B28: 302.19 | C28: 379.72 | D28: 1.256560442 | E28: 276.9606333 | F28: 53073 | G28: 11 | H28: 200.17848 | I28: 316.06 | J28: 1.578890998 | L28: 274 | M28: Arise Health Plan · Aspirus Arise HMO 6850 | N28: Arise Health Plan · Aspirus Arise HMO 6000
A29: Green Lake | B29: 294.35 | C29: 388.9 | D29: 1.321216239 | E29: 276.9606333 | F29: 54981 | G29: 12 | H29: 240.6208 | I29: 363.89 | J29: 1.512296526 | L29: 211 | M29: Dean Health Plan · Dean Silver Value Copay 5150X | N29: Dean Health Plan · Dean Silver Classic 4500X
A30: Kenosha | B30: 324.45 | C30: 424.8 | D30: 1.309292649 | E30: 276.9606333 | F30: 54970 | G30: 15 | H30: 227.48936 | J30: 0 | L30: 274 | M30: Arise Health Plan · Aspirus Arise HMO 6850 | N30: Arise Health Plan · Aspirus Arise HMO 6000
A31: Kewaunee | B31: 295.56 | C31: 366.96 | D31: 1.241575315 | E31: 274.3606333 | F31: 54901 | G31: 16 | H31: 208.1852 | I31: 345.81 | J31: 1.661069087 | L31: 253 | M31: Molina Healthcare of Wisconsin, Inc. · Molina Marketplace Silver Plan | N31: Arise Health Plan · Aspirus Arise HMO 6850
A32: Manitowoc | B32: 295.56 | C32: 366.96 | D32: 1.241575315
A33: Marinette | B33: 295.56 | C33: 366.96 | D33: 1.241575315
A34: Marquette | B34: 344.93 | C34: 388.9 | D34: 1.12747514 | E34: Calc to back into 2 lowest | G34: Individual Max Payment: | I34: =H4*K4 -> 
A35: Milwaukee | B35: 287.72 | C35: 377.73 | D35: 1.312838871 | E35: =C49 -> 0 | G35: Monthly Max Payment: | I35: =I34/12 -> 
A36: Oconto | B36: 295.56 | C36: 366.96 | D36: 1.241575315 | G36: Rating Region: | I36: =VLOOKUP('WPS Health Plan Rating Factors'!I6,'WPS Health Plan Rating Factors'!G8:I34,3) -> 16
A37: Outagamie | B37: 302.13 | C37: 379.72 | D37: 1.256809982 | E37: =E38/E39 ->  | G37: Adjustment Factor: | I37: =VLOOKUP(I36,G24:J31,4,FALSE) -> 1.661069087
A38: Ozaukee | B38: 315.46 | C38: 403.66 | D38: 1.279591707 | E38: =C52 ->  | G38: Quoted Arise Top Gold HDHP Plan: | I38: ='WPS Health Plan Rating Factors'!DL76 -> 
A39: Racine | B39: 324.45 | C39: 424.8 | D39: 1.309292649 | E39: =E40+E35 -> 162.84 | G39: Quoted 2nd Lowest Silver Plan: | I39: =I38/I37 -> 
A40: Sheboygan | B40: 302.19 | C40: 379.72 | D40: 1.256560442 | E40: 162.84 | G40: Subsidy: | I40: =IF(ISERROR(K4),0,IF(OR(J4>4,J4<1),0,IF(ISERROR(I39-I35),0,IF(I39-I35<0,0,I39-I35)))) -> 0
A41: Washington | B41: 315.46 | C41: 403.66 | D41: 1.279591707
A42: Waukesha | B42: 315.46 | C42: 403.66 | D42: 1.279591707
A43: Waupaca | B43: 302.19 | C43: 379.72 | D43: 1.256560442
A44: Waushara | B44: 302.19 | C44: 379.72 | D44: 1.256560442
A45: Winnebago | B45: 302.13 | C45: 379.72 | D45: 1.256809982
